{"text_format":"1","workbook":"xlsx","n_sheets":4,"sheets":["hodnoceni","vysledky","knt_tab","ranking"],"not_rendered":{"charts":0,"images":0,"macros":1,"external_links":0,"defined_names":3,"comments":0,"pivot_tables":14},"unopened":[],"bounds":{"document_bytes":16777216,"sheet_cells":100000,"rows_first":2000,"rows_last":500,"rows_between":2000,"halvings":0,"cell_chars":16384,"cell_head_chars":4096},"cells_cut":0,"cells_raw":0,"read":"whole","date_system":"1900"}

{"sheet":"hodnoceni","index":0,"n_rows":63,"n_cols":9,"rows_kept":63,"cut":false,"hidden":false,"merged":[]}
["1.      Kritéria pro bodování jednotlivců:"]
[]
["Každý závodník obdrží :"]
["a)","1 bod za vyhraný zápas v turnaji jednotlivců"]
["b)","2 body za vyhraný zápas v turnaji družstev"]
["c)","1 bod za remízu v turnaji družstev"]
["d)","počet bodů za umístění podle typu soutěže"]
[]
["1.1.  Mistrovské soutěže ( MK, MČR, ME, MS, soutěže družstev):"]
[]
["1.1.1        MK:",null,null,null,null,"1.1.3        ME:"]
["             ","1. místo                 7 bodů",null,null,null,"             ","1. místo                 50 bodů"]
["             ","2. místo                 5 bodů",null,null,null,"             ","2. místo                 40 bodů"]
["             ","3. místo                 4 body",null,null,null,"             ","3. místo                 35 bodů "]
[null,null,null,null,null,null,"4. místo                 30 bodů"]
[" ",null,null,null,null,"             ","5. místo                 30 bodů"]
[null,null,null,null,null,null,"6. místo                 25 bodů"]
[null,null,null,null,null,"             ","7. místo                 25 bodů"]
[null,null,null,null,null,"             ","9. místo                 20 bodů"]
["1.1.2        MČR:"]
["             ","1. místo                 20 bodů",null,null,null,"1.1.4        MS:"]
["             ","2. místo                 15 bodů",null,null,null,null,"1. místo                100 bodů"]
["             ","3. místo                 10 bodů ",null,null,null,null,"2. místo                 80 bodů"]
["             ","4. místo                   7 bodů ",null,null,null,null,"3. místo                 70 bodů "]
["             ","5. místo                   7 bodů",null,null,null,null,"5. místo                 60 bodů"]
["             ","6. místo                   5 bodů",null,null,null,null,"7. místo                 50 bodů"]
[null,"7. místo                   5 bodů",null,null,null,null,"9. místo                 40 bodů"]
[]
["1.2.    Nemistrovské soutěže ( MC, PK, VC, MVC, ČP, MT, PČR, EJU, soutěže družstev):"]
[]
["1.2.1        MC a ostatní :",null,null,null,null,"1.2.2        VC, MVC, PK a PSO:"]
["             ","1. místo                  4      body",null,null,null,null,"1.místo                  6    bodů"]
["             ","2. místo                  3      body",null,null,null,null,"2. místo                 5    bodů"]
["             ","3. místo                  2      body ",null,null,null,null,"3. místo                 3    body "]
[null,null,null,null,null," "]
["1.2.3        KT, MT a PČR:",null,null,null,null,"1.2.4        EJU:"]
["             ","1. místo               10 bodů",null,null,null,"           ","1. místo                 35 bodů"]
["             ","2. místo                 7 bodů",null,null,null,"             ","2. místo                 30 bodů"]
["             ","3. místo                 5 bodů ",null,null,null,"             ","3. místo                 25 bodů "]
["             ","4. místo                 3 body ",null,null,null,"             ","5. místo                 20 bodů "]
["             ","5. místo                 3 body ",null,null,null,"             ","7. místo                 15 bodů"]
["             ","6. místo                 2 body ",null,null,null,"             ","9. místo                 10 bodů"]
[null,"7. místo                 2 body"]
[null,null,null,null,null,"1.2.4        EYOF:"]
[null,null,null,null,null,"           ","1. místo                 50 bodů"]
[null,null,null,null,null,"             ","2. místo                 40 bodů"]
[null,null,null,null,null,"             ","3. místo                 35 bodů "]
[null,null,null,null,null,"             ","5. místo                 30 bodů "]
[null,null,null,null,null,"             ","7. místo                 25 bodů"]
[null,null,null,null,null,"             ","9. místo                 20 bodů"]
[]
["Legenda :"]
["MC","malá cena",null,null,null,null,null,"MK","mistrovství kraje"]
["VC ","ostatní turnaje zařazené do kal. ČSJu",null,null,null,null,null,"MČR","mistrovství České republiky"]
["MVC","mezinárodní velká cena",null,null,null,null,null,"ME","mistrovství Evropy"]
["PK","přebor kraje",null,null,null,null,null,"DL","dorostenecká liga"]
["PČR","přebor České republiky",null,null,null,null,null,"EXL","extraliga mužů"]
["ČP","turnaj českého poháru",null,null,null,null,null,"PSO","přebor spojených oblastí"]
["MT","turnaj za účasti více než 3 států",null,null,null,null,null,"MS","mistrovství světa"]
["EJU","turnaj zařazen do kalendáře Evropské federace juda",null,null,null,null,null,"EYOF","Evropský olympijský festival mládeže"]
[]
["V Ostravě 30.3.2019"]
["M. Pavlica"]

{"sheet":"vysledky","index":1,"n_rows":1500,"n_cols":23,"rows_kept":1500,"cut":false,"hidden":false,"merged":[]}
["datum","nazev","typ_souteze","jedn./dr.","Primeni","Jmeno","umisteni","kategorie","vaha","vyhr_zap","rem_zap","prohr_zap","body_um","body_zap","zavodnik","body",null,"Typ soutěže",null,"Bodování"]
["2022-01-08","MT Bialsko Biala","MT","j","To","Vojtěch",7,"starší žáci","33",1,0,2,{"$f":"IF(ISNA(VLOOKUP(C2&G2,$V$3:$W$95,2,FALSE)),0,VLOOKUP(C2&G2,$V$3:$W$95,2,FALSE))","v":2},{"$f":"IF(D2=\"d\",SUM(J2*2,K2),J2)","v":1},{"$f":"E2&\" \"&F2","v":"To Vojtěch"},{"$f":"SUM(M2,N2)","v":3},null,"MC",null,"typ_souteze","umisteni","kód","body"]
["2022-01-08","MT Bialsko Biala","MT","j","Přichystal","Leon",3,"starší žáci","42",3,0,1,5,3,"Přichystal Leon",{"$f":"SUM(M3,N3)","v":8},null,"VC",null,"EJU",1,{"$f":"T3&U3","v":"EJU1"},35]
["2022-01-08","MT Bialsko Biala","MT","j","Kuluris","Manolis",7,"starší žáci","45",1,0,2,2,1,"Kuluris Manolis",3,null,"MVC",null,"EJU",2,"EJU2",30]
["2022-01-08","MT Bialsko Biala","MT","j","Ciora","Jakub",3,"starší žáci","54",3,0,1,5,3,"Ciora Jakub",8,null,"PK",null,"EJU",3,"EJU3",25]
["2022-01-08","MT Bialsko Biala","MT","j","Huvar","Matyáš",5,"starší žáci","54",2,0,2,3,2,"Huvar Matyáš",5,null,"PCR",null,"EJU",5,"EJU5",20]
["2022-01-08","MT Bialsko Biala","MT","j","Stark","Vojtěch",1,"starší žáci","66",5,0,0,10,5,"Stark Vojtěch",15,null,"PSO",null,"EJU",7,"EJU7",15]
["2022-01-08","MT Bialsko Biala","MT","j","Valošek","Jakub",7,"starší žáci","50",1,0,2,2,1,"Valošek Jakub",3,null,"CP",null,"EJU",9,"EJU9",10]
["2022-01-08","MT Bialsko Biala","MT","j","Vlk","František",3,"starší žáci","90",0,0,2,5,0,"Vlk František",{"$f":"SUM(M9,N9)","v":5},null,"MK",null,"CP",1,"CP1",10]
["2022-01-08","MT Bialsko Biala","MT","j","Kaszperová","Kristýna",1,"starší žákyně","+70",3,0,0,10,3,"Kaszperová Kristýna",13,null,"MCR",null,"CP",2,"CP2",7]
["2022-01-23","Pohár nadějí Olomouc","MVC","j","Šelong","Tadeáš","bez","starší žáci","42",0,0,2,0,0,"Šelong Tadeáš",0,null,"DL",null,"CP",3,"CP3",5]
["2022-01-23","Pohár nadějí Olomouc","MVC","j","Přichystal","Leon","bez","starší žáci","42",0,0,1,0,0,"Přichystal Leon",0,null,"1.liga",null,"CP",4,"CP4",3]
["2022-01-23","Pohár nadějí Olomouc","MVC","j","Kuluris","Manolis",5,"starší žáci","46",2,0,2,0,2,"Kuluris Manolis",2,null,"EXL",null,"CP",5,"CP5",3]
["2022-01-23","Pohár nadějí Olomouc","MVC","j","Bečka","Václav",5,"starší žáci","50",2,0,2,0,2,"Bečka Václav",2,null,"EJU",null,"CP",6,"CP6",2]
["2022-01-23","Pohár nadějí Olomouc","MVC","j","Valošek","Jakub","bez","starší žáci","50",0,0,1,0,0,"Valošek Jakub",0,null,"EYOF",null,"CP",7,{"$f":"T15&U15","v":"CP7"},2]
["2022-01-23","Pohár nadějí Olomouc","MVC","j","Ciora","Jakub","bez","starší žáci","55",1,0,1,0,1,"Ciora Jakub",1,null,"ME",null,"MC",1,"MC1",4]
["2022-01-23","Pohár nadějí Olomouc","MVC","j","Kanclíř","Šimon",3,"starší žáci","60",2,0,1,3,2,"Kanclíř Šimon",5,null,"MT",null,"MC",2,"MC2",3]
["2022-01-23","Pohár nadějí Olomouc","MVC","j","Mařec","Tomáš",2,"starší žáci","60",2,0,1,5,2,"Mařec Tomáš",7,null,"MS",null,"MC",3,"MC3",2]
["2022-01-23","Pohár nadějí Olomouc","MVC","j","Stark","Vojtěch",2,"starší žáci","66",2,0,1,5,2,"Stark Vojtěch",7,null,null,null,"MCR",1,"MCR1",20]
["2022-01-23","Pohár nadějí Olomouc","MVC","j","Vlk","František",1,"starší žáci","+73",2,0,0,6,2,"Vlk František",8,null,"Věkové kategorie",null,"MCR",2,"MCR2",15]
["2022-01-23","Pohár nadějí Olomouc","MVC","j","Kaszperová","Kristýna",1,"starší žákyně","+63",3,0,0,6,3,"Kaszperová Kristýna",9,null,"mláďata",null,"MCR",3,"MCR3",10]
["2022-01-22","Velká cena České Třebové","VC","j","Prudil","Adam",2,"mláďata","28",4,0,1,5,4,"Prudil Adam",9,null,"mladší žákyně",null,"MCR",4,"MCR4",7]
["2022-01-22","Velká cena České Třebové","VC","j","Swiech","Viktor",3,"mláďata","29",3,0,2,3,3,"Swiech Viktor",6,null,"mladší žáci",null,"MCR",5,"MCR5",7]
["2022-01-22","Velká cena České Třebové","VC","j","Chovanec","Martin",2,"mláďata","30",4,0,1,5,4,"Chovanec Martin",9,null,"starší žákyně",null,"MCR",6,"MCR6",5]
["2022-01-22","Velká cena České Třebové","VC","j","Vlček","Viktor",1,"mláďata","31",5,0,0,6,5,"Vlček Viktor",11,null,"starší žáci",null,"MCR",7,{"$f":"T25&U25","v":"MCR7"},5]
["2022-01-22","Velká cena České Třebové","VC","j","Funiok","Martin",4,"mláďata","37",1,0,4,0,1,"Funiok Martin",1,null,"dorostenky",null,"EYOF",1,"EYOF1",50]
["2022-01-22","Velká cena České Třebové","VC","j","Kaszper","Matyáš",1,"mláďata","48",5,0,0,6,5,"Kaszper Matyáš",11,null,"dorostenci",null,"EYOF",2,"EYOF2",40]
["2022-01-23","Velká cena České Třebové","VC","j","Šelongová","Viktorie",2,"mladší žákyně","33",2,0,1,5,2,"Šelongová Viktorie",7,null,"juniorky",null,"EYOF",3,"EYOF3",35]
["2022-01-23","Velká cena České Třebové","VC","j","Zoulová","Tereza",3,"mladší žákyně","36",2,0,2,3,2,"Zoulová Tereza",5,null,"junioři",null,"EYOF",5,"EYOF5",30]
["2022-01-23","Velká cena České Třebové","VC","j","Zoulová","Karolína",2,"mladší žákyně","36",3,0,1,5,3,"Zoulová Karolína",8,null,"ženy",null,"EYOF",7,"EYOF7",25]
["2022-01-23","Velká cena České Třebové","VC","j","Gombík","František","bez","mladší žáci","34",2,0,2,0,2,"Gombík František",2,null,"muži",null,"EYOF",9,"EYOF9",20]
["2022-01-23","Velká cena České Třebové","VC","j","Stránský","David","bez","mladší žáci","38",1,0,2,0,1,"Stránský David",1,null,"veteráni",null,"ME",1,{"$f":"T32&U32","v":"ME1"},50]
["2022-01-23","Velká cena České Třebové","VC","j","Bauko","Viktor","bez","mladší žáci","38",0,0,1,0,0,"Bauko Viktor",0,null,"kata",null,"ME",2,"ME2",40]
["2022-01-23","Velká cena České Třebové","VC","j","Vlček","Martin","bez","mladší žáci","38",0,0,1,0,0,"Vlček Martin",0,null,null,null,"ME",3,"ME3",35]
["2022-01-23","Velká cena České Třebové","VC","j","Svoboda","Jindřich","bez","mladší žáci","38",0,0,1,0,0,"Svoboda Jindřich",0,null,null,null,"ME",4,{"$f":"T35&U35","v":"ME4"},30]
["2022-01-23","Velká cena České Třebové","VC","j","Bystrianský","Jan","bez","mladší žáci","38",0,0,2,0,0,"Bystrianský Jan",0,null,null,null,"ME",5,"ME5",30]
["2022-01-23","Velká cena České Třebové","VC","j","Hon","Sebastián","bez","mladší žáci","42",0,0,1,0,0,"Hon Sebastián",0,null,null,null,"ME",6,{"$f":"T37&U37","v":"ME6"},25]
["2022-01-23","Velká cena České Třebové","VC","j","Musial","Šimon",7,"mladší žáci","42",2,0,2,0,2,"Musial Šimon",2,null,null,null,"ME",7,"ME7",25]
["2022-01-23","Velká cena České Třebové","VC","j","Lechovič","Tobiáš",5,"mladší žáci","50",2,0,2,0,2,"Lechovič Tobiáš",2,null,null,null,"ME",9,"ME9",20]
["2022-01-23","Velká cena České Třebové","VC","j","Jahoda","Pavel","bez","mladší žáci","50",0,0,2,0,0,"Jahoda Pavel",0,null,null,null,"MK",1,"MK1",7]
["2022-01-23","Velká cena České Třebové","VC","j","Kret","Matyáš",7,"mladší žáci","55",1,0,2,0,1,"Kret Matyáš",1,null,null,null,"MK",2,"MK2",5]
["2022-01-23","Velká cena České Třebové","VC","j","Bokiy","Konstantin",5,"mladší žáci","55",2,0,2,0,2,"Bokiy Konstantin",2,null,null,null,"MK",3,"MK3",4]
["2022-01-23","Velká cena České Třebové","VC","j","Maslík","Teodor",7,"mladší žáci","55",0,0,2,0,0,"Maslík Teodor",0,null,null,null,"MVC",1,"MVC1",6]
["2022-01-23","Velká cena České Třebové","VC","j","Bravanský","Marek",3,"mladší žáci","55",3,0,1,3,3,"Bravanský Marek",6,null,null,null,"MVC",2,"MVC2",5]
["2022-01-22","Pohár nadějí Olomouc","MVC","j","Kuželová","Dominika",2,"dorostenky","63",3,0,1,5,3,"Kuželová Dominika",8,null,null,null,"MVC",3,"MVC3",3]
["2022-01-22","Pohár nadějí Olomouc","MVC","j","Caletka","Petr","bez","dorostenci","66",1,0,1,0,1,"Caletka Petr",1,null,null,null,"PCR",1,"PCR1",10]
["2022-01-22","Pohár nadějí Olomouc","MVC","j","Vavřínová","Pavla",9,"dorostenky","57",1,0,2,0,1,"Vavřínová Pavla",1,null,null,null,"PCR",2,"PCR2",7]
["2022-01-22","Pohár nadějí Olomouc","MVC","j","Pospíšil","Jan","bez","dorostenci","73",0,0,1,0,0,"Pospíšil Jan",0,null,null,null,"PCR",3,"PCR3",5]
["2022-01-22","Pohár nadějí Olomouc","MVC","j","Fulneček","Šimon",1,"dorostenci","90",3,0,0,6,3,"Fulneček Šimon",9,null,null,null,"PCR",4,"PCR4",3]
["2022-01-22","Pohár nadějí Olomouc","MVC","j","Caletka","Michal","bez","dorostenci","60",1,0,1,0,1,"Caletka Michal",1,null,null,null,"PCR",5,"PCR5",3]
["2022-01-22","Pohár nadějí Olomouc","MVC","j","Huvar","Jakub","bez","dorostenci","66",1,0,1,0,1,"Huvar Jakub",1,null,null,null,"PCR",6,"PCR6",2]
["2022-01-22","Pohár nadějí Olomouc","MVC","j","Čebík","Filip",5,"dorostenci","66",2,0,2,0,2,"Čebík Filip",2,null,null,null,"PCR",7,{"$f":"T52&U52","v":"PCR7"},2]
["2022-01-22","Pohár nadějí Olomouc","MVC","j","Čerchla","Michal",2,"dorostenci","90",2,0,1,5,2,"Čerchla Michal",7,null,null,null,"PK",1,{"$f":"T53&U53","v":"PK1"},6]
["2022-01-22","Pohár nadějí Olomouc","MVC","j","Vaněk","Jakub","bez","dorostenci","73",0,0,1,0,0,"Vaněk Jakub",0,null,null,null,"PK",2,"PK2",5]
["2022-01-22","Pohár nadějí Olomouc","MVC","j","Meixner","Michal","bez","dorostenci","66",0,0,2,0,0,"Meixner Michal",0,null,null,null,"PK",3,"PK3",3]
["2022-01-22","Pohár nadějí Olomouc","MVC","j","Pačuta","Ladislav",5,"dorostenci","60",3,0,2,0,3,"Pačuta Ladislav",3,null,null,null,"PSO",1,{"$f":"T56&U56","v":"PSO1"},6]
["2022-01-22","Pohár nadějí Olomouc","MVC","j","Kristen","Nicolas",9,"dorostenci","66",2,0,2,0,2,"Kristen Nicolas",2,null,null,null,"PSO",2,"PSO2",5]
["2022-01-22","Pohár nadějí Olomouc","MVC","j","Kutáč","Jan",7,"dorostenci","73",3,0,2,0,3,"Kutáč Jan",3,null,null,null,"PSO",3,"PSO3",3]
["2022-01-22","Pohár nadějí Olomouc","MVC","j","Rapčanová","Silvie","bez","dorostenky","52",0,0,1,0,0,"Rapčanová Silvie",0,null,null,null,"VC",1,"VC1",6]
["2022-01-22","Pohár nadějí Olomouc","MVC","j","Močkořová","Adéla","bez","dorostenky","70",0,0,2,0,0,"Močkořová Adéla",0,null,null,null,"VC",2,"VC2",5]
["2022-01-22","Pohár nadějí Olomouc","MVC","j","Rapčanová","Alice","bez","dorostenky","63",0,0,1,0,0,"Rapčanová Alice",0,null,null,null,"VC",3,"VC3",3]
["2022-01-22","Pohár nadějí Olomouc","MVC","j","Kolář","Vojtěch","bez","dorostenci","73",0,0,1,0,0,"Kolář Vojtěch",0,null,null,null,"MT",1,"MT1",10]
["2022-01-22","Pohár nadějí Olomouc","MVC","j","Bukovjanová","Charlotte",9,"dorostenky","57",1,0,2,0,1,"Bukovjanová Charlotte",1,null,null,null,"MT",2,"MT2",7]
["2022-01-22","Pohár nadějí Olomouc","MVC","j","Tomek","David","bez","dorostenci","73",0,0,2,0,0,"Tomek David",0,null,null,null,"MT",3,"MT3",5]
["2022-01-22","Pohár nadějí Olomouc","MVC","j","Potůček","Tomáš",1,"dorostenci","81",4,0,0,6,4,"Potůček Tomáš",10,null,null,null,"MT",4,"MT4",3]
["2022-01-22","Pohár nadějí Olomouc","MVC","j","Křížek","Šimon",5,"junioři","73",2,0,2,{"$f":"IF(ISNA(VLOOKUP(C66&G66,$V$3:$W$95,2,FALSE)),0,VLOOKUP(C66&G66,$V$3:$W$95,2,FALSE))","v":0},{"$f":"IF(D66=\"d\",SUM(J66*2,K66),J66)","v":2},{"$f":"E66&\" \"&F66","v":"Křížek Šimon"},2,null,null,null,"MT",5,"MT5",3]
["2022-01-22","Pohár nadějí Olomouc","MVC","j","Vršek","Jakub","bez","junioři","66",0,0,1,0,0,"Vršek Jakub",0,null,null,null,"MT",6,{"$f":"T67&U67","v":"MT6"},2]
["2022-01-22","Pohár nadějí Olomouc","MVC","j","Chlebovský","Daniel",2,"junioři","100",0,0,2,5,0,"Chlebovský Daniel",5,null,null,null,"MT",7,{"$f":"T68&U68","v":"MT7"},2]
["2022-01-22","Pohár nadějí Olomouc","MVC","j","Kokešová","Alexandra","bez","juniorky","78",0,0,1,0,0,"Kokešová Alexandra",0,null,null,null,"DL",1,"DL1",20]
["2022-01-22","Pohár nadějí Olomouc","MVC","j","Matýsek","Jan","bez","junioři","66",0,0,2,0,0,"Matýsek Jan",0,null,null,null,"DL",2,"DL2",15]
["2022-02-13","Evropský pohár dorostu - Lignano","EJU","j","Kuželová","Dominika",7,"dorostenky","63",2,0,2,15,2,"Kuželová Dominika",17,null,null,null,"DL",3,"DL3",10]
["2022-02-13","Evropský pohár dorostu - Lignano","EJU","j","Fulneček","Šimon",1,"dorostenci","90",4,0,0,35,4,"Fulneček Šimon",39,null,null,null,"DL",4,"DL4",7]
["2022-02-19","Slezský pohár Opava","VC","j","Kuchejdová","Zuzana",3,"mláďata","26",2,0,2,3,2,"Kuchejdová Zuzana",{"$f":"SUM(M73,N73)","v":5},null,null,null,"DL",5,"DL5",7]
["2022-02-19","Slezský pohár Opava","VC","j","Marušák","Lukáš",1,"mláďata","26",5,0,0,6,5,"Marušák Lukáš",11,null,null,null,"DL",6,"DL6",5]
["2022-02-19","Slezský pohár Opava","VC","j","Marušáková","Kateřina",3,"mláďata","26",2,0,2,3,2,"Marušáková Kateřina",5,null,null,null,"DL",7,{"$f":"T75&U75","v":"DL7"},5]
["2022-02-19","Slezský pohár Opava","VC","j","Sklenář","Jáchym","bez","mláďata","27",0,0,1,0,0,"Sklenář Jáchym",0,null,null,null,"1.liga",1,{"$f":"T76&U76","v":"1.liga1"},15]
["2022-02-19","Slezský pohár Opava","VC","j","Kuluri","Theofania",2,"mláďata","30",3,0,1,5,3,"Kuluri Theofania",8,null,null,null,"1.liga",2,"1.liga2",10]
["2022-02-19","Slezský pohár Opava","VC","j","Swiech","Viktor","bez","mláďata","30",1,0,2,0,1,"Swiech Viktor",1,null,null,null,"1.liga",3,"1.liga3",7]
["2022-02-19","Slezský pohár Opava","VC","j","Chovanec","Martin",3,"mláďata","30",3,0,1,3,3,"Chovanec Martin",6,null,null,null,"1.liga",4,"1.liga4",5]
["2022-02-19","Slezský pohár Opava","VC","j","Prudil","Adam",3,"mláďata","30",4,0,1,3,4,"Prudil Adam",7,null,null,null,"1.liga",5,"1.liga5",4]
["2022-02-19","Slezský pohár Opava","VC","j","Vlček","Viktor",3,"mláďata","30",2,0,2,3,2,"Vlček Viktor",5,null,null,null,"1.liga",6,"1.liga6",3]
["2022-02-19","Slezský pohár Opava","VC","j","Vašťák","Ondřej",3,"mláďata","30",2,0,2,3,2,"Vašťák Ondřej",5,null,null,null,"1.liga",7,{"$f":"T82&U82","v":"1.liga7"},2]
["2022-02-19","Slezský pohár Opava","VC","j","Salomon","Ondřej","bez","mláďata","34",1,0,2,0,1,"Salomon Ondřej",1,null,null,null,"EXL",1,{"$f":"T83&U83","v":"EXL1"},20]
["2022-02-19","Slezský pohár Opava","VC","j","Podivínský","Marek",1,"mláďata","34",3,0,0,6,3,"Podivínský Marek",9,null,null,null,"EXL",2,"EXL2",15]
["2022-02-19","Slezský pohár Opava","VC","j","Cahlíková","Barbora",5,"mláďata","40",2,0,2,0,2,"Cahlíková Barbora",2,null,null,null,"EXL",3,"EXL3",10]
["2022-02-19","Slezský pohár Opava","VC","j","Strakoš","Filip","bez","mláďata","40",0,0,2,0,0,"Strakoš Filip",0,null,null,null,"EXL",4,"EXL4",7]
["2022-02-19","Slezský pohár Opava","VC","j","Hon","Lukáš",3,"mláďata","46",1,0,2,3,1,"Hon Lukáš",4,null,null,null,"EXL",5,"EXL5",7]
["2022-02-19","Slezský pohár Opava","VC","j","Gunár","Dominik","bez","mláďata","46",0,0,2,0,0,"Gunár Dominik",0,null,null,null,"EXL",6,"EXL6",5]
["2022-02-19","Slezský pohár Opava","VC","j","Kuchejdová","Veronika",3,"mladší žákyně","30",1,0,2,3,1,"Kuchejdová Veronika",4,null,null,null,"EXL",7,{"$f":"T89&U89","v":"EXL7"},5]
["2022-02-19","Slezský pohár Opava","VC","j","Šelongová","Viktorie",1,"mladší žákyně","30",3,0,0,6,3,"Šelongová Viktorie",9,null,null,null,"MS",1,{"$f":"T90&U90","v":"MS1"},100]
["2022-02-19","Slezský pohár Opava","VC","j","Cséri","Klára","bez","mladší žákyně","33",0,0,1,0,0,"Cséri Klára",0,null,null,null,"MS",2,"MS2",80]
["2022-02-19","Slezský pohár Opava","VC","j","Zoulová","Tereza",2,"mladší žákyně","36",2,0,1,5,2,"Zoulová Tereza",7,null,null,null,"MS",3,"MS3",70]
["2022-02-19","Slezský pohár Opava","VC","j","Zoulová","Karolína",4,"mladší žákyně","36",0,0,3,0,0,"Zoulová Karolína",0,null,null,null,"MS",5,"MS5",60]
["2022-02-19","Slezský pohár Opava","VC","j","Nováková","Victoria",2,"mladší žákyně","44",2,0,1,5,2,"Nováková Victoria",7,null,null,null,"MS",7,"MS7",50]
["2022-02-19","Slezský pohár Opava","VC","j","Tumlířová","Violeta",3,"mladší žákyně","52",1,0,2,3,1,"Tumlířová Violeta",4,null,null,null,"MS",9,"MS9",40]
["2022-02-19","Slezský pohár Opava","VC","j","Boček","Petr","bez","mladší žáci","30",0,0,3,0,0,"Boček Petr",0]
["2022-02-19","Slezský pohár Opava","VC","j","Procházka","Daniel","bez","mladší žáci","34",0,0,1,0,0,"Procházka Daniel",0]
["2022-02-19","Slezský pohár Opava","VC","j","Bystrianský","Jan","bez","mladší žáci","38",0,0,1,0,0,"Bystrianský Jan",0]
["2022-02-19","Slezský pohár Opava","VC","j","Vlček","Martin","bez","mladší žáci","38",0,0,2,0,0,"Vlček Martin",0]
["2022-02-19","Slezský pohár Opava","VC","j","Koch","Dominik","bez","mladší žáci","38",0,0,1,0,0,"Koch Dominik",0]
["2022-02-19","Slezský pohár Opava","VC","j","Bauko","Viktor","bez","mladší žáci","38",0,0,1,0,0,"Bauko Viktor",0]
["2022-02-19","Slezský pohár Opava","VC","j","Svoboda","Jindřich","bez","mladší žáci","38",0,0,1,0,0,"Svoboda Jindřich",0]
["2022-02-19","Slezský pohár Opava","VC","j","Soukup","Hugo","bez","mladší žáci","42",1,0,2,0,1,"Soukup Hugo",1]
["2022-02-19","Slezský pohár Opava","VC","j","Stránský","David",5,"mladší žáci","42",2,0,2,0,2,"Stránský David",2]
["2022-02-19","Slezský pohár Opava","VC","j","Pícha","Matěj","bez","mladší žáci","46",1,0,1,0,1,"Pícha Matěj",1]
["2022-02-19","Slezský pohár Opava","VC","j","Lechovič","Tobiáš",7,"mladší žáci","46",3,0,2,0,3,"Lechovič Tobiáš",3]
["2022-02-19","Slezský pohár Opava","VC","j","Kotouček","Marek","bez","mladší žáci","46",0,0,1,0,0,"Kotouček Marek",0]
["2022-02-19","Slezský pohár Opava","VC","j","Hon","Sebastián","bez","mladší žáci","46",0,0,2,0,0,"Hon Sebastián",0]
["2022-02-19","Slezský pohár Opava","VC","j","Musial","Šimon",5,"mladší žáci","46",3,0,2,0,3,"Musial Šimon",3]
["2022-02-19","Slezský pohár Opava","VC","j","Bravanský","Marek",3,"mladší žáci","50",2,0,1,3,2,"Bravanský Marek",5]
["2022-02-19","Slezský pohár Opava","VC","j","Nytra","Sebastián",7,"mladší žáci","50",0,0,2,0,0,"Nytra Sebastián",0]
["2022-02-19","Slezský pohár Opava","VC","j","Bokiy","Konstantin","bez","mladší žáci","55",0,0,2,0,0,"Bokiy Konstantin",0]
["2022-02-19","Slezský pohár Opava","VC","j","Kret","Matyáš",3,"mladší žáci","55",4,0,1,3,4,"Kret Matyáš",7]
["2022-02-19","Slezský pohár Opava","VC","j","Kalaš","Daniel",3,"mladší žáci","60",1,0,3,3,1,"Kalaš Daniel",4]
["2022-02-19","Slezský pohár Opava","VC","j","Lamža","Radek",2,"mladší žáci","+60",1,0,2,5,1,"Lamža Radek",6]
["2022-02-19","Slezský pohár Opava","VC","j","To","Vojtěch",2,"starší žáci","34",1,0,2,5,1,"To Vojtěch",6]
["2022-02-19","Slezský pohár Opava","VC","j","Přichystal","Leon",1,"starší žáci","42",4,0,1,6,4,"Přichystal Leon",10]
["2022-02-19","Slezský pohár Opava","VC","j","Šelong","Tadeáš","bez","starší žáci","46",1,0,2,0,1,"Šelong Tadeáš",1]
["2022-02-19","Slezský pohár Opava","VC","j","Kuluris","Manolis","bez","starší žáci","46",0,0,1,0,0,"Kuluris Manolis",0]
["2022-02-19","Slezský pohár Opava","VC","j","Valošek","Jakub",5,"starší žáci","50",1,0,2,0,1,"Valošek Jakub",1]
["2022-02-19","Slezský pohár Opava","VC","j","Bečka","Václav",3,"starší žáci","50",2,0,1,3,2,"Bečka Václav",5]
["2022-02-19","Slezský pohár Opava","VC","j","Huvar","Matyáš","bez","starší žáci","55",0,0,2,0,0,"Huvar Matyáš",0]
["2022-02-19","Slezský pohár Opava","VC","j","Ciora","Jakub",7,"starší žáci","55",1,0,2,0,1,"Ciora Jakub",1]
["2022-02-19","Slezský pohár Opava","VC","j","Mařec","Tomáš",2,"starší žáci","60",3,0,1,5,3,"Mařec Tomáš",8]
["2022-02-19","Slezský pohár Opava","VC","j","Zwilling","Šimon",1,"starší žáci","73",5,0,0,6,5,"Zwilling Šimon",11]
["2022-02-19","Slezský pohár Opava","VC","j","Klepač","Václav",7,"starší žáci","+73",1,0,2,0,1,"Klepač Václav",1]
["2022-02-19","Slezský pohár Opava","VC","j","Vlk","František",3,"starší žáci","+73",2,0,1,3,2,"Vlk František",5]
["2022-02-19","Slezský pohár Opava","VC","j","Škoda","Melichar",3,"starší žáci","+73",2,0,1,3,2,"Škoda Melichar",5]
["2022-02-19","Slezský pohár Opava","VC","j","Kocmanová","Lucie",1,"starší žákyně","48",4,0,0,6,4,"Kocmanová Lucie",10]
["2022-02-19","Slezský pohár Opava","VC","j","Kaszperová","Kristýna",1,"starší žákyně","+63",3,0,0,{"$f":"IF(ISNA(VLOOKUP(C130&G130,$V$3:$W$95,2,FALSE)),0,VLOOKUP(C130&G130,$V$3:$W$95,2,FALSE))","v":6},{"$f":"IF(D130=\"d\",SUM(J130*2,K130),J130)","v":3},{"$f":"E130&\" \"&F130","v":"Kaszperová Kristýna"},9]
["2022-03-06","Grand Prix Banská Bystrica","MT","j","Čerchla","Michal",1,"dorostenci","90",4,0,0,10,4,"Čerchla Michal",14]
["2022-03-06","Grand Prix Banská Bystrica","MT","j","Potůček","Tomáš",2,"dorostenci","81",3,0,1,7,3,"Potůček Tomáš",10]
["2022-03-06","Grand Prix Banská Bystrica","MT","j","Kristen","Nicolas",3,"dorostenci","66",3,0,1,5,3,"Kristen Nicolas",8]
["2022-03-06","Grand Prix Banská Bystrica","MT","j","Meixner","Michal",7,"dorostenci","66",2,0,2,2,2,"Meixner Michal",4]
["2022-03-06","Grand Prix Banská Bystrica","MT","j","Čebík","Filip","bez","dorostenci","66",2,0,1,0,2,"Čebík Filip",2]
["2022-03-06","Grand Prix Banská Bystrica","MT","j","Pačuta","Ladislav","bez","dorostenci","60",0,0,1,0,0,"Pačuta Ladislav",0]
["2022-03-06","Grand Prix Banská Bystrica","MT","j","Vaněk","Ondřej","bez","dorostenci","+90",0,0,3,0,0,"Vaněk Ondřej",{"$f":"SUM(M137,N137)","v":0}]
["2022-03-06","Grand Prix Banská Bystrica","MT","j","Křížek","Šimon",3,"junioři","73",3,0,1,5,3,"Křížek Šimon",8]
["2022-03-06","Grand Prix Banská Bystrica","MT","j","Lindovský","Jiří",3,"junioři","73",3,0,1,5,3,"Lindovský Jiří",8]
["2022-03-06","Grand Prix Banská Bystrica","MT","j","Kršňák","Filip",5,"junioři","81",2,0,2,3,2,"Kršňák Filip",5]
["2022-03-06","Grand Prix Banská Bystrica","MT","j","Chlebovský","Daniel","bez","junioři","100",0,0,2,0,0,"Chlebovský Daniel",0]
["2022-03-10","Evropský pohár dorostu - Zagreb","EJU","j","Vontor","Tomáš","bez","dorostenci","60",0,0,1,0,0,"Vontor Tomáš",0]
["2022-03-10","Evropský pohár dorostu - Zagreb","EJU","j","Fulneček","Šimon",9,"dorostenci","90",1,0,2,10,1,"Fulneček Šimon",11]
["2022-03-13","Mistrovství euroregionu Beskydy -Bail Sport Cup ","VC","j","Kuchejdová","Zuzana",3,"mláďata","26",2,0,2,3,2,"Kuchejdová Zuzana",5]
["2022-03-13","Mistrovství euroregionu Beskydy -Bail Sport Cup ","VC","j","Marušák","Lukáš","bez","mláďata","26",1,0,2,0,1,"Marušák Lukáš",1]
["2022-03-13","Mistrovství euroregionu Beskydy -Bail Sport Cup ","VC","j","Marušáková","Kateřina",3,"mláďata","26",2,0,2,3,2,"Marušáková Kateřina",5]
["2022-03-13","Mistrovství euroregionu Beskydy -Bail Sport Cup ","VC","j","Ščevík","Ondřej","bez","mláďata","26",1,0,2,0,1,"Ščevík Ondřej",1]
["2022-03-13","Mistrovství euroregionu Beskydy -Bail Sport Cup ","VC","j","Prudil","Adam",1,"mláďata","30",4,0,0,6,4,"Prudil Adam",10]
["2022-03-13","Mistrovství euroregionu Beskydy -Bail Sport Cup ","VC","j","Swiech","Viktor","bez","mláďata","30",0,0,2,0,0,"Swiech Viktor",0]
["2022-03-13","Mistrovství euroregionu Beskydy -Bail Sport Cup ","VC","j","Chovanec","Martin",5,"mláďata","32",1,0,2,0,1,"Chovanec Martin",1]
["2022-03-13","Mistrovství euroregionu Beskydy -Bail Sport Cup ","VC","j","Vlček","Viktor","bez","mláďata","32",0,0,2,0,0,"Vlček Viktor",0]
["2022-03-13","Mistrovství euroregionu Beskydy -Bail Sport Cup ","VC","j","Vašťák","Ondřej","bez","mláďata","34",1,0,2,0,1,"Vašťák Ondřej",1]
["2022-03-13","Mistrovství euroregionu Beskydy -Bail Sport Cup ","VC","j","Salomon","Ondřej",3,"mláďata","34",2,0,2,3,2,"Salomon Ondřej",5]
["2022-03-13","Mistrovství euroregionu Beskydy -Bail Sport Cup ","VC","j","Podivínský","Marek",1,"mláďata","34",5,0,0,6,5,"Podivínský Marek",11]
["2022-03-13","Mistrovství euroregionu Beskydy -Bail Sport Cup ","VC","j","Funiok","Martin","bez","mláďata","38",0,0,2,0,0,"Funiok Martin",0]
["2022-03-13","Mistrovství euroregionu Beskydy -Bail Sport Cup ","VC","j","Weiss","Daniel",4,"mláďata","40",1,0,3,0,1,"Weiss Daniel",1]
["2022-03-13","Mistrovství euroregionu Beskydy -Bail Sport Cup ","VC","j","Cahlíková","Barbora",3,"mláďata","40",2,0,2,3,2,"Cahlíková Barbora",5]
["2022-03-13","Mistrovství euroregionu Beskydy -Bail Sport Cup ","VC","j","Hon","Lukáš",3,"mláďata","46",0,0,2,3,0,"Hon Lukáš",3]
["2022-03-13","Mistrovství euroregionu Beskydy -Bail Sport Cup ","VC","j","Kaszper","Matyáš",1,"mláďata","50",2,0,0,6,2,"Kaszper Matyáš",8]
["2022-03-13","Mistrovství euroregionu Beskydy -Bail Sport Cup ","VC","j","Šelongová","Viktorie",2,"mladší žákyně","30",1,0,1,5,1,"Šelongová Viktorie",6]
["2022-03-13","Mistrovství euroregionu Beskydy -Bail Sport Cup ","VC","j","Kouřil","Sebastián","bez","mladší žáci","34",0,0,1,0,0,"Kouřil Sebastián",0]
["2022-03-13","Mistrovství euroregionu Beskydy -Bail Sport Cup ","VC","j","Boček","Petr","bez","mladší žáci","34",0,0,2,0,0,"Boček Petr",0]
["2022-03-13","Mistrovství euroregionu Beskydy -Bail Sport Cup ","VC","j","Bystrianský","Jan",7,"mladší žáci","38",2,0,2,0,2,"Bystrianský Jan",2]
["2022-03-13","Mistrovství euroregionu Beskydy -Bail Sport Cup ","VC","j","Vlček","Martin",3,"mladší žáci","38",3,0,1,3,3,"Vlček Martin",6]
["2022-03-13","Mistrovství euroregionu Beskydy -Bail Sport Cup ","VC","j","Bauko","Viktor","bez","mladší žáci","38",0,0,1,0,0,"Bauko Viktor",0]
["2022-03-13","Mistrovství euroregionu Beskydy -Bail Sport Cup ","VC","j","Svoboda","Jindřich","bez","mladší žáci","38",0,0,1,0,0,"Svoboda Jindřich",0]
["2022-03-13","Mistrovství euroregionu Beskydy -Bail Sport Cup ","VC","j","Soukup","Hugo",3,"mladší žáci","42",3,0,1,3,3,"Soukup Hugo",6]
["2022-03-13","Mistrovství euroregionu Beskydy -Bail Sport Cup ","VC","j","Stránský","David",7,"mladší žáci","42",1,0,2,0,1,"Stránský David",1]
["2022-03-13","Mistrovství euroregionu Beskydy -Bail Sport Cup ","VC","j","Třos","Vojtěch","bez","mladší žáci","42",0,0,2,0,0,"Třos Vojtěch",0]
["2022-03-13","Mistrovství euroregionu Beskydy -Bail Sport Cup ","VC","j","Koch","Dominik","bez","mladší žáci","42",0,0,2,0,0,"Koch Dominik",0]
["2022-03-13","Mistrovství euroregionu Beskydy -Bail Sport Cup ","VC","j","Pícha","Matěj","bez","mladší žáci","46",0,0,2,0,0,"Pícha Matěj",0]
["2022-03-13","Mistrovství euroregionu Beskydy -Bail Sport Cup ","VC","j","Lechovič","Tobiáš",3,"mladší žáci","46",3,0,1,3,3,"Lechovič Tobiáš",6]
["2022-03-13","Mistrovství euroregionu Beskydy -Bail Sport Cup ","VC","j","Musial","Šimon",1,"mladší žáci","46",3,0,0,6,3,"Musial Šimon",9]
["2022-03-13","Mistrovství euroregionu Beskydy -Bail Sport Cup ","VC","j","Bravanský","Marek",5,"mladší žáci","50",1,0,2,0,1,"Bravanský Marek",1]
["2022-03-13","Mistrovství euroregionu Beskydy -Bail Sport Cup ","VC","j","Maslík","Teodor",3,"mladší žáci","55",2,0,2,3,2,"Maslík Teodor",5]
["2022-03-13","Mistrovství euroregionu Beskydy -Bail Sport Cup ","VC","j","Bokiy","Konstantin","bez","mladší žáci","55",0,0,2,0,0,"Bokiy Konstantin",0]
["2022-03-13","Mistrovství euroregionu Beskydy -Bail Sport Cup ","VC","j","Lamža","Radek","bez","mladší žáci","+66",0,0,2,0,0,"Lamža Radek",0]
["2022-03-13","Mistrovství euroregionu Beskydy -Bail Sport Cup ","VC","j","Lavrukhin","Dobrynya",3,"dorostenci","66",3,0,1,3,3,"Lavrukhin Dobrynya",6]
["2022-02-26","Dorostenecká liga - 1. kolo skupina D","DL","d","Potůček","Tomáš",null,"dorostenci","81",3,0,0,0,6,"Potůček Tomáš",6]
["2022-02-26","Dorostenecká liga - 1. kolo skupina D","DL","d","Vontor","Tomáš",null,"dorostenci","60",2,0,0,0,4,"Vontor Tomáš",4]
["2022-02-26","Dorostenecká liga - 1. kolo skupina D","DL","d","Čerchla","Michal",null,"dorostenci","90",2,0,0,0,4,"Čerchla Michal",4]
["2022-02-26","Dorostenecká liga - 1. kolo skupina D","DL","d","Fulneček","Šimon",null,"dorostenci","90",1,0,0,0,2,"Fulneček Šimon",2]
["2022-02-26","Dorostenecká liga - 1. kolo skupina D","DL","d","Tomek","David",null,"dorostenci","73",1,0,0,0,2,"Tomek David",2]
["2022-02-26","Dorostenecká liga - 1. kolo skupina D","DL","d","Čebík","Filip",null,"dorostenci","73",1,0,0,0,2,"Čebík Filip",2]
["2022-02-26","Dorostenecká liga - 1. kolo skupina D","DL","d","Meixner","Michal",null,"dorostenci","66",1,0,0,0,2,"Meixner Michal",2]
["2022-02-26","Dorostenecká liga - 1. kolo skupina D","DL","d","Huvar","Jakub",null,"dorostenci","66",1,0,0,0,2,"Huvar Jakub",2]
["2022-02-26","Dorostenecká liga - 1. kolo skupina D","DL","d","Pačuta","Ladislav",null,"dorostenci","60",1,0,0,0,2,"Pačuta Ladislav",2]
["2022-02-26","Dorostenecká liga - 1. kolo skupina D","DL","d","Caletka","Petr",null,"dorostenci","66",0,0,1,0,0,"Caletka Petr",{"$f":"SUM(M188,N188)","v":0}]
["2022-02-26","Dorostenecká liga - 1. kolo skupina D","DL","d","Lavrukhin","Dobrynya",null,"dorostenci","66",0,0,0,0,0,"Lavrukhin Dobrynya",0]
["2022-02-26","Dorostenecká liga - 1. kolo skupina D","DL","d","Kristen","Nicolas",null,"dorostenci","66",0,0,0,0,0,"Kristen Nicolas",0]
["2022-02-26","Dorostenecká liga - 1. kolo skupina D","DL","d","Kutáč","Jan",null,"dorostenci","66",0,0,0,0,0,"Kutáč Jan",0]
["2022-02-26","Dorostenecká liga - 1. kolo skupina D","DL","d","Vaněk","Jakub",null,"dorostenci","73",0,0,0,0,0,"Vaněk Jakub",0]
["2022-02-26","Dorostenecká liga - 1. kolo skupina D","DL","d","Baudiš","Michal",null,"dorostenci","73",0,0,0,0,0,"Baudiš Michal",0]
["2022-02-26","Dorostenecká liga - 1. kolo skupina D","DL","d","Pospíšil","Jan",null,"dorostenci","73",0,0,0,{"$f":"IF(ISNA(VLOOKUP(C194&G194,$V$3:$W$95,2,FALSE)),0,VLOOKUP(C194&G194,$V$3:$W$95,2,FALSE))","v":0},{"$f":"IF(D194=\"d\",SUM(J194*2,K194),J194)","v":0},{"$f":"E194&\" \"&F194","v":"Pospíšil Jan"},0]
["2022-03-19","Český pohár Hranice na Moravě","CP","j","Kristen","Nicolas","bez","dorostenci","66",1,0,2,0,1,"Kristen Nicolas",1]
["2022-03-19","Český pohár Hranice na Moravě","CP","j","Huvar","Jakub","bez","dorostenci","66",0,0,2,0,0,"Huvar Jakub",0]
["2022-03-19","Český pohár Hranice na Moravě","CP","j","Čerchla","Michal",2,"dorostenci","90",3,0,1,7,3,"Čerchla Michal",10]
["2022-03-19","Český pohár Hranice na Moravě","CP","j","Kolář","Vojtěch","bez","dorostenci","73",2,0,1,0,2,"Kolář Vojtěch",2]
["2022-03-19","Český pohár Hranice na Moravě","CP","j","Tomek","David",9,"dorostenci","73",1,0,2,0,1,"Tomek David",1]
["2022-03-19","Český pohár Hranice na Moravě","CP","j","Pospíšil","Jan",9,"dorostenci","73",1,0,2,0,1,"Pospíšil Jan",1]
["2022-03-19","Český pohár Hranice na Moravě","CP","j","Caletka","Petr","bez","dorostenci","66",1,0,1,0,1,"Caletka Petr",1]
["2022-03-19","Český pohár Hranice na Moravě","CP","j","Caletka","Michal","bez","dorostenci","60",0,0,1,0,0,"Caletka Michal",0]
["2022-03-19","Český pohár Hranice na Moravě","CP","j","Lavrukhin","Dobrynya","bez","dorostenci","66",1,0,1,0,1,"Lavrukhin Dobrynya",1]
["2022-03-19","Český pohár Hranice na Moravě","CP","j","Fulneček","Šimon",3,"dorostenci","90",3,0,1,5,3,"Fulneček Šimon",8]
["2022-03-19","Český pohár Hranice na Moravě","CP","j","Pačuta","Ladislav",1,"dorostenci","60",5,0,0,10,5,"Pačuta Ladislav",15]
["2022-03-19","Český pohár Hranice na Moravě","CP","j","Potůček","Tomáš",3,"dorostenci","81",3,0,1,5,3,"Potůček Tomáš",8]
["2022-03-19","Český pohár Hranice na Moravě","CP","j","Meixner","Michal","bez","dorostenci","66",0,0,1,0,0,"Meixner Michal",0]
["2022-03-19","Český pohár Hranice na Moravě","CP","j","Seibert","Marian","bez","dorostenci","66",0,0,1,0,0,"Seibert Marian",0]
["2022-03-19","Český pohár Hranice na Moravě","CP","j","Vaněk","Jakub","bez","dorostenci","73",1,0,2,0,1,"Vaněk Jakub",1]
["2022-03-19","Český pohár Hranice na Moravě","CP","j","Vontor","Tomáš",5,"dorostenci","60",3,0,2,3,3,"Vontor Tomáš",6]
["2022-03-19","Český pohár Hranice na Moravě","CP","j","Rapčanová","Alice",9,"dorostenky","63",1,0,2,0,1,"Rapčanová Alice",1]
["2022-03-19","Český pohár Hranice na Moravě","CP","j","Rapčanová","Silvie",1,"dorostenky","52",3,0,0,10,3,"Rapčanová Silvie",13]
["2022-03-19","Český pohár Hranice na Moravě","CP","j","Bukovjanová","Charlotte","bez","dorostenky","57",0,0,1,0,0,"Bukovjanová Charlotte",0]
["2022-03-26","MT Pezinok ","MT","j","Podivínský","Patrik",2,"mláďata","24",1,0,1,7,1,"Podivínský Patrik",8]
["2022-03-26","MT Pezinok ","MT","j","Marušák","Lukáš",2,"mláďata","24",1,0,2,7,1,"Marušák Lukáš",8]
["2022-03-26","MT Pezinok ","MT","j","Marušáková","Kateřina",2,"mláďata","26",3,0,1,7,3,"Marušáková Kateřina",10]
["2022-03-26","MT Pezinok ","MT","j","Chovanec","Martin",3,"mláďata","30",2,0,1,5,2,"Chovanec Martin",7]
["2022-03-26","MT Pezinok ","MT","j","Vašťák","Ondřej",5,"mláďata","34",2,0,2,3,2,"Vašťák Ondřej",5]
["2022-03-26","MT Pezinok ","MT","j","Podivínský","Marek",7,"mláďata","34",3,0,2,2,3,"Podivínský Marek",5]
["2022-03-26","MT Pezinok ","MT","j","Vlček","Viktor","bez","mláďata","34",1,0,2,0,1,"Vlček Viktor",1]
["2022-03-26","MT Pezinok ","MT","j","Cahlíková","Barbora",1,"mláďata","42",2,0,0,10,2,"Cahlíková Barbora",12]
["2022-03-19","Český pohár Hranice na Moravě","CP","j","Silvestr","Matěj",1,"muži","100",4,0,0,10,4,"Silvestr Matěj",14]
["2022-03-19","Český pohár Hranice na Moravě","CP","j","Václavková","Tereza",1,"ženy","57",5,0,0,10,5,"Václavková Tereza",15]
["2022-03-19","Český pohár Hranice na Moravě","CP","j","Michálková","Karolína",2,"ženy","78",1,0,2,7,1,"Michálková Karolína",8]
["2022-03-19","Český pohár Hranice na Moravě","CP","j","Chlebovský","Daniel",3,"muži","100",2,0,2,5,2,"Chlebovský Daniel",7]
["2022-03-19","Český pohár Hranice na Moravě","CP","j","Křížek","Šimon",5,"muži","73",3,0,2,3,3,"Křížek Šimon",6]
["2022-03-19","Český pohár Hranice na Moravě","CP","j","Kršňák","Filip",7,"muži","73",2,0,2,2,2,"Kršňák Filip",4]
["2022-03-19","Český pohár Hranice na Moravě","CP","j","Lindovský","Jiří","bez","muži","73",0,0,1,0,0,"Lindovský Jiří",0]
["2022-03-19","Český pohár - Ostrava Judo Open","CP","j","Kouřil","Sebastián","bez","mladší žáci","34",0,0,1,0,0,"Kouřil Sebastián",0]
["2022-03-19","Český pohár - Ostrava Judo Open","CP","j","Vlček","Martin",5,"mladší žáci","38",4,0,2,3,4,"Vlček Martin",7]
["2022-03-19","Český pohár - Ostrava Judo Open","CP","j","Stránský","David","bez","mladší žáci","38",1,0,1,0,1,"Stránský David",1]
["2022-03-19","Český pohár - Ostrava Judo Open","CP","j","Bystrianský","Jan",7,"mladší žáci","38",4,0,2,2,4,"Bystrianský Jan",6]
["2022-03-19","Český pohár - Ostrava Judo Open","CP","j","Svoboda","Jindřich","bez","mladší žáci","38",0,0,1,0,0,"Svoboda Jindřich",0]
["2022-03-19","Český pohár - Ostrava Judo Open","CP","j","Soukup","Hugo","bez","mladší žáci","42",1,0,2,0,1,"Soukup Hugo",1]
["2022-03-19","Český pohár - Ostrava Judo Open","CP","j","Lechovič","Tobiáš",7,"mladší žáci","46",2,0,2,2,2,"Lechovič Tobiáš",4]
["2022-03-19","Český pohár - Ostrava Judo Open","CP","j","Musial","Šimon",5,"mladší žáci","46",2,0,2,3,2,"Musial Šimon",5]
["2022-03-19","Český pohár - Ostrava Judo Open","CP","j","Nytra","Sebastián","bez","mladší žáci","50",0,0,1,0,0,"Nytra Sebastián",0]
["2022-03-19","Český pohár - Ostrava Judo Open","CP","j","Hon","Sebastián",7,"mladší žáci","50",2,0,2,2,2,"Hon Sebastián",4]
["2022-03-19","Český pohár - Ostrava Judo Open","CP","j","Bravanský","Marek",9,"mladší žáci","50",1,0,2,0,1,"Bravanský Marek",1]
["2022-03-19","Český pohár - Ostrava Judo Open","CP","j","Maslík","Teodor","bez","mladší žáci","55",0,0,2,0,0,"Maslík Teodor",0]
["2022-03-19","Český pohár - Ostrava Judo Open","CP","j","Bokiy","Konstantin","bez","mladší žáci","55",0,0,2,0,0,"Bokiy Konstantin",0]
["2022-03-19","Český pohár - Ostrava Judo Open","CP","j","Šelongová","Viktorie",1,"mladší žákyně","30",3,0,0,10,3,"Šelongová Viktorie",13]
["2022-03-19","Český pohár - Ostrava Judo Open","CP","j","Zoulová","Karolína",2,"mladší žákyně","33",2,0,1,7,2,"Zoulová Karolína",9]
["2022-03-19","Český pohár - Ostrava Judo Open","CP","j","Zoulová","Tereza",7,"mladší žákyně","36",1,0,2,2,1,"Zoulová Tereza",3]
["2022-03-19","Český pohár - Ostrava Judo Open","CP","j","Nováková","Victoria",2,"mladší žákyně","44",2,0,1,7,2,"Nováková Victoria",9]
["2022-03-20","Český pohár - Ostrava Judo Open","CP","j","To","Vojtěch",4,"starší žáci","34",1,0,3,3,1,"To Vojtěch",4]
["2022-03-20","Český pohár - Ostrava Judo Open","CP","j","Přichystal","Leon","bez","starší žáci","42",0,0,1,0,0,"Přichystal Leon",0]
["2022-03-20","Český pohár - Ostrava Judo Open","CP","j","Kuluris","Manolis",5,"starší žáci","46",4,0,2,3,4,"Kuluris Manolis",7]
["2022-03-20","Český pohár - Ostrava Judo Open","CP","j","Šelong","Tadeáš","bez","starší žáci","46",0,0,1,0,0,"Šelong Tadeáš",0]
["2022-03-20","Český pohár - Ostrava Judo Open","CP","j","Bečka","Václav","bez","starší žáci","50",0,0,2,0,0,"Bečka Václav",0]
["2022-03-20","Český pohár - Ostrava Judo Open","CP","j","Ožana","Maxmilián","bez","starší žáci","50",1,0,1,0,1,"Ožana Maxmilián",1]
["2022-03-20","Český pohár - Ostrava Judo Open","CP","j","Valošek","Jakub","bez","starší žáci","55",0,0,1,0,0,"Valošek Jakub",{"$f":"SUM(M252,N252)","v":0}]
["2022-03-20","Český pohár - Ostrava Judo Open","CP","j","Ciora","Jakub","bez","starší žáci","55",2,0,1,0,2,"Ciora Jakub",2]
["2022-03-20","Český pohár - Ostrava Judo Open","CP","j","Huvar","Matyáš","bez","starší žáci","55",0,0,1,0,0,"Huvar Matyáš",0]
["2022-03-20","Český pohár - Ostrava Judo Open","CP","j","Kanclíř","Šimon","bez","starší žáci","60",1,0,2,0,1,"Kanclíř Šimon",1]
["2022-03-20","Český pohár - Ostrava Judo Open","CP","j","Mařec","Tomáš","bez","starší žáci","60",1,0,2,0,1,"Mařec Tomáš",1]
["2022-03-20","Český pohár - Ostrava Judo Open","CP","j","Stark","Vojtěch","bez","starší žáci","66",0,0,2,0,0,"Stark Vojtěch",0]
["2022-03-20","Český pohár - Ostrava Judo Open","CP","j","Zwilling","Šimon",5,"starší žáci","73",3,0,2,{"$f":"IF(ISNA(VLOOKUP(C258&G258,$V$3:$W$95,2,FALSE)),0,VLOOKUP(C258&G258,$V$3:$W$95,2,FALSE))","v":3},{"$f":"IF(D258=\"d\",SUM(J258*2,K258),J258)","v":3},{"$f":"E258&\" \"&F258","v":"Zwilling Šimon"},6]
["2022-03-20","Český pohár - Ostrava Judo Open","CP","j","Klepač","Václav","bez","starší žáci","+73",0,0,2,0,0,"Klepač Václav",0]
["2022-03-20","Český pohár - Ostrava Judo Open","CP","j","Vlk","František","bez","starší žáci","+73",0,0,2,0,0,"Vlk František",0]
["2022-03-20","Český pohár - Ostrava Judo Open","CP","j","Kocmanová","Lucie","bez","starší žákyně","48",0,0,2,0,0,"Kocmanová Lucie",0]
["2022-03-20","Český pohár - Ostrava Judo Open","CP","j","Kaszperová","Kristýna",1,"starší žákyně","+63",3,0,0,10,3,"Kaszperová Kristýna",13]
["2022-03-26","1. liga Jablonec nad Nisou - 1. kolo","1.liga","d","Pačuta","Ladislav",null,"muži","60",3,0,1,0,6,"Pačuta Ladislav",6]
["2022-03-26","1. liga Jablonec nad Nisou - 1. kolo","1.liga","d","Svoboda","Jiří",null,"muži","81",2,0,2,0,4,"Svoboda Jiří",4]
["2022-03-26","1. liga Jablonec nad Nisou - 1. kolo","1.liga","d","Fulneček","Šimon",null,"muži","90",1,0,2,0,2,"Fulneček Šimon",2]
["2022-03-26","1. liga Jablonec nad Nisou - 1. kolo","1.liga","d","Chlebovský","Daniel",null,"muži","+90",1,0,3,0,2,"Chlebovský Daniel",2]
["2022-04-02","Velká cena Ostravy","VC","j","Kristen","Nicolas",9,"dorostenci","66",2,0,2,0,2,"Kristen Nicolas",2]
["2022-04-02","Velká cena Ostravy","VC","j","Vavřínová","Pavla",1,"dorostenky","63",5,0,0,6,5,"Vavřínová Pavla",11]
["2022-04-02","Velká cena Ostravy","VC","j","Meixner","Michal",1,"dorostenci","66",5,0,0,6,5,"Meixner Michal",11]
["2022-04-02","Velká cena Ostravy","VC","j","Čerchla","Michal",1,"dorostenci","90",5,0,0,6,5,"Čerchla Michal",11]
["2022-04-02","Velká cena Ostravy","VC","j","Vaněk","Jakub",3,"dorostenci","73",3,0,1,3,3,"Vaněk Jakub",6]
["2022-04-02","Velká cena Ostravy","VC","j","Seibert","Marian","bez","dorostenci","66",0,0,1,0,0,"Seibert Marian",0]
["2022-04-02","Velká cena Ostravy","VC","j","Potůček","Tomáš",7,"dorostenci","81",1,0,2,0,1,"Potůček Tomáš",1]
["2022-04-02","Velká cena Ostravy","VC","j","Kutáč","Jan","bez","dorostenci","73",0,0,2,0,0,"Kutáč Jan",0]
["2022-04-02","Velká cena Ostravy","VC","j","Baudiš","Michal",9,"dorostenci","73",1,0,2,0,1,"Baudiš Michal",1]
["2022-04-02","Velká cena Ostravy","VC","j","Kolář","Vojtěch","bez","dorostenci","73",0,0,1,0,0,"Kolář Vojtěch",0]
["2022-04-02","Velká cena Ostravy","VC","j","Pospíšil","Jan",9,"dorostenci","73",1,0,2,0,1,"Pospíšil Jan",1]
["2022-04-02","Velká cena Ostravy","VC","j","Pavlík","Lukáš","bez","dorostenci","73",0,0,1,0,0,"Pavlík Lukáš",0]
["2022-04-02","Velká cena Ostravy","VC","j","Tomek","David","bez","dorostenci","73",0,0,2,0,0,"Tomek David",0]
["2022-04-02","Velká cena Ostravy","VC","j","Rapčanová","Alice",5,"dorostenky","63",1,0,4,0,1,"Rapčanová Alice",1]
["2022-04-02","Velká cena Ostravy","VC","j","Bukovjanová","Charlotte",3,"dorostenky","57",3,0,1,3,3,"Bukovjanová Charlotte",6]
["2022-04-02","Velká cena Ostravy","VC","j","Caletka","Petr",3,"dorostenci","66",4,0,1,3,4,"Caletka Petr",7]
["2022-04-02","Velká cena Ostravy","VC","j","Čebík","Filip",5,"dorostenci","73",2,0,2,0,2,"Čebík Filip",2]
["2022-04-02","Velká cena Ostravy","VC","j","Lavrukhin","Dobrynya",5,"dorostenci","66",3,0,2,0,3,"Lavrukhin Dobrynya",3]
["2022-04-03","Pohár mistra skláře","PSO","d","Kuluris","Manolis",1,"starší žáci","46",3,0,1,6,6,"Kuluris Manolis",12]
["2022-04-03","Pohár mistra skláře","PSO","d","Kocmanová","Lucie",1,"starší žákyně","48",2,0,2,6,4,"Kocmanová Lucie",10]
["2022-04-03","Pohár mistra skláře","PSO","d","Valošek","Jakub",1,"starší žáci","50",1,0,1,6,2,"Valošek Jakub",8]
["2022-04-03","Pohár mistra skláře","PSO","d","Bečka","Václav",1,"starší žáci","50",1,0,1,6,2,"Bečka Václav",8]
["2022-04-03","Pohár mistra skláře","PSO","d","Ciora","Jakub",1,"starší žáci","55",4,0,0,6,8,"Ciora Jakub",14]
["2022-04-03","Pohár mistra skláře","PSO","d","Mařec","Tomáš",1,"starší žáci","60",2,0,2,6,4,"Mařec Tomáš",10]
["2022-04-03","Pohár mistra skláře","PSO","d","Stark","Vojtěch",1,"starší žáci","66",3,0,1,6,6,"Stark Vojtěch",12]
["2022-04-03","Pohár mistra skláře","PSO","d","Vlk","František",1,"starší žáci","+66",1,0,1,6,2,"Vlk František",8]
["2022-04-03","Pohár mistra skláře","PSO","d","Klepač","Václav",1,"starší žáci","+66",1,0,1,6,2,"Klepač Václav",8]
["2022-04-23","X. Jarní soutěž Judo 2022","MC","j","Berka","Daniel",2,"starší žáci","42",1,0,2,3,1,"Berka Daniel",4]
["2022-04-23","X. Jarní soutěž Judo 2022","MC","j","Krayzel","Šimon",2,"starší žáci","46",2,0,1,3,2,"Krayzel Šimon",5]
["2022-04-23","X. Jarní soutěž Judo 2022","MC","j","Siefert","David",3,"starší žáci","46",1,0,2,2,1,"Siefert David",3]
["2022-04-23","X. Jarní soutěž Judo 2022","MC","j","Londýn","Šimon",4,"starší žáci","46",1,0,2,0,1,"Londýn Šimon",1]
["2022-04-23","X. Jarní soutěž Judo 2022","MC","j","Ožana","Maxmilián",2,"starší žáci","55",0,0,3,3,0,"Ožana Maxmilián",3]
["2022-04-23","X. Jarní soutěž Judo 2022","MC","j","Gvošč","Viktor",3,"starší žáci","60",0,0,2,2,0,"Gvošč Viktor",2]
["2022-04-23","X. Jarní soutěž Judo 2022","MC","j","Kanclíř","Šimon",1,"starší žáci","60",2,0,0,4,2,"Kanclíř Šimon",6]
["2022-04-23","X. Jarní soutěž Judo 2022","MC","j","Kutáč","Jan",1,"dorostenci","66",3,0,0,4,3,"Kutáč Jan",7]
["2022-04-23","X. Jarní soutěž Judo 2022","MC","j","Vaněk","Jakub",1,"dorostenci","73",4,0,0,4,4,"Vaněk Jakub",8]
["2022-04-23","X. Jarní soutěž Judo 2022","MC","j","Baudiš","Michal",2,"dorostenci","73",2,0,2,3,2,"Baudiš Michal",5]
["2022-04-23","X. Jarní soutěž Judo 2022","MC","j","Tomek","David",3,"dorostenci","73",2,0,2,2,2,"Tomek David",4]
["2022-04-23","X. Jarní soutěž Judo 2022","MC","j","Kolář","Vojtěch",3,"dorostenci","73",3,0,1,2,3,"Kolář Vojtěch",5]
["2022-04-23","X. Jarní soutěž Judo 2022","MC","j","Kristen","Nicolas","bez","dorostenci","73",0,0,2,0,0,"Kristen Nicolas",0]
["2022-04-23","X. Jarní soutěž Judo 2022","MC","j","Seibert","Marian","bez","dorostenci","73",1,0,2,0,1,"Seibert Marian",1]
["2022-04-23","X. Jarní soutěž Judo 2022","MC","j","Salinger","David","bez","dorostenci","73",0,0,3,0,0,"Salinger David",0]
["2022-04-23","Evropský pohár dorostu - FRA Strasbourg","EJU","j","Fulneček","Šimon","bez","dorostenci","90",0,0,2,0,0,"Fulneček Šimon",0]
["2022-04-23","Evropský pohár dorostu - FRA Strasbourg","EJU","j","Kuželová","Dominika","bez","dorostenky","63",0,0,1,0,0,"Kuželová Dominika",0]
["2022-04-23","Velká cena Zneňka Ludvíka - Prostějov","VC","j","Kaszper","Matyáš",1,"mláďata","48,4",2,0,0,6,2,"Kaszper Matyáš",8]
["2022-04-23","Velká cena Zneňka Ludvíka - Prostějov","VC","j","Vašťák","Ondřej",1,"mláďata","32,3",5,0,0,6,5,"Vašťák Ondřej",11]
["2022-04-23","Velká cena Zneňka Ludvíka - Prostějov","VC","j","Kuchejdová","Zuzana",2,"mláďata","26",2,0,1,5,2,"Kuchejdová Zuzana",7]
["2022-04-23","Velká cena Zneňka Ludvíka - Prostějov","VC","j","Prudil","Adam",1,"mláďata","29,2",4,0,0,6,4,"Prudil Adam",10]
["2022-04-23","Velká cena Zneňka Ludvíka - Prostějov","VC","j","Vlček","Viktor",3,"mláďata","31,5",3,0,2,3,3,"Vlček Viktor",6]
["2022-04-23","Velká cena Zneňka Ludvíka - Prostějov","VC","j","Chovanec","Martin",2,"mláďata","30,5",4,0,1,5,4,"Chovanec Martin",{"$f":"SUM(M316,N316)","v":9}]
["2022-04-23","Velká cena Zneňka Ludvíka - Prostějov","VC","j","Salomon","Ondřej",1,"mláďata","34",3,0,1,6,3,"Salomon Ondřej",9]
["2022-04-23","Velká cena Zneňka Ludvíka - Prostějov","VC","j","Gajda","Maxim",5,"mláďata","29,2",0,0,4,0,0,"Gajda Maxim",0]
["2022-04-23","Velká cena Zneňka Ludvíka - Prostějov","VC","j","Podivínský","Marek",1,"mláďata","32,5",5,0,0,6,5,"Podivínský Marek",11]
["2022-04-23","Velká cena Zneňka Ludvíka - Prostějov","VC","j","Cahlíková","Barbora",1,"mláďata","40",3,0,0,6,3,"Cahlíková Barbora",9]
["2022-04-23","Velká cena Zneňka Ludvíka - Prostějov","VC","j","Marušák","Lukáš",2,"mláďata","24,7",2,0,1,5,2,"Marušák Lukáš",7]
["2022-04-23","Velká cena Zneňka Ludvíka - Prostějov","VC","j","Marušáková","Kateřina",2,"mláďata","25",2,0,1,{"$f":"IF(ISNA(VLOOKUP(C322&G322,$V$3:$W$95,2,FALSE)),0,VLOOKUP(C322&G322,$V$3:$W$95,2,FALSE))","v":5},{"$f":"IF(D322=\"d\",SUM(J322*2,K322),J322)","v":2},{"$f":"E322&\" \"&F322","v":"Marušáková Kateřina"},7]
["2022-04-23","Velká cena Zneňka Ludvíka - Prostějov","VC","j","Řehůřek","David",3,"mláďata","32,5",3,0,2,3,3,"Řehůřek David",6]
["2022-04-23","Velká cena Zneňka Ludvíka - Prostějov","VC","j","Szwanová","Liliana",2,"mláďata","32,4",3,0,1,5,3,"Szwanová Liliana",8]
["2022-04-23","Velká cena Zneňka Ludvíka - Prostějov","VC","j","Podivínský","Patrik",1,"mláďata","25",4,0,0,6,4,"Podivínský Patrik",10]
["2022-04-23","Evropský pohár juniorů - Poznaň","EJU","j","Křížek","Šimon","bez","junioři","73",1,0,1,0,1,"Křížek Šimon",1]
["2022-04-02","Český pohár - memoriál J. Stankoviče","CP","j","Silvestr","Matěj",1,"muži","100",4,0,0,10,4,"Silvestr Matěj",14]
["2022-04-02","Český pohár - memoriál J. Stankoviče","CP","j","Michálková","Karolína",1,"ženy","+73",4,0,0,10,4,"Michálková Karolína",14]
["2022-04-02","Český pohár - memoriál J. Stankoviče","CP","j","Křížek","Šimon",5,"muži","73",3,0,2,3,3,"Křížek Šimon",6]
["2022-04-02","Český pohár - memoriál J. Stankoviče","CP","j","Chlebovský","Daniel",7,"muži","100",0,0,2,2,0,"Chlebovský Daniel",2]
["2022-04-02","Český pohár - memoriál J. Stankoviče","CP","j","Kršňák","Filip","bez","muži","81",0,0,1,0,0,"Kršňák Filip",0]
["2022-04-30","MČR Juniorů - Hranice na Moravě","MCR","j","Čerchlová","Markéta",2,"juniorky","+78",1,0,1,15,1,"Čerchlová Markéta",16]
["2022-04-30","MČR Juniorů - Hranice na Moravě","MCR","j","Křížek","Šimon",3,"junioři","73",3,0,2,10,3,"Křížek Šimon",13]
["2022-04-30","MČR Juniorů - Hranice na Moravě","MCR","j","Motyka","Dominik",3,"junioři","90",3,0,1,10,3,"Motyka Dominik",13]
["2022-04-30","MČR Juniorů - Hranice na Moravě","MCR","j","Rapčanová","Silvie",3,"juniorky","52",2,0,1,10,2,"Rapčanová Silvie",12]
["2022-04-30","MČR Juniorů - Hranice na Moravě","MCR","j","Vavřínová","Pavla",3,"juniorky","57",2,0,1,10,2,"Vavřínová Pavla",12]
["2022-04-30","MČR Juniorů - Hranice na Moravě","MCR","j","Kršňák","Filip",5,"junioři","73",3,0,2,7,3,"Kršňák Filip",10]
["2022-04-30","MČR Juniorů - Hranice na Moravě","MCR","j","Fulneček","Šimon",5,"junioři","90",2,0,2,7,2,"Fulneček Šimon",9]
["2022-04-30","MČR Juniorů - Hranice na Moravě","MCR","j","Chlebovský","Daniel",5,"junioři","100",1,0,2,7,1,"Chlebovský Daniel",8]
["2022-04-30","MČR Juniorů - Hranice na Moravě","MCR","j","Caletka","Michal",7,"junioři","60",0,0,2,5,0,"Caletka Michal",5]
["2022-04-30","MČR Juniorů - Hranice na Moravě","MCR","j","Potůček","Tomáš","bez","junioři","81",1,0,1,0,1,"Potůček Tomáš",1]
["2022-04-30","MČR Juniorů - Hranice na Moravě","MCR","j","Kristen","Nicolas","bez","junioři","66",1,0,1,0,1,"Kristen Nicolas",1]
["2022-04-30","MČR Juniorů - Hranice na Moravě","MCR","j","Pačuta","Ladislav","bez","junioři","60",0,0,1,0,0,"Pačuta Ladislav",0]
["2022-04-30","MČR Juniorů - Hranice na Moravě","MCR","j","Čebík","Filip","bez","junioři","73",0,0,1,0,0,"Čebík Filip",0]
["2022-04-30","MČR Juniorů - Hranice na Moravě","MCR","j","Matýsek","Jan","bez","junioři","73",0,0,2,0,0,"Matýsek Jan",0]
["2022-04-30","MČR Juniorů - Hranice na Moravě","MCR","j","Meixner","Michal","bez","junioři","66",0,0,1,0,0,"Meixner Michal",0]
["2022-04-30","MČR Juniorů - Hranice na Moravě","MCR","j","Kolář","Vojtěch","bez","junioři","73",0,0,1,0,0,"Kolář Vojtěch",0]
["2022-04-30","MČR Juniorů - Hranice na Moravě","MCR","j","Caletka","Petr","bez","junioři","66",0,0,1,0,0,"Caletka Petr",0]
["2022-05-08","Velká cena Ostravy","VC","j","Podivínský","Patrik",1,"mláďata","26",3,0,0,6,3,"Podivínský Patrik",9]
["2022-05-08","Velká cena Ostravy","VC","j","Jaššo","Štěpán",2,"mláďata","30",1,0,1,5,1,"Jaššo Štěpán",6]
["2022-05-08","Velká cena Ostravy","VC","j","Marušák","Lukáš",2,"mláďata","26",2,0,2,5,2,"Marušák Lukáš",7]
["2022-05-08","Velká cena Ostravy","VC","j","Marušáková","Kateřina",3,"mláďata","26",2,0,2,3,2,"Marušáková Kateřina",5]
["2022-05-08","Velká cena Ostravy","VC","j","Kuchejdová","Zuzana",5,"mláďata","28",1,0,2,0,1,"Kuchejdová Zuzana",1]
["2022-05-08","Velká cena Ostravy","VC","j","Prudil","Adam","bez","mláďata","30",0,0,2,0,0,"Prudil Adam",0]
["2022-05-08","Velká cena Ostravy","VC","j","Gajda","Maxim",5,"mláďata","30",1,0,2,0,1,"Gajda Maxim",1]
["2022-05-08","Velká cena Ostravy","VC","j","Chovanec","Martin",2,"mláďata","32",2,0,1,5,2,"Chovanec Martin",7]
["2022-05-08","Velká cena Ostravy","VC","j","Vlček","Viktor",3,"mláďata","32",3,0,1,3,3,"Vlček Viktor",6]
["2022-05-08","Velká cena Ostravy","VC","j","Podivínský","Marek",1,"mláďata","34",5,0,0,6,5,"Podivínský Marek",11]
["2022-05-08","Velká cena Ostravy","VC","j","Řehůřek","David",3,"mláďata","34",2,0,2,3,2,"Řehůřek David",5]
["2022-05-08","Velká cena Ostravy","VC","j","Salomon","Ondřej","bez","mláďata","36",0,0,2,0,0,"Salomon Ondřej",0]
["2022-05-08","Velká cena Ostravy","VC","j","Funiok","Martin",3,"mláďata","38",1,0,2,3,1,"Funiok Martin",4]
["2022-05-08","Velká cena Ostravy","VC","j","Cahlíková","Barbora",3,"mláďata","42",1,0,2,3,1,"Cahlíková Barbora",4]
["2022-05-08","Velká cena Ostravy","VC","j","Hon","Lukáš","bez","mláďata","42",1,0,2,0,1,"Hon Lukáš",1]
["2022-05-08","Velká cena Ostravy","VC","j","Weiss","Daniel",3,"mláďata","42",2,0,2,3,2,"Weiss Daniel",5]
["2022-05-08","Velká cena Ostravy","VC","j","Hladký","Dalimil",3,"mláďata","50",0,0,2,3,0,"Hladký Dalimil",3]
["2022-05-08","Velká cena Ostravy","VC","j","Kaszper","Matyáš",1,"mláďata","50",2,0,0,6,2,"Kaszper Matyáš",8]
["2022-05-08","Velká cena Ostravy","VC","j","Szwanová","Liliana",3,"mláďata","34",1,0,2,3,1,"Szwanová Liliana",4]
["2022-05-08","Velká cena Ostravy","VC","j","Bauko","Viktor","bez","mladší žáci","38",1,0,2,0,1,"Bauko Viktor",1]
["2022-05-08","Velká cena Ostravy","VC","j","Bystrianský","Jan","bez","mladší žáci","38",0,0,1,0,0,"Bystrianský Jan",0]
["2022-05-08","Velká cena Ostravy","VC","j","Svoboda","Jindřich","bez","mladší žáci","38",0,0,1,0,0,"Svoboda Jindřich",0]
["2022-05-08","Velká cena Ostravy","VC","j","Voronin","Makar","bez","mladší žáci","38",0,0,2,0,0,"Voronin Makar",0]
["2022-05-08","Velká cena Ostravy","VC","j","Vlček","Martin",3,"mladší žáci","38",4,0,1,3,4,"Vlček Martin",7]
["2022-05-08","Velká cena Ostravy","VC","j","Soukup","Hugo",7,"mladší žáci","42",1,0,2,0,1,"Soukup Hugo",1]
["2022-05-08","Velká cena Ostravy","VC","j","Stránský","David",2,"mladší žáci","42",3,0,1,5,3,"Stránský David",8]
["2022-05-08","Velká cena Ostravy","VC","j","Lechovič","Tobiáš",5,"mladší žáci","46",2,0,2,0,2,"Lechovič Tobiáš",2]
["2022-05-08","Velká cena Ostravy","VC","j","Pícha","Matěj",7,"mladší žáci","46",0,0,2,0,0,"Pícha Matěj",0]
["2022-05-08","Velká cena Ostravy","VC","j","Kotouček","Marek",5,"mladší žáci","46",1,0,2,0,1,"Kotouček Marek",1]
["2022-05-08","Velká cena Ostravy","VC","j","Šindel","Jakub","bez","mladší žáci","50",1,0,2,0,1,"Šindel Jakub",1]
["2022-05-08","Velká cena Ostravy","VC","j","Musial","Šimon",2,"mladší žáci","50",3,0,1,5,3,"Musial Šimon",8]
["2022-05-08","Velká cena Ostravy","VC","j","Kret","Matyáš",2,"mladší žáci","55",3,0,1,5,3,"Kret Matyáš",{"$f":"SUM(M380,N380)","v":8}]
["2022-05-08","Velká cena Ostravy","VC","j","Lamža","Radek",1,"mladší žáci","+66",3,0,0,6,3,"Lamža Radek",9]
["2022-05-08","Velká cena Ostravy","VC","j","Kuchejdová","Veronika",2,"mladší žákyně","33",0,0,3,5,0,"Kuchejdová Veronika",5]
["2022-05-08","Velká cena Ostravy","VC","j","Cséri","Klára",3,"mladší žákyně","36",0,0,2,3,0,"Cséri Klára",3]
["2022-05-08","Velká cena Ostravy","VC","j","Nováčková","Tereza",4,"mladší žákyně","+57",0,0,3,0,0,"Nováčková Tereza",0]
["2022-05-08","Velká cena Ostravy","VC","j","To","Vojtěch",2,"starší žáci","38",1,0,1,5,1,"To Vojtěch",6]
["2022-05-08","Velká cena Ostravy","VC","j","Berka","Daniel",3,"starší žáci","38",0,0,2,{"$f":"IF(ISNA(VLOOKUP(C386&G386,$V$3:$W$95,2,FALSE)),0,VLOOKUP(C386&G386,$V$3:$W$95,2,FALSE))","v":3},{"$f":"IF(D386=\"d\",SUM(J386*2,K386),J386)","v":0},{"$f":"E386&\" \"&F386","v":"Berka Daniel"},3]
["2022-05-08","Velká cena Ostravy","VC","j","Siefert","David","bez","starší žáci","46",0,0,2,0,0,"Siefert David",0]
["2022-05-08","Velká cena Ostravy","VC","j","Bednář","Matěj",7,"starší žáci","46",0,0,2,0,0,"Bednář Matěj",0]
["2022-05-08","Velká cena Ostravy","VC","j","Přichystal","Leon",3,"starší žáci","46",2,0,1,3,2,"Přichystal Leon",5]
["2022-05-08","Velká cena Ostravy","VC","j","Londýn","Šimon",7,"starší žáci","46",0,0,2,0,0,"Londýn Šimon",0]
["2022-05-08","Velká cena Ostravy","VC","j","Ožana","Maxmilián",5,"starší žáci","50",0,0,4,0,0,"Ožana Maxmilián",0]
["2022-05-08","Velká cena Ostravy","VC","j","Kanclíř","Šimon",4,"starší žáci","60",0,0,3,0,0,"Kanclíř Šimon",0]
["2022-05-08","Velká cena Ostravy","VC","j","Murin","Jan",3,"starší žáci","66",3,0,1,3,3,"Murin Jan",6]
["2022-05-08","Velká cena Ostravy","VC","j","Zwilling","Šimon",2,"starší žáci","73",3,0,1,5,3,"Zwilling Šimon",8]
["2022-05-08","Velká cena Ostravy","VC","j","Březná","Karolína",3,"starší žákyně","+63",3,0,1,3,3,"Březná Karolína",6]
["2022-04-10","Evropský pohár dorostu - Teplice","EJU","j","Kuželová","Dominika","bez","dorostenky","63",2,0,1,0,2,"Kuželová Dominika",2]
["2022-04-09","Evropský pohár dorostu - Teplice","EJU","j","Pačuta","Ladislav","bez","dorostenci","60",0,0,1,0,0,"Pačuta Ladislav",0]
["2022-04-10","Evropský pohár dorostu - Teplice","EJU","j","Potůček","Tomáš","bez","dorostenci","81",1,0,1,0,1,"Potůček Tomáš",1]
["2022-04-10","Evropský pohár dorostu - Teplice","EJU","j","Fulneček","Šimon",9,"dorostenci","90",1,0,2,10,1,"Fulneček Šimon",11]
["2022-04-10","Evropský pohár dorostu - Teplice","EJU","j","Čerchla","Michal","bez","dorostenci","90",0,0,1,0,0,"Čerchla Michal",0]
["2022-04-30","MT Budapešť","MT","j","Přichystal","Leon","bez","starší žáci","45",1,0,1,0,1,"Přichystal Leon",1]
["2022-04-30","MT Budapešť","MT","j","Kuluris","Manolis","bez","starší žáci","45",1,0,1,0,1,"Kuluris Manolis",1]
["2022-04-30","MT Budapešť","MT","j","Valošek","Jakub","bez","starší žáci","55",0,0,1,0,0,"Valošek Jakub",0]
["2022-04-30","MT Budapešť","MT","j","Ciora","Jakub","bez","starší žáci","55",1,0,1,0,1,"Ciora Jakub",1]
["2022-04-30","MT Budapešť","MT","j","Huvar","Matyáš","bez","starší žáci","55",2,0,2,0,2,"Huvar Matyáš",2]
["2022-04-30","MT Budapešť","MT","j","Mařec","Tomáš","bez","starší žáci","60",1,0,2,0,1,"Mařec Tomáš",1]
["2022-04-30","MT Budapešť","MT","j","Stark","Vojtěch","bez","starší žáci","66",0,0,2,0,0,"Stark Vojtěch",0]
["2022-04-30","MT Budapešť","MT","j","Zwilling","Šimon",3,"starší žáci","73",4,0,1,5,4,"Zwilling Šimon",9]
["2022-04-30","MT Budapešť","MT","j","Vlk","František",2,"starší žáci","81",2,0,1,7,2,"Vlk František",9]
["2022-04-30","MT Budapešť","MT","j","Klepač","Václav","bez","starší žáci","+81",0,0,1,0,0,"Klepač Václav",0]
["2022-04-30","MT Budapešť","MT","j","Škoda","Melichar",7,"starší žáci","+81",2,0,2,2,2,"Škoda Melichar",4]
["2022-04-30","MT Budapešť","MT","j","Kocmanová","Lucie","bez","starší žákyně","48",0,0,1,0,0,"Kocmanová Lucie",0]
["2022-04-30","MT Budapešť","MT","j","Homolová","Kristýna","bez","starší žákyně","57",0,0,2,0,0,"Homolová Kristýna",0]
["2022-04-30","MT Budapešť","MT","j","Kaszperová","Kristýna",1,"starší žákyně","+63",3,0,0,10,3,"Kaszperová Kristýna",13]
["2022-05-07","1. liga Jičín - 2. kolo","1.liga","d","Pačuta","Ladislav",null,"muži","60",2,0,2,0,4,"Pačuta Ladislav",4]
["2022-05-07","1. liga Jičín - 2. kolo","1.liga","d","Svoboda","Jiří",7,"muži","81",0,0,0,2,0,"Svoboda Jiří",2]
["2022-05-07","1. liga Jičín - 2. kolo","1.liga","d","Fulneček","Šimon",7,"muži","90",0,0,0,2,0,"Fulneček Šimon",2]
["2022-05-07","1. liga Jičín - 2. kolo","1.liga","d","Chlebovský","Daniel",7,"muži","+90",0,0,4,2,0,"Chlebovský Daniel",2]
["2022-05-07","1. liga Jičín - 2. kolo","1.liga","d","Čebík","Filip",null,"muži","73",2,0,2,0,4,"Čebík Filip",4]
["2022-05-07","1. liga Jičín - 2. kolo","1.liga","d","Potůček","Tomáš",null,"muži","81",0,0,2,0,0,"Potůček Tomáš",0]
["2022-05-07","1. liga Jičín - 2. kolo","1.liga","d","Motyka","Dominik",7,"muži","90",2,0,2,2,4,"Motyka Dominik",6]
["2022-05-14","Český pohár Jablonec nad Nisou","CP","j","Vlček","Martin","bez","mladší žáci","38",3,0,2,0,3,"Vlček Martin",3]
["2022-05-14","Český pohár Jablonec nad Nisou","CP","j","Stránský","David","bez","mladší žáci","42",1,0,1,0,1,"Stránský David",1]
["2022-05-14","Český pohár Jablonec nad Nisou","CP","j","Soukup","Hugo","bez","mladší žáci","42",3,0,2,0,3,"Soukup Hugo",3]
["2022-05-14","Český pohár Jablonec nad Nisou","CP","j","Lechovič","Tobiáš","bez","mladší žáci","46",1,0,1,0,1,"Lechovič Tobiáš",1]
["2022-05-14","Český pohár Jablonec nad Nisou","CP","j","Musial","Šimon",7,"mladší žáci","50",3,0,2,2,3,"Musial Šimon",5]
["2022-05-14","Český pohár Jablonec nad Nisou","CP","j","Bokiy","Konstantin","bez","mladší žáci","55",0,0,1,0,0,"Bokiy Konstantin",0]
["2022-05-14","Český pohár Jablonec nad Nisou","CP","j","Zoulová","Karolína",2,"mladší žákyně","33",2,0,1,7,2,"Zoulová Karolína",9]
["2022-05-14","Český pohár Jablonec nad Nisou","CP","j","Zoulová","Tereza","bez","mladší žákyně","36",1,0,2,0,1,"Zoulová Tereza",1]
["2022-05-14","Český pohár Jablonec nad Nisou","CP","j","Pačuta","Ladislav",7,"dorostenci","60",3,0,2,2,3,"Pačuta Ladislav",5]
["2022-05-14","Český pohár Jablonec nad Nisou","CP","j","Potůček","Tomáš",1,"dorostenci","81",4,0,0,10,4,"Potůček Tomáš",14]
["2022-05-14","Český pohár Jablonec nad Nisou","CP","j","Čerchla","Michal",3,"dorostenci","90",3,0,1,5,3,"Čerchla Michal",8]
["2022-05-14","Český pohár Jablonec nad Nisou","CP","j","Meixner","Michal","bez","dorostenci","66",2,0,1,0,2,"Meixner Michal",2]
["2022-05-14","Český pohár Jablonec nad Nisou","CP","j","Huvar","Jakub",7,"dorostenci","73",4,0,2,2,4,"Huvar Jakub",6]
["2022-05-14","Český pohár Jablonec nad Nisou","CP","j","Kolář","Vojtěch",9,"dorostenci","73",3,0,2,0,3,"Kolář Vojtěch",3]
["2022-05-14","Český pohár Jablonec nad Nisou","CP","j","Pospíšil","Jan","bez","dorostenci","73",0,0,1,0,0,"Pospíšil Jan",0]
["2022-05-14","Český pohár Jablonec nad Nisou","CP","j","Lavrukhin","Dobrynya","bez","dorostenci","66",0,0,1,0,0,"Lavrukhin Dobrynya",0]
["2022-05-14","Český pohár Jablonec nad Nisou","CP","j","Kristen","Nicolas","bez","dorostenci","66",0,0,1,0,0,"Kristen Nicolas",0]
["2022-05-14","Český pohár Jablonec nad Nisou","CP","j","Fulneček","Šimon",1,"dorostenci","90",3,0,0,10,3,"Fulneček Šimon",13]
["2022-05-14","Český pohár Jablonec nad Nisou","CP","j","Baudiš","Michal","bez","dorostenci","73",1,0,2,0,1,"Baudiš Michal",1]
["2022-05-14","Český pohár Jablonec nad Nisou","CP","j","Caletka","Petr",7,"dorostenci","66",3,0,2,2,3,"Caletka Petr",5]
["2022-05-14","Český pohár Jablonec nad Nisou","CP","j","Caletka","Michal","bez","dorostenci","60",2,0,1,0,2,"Caletka Michal",2]
["2022-05-14","Český pohár Jablonec nad Nisou","CP","j","Tomek","David",7,"dorostenci","73",4,0,2,2,4,"Tomek David",6]
["2022-05-14","Český pohár Jablonec nad Nisou","CP","j","Vaněk","Jakub",3,"dorostenci","73",5,0,1,5,5,"Vaněk Jakub",{"$f":"SUM(M444,N444)","v":10}]
["2022-05-14","Český pohár Jablonec nad Nisou","CP","j","Rapčanová","Silvie",3,"dorostenky","52",2,0,1,5,2,"Rapčanová Silvie",7]
["2022-05-14","Český pohár Jablonec nad Nisou","CP","j","Rapčanová","Alice",7,"dorostenky","63",3,0,2,2,3,"Rapčanová Alice",5]
["2022-05-14","Český pohár Jablonec nad Nisou","CP","j","Bukovjanová","Charlotte","bez","dorostenky","57",0,0,1,0,0,"Bukovjanová Charlotte",0]
["2022-05-14","Český pohár Jablonec nad Nisou","CP","j","Vavřínová","Pavla","bez","dorostenky","57",0,0,1,0,0,"Vavřínová Pavla",0]
["2022-05-14","Český pohár Jablonec nad Nisou","CP","j","Čebík","Filip",3,"dorostenci","66",6,0,1,5,6,"Čebík Filip",11]
["2022-05-14","Český pohár Jablonec nad Nisou","CP","j","Kutáč","Jan","bez","dorostenci","66",0,0,1,{"$f":"IF(ISNA(VLOOKUP(C450&G450,$V$3:$W$95,2,FALSE)),0,VLOOKUP(C450&G450,$V$3:$W$95,2,FALSE))","v":0},{"$f":"IF(D450=\"d\",SUM(J450*2,K450),J450)","v":0},{"$f":"E450&\" \"&F450","v":"Kutáč Jan"},0]
["2022-05-14","Český pohár Jablonec nad Nisou","CP","j","Kuželová","Dominika",1,"dorostenky","63",4,0,0,10,4,"Kuželová Dominika",14]
["2022-05-21","Evropský pohár dorostu - Bielsko Biala","EJU","j","Kuželová","Dominika",12,"dorostenky","63",1,0,2,0,1,"Kuželová Dominika",1]
["2022-05-21","Evropský pohár dorostu - Bielsko Biala","EJU","j","Fulneček","Šimon",9,"dorostenci","90",1,0,2,10,1,"Fulneček Šimon",11]
["2022-05-21","Evropský pohár dorostu - Bielsko Biala","EJU","j","Potůček","Tomáš",12,"dorostenci","81",1,0,2,0,1,"Potůček Tomáš",1]
["2022-04-30","MT Budapešť","MT","j","Nytra","Sebastián","bez","mladší žáci","49",1,0,1,0,1,"Nytra Sebastián",1]
["2022-04-30","MT Budapešť","MT","j","Vlček","Martin","bez","mladší žáci","38",0,0,1,0,0,"Vlček Martin",0]
["2022-04-30","MT Budapešť","MT","j","Lechovič","Tobiáš","bez","mladší žáci","45",0,0,1,0,0,"Lechovič Tobiáš",0]
["2022-04-30","MT Budapešť","MT","j","Hon","Sebastián","bez","mladší žáci","49",0,0,1,0,0,"Hon Sebastián",0]
["2022-04-30","MT Budapešť","MT","j","Soukup","Hugo","bez","mladší žáci","41",0,0,1,0,0,"Soukup Hugo",0]
["2022-04-30","MT Budapešť","MT","j","Stránský","David","bez","mladší žáci","41",0,0,1,0,0,"Stránský David",0]
["2022-04-30","MT Budapešť","MT","j","Musial","Šimon","bez","mladší žáci","49",1,0,1,0,1,"Musial Šimon",1]
["2022-04-30","MT Budapešť","MT","j","Nováková","Victoria","bez","mladší žákyně","45",0,0,1,0,0,"Nováková Victoria",0]
["2022-04-30","MT Budapešť","MT","j","Šelongová","Viktorie","bez","mladší žákyně","32",0,0,1,0,0,"Šelongová Viktorie",0]
["2022-04-30","Mezinárodní mistrovství Slovenska Masters","MT","j","Martínek","Roman",1,"veteráni","100",2,0,0,10,2,"Martínek Roman",12]
["2022-04-30","Mezinárodní mistrovství Slovenska Masters","MT","j","Chlebový","Arnold",1,"veteráni","90",4,0,0,10,4,"Chlebový Arnold",14]
["2022-04-30","Mezinárodní mistrovství Slovenska Masters","MT","j","Schoffer","Radim",1,"veteráni","100",2,0,0,10,2,"Schoffer Radim",12]
["2022-04-30","Mezinárodní mistrovství Slovenska Masters","MT","j","Moravec","Vlastimil",1,"veteráni","70",2,0,0,10,2,"Moravec Vlastimil",12]
["2022-05-06","Mezinárodní mistrovství Maďarska Masters","MT","j","Martínek","Roman",3,"veteráni","100",3,0,1,5,3,"Martínek Roman",8]
["2022-05-06","Mezinárodní mistrovství Maďarska Masters","MT","j","Chlebový","Arnold",3,"veteráni","90",1,0,1,5,1,"Chlebový Arnold",6]
["2022-05-28","Malá cena Ostravy mláďata","MC","j","Marušák","Lukáš","bez","mláďata","26",0,0,2,0,0,"Marušák Lukáš",0]
["2022-05-28","Malá cena Ostravy mláďata","MC","j","Kuchejdová","Zuzana",2,"mláďata","26",2,0,2,3,2,"Kuchejdová Zuzana",5]
["2022-05-28","Malá cena Ostravy mláďata","MC","j","Marušáková","Kateřina","bez","mláďata","26",0,0,2,0,0,"Marušáková Kateřina",0]
["2022-05-28","Malá cena Ostravy mláďata","MC","j","Ščevík","Ondřej",3,"mláďata","26",1,0,2,2,1,"Ščevík Ondřej",3]
["2022-05-28","Malá cena Ostravy mláďata","MC","j","Mazůch","Richard",1,"mláďata","28",4,0,0,4,4,"Mazůch Richard",8]
["2022-05-28","Malá cena Ostravy mláďata","MC","j","Gajda","Martin",3,"mláďata","28",2,0,2,2,2,"Gajda Martin",4]
["2022-05-28","Malá cena Ostravy mláďata","MC","j","Prudil","Adam",1,"mláďata","30",4,0,0,4,4,"Prudil Adam",8]
["2022-05-28","Malá cena Ostravy mláďata","MC","j","Vlček","Viktor","bez","mláďata","33",2,0,1,0,2,"Vlček Viktor",2]
["2022-05-28","Malá cena Ostravy mláďata","MC","j","Chovanec","Martin",1,"mláďata","33",5,0,0,4,5,"Chovanec Martin",9]
["2022-05-28","Malá cena Ostravy mláďata","MC","j","Podivínský","Marek",1,"mláďata","34",4,0,0,4,4,"Podivínský Marek",8]
["2022-05-28","Malá cena Ostravy mláďata","MC","j","Vašťák","Ondřej",2,"mláďata","34",3,0,1,3,3,"Vašťák Ondřej",6]
["2022-05-28","Malá cena Ostravy mláďata","MC","j","Salomon","Ondřej","bez","mláďata","34",0,0,2,0,0,"Salomon Ondřej",0]
["2022-05-28","Malá cena Ostravy mláďata","MC","j","Hon","Lukáš",4,"mláďata","44",1,0,3,0,1,"Hon Lukáš",1]
["2022-05-28","Malá cena Ostravy mláďata","MC","j","Kaszper","Matyáš",1,"mláďata","48",2,0,0,4,2,"Kaszper Matyáš",6]
["2022-05-29","Mezinárodní turnaj Wolbrom","MVC","j","Vlček","Martin",1,"mladší žáci","40",5,0,0,6,5,"Vlček Martin",11]
["2022-05-29","Mezinárodní turnaj Wolbrom","MVC","j","Kouřil","Sebastián",2,"mladší žáci","36",2,0,1,5,2,"Kouřil Sebastián",7]
["2022-05-29","Mezinárodní turnaj Wolbrom","MVC","j","Hon","Sebastián","bez","mladší žáci","50",1,0,2,0,1,"Hon Sebastián",1]
["2022-05-29","Mezinárodní turnaj Wolbrom","MVC","j","Lechovič","Tobiáš",1,"mladší žáci","45",5,0,0,6,5,"Lechovič Tobiáš",11]
["2022-05-29","Mezinárodní turnaj Wolbrom","MVC","j","Svoboda","Jindřich","bez","mladší žáci","40",0,0,3,0,0,"Svoboda Jindřich",0]
["2022-05-29","Mezinárodní turnaj Wolbrom","MVC","j","Bokiy","Konstantin",2,"mladší žáci","55",2,0,1,5,2,"Bokiy Konstantin",7]
["2022-05-29","Mezinárodní turnaj Wolbrom","MVC","j","Bravanský","Marek",4,"mladší žáci","50",2,0,2,0,2,"Bravanský Marek",2]
["2022-05-29","Mezinárodní turnaj Wolbrom","MVC","j","Bauko","Viktor",5,"mladší žáci","40",2,0,2,0,2,"Bauko Viktor",2]
["2022-05-29","Mezinárodní turnaj Wolbrom","MVC","j","Zoulová","Karolína",1,"mladší žákyně","33",2,0,1,6,2,"Zoulová Karolína",8]
["2022-05-29","Mezinárodní turnaj Wolbrom","MVC","j","Zoulová","Tereza",1,"mladší žákyně","36",2,0,0,6,2,"Zoulová Tereza",8]
["2022-06-04","Evropský pohár juniorů - Graz","EJU","j","Křížek","Šimon","bez","junioři","73",0,0,1,0,0,"Křížek Šimon",0]
["2022-06-04","Český pohár Nový Bydžov","CP","j","Mikendová","Tereza",3,"dorostenky","48",2,0,2,5,2,"Mikendová Tereza",7]
["2022-06-04","Český pohár Nový Bydžov","CP","j","Rapčanová","Silvie",2,"dorostenky","52",2,0,1,7,2,"Rapčanová Silvie",9]
["2022-06-04","Český pohár Nový Bydžov","CP","j","Vavřínová","Pavla",3,"dorostenky","57",4,0,1,5,4,"Vavřínová Pavla",9]
["2022-06-04","Český pohár Nový Bydžov","CP","j","Bukovjanová","Charlotte",9,"dorostenky","57",1,0,2,0,1,"Bukovjanová Charlotte",1]
["2022-06-04","Český pohár Nový Bydžov","CP","j","Dryšl","Adam","bez","dorostenci","55",0,0,2,0,0,"Dryšl Adam",0]
["2022-06-04","Český pohár Nový Bydžov","CP","j","Pačuta","Ladislav",1,"dorostenci","60",5,0,0,10,5,"Pačuta Ladislav",15]
["2022-06-04","Český pohár Nový Bydžov","CP","j","Vontor","Tomáš",9,"dorostenci","60",2,0,2,0,2,"Vontor Tomáš",2]
["2022-06-04","Český pohár Nový Bydžov","CP","j","Caletka","Michal","bez","dorostenci","60",1,0,1,0,1,"Caletka Michal",1]
["2022-06-04","Český pohár Nový Bydžov","CP","j","Čebík","Filip",9,"dorostenci","66",3,0,2,0,3,"Čebík Filip",3]
["2022-06-04","Český pohár Nový Bydžov","CP","j","Meixner","Michal","bez","dorostenci","66",0,0,1,0,0,"Meixner Michal",0]
["2022-06-04","Český pohár Nový Bydžov","CP","j","Kristen","Nicolas","bez","dorostenci","66",1,0,1,0,1,"Kristen Nicolas",1]
["2022-06-04","Český pohár Nový Bydžov","CP","j","Pospíšil","Jan","bez","dorostenci","66",0,0,1,0,0,"Pospíšil Jan",0]
["2022-06-04","Český pohár Nový Bydžov","CP","j","Caletka","Petr",3,"dorostenci","66",4,0,1,5,4,"Caletka Petr",9]
["2022-06-04","Český pohár Nový Bydžov","CP","j","Lavrukhin","Dobrynya","bez","dorostenci","66",0,0,1,0,0,"Lavrukhin Dobrynya",{"$f":"SUM(M508,N508)","v":0}]
["2022-06-04","Český pohár Nový Bydžov","CP","j","Kolář","Vojtěch","bez","dorostenci","73",0,0,1,0,0,"Kolář Vojtěch",0]
["2022-06-04","Český pohár Nový Bydžov","CP","j","Baudiš","Michal","bez","dorostenci","73",0,0,1,0,0,"Baudiš Michal",0]
["2022-06-04","Český pohár Nový Bydžov","CP","j","Vaněk","Jakub",7,"dorostenci","73",3,0,2,2,3,"Vaněk Jakub",5]
["2022-06-04","Český pohár Nový Bydžov","CP","j","Huvar","Jakub",9,"dorostenci","73",2,0,2,0,2,"Huvar Jakub",2]
["2022-06-04","Český pohár Nový Bydžov","CP","j","Seibert","Marian","bez","dorostenci","73",0,0,1,0,0,"Seibert Marian",0]
["2022-06-04","Český pohár Nový Bydžov","CP","j","Tomek","David",9,"dorostenci","73",3,0,2,{"$f":"IF(ISNA(VLOOKUP(C514&G514,$V$3:$W$95,2,FALSE)),0,VLOOKUP(C514&G514,$V$3:$W$95,2,FALSE))","v":0},{"$f":"IF(D514=\"d\",SUM(J514*2,K514),J514)","v":3},{"$f":"E514&\" \"&F514","v":"Tomek David"},3]
["2022-06-04","Český pohár Nový Bydžov","CP","j","Potůček","Tomáš",2,"dorostenci","81",3,0,1,7,3,"Potůček Tomáš",10]
["2022-06-04","Český pohár Nový Bydžov","CP","j","Čerchla","Michal",2,"dorostenci","90",2,0,1,7,2,"Čerchla Michal",9]
["2022-06-12","Dorostenecká liga - 2. kolo skupina D","DL","d","Vontor","Tomáš",null,"dorostenci","60",2,0,0,0,4,"Vontor Tomáš",4]
["2022-06-12","Dorostenecká liga - 2. kolo skupina D","DL","d","Čerchla","Michal",null,"dorostenci","90",1,0,0,0,2,"Čerchla Michal",2]
["2022-06-12","Dorostenecká liga - 2. kolo skupina D","DL","d","Fulneček","Šimon",null,"dorostenci","90",2,0,0,0,4,"Fulneček Šimon",4]
["2022-06-12","Dorostenecká liga - 2. kolo skupina D","DL","d","Tomek","David",null,"dorostenci","73",1,0,0,0,2,"Tomek David",2]
["2022-06-12","Dorostenecká liga - 2. kolo skupina D","DL","d","Čebík","Filip",null,"dorostenci","73",1,0,1,0,2,"Čebík Filip",2]
["2022-06-12","Dorostenecká liga - 2. kolo skupina D","DL","d","Meixner","Michal",null,"dorostenci","66",2,0,0,0,4,"Meixner Michal",4]
["2022-06-12","Dorostenecká liga - 2. kolo skupina D","DL","d","Pačuta","Ladislav",null,"dorostenci","60",1,0,0,0,2,"Pačuta Ladislav",2]
["2022-06-12","Dorostenecká liga - 2. kolo skupina D","DL","d","Caletka","Petr",null,"dorostenci","66",0,0,1,0,0,"Caletka Petr",0]
["2022-06-12","Dorostenecká liga - 2. kolo skupina D","DL","d","Caletka","Michal",null,"dorostenci","60",1,0,0,0,2,"Caletka Michal",2]
["2022-06-12","Dorostenecká liga - 2. kolo skupina D","DL","d","Bečka","Václav",null,"dorostenci","50",1,0,2,0,2,"Bečka Václav",2]
["2022-06-12","Dorostenecká liga - 2. kolo skupina D","DL","d","Dryšl","Adam",null,"dorostenci","55",0,0,2,0,0,"Dryšl Adam",0]
["2022-06-12","Dorostenecká liga - 2. kolo skupina D","DL","d","Valošek","Jakub",null,"dorostenci","55",0,0,1,0,0,"Valošek Jakub",0]
["2022-06-12","Dorostenecká liga - 2. kolo skupina D","DL","d","Kolář","Vojtěch",2,"dorostenci","81",1,0,0,15,2,"Kolář Vojtěch",17]
["2022-06-18","Krajský přebor Ostrava","PK","j","Mikendová","Tereza",1,"dorostenky","48",0,0,0,6,0,"Mikendová Tereza",6]
["2022-06-18","Krajský přebor Ostrava","PK","j","Bukovjanová","Charlotte",1,"dorostenky","57",3,0,0,6,3,"Bukovjanová Charlotte",9]
["2022-06-18","Krajský přebor Ostrava","PK","j","Vavřínová","Pavla",1,"dorostenky","63",4,0,0,6,4,"Vavřínová Pavla",10]
["2022-06-18","Krajský přebor Ostrava","PK","j","Rapčanová","Alice",3,"dorostenky","63",2,0,2,3,2,"Rapčanová Alice",5]
["2022-06-18","Krajský přebor Ostrava","PK","j","Vontor","Tomáš",1,"dorostenci","60",3,0,0,6,3,"Vontor Tomáš",9]
["2022-06-18","Krajský přebor Ostrava","PK","j","Pačuta","Ladislav",3,"dorostenci","60",2,0,1,3,2,"Pačuta Ladislav",5]
["2022-06-18","Krajský přebor Ostrava","PK","j","Meixner","Michal",2,"dorostenci","66",2,0,2,5,2,"Meixner Michal",7]
["2022-06-18","Krajský přebor Ostrava","PK","j","Kristen","Nicolas",3,"dorostenci","66",1,0,2,3,1,"Kristen Nicolas",4]
["2022-06-18","Krajský přebor Ostrava","PK","j","Čebík","Filip","bez","dorostenci","73",1,0,2,0,1,"Čebík Filip",1]
["2022-06-18","Krajský přebor Ostrava","PK","j","Pospíšil","Jan",3,"dorostenci","73",2,0,2,3,2,"Pospíšil Jan",5]
["2022-06-18","Krajský přebor Ostrava","PK","j","Kolář","Vojtěch",3,"dorostenci","73",2,0,2,3,2,"Kolář Vojtěch",5]
["2022-06-18","Krajský přebor Ostrava","PK","j","Baudiš","Michal","bez","dorostenci","73",1,0,2,0,1,"Baudiš Michal",1]
["2022-06-18","Krajský přebor Ostrava","PK","j","Vaněk","Jakub",2,"dorostenci","73",4,0,1,5,4,"Vaněk Jakub",9]
["2022-06-18","Krajský přebor Ostrava","PK","j","Tomek","David","bez","dorostenci","73",0,0,3,0,0,"Tomek David",0]
["2022-06-18","Krajský přebor Ostrava","PK","j","Čerchla","Michal",1,"dorostenci","90",4,0,0,6,4,"Čerchla Michal",10]
["2022-06-18","Krajský přebor Ostrava","PK","j","Meixner","Michal",3,"junioři","66",1,0,2,3,1,"Meixner Michal",4]
["2022-06-18","Krajský přebor Ostrava","PK","j","Kristen","Nicolas","bez","junioři","66",0,0,3,0,0,"Kristen Nicolas",0]
["2022-06-18","Krajský přebor Ostrava","PK","j","Čebík","Filip",1,"junioři","73",4,0,0,6,4,"Čebík Filip",10]
["2022-06-18","Krajský přebor Ostrava","PK","j","Čerchla","Michal",3,"junioři","90",1,0,2,3,1,"Čerchla Michal",4]
["2022-06-18","Krajský přebor Ostrava","PK","j","Kolář","Vojtěch","bez","dorostenci","open",0,0,2,0,0,"Kolář Vojtěch",0]
["2022-06-18","Krajský přebor Ostrava","PK","j","Čerchla","Michal",3,"dorostenci","open",3,0,1,3,3,"Čerchla Michal",6]
["2022-06-18","Krajský přebor Ostrava","PK","j","Meixner","Michal","bez","dorostenci","open",0,0,1,0,0,"Meixner Michal",0]
["2022-06-18","Krajský přebor Ostrava","PK","j","Pačuta","Ladislav","bez","dorostenci","open",0,0,1,0,0,"Pačuta Ladislav",0]
["2022-06-18","Krajský přebor Ostrava","PK","j","Vontor","Tomáš",7,"dorostenci","open",2,0,2,0,2,"Vontor Tomáš",2]
["2022-06-18","Krajský přebor Ostrava","PK","j","Meixner","Tomáš",1,"junioři","66",3,0,0,6,3,"Meixner Tomáš",9]
["2022-06-18","Krajský přebor Ostrava","PK","j","Křížek","Šimon",1,"junioři","81",3,0,0,6,3,"Křížek Šimon",9]
["2022-06-18","Krajský přebor Ostrava","PK","j","Lindovský","Jiří",2,"junioři","73",3,0,1,5,3,"Lindovský Jiří",8]
["2022-06-18","Krajský přebor Ostrava","PK","j","Motyka","Dominik",2,"junioři","90",2,0,1,5,2,"Motyka Dominik",7]
["2022-06-18","Krajský přebor Ostrava","PK","j","Kršňák","Filip",2,"junioři","81",2,0,1,5,2,"Kršňák Filip",7]
["2022-06-18","Krajský přebor Ostrava","PK","j","Vršek","Jakub",3,"junioři","81",1,0,2,3,1,"Vršek Jakub",4]
["2022-06-18","Krajský přebor Ostrava","PK","j","Motyka","Dominik",1,"muži","100",3,0,0,6,3,"Motyka Dominik",9]
["2022-06-18","Krajský přebor Ostrava","PK","j","Svoboda","Jiří",1,"muži","81",3,0,0,6,3,"Svoboda Jiří",9]
["2022-06-18","Krajský přebor Ostrava","PK","j","Lindovský","Jiří",1,"muži","73",3,0,0,6,3,"Lindovský Jiří",9]
["2022-06-18","Krajský přebor Ostrava","PK","j","Křížek","Šimon",2,"muži","81",2,0,1,5,2,"Křížek Šimon",7]
["2022-06-18","Krajský přebor Ostrava","PK","j","Meixner","Tomáš",2,"muži","66",2,0,1,5,2,"Meixner Tomáš",7]
["2022-06-18","Krajský přebor Ostrava","PK","j","Šeděnka","Richard",3,"muži","73",1,0,2,3,1,"Šeděnka Richard",4]
["2022-06-18","Krajský přebor Ostrava","PK","j","Ilenčík","Filip",3,"muži","81",1,0,2,3,1,"Ilenčík Filip",4]
["2022-06-18","Krajský přebor Ostrava","PK","j","Svoboda","Jiří",3,"muži","open",3,0,1,3,3,"Svoboda Jiří",6]
["2022-06-18","Krajský přebor Ostrava","PK","j","Křížek","Šimon",5,"junioři","open",2,0,1,0,2,"Křížek Šimon",2]
["2022-06-18","Krajský přebor Ostrava","PK","j","Lindovský","Jiří","bez","junioři","open",1,0,2,0,1,"Lindovský Jiří",1]
["2022-06-18","Krajský přebor Ostrava","PK","j","Vršek","Jakub","bez","junioři","open",1,0,1,0,1,"Vršek Jakub",1]
["2022-06-18","Krajský přebor Ostrava","PK","j","Šeděnka","Richard","bez","muži","open",0,0,2,0,0,"Šeděnka Richard",0]
["2022-06-26","Mistrovství Evropy Poreč","ME","j","Fulneček","Šimon","bez","dorostenci","90",0,0,1,0,0,"Fulneček Šimon",{"$f":"SUM(M572,N572)","v":0}]
["2022-05-05","Extraliga mužů 1. a 2. kolo","EXL","d","Rýpar","Radek",null,"muži","66",4,0,0,0,8,"Rýpar Radek",8]
["2022-05-05","Extraliga mužů 1. a 2. kolo","EXL","d","Křížek","Šimon",null,"muži","73",2,0,2,0,4,"Křížek Šimon",4]
["2022-05-05","Extraliga mužů 1. a 2. kolo","EXL","d","Silvestr","Matěj",null,"muži","+90",1,0,2,0,2,"Silvestr Matěj",2]
["2022-05-05","Extraliga mužů 1. a 2. kolo","EXL","d","Svoboda","Jiří",null,"muži","90",0,0,4,0,0,"Svoboda Jiří",0]
["2022-05-15","Český pohár Jablonec nad Nisou","CP","j","Čerchlová","Markéta",1,"ženy","+78",2,0,0,10,2,"Čerchlová Markéta",12]
["2022-05-15","Český pohár Jablonec nad Nisou","CP","j","Křížek","Šimon",3,"muži","73",3,0,1,{"$f":"IF(ISNA(VLOOKUP(C578&G578,$V$3:$W$95,2,FALSE)),0,VLOOKUP(C578&G578,$V$3:$W$95,2,FALSE))","v":5},{"$f":"IF(D578=\"d\",SUM(J578*2,K578),J578)","v":3},{"$f":"E578&\" \"&F578","v":"Křížek Šimon"},8]
["2022-05-15","Český pohár Jablonec nad Nisou","CP","j","Motyka","Dominik",5,"muži","90",2,0,2,3,2,"Motyka Dominik",5]
["2022-05-14","Český pohár Jablonec nad Nisou","CP","j","To","Vojtěch",3,"starší žáci","34",2,0,1,5,2,"To Vojtěch",7]
["2022-05-14","Český pohár Jablonec nad Nisou","CP","j","Přichystal","Leon",7,"starší žáci","46",4,0,2,2,4,"Přichystal Leon",6]
["2022-05-14","Český pohár Jablonec nad Nisou","CP","j","Kuluris","Manolis","bez","starší žáci","46",2,0,2,0,2,"Kuluris Manolis",2]
["2022-05-14","Český pohár Jablonec nad Nisou","CP","j","Bečka","Václav",5,"starší žáci","50",4,0,2,3,4,"Bečka Václav",7]
["2022-05-14","Český pohár Jablonec nad Nisou","CP","j","Valošek","Jakub","bez","starší žáci","55",0,0,1,0,0,"Valošek Jakub",0]
["2022-05-14","Český pohár Jablonec nad Nisou","CP","j","Ciora","Jakub","bez","starší žáci","55",0,0,1,0,0,"Ciora Jakub",0]
["2022-05-14","Český pohár Jablonec nad Nisou","CP","j","Huvar","Matyáš","bez","starší žáci","55",1,0,1,0,1,"Huvar Matyáš",1]
["2022-05-14","Český pohár Jablonec nad Nisou","CP","j","Mařec","Tomáš","bez","starší žáci","60",1,0,1,0,1,"Mařec Tomáš",1]
["2022-05-14","Český pohár Jablonec nad Nisou","CP","j","Stark","Vojtěch","bez","starší žáci","66",0,0,1,0,0,"Stark Vojtěch",0]
["2022-05-14","Český pohár Jablonec nad Nisou","CP","j","Zwilling","Šimon",3,"starší žáci","73",4,0,1,5,4,"Zwilling Šimon",9]
["2022-05-14","Český pohár Jablonec nad Nisou","CP","j","Vlk","František",2,"starší žáci","+73",3,0,1,7,3,"Vlk František",10]
["2022-05-14","Český pohár Jablonec nad Nisou","CP","j","Klepač","Václav",7,"starší žáci","+73",2,0,2,2,2,"Klepač Václav",4]
["2022-05-14","Český pohár Jablonec nad Nisou","CP","j","Škoda","Melichar",3,"starší žáci","+73",3,0,1,5,3,"Škoda Melichar",8]
["2022-05-14","Český pohár Jablonec nad Nisou","CP","j","Kocmanová","Lucie","bez","starší žákyně","48",0,0,2,0,0,"Kocmanová Lucie",0]
["2022-05-14","Český pohár Jablonec nad Nisou","CP","j","Homolová","Kristýna","bez","starší žákyně","57",2,0,2,0,2,"Homolová Kristýna",2]
["2022-05-14","Český pohár Jablonec nad Nisou","CP","j","Kaszperová","Kristýna",1,"starší žákyně","+63",4,0,0,10,4,"Kaszperová Kristýna",14]
["2022-06-04","Český pohár Nový Bydžov","CP","j","To","Vojtěch",2,"starší žáci","34",2,0,1,7,2,"To Vojtěch",9]
["2022-06-04","Český pohár Nový Bydžov","CP","j","Přichystal","Leon","bez","starší žáci","46",2,0,2,0,2,"Přichystal Leon",2]
["2022-06-04","Český pohár Nový Bydžov","CP","j","Kuluris","Manolis","bez","starší žáci","46",0,0,1,0,0,"Kuluris Manolis",0]
["2022-06-04","Český pohár Nový Bydžov","CP","j","Bečka","Václav",5,"starší žáci","50",4,0,2,3,4,"Bečka Václav",7]
["2022-06-04","Český pohár Nový Bydžov","CP","j","Ožana","Maxmilián","bez","starší žáci","50",0,0,2,0,0,"Ožana Maxmilián",0]
["2022-06-04","Český pohár Nový Bydžov","CP","j","Valošek","Jakub","bez","starší žáci","55",0,0,1,0,0,"Valošek Jakub",0]
["2022-06-04","Český pohár Nový Bydžov","CP","j","Huvar","Matyáš","bez","starší žáci","55",1,0,1,0,1,"Huvar Matyáš",1]
["2022-06-04","Český pohár Nový Bydžov","CP","j","Mařec","Tomáš","bez","starší žáci","60",0,0,1,0,0,"Mařec Tomáš",0]
["2022-06-04","Český pohár Nový Bydžov","CP","j","Ciora","Jakub",5,"starší žáci","60",3,0,2,3,3,"Ciora Jakub",6]
["2022-06-04","Český pohár Nový Bydžov","CP","j","Stark","Vojtěch",7,"starší žáci","66",2,0,2,2,2,"Stark Vojtěch",4]
["2022-06-04","Český pohár Nový Bydžov","CP","j","Zwilling","Šimon",3,"starší žáci","73",2,0,1,5,2,"Zwilling Šimon",7]
["2022-06-04","Český pohár Nový Bydžov","CP","j","Klepač","Václav","bez","starší žáci","+73",1,0,2,0,1,"Klepač Václav",1]
["2022-06-04","Český pohár Nový Bydžov","CP","j","Škoda","Melichar",3,"starší žáci","+73",3,0,1,5,3,"Škoda Melichar",8]
["2022-06-04","Český pohár Nový Bydžov","CP","j","Homolová","Kristýna","bez","starší žákyně","57",2,0,2,0,2,"Homolová Kristýna",2]
["2022-06-28","Olympiáda dětí a mládeže - Olomouc","VC","d","Přichystal","Leon",2,"starší žáci","46",3,0,2,5,6,"Přichystal Leon",11]
["2022-06-28","Olympiáda dětí a mládeže - Olomouc","VC","d","Kocmanová","Lucie",2,"starší žákyně","48",2,0,3,5,4,"Kocmanová Lucie",9]
["2022-06-28","Olympiáda dětí a mládeže - Olomouc","VC","j","Přichystal","Leon",5,"starší žáci","46",3,0,2,0,3,"Přichystal Leon",3]
["2022-06-28","Olympiáda dětí a mládeže - Olomouc","VC","j","Kocmanová","Lucie",5,"starší žákyně","48",2,0,2,0,2,"Kocmanová Lucie",2]
["2022-07-14","Senior European Cup - Winterthur (SUI)","EJU","j","Silvestr","Matěj","bez","muži","100",0,0,2,0,0,"Silvestr Matěj",0]
["2022-07-23","Evropský pohár juniorů - Praha","EJU","j","Motyka","Dominik","bez","junioři","90",0,0,1,0,0,"Motyka Dominik",0]
["2022-07-27","Evropslý olympijský festival mládeže - B. Bystrica","EYOF","j","Křížek","Šimon",7,"junioři","73",3,0,2,25,3,"Křížek Šimon",28]
["2022-07-27","Evropské Univerzitní dny Lodž","EJU","j","Rýpar","Radek",9,"muži","60",1,0,2,10,1,"Rýpar Radek",11]
["2022-07-25","Evropské Univerzitní dny Lodž","EJU","j","Silvestr","Matěj",3,"muži","100",3,0,1,25,3,"Silvestr Matěj",28]
["2022-07-31","Extraliga mužů 3. kolo","EXL","d","Rýpar","Radek",null,"muži","66",2,0,0,0,4,"Rýpar Radek",4]
["2022-07-31","Extraliga mužů 3. kolo","EXL","d","Křížek","Šimon",null,"muži","73",1,0,1,0,2,"Křížek Šimon",2]
["2022-07-31","Extraliga mužů 3. kolo","EXL","d","Silvestr","Matěj",6,"muži","+90",0,0,1,5,0,"Silvestr Matěj",5]
["2022-07-31","Extraliga mužů 3. kolo","EXL","d","Svoboda","Jiří",6,"muži","81",1,0,1,5,2,"Svoboda Jiří",7]
["2022-07-31","Extraliga mužů 3. kolo","EXL","d","Motyka","Dominik",null,"muži","90",0,0,2,0,0,"Motyka Dominik",0]
["2022-04-23","Senior European Cup - Dubrovník ","EJU","j","Silvestr","Matěj",2,"muži","100",2,0,1,30,2,"Silvestr Matěj",32]
["2022-08-20","Nominace na ME juniorů - Praha",null,"j","Křížek","šimon",1,"junioři","73",2,0,0,0,2,"Křížek šimon",2]
["2022-08-27","Mezinárodní turnaj Banská Bystrica","MT","j","Rýpar","Radek",1,"muži","60",5,0,0,10,5,"Rýpar Radek",15]
["2022-08-27","Mezinárodní turnaj Banská Bystrica","MT","j","Michálková","Karolína",2,"ženy","+63",4,0,1,7,4,"Michálková Karolína",11]
["2022-08-27","Mezinárodní turnaj Banská Bystrica","MT","j","Silvestr","Matěj","bez","muži","100",0,0,2,0,0,"Silvestr Matěj",0]
["2022-08-27","Mezinárodní turnaj Banská Bystrica","MT","j","Kršňák","Filip","bez","muži","81",1,0,2,0,1,"Kršňák Filip",1]
["2022-08-27","Mezinárodní turnaj Banská Bystrica","MT","j","Babič","Jan","bez","muži","81",0,0,2,0,0,"Babič Jan",0]
["2022-08-27","Mezinárodní turnaj Banská Bystrica","MT","j","Chlebovský","Daniel","bez","muži","100",0,0,2,0,0,"Chlebovský Daniel",0]
["2022-09-03","Judo Open Krakow","MT","j","Caletka","Michal",9,"dorostenci","60",1,0,2,0,1,"Caletka Michal",1]
["2022-09-03","Judo Open Krakow","MT","j","Caletka","Petr",9,"dorostenci","66",2,0,2,0,2,"Caletka Petr",2]
["2022-09-03","Judo Open Krakow","MT","j","Meixner","Michal","bez","dorostenci","66",0,0,2,0,0,"Meixner Michal",0]
["2022-09-03","Judo Open Krakow","MT","j","Kolář","Vojtěch","bez","dorostenci","73",0,0,2,0,0,"Kolář Vojtěch",0]
["2022-09-03","Judo Open Krakow","MT","j","Lavrukhin","Dobrynya","bez","dorostenci","73",1,0,2,0,1,"Lavrukhin Dobrynya",{"$f":"SUM(M636,N636)","v":1}]
["2022-09-03","Judo Open Krakow","MT","j","Potůček","Tomáš",3,"dorostenci","81",3,0,1,5,3,"Potůček Tomáš",8]
["2022-09-03","Judo Open Krakow","MT","j","Čerchla","Michal",5,"dorostenci","90",1,0,2,3,1,"Čerchla Michal",4]
["2022-09-03","Judo Open Krakow","MT","j","Vavřínová","Pavla",2,"dorostenky","57",2,0,1,7,2,"Vavřínová Pavla",9]
["2022-09-03","Judo Open Krakow","MT","j","Bukovjanová","Charlotte","bez","dorostenky","57",0,0,2,0,0,"Bukovjanová Charlotte",0]
["2022-09-03","Judo Open Krakow","MT","j","Kristen","Nicolas",7,"dorostenci","66",2,0,2,2,2,"Kristen Nicolas",4]
["2022-09-04","EO Oberwart","EJU","j","Silvestr","Matěj","bez","muži","100",0,0,1,{"$f":"IF(ISNA(VLOOKUP(C642&G642,$V$3:$W$95,2,FALSE)),0,VLOOKUP(C642&G642,$V$3:$W$95,2,FALSE))","v":0},{"$f":"IF(D642=\"d\",SUM(J642*2,K642),J642)","v":0},{"$f":"E642&\" \"&F642","v":"Silvestr Matěj"},0]
["2022-09-10","Český pohár Brno","CP","j","Rýpar","Radek",1,"muži","60",3,0,0,10,3,"Rýpar Radek",13]
["2022-09-10","Český pohár Brno","CP","j","Michálková","Karolína",2,"ženy","78",3,0,2,7,3,"Michálková Karolína",10]
["2022-09-10","Český pohár Brno","CP","j","Lindovský","Jiří",5,"muži","73",2,0,2,3,2,"Lindovský Jiří",5]
["2022-09-10","Český pohár Brno","CP","j","Chlebovský","Daniel",4,"muži","100",2,0,3,3,2,"Chlebovský Daniel",5]
["2022-09-10","Český pohár Brno","CP","j","Babič","Jan",7,"muži","81",3,0,2,2,3,"Babič Jan",5]
["2022-09-10","Český pohár Brno","CP","j","Motyka","Dominik",7,"muži","90",1,0,2,2,1,"Motyka Dominik",3]
["2022-09-10","Český pohár Brno","CP","j","Svoboda","Jiří","bez","muži","81",0,0,1,0,0,"Svoboda Jiří",0]
["2022-09-10","Český pohár Brno","CP","j","Matýsek","Jan","bez","muži","73",0,0,2,0,0,"Matýsek Jan",0]
["2022-09-16","Mistrovství Evropy juniorů Praha","ME","j","Křížek","Šimon","bez","junioři","73",0,0,1,0,0,"Křížek Šimon",0]
["2022-09-10","Mistrovství světa veteránů Krakov","MS","j","Martínek","Roman",3,"veteráni","100",3,0,1,70,3,"Martínek Roman",73]
["2022-09-10","Mistrovství světa veteránů Krakov","MS","j","Schoffer","Radim",5,"veteráni","100",2,0,2,60,2,"Schoffer Radim",62]
["2022-09-10","Mistrovství světa veteránů Krakov","MS","j","Moravec","Vlastimil","bez","veteráni","73",0,0,2,0,0,"Moravec Vlastimil",0]
["2022-09-10","Mistrovství světa veteránů Krakov","MS","j","Morav","Dominik","bez","veteráni","81",0,0,2,0,0,"Morav Dominik",0]
["2022-09-10","Mistrovství světa veteránů Krakov","MS","j","Chlebový","Arnold","bez","veteráni","90",1,0,1,0,1,"Chlebový Arnold",1]
["2022-09-24","MČR veteránů","MCR","j","Martínek","Roman",1,"veteráni","100",4,0,0,20,4,"Martínek Roman",24]
["2022-09-24","MČR veteránů","MCR","j","Chlebový","Arnold",2,"veteráni","81",1,0,1,15,1,"Chlebový Arnold",16]
["2022-09-24","MČR veteránů","MCR","j","Moravec","Vlastimil",2,"veteráni","73",0,0,2,15,0,"Moravec Vlastimil",15]
["2022-10-01","Grand Prix Považská Bystrica","MT","j","Podivínský","Patrik",1,"mláďata","30",4,0,0,10,4,"Podivínský Patrik",14]
["2022-10-01","Grand Prix Považská Bystrica","MT","j","Podivínský","Marek",1,"mláďata","34",5,0,0,10,5,"Podivínský Marek",15]
["2022-10-01","Grand Prix Považská Bystrica","MT","j","Kaszper","Matyáš",2,"mláďata","+50",2,0,1,7,2,"Kaszper Matyáš",9]
["2022-10-01","Grand Prix Považská Bystrica","MT","j","Kuchejdová","Zuzana",3,"mláďata","30",1,0,2,5,1,"Kuchejdová Zuzana",6]
["2022-10-01","Grand Prix Považská Bystrica","MT","j","Szwanová","Liliana",3,"mláďata","36",2,0,1,5,2,"Szwanová Liliana",7]
["2022-10-01","Grand Prix Považská Bystrica","MT","j","Vlček","Viktor",3,"mláďata","34",4,0,1,5,4,"Vlček Viktor",9]
["2022-10-01","Grand Prix Považská Bystrica","MT","j","Gajda","Maxim",3,"mláďata","30",2,0,1,5,2,"Gajda Maxim",7]
["2022-10-01","Grand Prix Považská Bystrica","MT","j","Marušák","Lukáš",5,"mláďata","27",1,0,2,3,1,"Marušák Lukáš",4]
["2022-10-01","Grand Prix Považská Bystrica","MT","j","Salomon","Ondřej",5,"mláďata","38",3,0,2,3,3,"Salomon Ondřej",6]
["2022-10-01","Grand Prix Považská Bystrica","MT","j","Hon","Lukáš",5,"mláďata","46",0,0,2,3,0,"Hon Lukáš",3]
["2022-10-01","Grand Prix Považská Bystrica","MT","j","Vašťák","Ondřej",7,"mláďata","38",3,0,2,2,3,"Vašťák Ondřej",5]
["2022-10-01","Grand Prix Považská Bystrica","MT","j","Prudil","Adam","bez","mláďata","34",1,0,2,0,1,"Prudil Adam",1]
["2022-10-01","Grand Prix Považská Bystrica","MT","j","Mazůch","Richard","bez","mláďata","34",0,0,1,0,0,"Mazůch Richard",0]
["2022-10-01","Grand Prix Považská Bystrica","MT","j","Řehůřek","David","bez","mláďata","38",2,0,0,0,2,"Řehůřek David",2]
["2022-09-24","Velká cena Ostravy","VC","j","Podivínský","Patrik",1,"mláďata","28",2,0,0,6,2,"Podivínský Patrik",8]
["2022-09-24","Velká cena Ostravy","VC","j","Jaššo","Štěpán",3,"mláďata","32",0,0,3,3,0,"Jaššo Štěpán",3]
["2022-09-24","Velká cena Ostravy","VC","j","Čechák","Martin",2,"mláďata","32",1,0,1,5,1,"Čechák Martin",6]
["2022-09-24","Velká cena Ostravy","VC","j","Kuchejdová","Zuzana",1,"mláďata","26",2,0,0,6,2,"Kuchejdová Zuzana",8]
["2022-09-24","Velká cena Ostravy","VC","j","Bujoková","Kristin",3,"mláďata","34",1,0,2,3,1,"Bujoková Kristin",4]
["2022-09-24","Velká cena Ostravy","VC","j","Cahlíková","Barbora",4,"mláďata","42",0,0,3,0,0,"Cahlíková Barbora",0]
["2022-09-24","Velká cena Ostravy","VC","j","Lehnert","Mikuláš",4,"mláďata","26",0,0,3,0,0,"Lehnert Mikuláš",0]
["2022-09-24","Velká cena Ostravy","VC","j","Marušák","Lukáš",3,"mláďata","26",1,0,2,3,1,"Marušák Lukáš",4]
["2022-09-24","Velká cena Ostravy","VC","j","Ščevík","Ondřej",5,"mláďata","28",1,0,3,0,1,"Ščevík Ondřej",1]
["2022-09-24","Velká cena Ostravy","VC","j","Mazůch","Richard",7,"mláďata","28",1,0,2,0,1,"Mazůch Richard",1]
["2022-09-24","Velká cena Ostravy","VC","j","Sklenář","Jáchym",4,"mláďata","28",1,0,3,0,1,"Sklenář Jáchym",1]
["2022-09-24","Velká cena Ostravy","VC","j","Gajda","Maxim",2,"mláďata","30",2,0,1,5,2,"Gajda Maxim",7]
["2022-09-24","Velká cena Ostravy","VC","j","Prudil","Adam",2,"mláďata","32",3,0,1,5,3,"Prudil Adam",8]
["2022-09-24","Velká cena Ostravy","VC","j","Swiech","Viktor",7,"mláďata","32",1,0,2,0,1,"Swiech Viktor",1]
["2022-09-24","Velká cena Ostravy","VC","j","Vlček","Viktor",3,"mláďata","34",2,0,2,3,2,"Vlček Viktor",5]
["2022-09-24","Velká cena Ostravy","VC","j","Podivínský","Marek",1,"mláďata","34",4,0,0,6,4,"Podivínský Marek",10]
["2022-09-24","Velká cena Ostravy","VC","j","Řehůřek","David","bez","mláďata","36",1,0,2,0,1,"Řehůřek David",1]
["2022-09-24","Velká cena Ostravy","VC","j","Vašťák","Ondřej",3,"mláďata","36",2,0,2,3,2,"Vašťák Ondřej",5]
["2022-09-24","Velká cena Ostravy","VC","j","Salomon","Ondřej",3,"mláďata","36",2,0,2,3,2,"Salomon Ondřej",5]
["2022-09-24","Velká cena Ostravy","VC","j","Richter","Lukáš","bez","mláďata","36",1,0,2,0,1,"Richter Lukáš",1]
["2022-09-24","Velká cena Ostravy","VC","j","Hon","Lukáš",1,"mláďata","46",2,0,0,6,2,"Hon Lukáš",8]
["2022-09-24","Velká cena Ostravy","VC","j","Gunár","Dominik",2,"mláďata","46",0,0,2,5,0,"Gunár Dominik",5]
["2022-09-24","Velká cena Ostravy","VC","j","Hladký","Dalimil",2,"mláďata","50",0,0,2,5,0,"Hladký Dalimil",5]
["2022-09-24","Velká cena Ostravy","VC","j","Kaszper","Matyáš",1,"mláďata","55",2,0,0,6,2,"Kaszper Matyáš",8]
["2022-09-24","Velká cena Ostravy","VC","j","Šelongová","Viktorie",1,"mladší žákyně","33",2,0,0,6,2,"Šelongová Viktorie",8]
["2022-09-24","Velká cena Ostravy","VC","j","Kuchejdová","Veronika",2,"mladší žákyně","33",1,0,1,5,1,"Kuchejdová Veronika",6]
["2022-09-24","Velká cena Ostravy","VC","j","Zoulová","Tereza",2,"mladší žákyně","36",2,0,1,5,2,"Zoulová Tereza",{"$f":"SUM(M700,N700)","v":7}]
["2022-09-24","Velká cena Ostravy","VC","j","Zoulová","Karolína",1,"mladší žákyně","36",3,0,0,6,3,"Zoulová Karolína",9]
["2022-09-24","Velká cena Ostravy","VC","j","Cséri","Klára",4,"mladší žákyně","40",0,0,3,0,0,"Cséri Klára",0]
["2022-09-24","Velká cena Ostravy","VC","j","Nováková","Victoria",1,"mladší žákyně","48",2,0,0,6,2,"Nováková Victoria",8]
["2022-09-24","Velká cena Ostravy","VC","j","Vlček","Martin",2,"mladší žáci","42",3,0,1,5,3,"Vlček Martin",8]
["2022-09-24","Velká cena Ostravy","VC","j","Bauko","Viktor","bez","mladší žáci","42",0,0,1,0,0,"Bauko Viktor",0]
["2022-09-24","Velká cena Ostravy","VC","j","Stránský","David","bez","mladší žáci","42",1,0,2,{"$f":"IF(ISNA(VLOOKUP(C706&G706,$V$3:$W$95,2,FALSE)),0,VLOOKUP(C706&G706,$V$3:$W$95,2,FALSE))","v":0},{"$f":"IF(D706=\"d\",SUM(J706*2,K706),J706)","v":1},{"$f":"E706&\" \"&F706","v":"Stránský David"},1]
["2022-09-24","Velká cena Ostravy","VC","j","Svoboda","Jindřich","bez","mladší žáci","42",0,0,1,0,0,"Svoboda Jindřich",0]
["2022-09-24","Velká cena Ostravy","VC","j","Soukup","Hugo",3,"mladší žáci","42",4,0,1,3,4,"Soukup Hugo",7]
["2022-09-24","Velká cena Ostravy","VC","j","Bystrianský","Jan","bez","mladší žáci","42",1,0,2,0,1,"Bystrianský Jan",1]
["2022-09-24","Velká cena Ostravy","VC","j","Kotouček","Marek",5,"mladší žáci","46",1,0,2,0,1,"Kotouček Marek",1]
["2022-09-24","Velká cena Ostravy","VC","j","Lechovič","Tobiáš",3,"mladší žáci","46",2,0,1,3,2,"Lechovič Tobiáš",5]
["2022-09-24","Velká cena Ostravy","VC","j","Bravanský","Marek","bez","mladší žáci","50",0,0,2,0,0,"Bravanský Marek",0]
["2022-09-24","Velká cena Ostravy","VC","j","Musial","Šimon",3,"mladší žáci","50",2,0,1,3,2,"Musial Šimon",5]
["2022-09-24","Velká cena Ostravy","VC","j","Nytra","Sebastián",2,"mladší žáci","50",2,0,1,5,2,"Nytra Sebastián",7]
["2022-09-24","Velká cena Ostravy","VC","j","Maslík","Teodor","bez","mladší žáci","55",0,0,2,0,0,"Maslík Teodor",0]
["2022-09-24","Velká cena Ostravy","VC","j","Kalaš","Daniel","bez","mladší žáci","60",0,0,2,0,0,"Kalaš Daniel",0]
["2022-09-24","Velká cena Ostravy","VC","j","Bokiy","Konstantin",2,"mladší žáci","60",3,0,1,5,3,"Bokiy Konstantin",8]
["2022-09-24","Velká cena Ostravy","VC","j","Slováková","Tereza",3,"starší žákyně","57",0,0,2,3,0,"Slováková Tereza",3]
["2022-09-24","Velká cena Ostravy","VC","j","Berka","Daniel",2,"starší žáci","42",0,0,2,5,0,"Berka Daniel",5]
["2022-09-24","Velká cena Ostravy","VC","j","Londýn","Šimon",2,"starší žáci","50",0,0,2,5,0,"Londýn Šimon",5]
["2022-10-09","Krajský přebor Raškovice","PK","j","Šelongová","Viktorie",1,"mladší žákyně","33",2,0,0,6,2,"Šelongová Viktorie",8]
["2022-10-09","Krajský přebor Raškovice","PK","j","Kuchejdová","Veronika",2,"mladší žákyně","33",0,0,2,5,0,"Kuchejdová Veronika",5]
["2022-10-09","Krajský přebor Raškovice","PK","j","Zoulová","Karolína",2,"mladší žákyně","36",1,0,2,5,1,"Zoulová Karolína",6]
["2022-10-09","Krajský přebor Raškovice","PK","j","Zoulová","Tereza",1,"mladší žákyně","40",3,0,0,6,3,"Zoulová Tereza",9]
["2022-10-09","Krajský přebor Raškovice","PK","j","Cséri","Klára",4,"mladší žákyně","40",0,0,3,0,0,"Cséri Klára",0]
["2022-10-09","Krajský přebor Raškovice","PK","j","Nováková","Victoria",1,"mladší žákyně","48",2,0,0,6,2,"Nováková Victoria",8]
["2022-10-09","Krajský přebor Raškovice","PK","j","Stránský","David",2,"mladší žáci","42",3,0,1,5,3,"Stránský David",8]
["2022-10-09","Krajský přebor Raškovice","PK","j","Soukup","Hugo","bez","mladší žáci","42",0,0,1,0,0,"Soukup Hugo",0]
["2022-10-09","Krajský přebor Raškovice","PK","j","Vlček","Martin",2,"mladší žáci","42",3,0,1,5,3,"Vlček Martin",8]
["2022-10-09","Krajský přebor Raškovice","PK","j","Bauko","Viktor","bez","mladší žáci","42",1,0,2,0,1,"Bauko Viktor",1]
["2022-10-09","Krajský přebor Raškovice","PK","j","Bystrianský","Jan",3,"mladší žáci","42",3,0,1,3,3,"Bystrianský Jan",6]
["2022-10-09","Krajský přebor Raškovice","PK","j","Lechovič","Tobiáš",2,"mladší žáci","46",2,0,1,5,2,"Lechovič Tobiáš",7]
["2022-10-09","Krajský přebor Raškovice","PK","j","Nytra","Sebastián",2,"mladší žáci","50",4,0,1,5,4,"Nytra Sebastián",9]
["2022-10-09","Krajský přebor Raškovice","PK","j","Musial","Šimon",1,"mladší žáci","50",5,0,0,6,5,"Musial Šimon",11]
["2022-10-09","Krajský přebor Raškovice","PK","j","Bravanský","Marek",2,"mladší žáci","50",3,0,2,5,3,"Bravanský Marek",8]
["2022-10-09","Krajský přebor Raškovice","PK","j","Jahoda","Pavel",3,"mladší žáci","55",2,0,1,3,2,"Jahoda Pavel",5]
["2022-10-09","Krajský přebor Raškovice","PK","j","Kalaš","Daniel","bez","mladší žáci","60",0,0,2,0,0,"Kalaš Daniel",0]
["2022-10-09","Krajský přebor Raškovice","PK","j","Bokiy","Konstantin",3,"mladší žáci","60",2,0,1,3,2,"Bokiy Konstantin",5]
["2022-09-10","Český pohár Brno","CP","j","Caletka","Michal","bez","dorostenci","60",0,0,1,0,0,"Caletka Michal",0]
["2022-09-10","Český pohár Brno","CP","j","Kristen","Nicolas","bez","dorostenci","66",2,0,1,0,2,"Kristen Nicolas",2]
["2022-09-10","Český pohár Brno","CP","j","Caletka","Petr","bez","dorostenci","66",0,0,1,0,0,"Caletka Petr",0]
["2022-09-10","Český pohár Brno","CP","j","Pačuta","Ladislav","bez","dorostenci","66",1,0,1,0,1,"Pačuta Ladislav",1]
["2022-09-10","Český pohár Brno","CP","j","Meixner","Michal","bez","dorostenci","66",0,0,1,0,0,"Meixner Michal",0]
["2022-09-10","Český pohár Brno","CP","j","Čebík","Filip","bez","dorostenci","73",2,0,1,0,2,"Čebík Filip",2]
["2022-09-10","Český pohár Brno","CP","j","Vaněk","Jakub","bez","dorostenci","73",0,0,1,0,0,"Vaněk Jakub",0]
["2022-09-10","Český pohár Brno","CP","j","Huvar","Jakub","bez","dorostenci","73",0,0,1,0,0,"Huvar Jakub",0]
["2022-09-10","Český pohár Brno","CP","j","Kolář","Vojtěch","bez","dorostenci","73",0,0,1,0,0,"Kolář Vojtěch",0]
["2022-09-10","Český pohár Brno","CP","j","Tomek","David","bez","dorostenci","73",1,0,1,0,1,"Tomek David",1]
["2022-09-10","Český pohár Brno","CP","j","Potůček","Tomáš",3,"dorostenci","81",5,0,1,5,5,"Potůček Tomáš",10]
["2022-09-10","Český pohár Brno","CP","j","Čerchla","Michal",1,"dorostenci","90",4,0,0,10,4,"Čerchla Michal",14]
["2022-09-10","Český pohár Brno","CP","j","Mikendová","Tereza",5,"dorostenky","48",1,0,2,3,1,"Mikendová Tereza",4]
["2022-09-10","Český pohár Brno","CP","j","Rapčanová","Silvie",5,"dorostenky","52",3,0,2,3,3,"Rapčanová Silvie",6]
["2022-09-10","Český pohár Brno","CP","j","Vavřínová","Pavla",7,"dorostenky","57",2,0,2,2,2,"Vavřínová Pavla",4]
["2022-09-10","Český pohár Brno","CP","j","Bukovjanová","Charlotte","bez","dorostenky","57",0,0,1,0,0,"Bukovjanová Charlotte",0]
["2022-09-10","Český pohár Brno","CP","j","Kuželová","Dominika","bez","dorostenky","63",0,0,1,0,0,"Kuželová Dominika",0]
["2022-09-10","Český pohár Brno","CP","j","Rapčanová","Alice","bez","dorostenky","63",0,0,2,0,0,"Rapčanová Alice",0]
["2022-09-24","Kaunas Open ","MT","j","Potůček","Tomáš",2,"dorostenci","81",3,0,1,7,3,"Potůček Tomáš",10]
["2022-09-24","Kaunas Open ","MT","j","Čerchla","Michal",3,"dorostenci","90",2,0,1,5,2,"Čerchla Michal",7]
["2022-09-24","Kaunas Open ","MT","j","Kristen","Nicolas",7,"dorostenci","66",2,0,2,2,2,"Kristen Nicolas",4]
["2022-09-24","Kaunas Open ","MT","j","Tomek","David","bez","dorostenci","73",0,0,1,0,0,"Tomek David",0]
["2022-10-02","MČR dřustev dorostenek Jablonec nad Nisou ","MCR","d","Kuželová","Dominika",3,"dorostenky","63",3,0,1,10,6,"Kuželová Dominika",16]
["2022-10-02","MČR dřustev dorostenek Jablonec nad Nisou ","MCR","d","Kocmanová","Lucie",3,"dorostenky","48",2,0,2,10,4,"Kocmanová Lucie",14]
["2022-10-02","MČR dřustev dorostenek Jablonec nad Nisou ","MCR","d","Kaszperová","Kristýna",3,"dorostenky","+70",2,0,2,10,4,"Kaszperová Kristýna",14]
["2022-10-02","MČR dřustev dorostenek Jablonec nad Nisou ","MCR","d","Rapčanová","Silvie",3,"dorostenky","63",0,0,0,10,0,"Rapčanová Silvie",{"$f":"SUM(M764,N764)","v":10}]
["2022-10-02","MČR dřustev dorostenek Jablonec nad Nisou ","MCR","d","Vavřínová","Pavla",3,"dorostenky","63",0,0,0,10,0,"Vavřínová Pavla",10]
["2022-10-02","MČR dřustev dorostenek Jablonec nad Nisou ","MCR","d","Bukovjanová","Charlotte",3,"dorostenky","57",0,0,0,10,0,"Bukovjanová Charlotte",10]
["2022-10-02","MČR dřustev dorostenek Jablonec nad Nisou ","MCR","d","Rapčanová","Alice",3,"dorostenky","70",0,0,0,10,0,"Rapčanová Alice",10]
["2022-10-08","Dorostenecká liga - 3. kolo Postupová sk. \"B\"","DL","d","Potůček","Tomáš",null,"dorostenci","81",3,0,0,0,6,"Potůček Tomáš",6]
["2022-10-08","Dorostenecká liga - 3. kolo Postupová sk. \"B\"","DL","d","Vontor","Tomáš",null,"dorostenci","60",0,0,0,0,0,"Vontor Tomáš",0]
["2022-10-08","Dorostenecká liga - 3. kolo Postupová sk. \"B\"","DL","d","Čerchla","Michal",null,"dorostenci","90",3,0,0,{"$f":"IF(ISNA(VLOOKUP(C770&G770,$V$3:$W$95,2,FALSE)),0,VLOOKUP(C770&G770,$V$3:$W$95,2,FALSE))","v":0},{"$f":"IF(D770=\"d\",SUM(J770*2,K770),J770)","v":6},{"$f":"E770&\" \"&F770","v":"Čerchla Michal"},6]
["2022-10-08","Dorostenecká liga - 3. kolo Postupová sk. \"B\"","DL","d","Fulneček","Šimon",null,"dorostenci","90",0,0,0,0,0,"Fulneček Šimon",0]
["2022-10-08","Dorostenecká liga - 3. kolo Postupová sk. \"B\"","DL","d","Tomek","David",2,"dorostenci","73",0,0,0,15,0,"Tomek David",15]
["2022-10-08","Dorostenecká liga - 3. kolo Postupová sk. \"B\"","DL","d","Čebík","Filip",null,"dorostenci","73",1,0,0,0,2,"Čebík Filip",2]
["2022-10-08","Dorostenecká liga - 3. kolo Postupová sk. \"B\"","DL","d","Meixner","Michal",null,"dorostenci","66",1,0,0,0,2,"Meixner Michal",2]
["2022-10-08","Dorostenecká liga - 3. kolo Postupová sk. \"B\"","DL","d","Huvar","Jakub",2,"dorostenci","66",1,0,0,15,2,"Huvar Jakub",17]
["2022-10-08","Dorostenecká liga - 3. kolo Postupová sk. \"B\"","DL","d","Pačuta","Ladislav",2,"dorostenci","60",0,0,0,15,0,"Pačuta Ladislav",15]
["2022-10-08","Dorostenecká liga - 3. kolo Postupová sk. \"B\"","DL","d","Caletka","Petr",null,"dorostenci","66",0,0,2,0,0,"Caletka Petr",0]
["2022-10-08","Dorostenecká liga - 3. kolo Postupová sk. \"B\"","DL","d","Lavrukhin","Dobrynya",2,"dorostenci","66",0,0,0,15,0,"Lavrukhin Dobrynya",15]
["2022-10-08","Dorostenecká liga - 3. kolo Postupová sk. \"B\"","DL","d","Kristen","Nicolas",2,"dorostenci","66",0,0,0,15,0,"Kristen Nicolas",15]
["2022-10-08","Dorostenecká liga - 3. kolo Postupová sk. \"B\"","DL","d","Kutáč","Jan",2,"dorostenci","66",0,0,0,15,0,"Kutáč Jan",15]
["2022-10-08","Dorostenecká liga - 3. kolo Postupová sk. \"B\"","DL","d","Vaněk","Jakub",2,"dorostenci","73",0,0,0,15,0,"Vaněk Jakub",15]
["2022-10-08","Dorostenecká liga - 3. kolo Postupová sk. \"B\"","DL","d","Baudiš","Michal",2,"dorostenci","73",0,0,0,15,0,"Baudiš Michal",15]
["2022-10-08","Dorostenecká liga - 3. kolo Postupová sk. \"B\"","DL","d","Pospíšil","Jan",2,"dorostenci","73",0,0,0,15,0,"Pospíšil Jan",15]
["2022-10-08","Dorostenecká liga - 3. kolo Postupová sk. \"B\"","DL","d","Bečka","Václav",2,"dorostenci","50",1,0,2,15,2,"Bečka Václav",17]
["2022-10-08","Dorostenecká liga - 3. kolo Postupová sk. \"B\"","DL","d","Dryšl","Adam",2,"dorostenci","55",0,0,0,15,0,"Dryšl Adam",15]
["2022-10-08","Dorostenecká liga - 3. kolo Postupová sk. \"B\"","DL","d","Valošek","Jakub",2,"dorostenci","55",0,0,0,15,0,"Valošek Jakub",15]
["2022-10-08","Dorostenecká liga - 3. kolo Postupová sk. \"B\"","DL","d","Caletka","Michal",2,"dorostenci","60",1,0,2,15,2,"Caletka Michal",17]
["2022-06-16","Akademické mistrovství ČR","MCR","j","Rýpar","Radek",1,"muži","66",3,0,0,20,3,"Rýpar Radek",23]
["2022-06-16","Akademické mistrovství ČR","MCR","j","Michálková","Karolína",2,"ženy","78",2,0,1,15,2,"Michálková Karolína",17]
["2022-10-01","MČR mužů a žen - Jablonec nad Nisou ","MCR","j","Silvestr","Matěj",1,"muži","100",2,0,0,20,2,"Silvestr Matěj",22]
["2022-10-01","MČR mužů a žen - Jablonec nad Nisou ","MCR","j","Michálková","Karolína",2,"ženy","78",4,0,1,15,4,"Michálková Karolína",19]
["2022-10-01","MČR mužů a žen - Jablonec nad Nisou ","MCR","j","Rýpar","Radek",2,"muži","60",2,0,1,15,2,"Rýpar Radek",17]
["2022-10-01","MČR mužů a žen - Jablonec nad Nisou ","MCR","j","Kokešová","Alexandra",4,"ženy","78",2,0,3,7,2,"Kokešová Alexandra",9]
["2022-10-01","MČR mužů a žen - Jablonec nad Nisou ","MCR","j","Křížek","Šimon",5,"muži","73",2,0,2,7,2,"Křížek Šimon",9]
["2022-10-01","MČR mužů a žen - Jablonec nad Nisou ","MCR","j","Chlebovský","Daniel",7,"muži","100",0,0,2,5,0,"Chlebovský Daniel",5]
["2022-10-01","MČR mužů a žen - Jablonec nad Nisou ","MCR","j","Lindovský","Jiří","bez","muži","73",1,0,1,0,1,"Lindovský Jiří",1]
["2022-10-01","MČR mužů a žen - Jablonec nad Nisou ","MCR","j","Kršňák","Filip","bez","muži","73",1,0,1,0,1,"Kršňák Filip",1]
["2022-10-01","MČR mužů a žen - Jablonec nad Nisou ","MCR","j","Meixner","Tomáš","bez","muži","66",1,0,2,0,1,"Meixner Tomáš",1]
["2022-10-01","MČR mužů a žen - Jablonec nad Nisou ","MCR","j","Babič","Jan","bez","muži","81",0,0,2,0,0,"Babič Jan",0]
["2022-10-01","MČR mužů a žen - Jablonec nad Nisou ","MCR","j","Svoboda","Jiří","bez","muži","90",0,0,1,0,0,"Svoboda Jiří",0]
["2022-09-03","Judo Open Krakow","MT","j","Přichystal","Leon",7,"starší žáci","46",2,0,2,2,2,"Přichystal Leon",4]
["2022-09-03","Judo Open Krakow","MT","j","Kuluris","Manolis",5,"starší žáci","50",1,0,2,3,1,"Kuluris Manolis",4]
["2022-09-03","Judo Open Krakow","MT","j","Huvar","Matyáš",5,"starší žáci","55",2,0,2,3,2,"Huvar Matyáš",5]
["2022-09-03","Judo Open Krakow","MT","j","Ciora","Jakub",3,"starší žáci","60",3,0,1,5,3,"Ciora Jakub",8]
["2022-09-03","Judo Open Krakow","MT","j","Stark","Vojtěch",7,"starší žáci","66",1,0,2,2,1,"Stark Vojtěch",3]
["2022-09-03","Judo Open Krakow","MT","j","Bečka","Václav","bez","starší žáci","50",0,0,1,0,0,"Bečka Václav",0]
["2022-09-03","Judo Open Krakow","MT","j","Homolová","Kristýna","bez","starší žákyně","57",0,0,1,0,0,"Homolová Kristýna",0]
["2022-09-03","Judo Open Krakow","MT","j","Mařec","Tomáš","bez","starší žáci","60",0,0,2,0,0,"Mařec Tomáš",0]
["2022-09-03","Judo Open Krakow","MT","j","Zwilling","Šimon",7,"starší žáci","73",2,0,2,2,2,"Zwilling Šimon",4]
["2022-09-03","Judo Open Krakow","MT","j","Vlk","František","bez","starší žáci","81",0,0,1,0,0,"Vlk František",0]
["2022-09-03","Judo Open Krakow","MT","j","Kaszperová","Kristýna",1,"starší žákyně","+63",4,0,0,10,4,"Kaszperová Kristýna",14]
["2022-09-11","Český pohár Brno","CP","j","To","Vojtěch",5,"starší žáci","38",3,0,2,3,3,"To Vojtěch",6]
["2022-09-11","Český pohár Brno","CP","j","Přichystal","Leon",9,"starší žáci","46",3,0,2,0,3,"Přichystal Leon",3]
["2022-09-11","Český pohár Brno","CP","j","Kuluris","Manolis","bez","starší žáci","50",0,0,1,0,0,"Kuluris Manolis",0]
["2022-09-11","Český pohár Brno","CP","j","Bečka","Václav",2,"starší žáci","50",4,0,1,7,4,"Bečka Václav",11]
["2022-09-11","Český pohár Brno","CP","j","Ožana","Maxmilián","bez","starší žáci","50",1,0,1,0,1,"Ožana Maxmilián",1]
["2022-09-11","Český pohár Brno","CP","j","Huvar","Matyáš","bez","starší žáci","55",0,0,1,0,0,"Huvar Matyáš",0]
["2022-09-11","Český pohár Brno","CP","j","Valošek","Jakub","bez","starší žáci","55",0,0,1,0,0,"Valošek Jakub",0]
["2022-09-11","Český pohár Brno","CP","j","Ciora","Jakub",9,"starší žáci","60",3,0,2,0,3,"Ciora Jakub",3]
["2022-09-11","Český pohár Brno","CP","j","Mařec","Tomáš","bez","starší žáci","60",0,0,2,0,0,"Mařec Tomáš",0]
["2022-09-11","Český pohár Brno","CP","j","Stark","Vojtěch",9,"starší žáci","66",3,0,2,0,3,"Stark Vojtěch",3]
["2022-09-11","Český pohár Brno","CP","j","Zwilling","Šimon",9,"starší žáci","73",1,0,2,0,1,"Zwilling Šimon",1]
["2022-09-11","Český pohár Brno","CP","j","Vlk","František","bez","starší žáci","+73",0,0,1,0,0,"Vlk František",0]
["2022-09-11","Český pohár Brno","CP","j","Klepač","Václav",9,"starší žáci","+73",1,0,2,0,1,"Klepač Václav",1]
["2022-09-11","Český pohár Brno","CP","j","Kocmanová","Lucie",5,"starší žákyně","48",3,0,2,3,3,"Kocmanová Lucie",6]
["2022-09-11","Český pohár Brno","CP","j","Homolová","Kristýna",9,"starší žákyně","57",2,0,2,0,2,"Homolová Kristýna",2]
["2022-09-11","Český pohár Brno","CP","j","Karasová","Eliška",5,"starší žákyně","57",3,0,2,3,3,"Karasová Eliška",6]
["2022-09-11","Český pohár Brno","CP","j","Kaszperová","Kristýna",1,"starší žákyně","+63",4,0,0,10,4,"Kaszperová Kristýna",{"$f":"SUM(M828,N828)","v":14}]
["2022-09-25","Mezinárodní turnaj družstev Rouen","MT","d","Kocmanová","Lucie",5,"dorostenky","48",2,0,1,3,4,"Kocmanová Lucie",7]
["2022-09-25","Mezinárodní turnaj družstev Rouen","MT","d","Rapčanová","Silvie",5,"dorostenky","52",1,0,2,3,2,"Rapčanová Silvie",5]
["2022-09-25","Mezinárodní turnaj družstev Rouen","MT","d","Vavřínová","Pavla",5,"dorostenky","63",1,0,2,3,2,"Vavřínová Pavla",5]
["2022-09-25","Mezinárodní turnaj družstev Rouen","MT","d","Kaszperová","Kristýna",5,"dorostenky","+63",2,0,1,3,4,"Kaszperová Kristýna",7]
["2022-10-09","Krajský přebor Raškovice","PK","j","To","Vojtěch",2,"starší žáci","42",0,0,2,5,0,"To Vojtěch",5]
["2022-10-09","Krajský přebor Raškovice","PK","j","Přichystal","Leon",1,"starší žáci","46",2,0,1,{"$f":"IF(ISNA(VLOOKUP(C834&G834,$V$3:$W$95,2,FALSE)),0,VLOOKUP(C834&G834,$V$3:$W$95,2,FALSE))","v":6},{"$f":"IF(D834=\"d\",SUM(J834*2,K834),J834)","v":2},{"$f":"E834&\" \"&F834","v":"Přichystal Leon"},8]
["2022-10-09","Krajský přebor Raškovice","PK","j","Bečka","Václav",1,"starší žáci","50",3,0,0,6,3,"Bečka Václav",9]
["2022-10-09","Krajský přebor Raškovice","PK","j","Ciora","Jakub",1,"starší žáci","55",4,0,0,6,4,"Ciora Jakub",10]
["2022-10-09","Krajský přebor Raškovice","PK","j","Valošek","Jakub",4,"starší žáci","55",2,0,2,0,2,"Valošek Jakub",2]
["2022-10-09","Krajský přebor Raškovice","PK","j","Mařec","Tomáš",3,"starší žáci","60",0,0,2,3,0,"Mařec Tomáš",3]
["2022-10-09","Krajský přebor Raškovice","PK","j","Stark","Vojtěch",3,"starší žáci","66",2,0,1,3,2,"Stark Vojtěch",5]
["2022-10-09","Krajský přebor Raškovice","PK","j","Zwilling","Šimon",1,"starší žáci","73",2,0,0,6,2,"Zwilling Šimon",8]
["2022-10-09","Krajský přebor Raškovice","PK","j","Škoda","Melichar",1,"starší žáci","+73",4,0,0,6,4,"Škoda Melichar",10]
["2022-10-09","Krajský přebor Raškovice","PK","j","Vlk","František",2,"starší žáci","+73",3,0,1,5,3,"Vlk František",8]
["2022-10-09","Krajský přebor Raškovice","PK","j","Klepač","Václav",3,"starší žáci","+73",2,0,2,3,2,"Klepač Václav",5]
["2022-10-09","Krajský přebor Raškovice","PK","j","Homolová","Kristýna",3,"starší žákyně","57",1,0,2,3,1,"Homolová Kristýna",4]
["2022-10-09","Krajský přebor Raškovice","PK","j","Karasová","Eliška",2,"starší žákyně","57",2,0,1,5,2,"Karasová Eliška",7]
["2022-10-15","Turnaj benjamínků Štramberk","MC","j","Podivínský","Patrik",1,"mláďata","28",4,0,0,4,4,"Podivínský Patrik",8]
["2022-10-15","Turnaj benjamínků Štramberk","MC","j","Podivínský","Marek",1,"mláďata","34",4,0,0,4,4,"Podivínský Marek",8]
["2022-10-15","Turnaj benjamínků Štramberk","MC","j","Marušák","Lukáš",1,"mláďata","25",2,0,0,4,2,"Marušák Lukáš",6]
["2022-10-15","Turnaj benjamínků Štramberk","MC","j","Marušáková","Kateřina",1,"mláďata","24",3,0,0,4,3,"Marušáková Kateřina",7]
["2022-10-15","Turnaj benjamínků Štramberk","MC","j","Prudil","Adam",1,"mláďata","31",3,0,0,4,3,"Prudil Adam",7]
["2022-10-15","Turnaj benjamínků Štramberk","MC","j","Ščevík","Ondřej",1,"mláďata","26",2,0,0,4,2,"Ščevík Ondřej",6]
["2022-10-15","Turnaj benjamínků Štramberk","MC","j","Kaszper","Matyáš",1,"mláďata","50",4,0,0,4,4,"Kaszper Matyáš",8]
["2022-10-15","Turnaj benjamínků Štramberk","MC","j","Kuchejdová","Zuzana",2,"mláďata","28",2,0,1,3,2,"Kuchejdová Zuzana",5]
["2022-10-15","Turnaj benjamínků Štramberk","MC","j","Lehnert","Mikuláš",2,"mláďata","25,5",1,0,1,3,1,"Lehnert Mikuláš",4]
["2022-10-15","Turnaj benjamínků Štramberk","MC","j","Szwanová","Liliana",2,"mláďata","34",3,0,1,3,3,"Szwanová Liliana",6]
["2022-10-15","Turnaj benjamínků Štramberk","MC","j","Vlček","Viktor",3,"mláďata","34",1,0,2,2,1,"Vlček Viktor",3]
["2022-10-15","Turnaj benjamínků Štramberk","MC","j","Hladký","Dalimil",3,"mláďata","50",2,0,3,2,2,"Hladký Dalimil",4]
["2022-10-15","Turnaj benjamínků Štramberk","MC","j","Řehůřek","David",3,"mláďata","35",1,0,2,2,1,"Řehůřek David",3]
["2022-10-15","Turnaj benjamínků Štramberk","MC","j","Cahlíková","Barbora",3,"mláďata","45",0,0,2,2,0,"Cahlíková Barbora",2]
["2022-10-15","Turnaj benjamínků Štramberk","MC","j","Richter","Lukáš",3,"mláďata","37",1,0,2,2,1,"Richter Lukáš",3]
["2022-10-15","Turnaj benjamínků Štramberk","MC","j","Bujoková","Kristin",4,"mláďata","34",1,0,3,0,1,"Bujoková Kristin",1]
["2022-10-15","Turnaj benjamínků Štramberk","MC","j","Hon","Lukáš","bez","mláďata","45",0,0,2,0,0,"Hon Lukáš",0]
["2022-10-15","Turnaj benjamínků Štramberk","MC","j","Řehůřková","Jana","bez","mláďata","32",0,0,4,0,0,"Řehůřková Jana",0]
["2022-10-15","Turnaj benjamínků Štramberk","MC","j","Mazůch","Richard","bez","mláďata","32",0,0,3,0,0,"Mazůch Richard",0]
["2022-10-15","Turnaj benjamínků Štramberk","MC","j","Salomon","Ondřej","bez","mláďata","36",1,0,1,0,1,"Salomon Ondřej",1]
["2022-10-15","Turnaj benjamínků Štramberk","MC","j","Swiech","Viktor","bez","mláďata","32",1,0,2,0,1,"Swiech Viktor",1]
["2022-10-23","Přebor České republiky staršího žactva","PCR","j","To","Vojtěch",5,"starší žáci","38",2,0,2,3,2,"To Vojtěch",5]
["2022-10-23","Přebor České republiky staršího žactva","PCR","j","Přichystal","Leon","bez","starší žáci","46",0,0,1,0,0,"Přichystal Leon",0]
["2022-10-23","Přebor České republiky staršího žactva","PCR","j","Bečka","Václav",3,"starší žáci","50",3,0,1,5,3,"Bečka Václav",8]
["2022-10-23","Přebor České republiky staršího žactva","PCR","j","Ciora","Jakub","bez","starší žáci","55",1,0,1,0,1,"Ciora Jakub",1]
["2022-10-23","Přebor České republiky staršího žactva","PCR","j","Stark","Vojtěch",9,"starší žáci","66",1,0,2,0,1,"Stark Vojtěch",1]
["2022-10-23","Přebor České republiky staršího žactva","PCR","j","Zwilling","Šimon",5,"starší žáci","73",2,0,2,3,2,"Zwilling Šimon",5]
["2022-10-23","Přebor České republiky staršího žactva","PCR","j","Vlk","František",7,"starší žáci","+73",1,0,2,2,1,"Vlk František",3]
["2022-10-23","Přebor České republiky staršího žactva","PCR","j","Kocmanová","Lucie","bez","starší žákyně","48",0,0,1,0,0,"Kocmanová Lucie",0]
["2022-10-23","Přebor České republiky staršího žactva","PCR","j","Homolová","Kristýna",7,"starší žákyně","57",3,0,2,2,3,"Homolová Kristýna",5]
["2022-10-23","Přebor České republiky staršího žactva","PCR","j","Karasová","Eliška","bez","starší žákyně","57",1,0,1,0,1,"Karasová Eliška",1]
["2022-10-23","Přebor České republiky staršího žactva","PCR","j","Kaszperová","Kristýna",1,"starší žákyně","+63",4,0,0,10,4,"Kaszperová Kristýna",14]
["2022-10-15","1. liga Ostrava - 3. kolo","1.liga","d","Pačuta","Ladislav",7,"muži","60",2,0,2,2,4,"Pačuta Ladislav",6]
["2022-10-15","1. liga Ostrava - 3. kolo","1.liga","d","Babič","Jan",7,"muži","73",1,0,2,2,2,"Babič Jan",4]
["2022-10-15","1. liga Ostrava - 3. kolo","1.liga","d","Čebík","Filip",7,"muži","73",1,0,2,2,2,"Čebík Filip",4]
["2022-10-15","1. liga Ostrava - 3. kolo","1.liga","d","Potůček","Tomáš",7,"muži","81",1,0,2,2,2,"Potůček Tomáš",4]
["2022-10-15","1. liga Ostrava - 3. kolo","1.liga","d","Čerchla","Michal",7,"muži","90",1,0,2,2,2,"Čerchla Michal",4]
["2022-10-15","1. liga Ostrava - 3. kolo","1.liga","d","Martínek","Roman",7,"muži","+90",2,0,2,2,4,"Martínek Roman",6]
["2022-10-15","1. liga Ostrava - 3. kolo","1.liga","d","Caletka","Michal",7,"muži","60",2,0,0,2,4,"Caletka Michal",6]
["2022-10-15","1. liga Ostrava - 3. kolo","1.liga","d","Meixner","Tomáš",7,"muži","66",2,0,0,2,4,"Meixner Tomáš",6]
["2022-10-15","1. liga Ostrava - 3. kolo","1.liga","d","Lindovský","Jiří",7,"muži","73",1,0,1,2,2,"Lindovský Jiří",4]
["2022-10-22","Přebor České republiky mladšího žactva","PCR","j","Šelongová","Viktorie",5,"mladší žákyně","33",2,0,2,3,2,"Šelongová Viktorie",5]
["2022-10-22","Přebor České republiky mladšího žactva","PCR","j","Zoulová","Karolína",2,"mladší žákyně","36",2,0,1,7,2,"Zoulová Karolína",9]
["2022-10-22","Přebor České republiky mladšího žactva","PCR","j","Zoulová","Tereza","bez","mladší žákyně","40",0,0,1,0,0,"Zoulová Tereza",0]
["2022-10-22","Přebor České republiky mladšího žactva","PCR","j","Nováková","Victoria","bez","mladší žákyně","48",0,0,1,0,0,"Nováková Victoria",0]
["2022-10-22","Přebor České republiky mladšího žactva","PCR","j","Vlček","Martin",3,"mladší žáci","42",4,0,1,5,4,"Vlček Martin",9]
["2022-10-22","Přebor České republiky mladšího žactva","PCR","j","Bystrianský","Jan","bez","mladší žáci","42",0,0,1,0,0,"Bystrianský Jan",{"$f":"SUM(M892,N892)","v":0}]
["2022-10-22","Přebor České republiky mladšího žactva","PCR","j","Stránský","David","bez","mladší žáci","42",0,0,1,0,0,"Stránský David",0]
["2022-10-22","Přebor České republiky mladšího žactva","PCR","j","Lechovič","Tobiáš",5,"mladší žáci","46",3,0,2,3,3,"Lechovič Tobiáš",6]
["2022-10-22","Přebor České republiky mladšího žactva","PCR","j","Nytra","Sebastián","bez","mladší žáci","50",0,0,1,0,0,"Nytra Sebastián",0]
["2022-10-22","Přebor České republiky mladšího žactva","PCR","j","Musial","Šimon",5,"mladší žáci","50",3,0,2,3,3,"Musial Šimon",6]
["2022-10-22","Přebor České republiky mladšího žactva","PCR","j","Bokiy","Konstantin","bez","mladší žáci","60",1,0,2,0,1,"Bokiy Konstantin",1]
["2022-10-22","Přebor České republiky mladšího žactva","PCR","j","Lamža","Radek","bez","mladší žáci","+66",0,0,2,{"$f":"IF(ISNA(VLOOKUP(C898&G898,$V$3:$W$95,2,FALSE)),0,VLOOKUP(C898&G898,$V$3:$W$95,2,FALSE))","v":0},{"$f":"IF(D898=\"d\",SUM(J898*2,K898),J898)","v":0},{"$f":"E898&\" \"&F898","v":"Lamža Radek"},0]
["2022-11-05","Mezinárodní mistrovství veteránu Rakousko","MT","j","Chlebový","Arnold",1,"veteráni","90",3,0,0,10,3,"Chlebový Arnold",13]
["2022-11-05","Mezinárodní mistrovství veteránu Rakousko","MT","j","Martínek","Roman",1,"veteráni","100",2,0,0,10,2,"Martínek Roman",12]
["2022-10-28","Mezinárodní turnaj Brémy","MT","j","Potůček","Tomáš","bez","dorostenci","81",0,0,2,0,0,"Potůček Tomáš",0]
["2022-10-28","Mezinárodní turnaj Brémy","MT","j","Huvar","Jakub","bez","dorostenci","73",1,0,2,0,1,"Huvar Jakub",1]
["2022-11-05","MČR dorostenců a dorostenek","MCR","j","Vontor","Tomáš",3,"dorostenci","55",2,0,1,10,2,"Vontor Tomáš",12]
["2022-11-05","MČR dorostenců a dorostenek","MCR","j","Caletka","Michal",9,"dorostenci","60",1,0,1,0,1,"Caletka Michal",1]
["2022-11-05","MČR dorostenců a dorostenek","MCR","j","Caletka","Petr",7,"dorostenci","66",3,0,2,5,3,"Caletka Petr",8]
["2022-11-05","MČR dorostenců a dorostenek","MCR","j","Kristen","Nicolas",9,"dorostenci","66",1,0,2,0,1,"Kristen Nicolas",1]
["2022-11-05","MČR dorostenců a dorostenek","MCR","j","Vaněk","Jakub",9,"dorostenci","73",1,0,2,0,1,"Vaněk Jakub",1]
["2022-11-05","MČR dorostenců a dorostenek","MCR","j","Čebík","Filip",5,"dorostenci","73",2,0,2,7,2,"Čebík Filip",9]
["2022-11-05","MČR dorostenců a dorostenek","MCR","j","Huvar","Jakub",9,"dorostenci","73",1,0,2,0,1,"Huvar Jakub",1]
["2022-11-05","MČR dorostenců a dorostenek","MCR","j","Tomek","David","bez","dorostenci","73",0,0,2,0,0,"Tomek David",0]
["2022-11-05","MČR dorostenců a dorostenek","MCR","j","Kolář","Vojtěch","bez","dorostenci","73",0,0,1,0,0,"Kolář Vojtěch",0]
["2022-11-05","MČR dorostenců a dorostenek","MCR","j","Potůček","Tomáš",3,"dorostenci","81",3,0,1,10,3,"Potůček Tomáš",13]
["2022-11-05","MČR dorostenců a dorostenek","MCR","j","Fulneček","Šimon",1,"dorostenci","90",2,0,0,20,2,"Fulneček Šimon",22]
["2022-11-05","MČR dorostenců a dorostenek","MCR","j","Čerchla","Michal",3,"dorostenci","90",2,0,1,10,2,"Čerchla Michal",12]
["2022-11-05","MČR dorostenců a dorostenek","MCR","j","Mikendová","Tereza",3,"dorostenky","48",2,0,1,10,2,"Mikendová Tereza",12]
["2022-11-05","MČR dorostenců a dorostenek","MCR","j","Rapčanová","Silvie",5,"dorostenky","52",1,0,2,7,1,"Rapčanová Silvie",8]
["2022-11-05","MČR dorostenců a dorostenek","MCR","j","Bukovjanová","Charlotte",7,"dorostenky","57",1,0,2,5,1,"Bukovjanová Charlotte",6]
["2022-11-05","MČR dorostenců a dorostenek","MCR","j","Vavřínová","Pavla",5,"dorostenky","57",3,0,2,7,3,"Vavřínová Pavla",10]
["2022-11-05","MČR dorostenců a dorostenek","MCR","j","Kuželová","Dominika",3,"dorostenky","63",3,0,1,10,3,"Kuželová Dominika",13]
["2022-11-05","MČR dorostenců a dorostenek","MCR","j","Rapčanová","Alice",5,"dorostenky","70",1,0,2,7,1,"Rapčanová Alice",8]
["2022-11-05","MČR dorostenců a dorostenek","MCR","j","Kaszperová","Kristýna",2,"dorostenky","+70",2,0,1,15,2,"Kaszperová Kristýna",17]
["2022-11-12","ME MIX týmů Mulhouse, Francie","ME","d","Silvestr","Matěj",7,"muži","+90",0,0,2,25,0,"Silvestr Matěj",25]
["2022-11-20","Dorostenecká liga - finále Praha","DL","d","Potůček","Tomáš",2,"dorostenci","81",1,0,1,15,2,"Potůček Tomáš",17]
["2022-11-20","Dorostenecká liga - finále Praha","DL","d","Vontor","Tomáš",2,"dorostenci","60",1,0,1,15,2,"Vontor Tomáš",17]
["2022-11-20","Dorostenecká liga - finále Praha","DL","d","Čerchla","Michal",2,"dorostenci","90",1,0,0,15,2,"Čerchla Michal",17]
["2022-11-20","Dorostenecká liga - finále Praha","DL","d","Caletka","Petr",2,"dorostenci","66",0,0,1,15,0,"Caletka Petr",15]
["2022-11-20","Dorostenecká liga - finále Praha","DL","d","Čebík","Filip",2,"dorostenci","73",1,0,1,15,2,"Čebík Filip",{"$f":"SUM(M927,N927)","v":17}]
["2022-11-20","Dorostenecká liga - finále Praha","DL","d","Fulneček","Šimon",2,"dorostenci","90",1,0,0,15,2,"Fulneček Šimon",17]
["2022-11-20","Dorostenecká liga - finále Praha","DL","d","Meixner","Michal",2,"dorostenci","66",0,0,1,15,0,"Meixner Michal",15]
["2022-11-20","Extraliga mužů - finále Praha","EXL","d","Rýpar","Radek",6,"muži","66",0,0,1,5,0,"Rýpar Radek",5]
["2022-11-20","Extraliga mužů - finále Praha","EXL","d","Křížek","Šimon",6,"muži","73",0,0,1,5,0,"Křížek Šimon",5]
["2022-11-20","Extraliga mužů - finále Praha","EXL","d","Motyka","Dominik",6,"muži","90",0,0,1,5,0,"Motyka Dominik",5]
["2022-11-20","Extraliga mužů - finále Praha","EXL","d","Chlebovský","Daniel",6,"muži","+90",0,0,1,5,0,"Chlebovský Daniel",5]
["2022-11-19","Velká cena Karviné","VC","j","Voronin","Makar",7,"mladší žáci","34",1,0,2,{"$f":"IF(ISNA(VLOOKUP(C934&G934,$V$3:$W$95,2,FALSE)),0,VLOOKUP(C934&G934,$V$3:$W$95,2,FALSE))","v":0},{"$f":"IF(D934=\"d\",SUM(J934*2,K934),J934)","v":1},{"$f":"E934&\" \"&F934","v":"Voronin Makar"},{"$f":"SUM(M934,N934)","v":1}]
["2022-11-19","Velká cena Karviné","VC","j","Bauko","Viktor","bez","mladší žáci","42",0,0,2,0,0,"Bauko Viktor",0]
["2022-11-19","Velká cena Karviné","VC","j","Bystrianský","Jan","bez","mladší žáci","42",0,0,1,0,0,"Bystrianský Jan",0]
["2022-11-19","Velká cena Karviné","VC","j","Soukup","Hugo",5,"mladší žáci","42",2,0,2,0,2,"Soukup Hugo",2]
["2022-11-19","Velká cena Karviné","VC","j","Vlček","Martin",2,"mladší žáci","42",3,0,1,5,3,"Vlček Martin",8]
["2022-11-19","Velká cena Karviné","VC","j","Lechovič","Tobiáš",3,"mladší žáci","50",4,0,1,3,4,"Lechovič Tobiáš",7]
["2022-11-19","Velká cena Karviné","VC","j","Bravanský","Marek","bez","mladší žáci","50",0,0,1,0,0,"Bravanský Marek",0]
["2022-11-19","Velká cena Karviné","VC","j","Bokiy","Konstantin",3,"mladší žáci","60",3,0,1,3,3,"Bokiy Konstantin",6]
["2022-11-19","Velká cena Karviné","VC","j","Kret","Matyáš","bez","mladší žáci","60",1,0,1,0,1,"Kret Matyáš",1]
["2022-11-19","Velká cena Karviné","VC","j","Jaskula","Oliver","bez","mladší žáci","+66",1,0,2,0,1,"Jaskula Oliver",1]
["2022-11-19","Velká cena Karviné","VC","j","Kuchejdová","Veronika","bez","mladší žákyně","33",0,0,3,0,0,"Kuchejdová Veronika",0]
["2022-11-19","Velká cena Karviné","VC","j","Zoulová","Karolína",1,"mladší žákyně","36",4,0,0,6,4,"Zoulová Karolína",10]
["2022-11-19","Velká cena Karviné","VC","j","Cséri","Klára","bez","mladší žákyně","36",0,0,4,0,0,"Cséri Klára",0]
["2022-11-19","Velká cena Karviné","VC","j","Zoulová","Tereza",1,"mladší žákyně","40",3,0,0,6,3,"Zoulová Tereza",9]
["2022-11-19","Velká cena Karviné","VC","j","Berka","Daniel",2,"starší žáci","38",1,0,1,5,1,"Berka Daniel",6]
["2022-11-19","Velká cena Karviné","VC","j","Přichystal","Leon",1,"starší žáci","50",5,0,0,6,5,"Přichystal Leon",11]
["2022-11-19","Velká cena Karviné","VC","j","Zwilling","Šimon",1,"starší žáci","73",4,0,0,6,4,"Zwilling Šimon",10]
["2022-11-19","Velká cena Karviné","VC","j","Karasová","Eliška",2,"starší žákyně","57",3,0,1,5,3,"Karasová Eliška",8]
["2022-11-20","MČR družstev žen","MCR","d","Michálková","Karolína",3,"ženy","+70",1,0,2,10,2,"Michálková Karolína",12]
["2022-11-20","MČR družstev žen","MCR","d","Václavková","Tereza",3,"ženy","57",1,0,2,10,2,"Václavková Tereza",12]
["2022-11-20","MČR družstev žen","MCR","d","Kuželová","Dominika",3,"ženy","63",1,0,1,10,2,"Kuželová Dominika",12]
["2022-11-20","MČR družstev žen","MCR","d","Polášková","Kristýna",3,"ženy","63",0,0,1,10,0,"Polášková Kristýna",10]
["2022-11-26","Krajský přebor Ostrava","PK","j","Galatenko","Andrij","bez","mláďata","26",0,0,2,0,0,"Galatenko Andrij",0]
["2022-11-26","Krajský přebor Ostrava","PK","j","Bučánek","Antonín","bez","mláďata","28",1,0,2,0,1,"Bučánek Antonín",1]
["2022-11-26","Krajský přebor Ostrava","PK","j","Podivínský","Patrik",1,"mláďata","28",3,0,0,6,3,"Podivínský Patrik",9]
["2022-11-26","Krajský přebor Ostrava","PK","j","Hošek","Tomáš","bez","mláďata","28",0,0,2,0,0,"Hošek Tomáš",0]
["2022-11-26","Krajský přebor Ostrava","PK","j","Gajdová","Agáta",3,"mláďata","28",0,0,2,3,0,"Gajdová Agáta",3]
["2022-11-26","Krajský přebor Ostrava","PK","j","Poledník","Rostislav",2,"mláďata","30",2,0,1,5,2,"Poledník Rostislav",7]
["2022-11-26","Krajský přebor Ostrava","PK","j","Čechák","Martin",1,"mláďata","32",4,0,0,6,4,"Čechák Martin",10]
["2022-11-26","Krajský přebor Ostrava","PK","j","Jaššo","Štěpán",3,"mláďata","32",2,0,1,3,2,"Jaššo Štěpán",5]
["2022-11-26","Krajský přebor Ostrava","PK","j","Janiurek","Petr",5,"mláďata","32",1,0,2,0,1,"Janiurek Petr",1]
["2022-11-26","Krajský přebor Ostrava","PK","j","Gongala","Adam",5,"mláďata","32",1,0,2,0,1,"Gongala Adam",1]
["2022-11-26","Krajský přebor Ostrava","PK","j","Řehůřková","Jana",4,"mláďata","36",0,0,3,0,0,"Řehůřková Jana",0]
["2022-11-26","Krajský přebor Ostrava","PK","j","Lehnert","Mikuláš",3,"mláďata","26",0,0,2,3,0,"Lehnert Mikuláš",3]
["2022-11-26","Krajský přebor Ostrava","PK","j","Marušáková","Kateřina",2,"mláďata","26",1,0,1,5,1,"Marušáková Kateřina",6]
["2022-11-26","Krajský přebor Ostrava","PK","j","Marušák","Lukáš",1,"mláďata","26",2,0,0,6,2,"Marušák Lukáš",8]
["2022-11-26","Krajský přebor Ostrava","PK","j","Šumbera","Teodor",7,"mláďata","28",0,0,2,0,0,"Šumbera Teodor",0]
["2022-11-26","Krajský přebor Ostrava","PK","j","Ščevík","Ondřej",3,"mláďata","28",3,0,1,3,3,"Ščevík Ondřej",6]
["2022-11-26","Krajský přebor Ostrava","PK","j","Kuchejdová","Zuzana",2,"mláďata","28",3,0,1,5,3,"Kuchejdová Zuzana",8]
["2022-11-26","Krajský přebor Ostrava","PK","j","Lednický","Edgar",7,"mláďata","30",0,0,2,0,0,"Lednický Edgar",0]
["2022-11-26","Krajský přebor Ostrava","PK","j","Gajda","Maxim","bez","mláďata","30",0,0,2,0,0,"Gajda Maxim",0]
["2022-11-26","Krajský přebor Ostrava","PK","j","Mazůch","Richard","bez","mláďata","32",0,0,2,0,0,"Mazůch Richard",0]
["2022-11-26","Krajský přebor Ostrava","PK","j","Končítková","Linda","bez","mláďata","32",1,0,2,0,1,"Končítková Linda",1]
["2022-11-26","Krajský přebor Ostrava","PK","j","Hodal","Herbert",5,"mláďata","32",2,0,2,0,2,"Hodal Herbert",2]
["2022-11-26","Krajský přebor Ostrava","PK","j","Coufalík","Mikuláš",7,"mláďata","32",2,0,2,0,2,"Coufalík Mikuláš",2]
["2022-11-26","Krajský přebor Ostrava","PK","j","Prudil","Adam",1,"mláďata","32",4,0,0,6,4,"Prudil Adam",10]
["2022-11-26","Krajský přebor Ostrava","PK","j","Chovanec","Martin",3,"mláďata","34",2,0,1,3,2,"Chovanec Martin",5]
["2022-11-26","Krajský přebor Ostrava","PK","j","Vlček","Viktor",5,"mláďata","34",2,0,1,0,2,"Vlček Viktor",2]
["2022-11-26","Krajský přebor Ostrava","PK","j","Salomon","Ondřej",3,"mláďata","36",2,0,1,3,2,"Salomon Ondřej",5]
["2022-11-26","Krajský přebor Ostrava","PK","j","Szwanová","Liliana",2,"mláďata","36",2,0,1,5,2,"Szwanová Liliana",7]
["2022-11-26","Krajský přebor Ostrava","PK","j","Řehůřek","David",3,"mláďata","36",0,0,2,3,0,"Řehůřek David",3]
["2022-11-26","Krajský přebor Ostrava","PK","j","Richter","Lukáš",5,"mláďata","36",1,0,2,0,1,"Richter Lukáš",1]
["2022-11-26","Krajský přebor Ostrava","PK","j","Podivínský","Marek",1,"mláďata","36",3,0,0,6,3,"Podivínský Marek",9]
["2022-11-26","Krajský přebor Ostrava","PK","j","Vašťák","Ondřej",3,"mláďata","36",2,0,2,3,2,"Vašťák Ondřej",5]
["2022-11-26","Krajský přebor Ostrava","PK","j","Bujoková","Kristin",3,"mláďata","36",1,0,2,3,1,"Bujoková Kristin",4]
["2022-11-26","Krajský přebor Ostrava","PK","j","Sýkora","Václav","bez","mláďata","42",0,0,2,0,0,"Sýkora Václav",0]
["2022-11-26","Krajský přebor Ostrava","PK","j","Weiss","Daniel",3,"mláďata","42",2,0,1,3,2,"Weiss Daniel",5]
["2022-11-26","Krajský přebor Ostrava","PK","j","Cahlíková","Barbora",2,"mláďata","46",4,0,1,5,4,"Cahlíková Barbora",9]
["2022-11-26","Krajský přebor Ostrava","PK","j","Kaszper","Matyáš",3,"mláďata","55",2,0,2,3,2,"Kaszper Matyáš",5]
["2022-12-10","Šampionát Moravy mláďat","VC","j","Podivínský","Patrik",1,"mláďata","28",4,0,1,6,4,"Podivínský Patrik",10]
["2022-12-10","Šampionát Moravy mláďat","VC","j","Janiurek","Petr",3,"mláďata","31",1,0,2,3,1,"Janiurek Petr",4]
["2022-12-10","Šampionát Moravy mláďat","VC","j","Jaššo","Štěpán",3,"mláďata","34",3,0,1,3,3,"Jaššo Štěpán",6]
["2022-12-10","Šampionát Moravy mláďat","VC","j","Čechák","Martin",1,"mláďata","35",4,0,0,6,4,"Čechák Martin",10]
["2022-12-10","Šampionát Moravy mláďat","VC","j","Řehůřková","Jana",3,"mláďata","35",2,0,2,3,2,"Řehůřková Jana",5]
["2022-12-10","Šampionát Moravy mláďat","VC","j","Marušák","Lukáš",3,"mláďata","26",2,0,2,{"$f":"IF(ISNA(VLOOKUP(C998&G998,$V$3:$W$95,2,FALSE)),0,VLOOKUP(C998&G998,$V$3:$W$95,2,FALSE))","v":3},{"$f":"IF(D998=\"d\",SUM(J998*2,K998),J998)","v":2},{"$f":"E998&\" \"&F998","v":"Marušák Lukáš"},{"$f":"SUM(M998,N998)","v":5}]
["2022-12-10","Šampionát Moravy mláďat","VC","j","Marušáková","Kateřina",2,"mláďata","27",1,0,2,5,1,"Marušáková Kateřina",6]
["2022-12-10","Šampionát Moravy mláďat","VC","j","Ščevík","Ondřej",3,"mláďata","28",1,0,3,3,1,"Ščevík Ondřej",4]
["2022-12-10","Šampionát Moravy mláďat","VC","j","Kuchejdová","Zuzana","bez","mláďata","30",1,0,2,0,1,"Kuchejdová Zuzana",1]
["2022-12-10","Šampionát Moravy mláďat","VC","j","Coufalík","Mikuláš","bez","mláďata","31",0,0,1,0,0,"Coufalík Mikuláš",0]
["2022-12-10","Šampionát Moravy mláďat","VC","j","Prudil","Adam",5,"mláďata","33",2,0,2,0,2,"Prudil Adam",2]
["2022-12-10","Šampionát Moravy mláďat","VC","j","Chovanec","Martin","bez","mláďata","33",0,0,1,0,0,"Chovanec Martin",0]
["2022-12-10","Šampionát Moravy mláďat","VC","j","Mazůch","Richard","bez","mláďata","33",1,0,2,0,1,"Mazůch Richard",1]
["2022-12-10","Šampionát Moravy mláďat","VC","j","Končítková","Linda","bez","mláďata","34",0,0,1,0,0,"Končítková Linda",0]
["2022-12-10","Šampionát Moravy mláďat","VC","j","Podivínský","Marek",3,"mláďata","36",4,0,1,3,4,"Podivínský Marek",7]
["2022-12-10","Šampionát Moravy mláďat","VC","j","Richter","Lukáš",3,"mláďata","36",3,0,1,3,3,"Richter Lukáš",6]
["2022-12-10","Šampionát Moravy mláďat","VC","j","Řehůřek","David",5,"mláďata","36",2,0,2,0,2,"Řehůřek David",2]
["2022-12-10","Šampionát Moravy mláďat","VC","j","Bujoková","Kristin",7,"mláďata","36",2,0,2,0,2,"Bujoková Kristin",2]
["2022-12-10","Šampionát Moravy mláďat","VC","j","Szwanová","Liliana",7,"mláďata","40",2,0,2,0,2,"Szwanová Liliana",2]
["2022-12-10","Šampionát Moravy mláďat","VC","j","Cahlíková","Barbora",5,"mláďata","44",2,0,2,0,2,"Cahlíková Barbora",2]
["2022-12-10","Šampionát Moravy mláďat","VC","j","Hon","Lukáš",3,"mláďata","46",4,0,1,3,4,"Hon Lukáš",7]
["2022-05-08","Velká cena Ostravy","VC","j","Vašťák","Ondřej",2,"mláďata","34",4,0,1,5,4,"Vašťák Ondřej",9]
["2022-11-06","PČR družstev Brno","PCR","d","To","Vojtěch",3,"starší žáci","38",5,0,0,5,10,"To Vojtěch",15]
["2022-11-06","PČR družstev Brno","PCR","d","Berka","Daniel",3,"starší žáci","42",0,0,5,5,0,"Berka Daniel",5]
["2022-11-06","PČR družstev Brno","PCR","d","Přichystal","Leon",3,"starší žáci","46",4,0,1,5,8,"Přichystal Leon",13]
["2022-11-06","PČR družstev Brno","PCR","d","Bečka","Václav",3,"starší žáci","50",4,0,0,5,8,"Bečka Václav",13]
["2022-11-06","PČR družstev Brno","PCR","d","Kuluris","Manolis",3,"starší žáci","50",0,0,1,5,0,"Kuluris Manolis",5]
["2022-11-06","PČR družstev Brno","PCR","d","Huvar","Matyáš",3,"starší žáci","55",0,0,1,5,0,"Huvar Matyáš",5]
["2022-11-06","PČR družstev Brno","PCR","d","Valošek","Jakub",3,"starší žáci","55",0,0,1,5,0,"Valošek Jakub",5]
["2022-11-06","PČR družstev Brno","PCR","d","Ciora","Jakub",3,"starší žáci","60",3,0,1,5,6,"Ciora Jakub",11]
["2022-11-06","PČR družstev Brno","PCR","d","Mařec","Tomáš",3,"starší žáci","60",0,0,1,5,0,"Mařec Tomáš",5]
["2022-11-06","PČR družstev Brno","PCR","d","Stark","Vojtěch",3,"starší žáci","66",4,0,1,5,8,"Stark Vojtěch",13]
["2022-11-06","PČR družstev Brno","PCR","d","Zwilling","Šimon",3,"starší žáci","73",5,0,0,5,10,"Zwilling Šimon",15]
["2022-11-06","PČR družstev Brno","PCR","d","Vlk","František",3,"starší žáci","+73",4,0,0,5,8,"Vlk František",13]
["2022-11-06","PČR družstev Brno","PCR","d","Klepač","Václav",3,"starší žáci","+73",0,0,1,5,0,"Klepač Václav",5]
["2022-11-06","PČR družstev Brno","PCR","d","Kocmanová","Lucie",2,"starší žákyně","48",3,0,2,7,6,"Kocmanová Lucie",13]
["2022-11-06","PČR družstev Brno","PCR","d","Homolová","Kristýna",2,"starší žákyně","57",2,0,1,7,4,"Homolová Kristýna",11]
["2022-11-06","PČR družstev Brno","PCR","d","Karasová","Eliška",2,"starší žákyně","57",0,0,2,7,0,"Karasová Eliška",7]
["2022-11-06","PČR družstev Brno","PCR","d","Kaszperová","Kristýna",2,"starší žákyně","+63",5,0,0,7,10,"Kaszperová Kristýna",17]
[null,null,null,null,null,null,null,null,null,null,null,null,0,0," ",0]
[null,null,null,null,null,null,null,null,null,null,null,null,0,0," ",0]
[null,null,null,null,null,null,null,null,null,null,null,null,0,0," ",0]
[null,null,null,null,null,null,null,null,null,null,null,null,0,0," ",0]
[null,null,null,null,null,null,null,null,null,null,null,null,0,0," ",0]
[null,null,null,null,null,null,null,null,null,null,null,null,0,0," ",0]
[null,null,null,null,null,null,null,null,null,null,null,null,0,0," ",0]
[null,null,null,null,null,null,null,null,null,null,null,null,0,0," ",0]
[null,null,null,null,null,null,null,null,null,null,null,null,0,0," ",0]
[null,null,null,null,null,null,null,null,null,null,null,null,0,0," ",0]
[null,null,null,null,null,null,null,null,null,null,null,null,0,0," ",0]
[null,null,null,null,null,null,null,null,null,null,null,null,0,0," ",0]
[null,null,null,null,null,null,null,null,null,null,null,null,0,0," ",0]
[null,null,null,null,null,null,null,null,null,null,null,null,0,0," ",0]
[null,null,null,null,null,null,null,null,null,null,null,null,0,0," ",0]
[null,null,null,null,null,null,null,null,null,null,null,null,0,0," ",0]
[null,null,null,null,null,null,null,null,null,null,null,null,0,0," ",0]
[null,null,null,null,null,null,null,null,null,null,null,null,0,0," ",0]
[null,null,null,null,null,null,null,null,null,null,null,null,0,0," ",0]
[null,null,null,null,null,null,null,null,null,null,null,null,0,0," ",0]
[null,null,null,null,null,null,null,null,null,null,null,null,0,0," ",0]
[null,null,null,null,null,null,null,null,null,null,null,null,0,0," ",0]
[null,null,null,null,null,null,null,null,null,null,null,null,0,0," ",0]
[null,null,null,null,null,null,null,null,null,null,null,null,0,0," ",0]
[null,null,null,null,null,null,null,null,null,null,null,null,0,0," ",0]
[null,null,null,null,null,null,null,null,null,null,null,null,0,0," ",0]
[null,null,null,null,null,null,null,null,null,null,null,null,0,0," ",0]
[null,null,null,null,null,null,null,null,null,null,null,null,0,0," ",0]
[null,null,null,null,null,null,null,null,null,null,null,null,0,0," ",0]
[null,null,null,null,null,null,null,null,null,null,null,null,0,0," ",0]
[null,null,null,null,null,null,null,null,null,null,null,null,{"$f":"IF(ISNA(VLOOKUP(C1062&G1062,$V$3:$W$95,2,FALSE)),0,VLOOKUP(C1062&G1062,$V$3:$W$95,2,FALSE))","v":0},{"$f":"IF(D1062=\"d\",SUM(J1062*2,K1062),J1062)","v":0},{"$f":"E1062&\" \"&F1062","v":" "},{"$f":"SUM(M1062,N1062)","v":0}]
[null,null,null,null,null,null,null,null,null,null,null,null,0,0," ",0]
[null,null,null,null,null,null,null,null,null,null,null,null,0,0," ",0]
[null,null,null,null,null,null,null,null,null,null,null,null,0,0," ",0]
[null,null,null,null,null,null,null,null,null,null,null,null,0,0," ",0]
[null,null,null,null,null,null,null,null,null,null,null,null,0,0," ",0]
[null,null,null,null,null,null,null,null,null,null,null,null,0,0," ",0]
[null,null,null,null,null,null,null,null,null,null,null,null,0,0," ",0]
[null,null,null,null,null,null,null,null,null,null,null,null,0,0," ",0]
[null,null,null,null,null,null,null,null,null,null,null,null,0,0," ",0]
[null,null,null,null,null,null,null,null,null,null,null,null,0,0," ",0]
[null,null,null,null,null,null,null,null,null,null,null,null,0,0," ",0]
[null,null,null,null,null,null,null,null,null,null,null,null,0,0," ",0]
[null,null,null,null,null,null,null,null,null,null,null,null,0,0," ",0]
[null,null,null,null,null,null,null,null,null,null,null,null,0,0," ",0]
[null,null,null,null,null,null,null,null,null,null,null,null,0,0," ",0]
[null,null,null,null,null,null,null,null,null,null,null,null,0,0," ",0]
[null,null,null,null,null,null,null,null,null,null,null,null,0,0," ",0]
[null,null,null,null,null,null,null,null,null,null,null,null,0,0," ",0]
[null,null,null,null,null,null,null,null,null,null,null,null,0,0," ",0]
[null,null,null,null,null,null,null,null,null,null,null,null,0,0," ",0]
[null,null,null,null,null,null,null,null,null,null,null,null,0,0," ",0]
[null,null,null,null,null,null,null,null,null,null,null,null,0,0," ",0]
[null,null,null,null,null,null,null,null,null,null,null,null,0,0," ",0]
[null,null,null,null,null,null,null,null,null,null,null,null,0,0," ",0]
[null,null,null,null,null,null,null,null,null,null,null,null,0,0," ",0]
[null,null,null,null,null,null,null,null,null,null,null,null,0,0," ",0]
[null,null,null,null,null,null,null,null,null,null,null,null,0,0," ",0]
[null,null,null,null,null,null,null,null,null,null,null,null,0,0," ",0]
[null,null,null,null,null,null,null,null,null,null,null,null,0,0," ",0]
[null,null,null,null,null,null,null,null,null,null,null,null,0,0," ",0]
[null,null,null,null,null,null,null,null,null,null,null,null,0,0," ",0]
[null,null,null,null,null,null,null,null,null,null,null,null,0,0," ",0]
[null,null,null,null,null,null,null,null,null,null,null,null,0,0," ",0]
[null,null,null,null,null,null,null,null,null,null,null,null,0,0," ",0]
[null,null,null,null,null,null,null,null,null,null,null,null,0,0," ",0]
[null,null,null,null,null,null,null,null,null,null,null,null,0,0," ",0]
[null,null,null,null,null,null,null,null,null,null,null,null,0,0," ",0]
[null,null,null,null,null,null,null,null,null,null,null,null,0,0," ",0]
[null,null,null,null,null,null,null,null,null,null,null,null,0,0," ",0]
[null,null,null,null,null,null,null,null,null,null,null,null,0,0," ",0]
[null,null,null,null,null,null,null,null,null,null,null,null,0,0," ",0]
[null,null,null,null,null,null,null,null,null,null,null,null,0,0," ",0]
[null,null,null,null,null,null,null,null,null,null,null,null,0,0," ",0]
[null,null,null,null,null,null,null,null,null,null,null,null,0,0," ",0]
[null,null,null,null,null,null,null,null,null,null,null,null,0,0," ",0]
[null,null,null,null,null,null,null,null,null,null,null,null,0,0," ",0]
[null,null,null,null,null,null,null,null,null,null,null,null,0,0," ",0]
[null,null,null,null,null,null,null,null,null,null,null,null,0,0," ",0]
[null,null,null,null,null,null,null,null,null,null,null,null,0,0," ",0]
[null,null,null,null,null,null,null,null,null,null,null,null,0,0," ",0]
[null,null,null,null,null,null,null,null,null,null,null,null,0,0," ",0]
[null,null,null,null,null,null,null,null,null,null,null,null,0,0," ",0]
[null,null,null,null,null,null,null,null,null,null,null,null,0,0," ",0]
[null,null,null,null,null,null,null,null,null,null,null,null,0,0," ",0]
[null,null,null,null,null,null,null,null,null,null,null,null,0,0," ",0]
[null,null,null,null,null,null,null,null,null,null,null,null,0,0," ",0]
[null,null,null,null,null,null,null,null,null,null,null,null,0,0," ",0]
[null,null,null,null,null,null,null,null,null,null,null,null,0,0," ",0]
[null,null,null,null,null,null,null,null,null,null,null,null,0,0," ",0]
[null,null,null,null,null,null,null,null,null,null,null,null,0,0," ",0]
[null,null,null,null,null,null,null,null,null,null,null,null,0,0," ",0]
[null,null,null,null,null,null,null,null,null,null,null,null,0,0," ",0]
[null,null,null,null,null,null,null,null,null,null,null,null,0,0," ",0]
[null,null,null,null,null,null,null,null,null,null,null,null,{"$f":"IF(ISNA(VLOOKUP(C1126&G1126,$V$3:$W$95,2,FALSE)),0,VLOOKUP(C1126&G1126,$V$3:$W$95,2,FALSE))","v":0},{"$f":"IF(D1126=\"d\",SUM(J1126*2,K1126),J1126)","v":0},{"$f":"E1126&\" \"&F1126","v":" "},{"$f":"SUM(M1126,N1126)","v":0}]
[null,null,null,null,null,null,null,null,null,null,null,null,0,0," ",0]
[null,null,null,null,null,null,null,null,null,null,null,null,0,0," ",0]
[null,null,null,null,null,null,null,null,null,null,null,null,0,0," ",0]
[null,null,null,null,null,null,null,null,null,null,null,null,0,0," ",0]
[null,null,null,null,null,null,null,null,null,null,null,null,0,0," ",0]
[null,null,null,null,null,null,null,null,null,null,null,null,0,0," ",0]
[null,null,null,null,null,null,null,null,null,null,null,null,0,0," ",0]
[null,null,null,null,null,null,null,null,null,null,null,null,0,0," ",0]
[null,null,null,null,null,null,null,null,null,null,null,null,0,0," ",0]
[null,null,null,null,null,null,null,null,null,null,null,null,0,0," ",0]
[null,null,null,null,null,null,null,null,null,null,null,null,0,0," ",0]
[null,null,null,null,null,null,null,null,null,null,null,null,0,0," ",0]
[null,null,null,null,null,null,null,null,null,null,null,null,0,0," ",0]
[null,null,null,null,null,null,null,null,null,null,null,null,0,0," ",0]
[null,null,null,null,null,null,null,null,null,null,null,null,0,0," ",0]
[null,null,null,null,null,null,null,null,null,null,null,null,0,0," ",0]
[null,null,null,null,null,null,null,null,null,null,null,null,0,0," ",0]
[null,null,null,null,null,null,null,null,null,null,null,null,0,0," ",0]
[null,null,null,null,null,null,null,null,null,null,null,null,0,0," ",0]
[null,null,null,null,null,null,null,null,null,null,null,null,0,0," ",0]
[null,null,null,null,null,null,null,null,null,null,null,null,0,0," ",0]
[null,null,null,null,null,null,null,null,null,null,null,null,0,0," ",0]
[null,null,null,null,null,null,null,null,null,null,null,null,0,0," ",0]
[null,null,null,null,null,null,null,null,null,null,null,null,0,0," ",0]
[null,null,null,null,null,null,null,null,null,null,null,null,0,0," ",0]
[null,null,null,null,null,null,null,null,null,null,null,null,0,0," ",0]
[null,null,null,null,null,null,null,null,null,null,null,null,0,0," ",0]
[null,null,null,null,null,null,null,null,null,null,null,null,0,0," ",0]
[null,null,null,null,null,null,null,null,null,null,null,null,0,0," ",0]
[null,null,null,null,null,null,null,null,null,null,null,null,0,0," ",0]
[null,null,null,null,null,null,null,null,null,null,null,null,0,0," ",0]
[null,null,null,null,null,null,null,null,null,null,null,null,0,0," ",0]
[null,null,null,null,null,null,null,null,null,null,null,null,0,0," ",0]
[null,null,null,null,null,null,null,null,null,null,null,null,0,0," ",0]
[null,null,null,null,null,null,null,null,null,null,null,null,0,0," ",0]
[null,null,null,null,null,null,null,null,null,null,null,null,0,0," ",0]
[null,null,null,null,null,null,null,null,null,null,null,null,0,0," ",0]
[null,null,null,null,null,null,null,null,null,null,null,null,0,0," ",0]
[null,null,null,null,null,null,null,null,null,null,null,null,0,0," ",0]
[null,null,null,null,null,null,null,null,null,null,null,null,0,0," ",0]
[null,null,null,null,null,null,null,null,null,null,null,null,0,0," ",0]
[null,null,null,null,null,null,null,null,null,null,null,null,0,0," ",0]
[null,null,null,null,null,null,null,null,null,null,null,null,0,0," ",0]
[null,null,null,null,null,null,null,null,null,null,null,null,0,0," ",0]
[null,null,null,null,null,null,null,null,null,null,null,null,0,0," ",0]
[null,null,null,null,null,null,null,null,null,null,null,null,0,0," ",0]
[null,null,null,null,null,null,null,null,null,null,null,null,0,0," ",0]
[null,null,null,null,null,null,null,null,null,null,null,null,0,0," ",0]
[null,null,null,null,null,null,null,null,null,null,null,null,0,0," ",0]
[null,null,null,null,null,null,null,null,null,null,null,null,0,0," ",0]
[null,null,null,null,null,null,null,null,null,null,null,null,0,0," ",0]
[null,null,null,null,null,null,null,null,null,null,null,null,0,0," ",0]
[null,null,null,null,null,null,null,null,null,null,null,null,0,0," ",0]
[null,null,null,null,null,null,null,null,null,null,null,null,0,0," ",0]
[null,null,null,null,null,null,null,null,null,null,null,null,0,0," ",0]
[null,null,null,null,null,null,null,null,null,null,null,null,0,0," ",0]
[null,null,null,null,null,null,null,null,null,null,null,null,0,0," ",0]
[null,null,null,null,null,null,null,null,null,null,null,null,0,0," ",0]
[null,null,null,null,null,null,null,null,null,null,null,null,0,0," ",0]
[null,null,null,null,null,null,null,null,null,null,null,null,0,0," ",0]
[null,null,null,null,null,null,null,null,null,null,null,null,0,0," ",0]
[null,null,null,null,null,null,null,null,null,null,null,null,0,0," ",0]
[null,null,null,null,null,null,null,null,null,null,null,null,0,0," ",0]
[null,null,null,null,null,null,null,null,null,null,null,null,{"$f":"IF(ISNA(VLOOKUP(C1190&G1190,$V$3:$W$95,2,FALSE)),0,VLOOKUP(C1190&G1190,$V$3:$W$95,2,FALSE))","v":0},{"$f":"IF(D1190=\"d\",SUM(J1190*2,K1190),J1190)","v":0},{"$f":"E1190&\" \"&F1190","v":" "},{"$f":"SUM(M1190,N1190)","v":0}]
[null,null,null,null,null,null,null,null,null,null,null,null,0,0," ",0]
[null,null,null,null,null,null,null,null,null,null,null,null,0,0," ",0]
[null,null,null,null,null,null,null,null,null,null,null,null,0,0," ",0]
[null,null,null,null,null,null,null,null,null,null,null,null,0,0," ",0]
[null,null,null,null,null,null,null,null,null,null,null,null,0,0," ",0]
[null,null,null,null,null,null,null,null,null,null,null,null,0,0," ",0]
[null,null,null,null,null,null,null,null,null,null,null,null,0,0," ",0]
[null,null,null,null,null,null,null,null,null,null,null,null,0,0," ",0]
[null,null,null,null,null,null,null,null,null,null,null,null,0,0," ",0]
[null,null,null,null,null,null,null,null,null,null,null,null,0,0," ",0]
[null,null,null,null,null,null,null,null,null,null,null,null,0,0," ",0]
[null,null,null,null,null,null,null,null,null,null,null,null,0,0," ",0]
[null,null,null,null,null,null,null,null,null,null,null,null,0,0," ",0]
[null,null,null,null,null,null,null,null,null,null,null,null,0,0," ",0]
[null,null,null,null,null,null,null,null,null,null,null,null,0,0," ",0]
[null,null,null,null,null,null,null,null,null,null,null,null,0,0," ",0]
[null,null,null,null,null,null,null,null,null,null,null,null,0,0," ",0]
[null,null,null,null,null,null,null,null,null,null,null,null,0,0," ",0]
[null,null,null,null,null,null,null,null,null,null,null,null,0,0," ",0]
[null,null,null,null,null,null,null,null,null,null,null,null,0,0," ",0]
[null,null,null,null,null,null,null,null,null,null,null,null,0,0," ",0]
[null,null,null,null,null,null,null,null,null,null,null,null,0,0," ",0]
[null,null,null,null,null,null,null,null,null,null,null,null,0,0," ",0]
[null,null,null,null,null,null,null,null,null,null,null,null,0,0," ",0]
[null,null,null,null,null,null,null,null,null,null,null,null,0,0," ",0]
[null,null,null,null,null,null,null,null,null,null,null,null,0,0," ",0]
[null,null,null,null,null,null,null,null,null,null,null,null,0,0," ",0]
[null,null,null,null,null,null,null,null,null,null,null,null,0,0," ",0]
[null,null,null,null,null,null,null,null,null,null,null,null,0,0," ",0]
[null,null,null,null,null,null,null,null,null,null,null,null,0,0," ",0]
[null,null,null,null,null,null,null,null,null,null,null,null,0,0," ",0]
[null,null,null,null,null,null,null,null,null,null,null,null,0,0," ",0]
[null,null,null,null,null,null,null,null,null,null,null,null,0,0," ",0]
[null,null,null,null,null,null,null,null,null,null,null,null,0,0," ",0]
[null,null,null,null,null,null,null,null,null,null,null,null,0,0," ",0]
[null,null,null,null,null,null,null,null,null,null,null,null,0,0," ",0]
[null,null,null,null,null,null,null,null,null,null,null,null,0,0," ",0]
[null,null,null,null,null,null,null,null,null,null,null,null,0,0," ",0]
[null,null,null,null,null,null,null,null,null,null,null,null,0,0," ",0]
[null,null,null,null,null,null,null,null,null,null,null,null,0,0," ",0]
[null,null,null,null,null,null,null,null,null,null,null,null,0,0," ",0]
[null,null,null,null,null,null,null,null,null,null,null,null,0,0," ",0]
[null,null,null,null,null,null,null,null,null,null,null,null,0,0," ",0]
[null,null,null,null,null,null,null,null,null,null,null,null,0,0," ",0]
[null,null,null,null,null,null,null,null,null,null,null,null,0,0," ",0]
[null,null,null,null,null,null,null,null,null,null,null,null,0,0," ",0]
[null,null,null,null,null,null,null,null,null,null,null,null,0,0," ",0]
[null,null,null,null,null,null,null,null,null,null,null,null,0,0," ",0]
[null,null,null,null,null,null,null,null,null,null,null,null,0,0," ",0]
[null,null,null,null,null,null,null,null,null,null,null,null,0,0," ",0]
[null,null,null,null,null,null,null,null,null,null,null,null,0,0," ",0]
[null,null,null,null,null,null,null,null,null,null,null,null,0,0," ",0]
[null,null,null,null,null,null,null,null,null,null,null,null,0,0," ",0]
[null,null,null,null,null,null,null,null,null,null,null,null,0,0," ",0]
[null,null,null,null,null,null,null,null,null,null,null,null,0,0," ",0]
[null,null,null,null,null,null,null,null,null,null,null,null,0,0," ",0]
[null,null,null,null,null,null,null,null,null,null,null,null,0,0," ",0]
[null,null,null,null,null,null,null,null,null,null,null,null,0,0," ",0]
[null,null,null,null,null,null,null,null,null,null,null,null,0,0," ",0]
[null,null,null,null,null,null,null,null,null,null,null,null,0,0," ",0]
[null,null,null,null,null,null,null,null,null,null,null,null,0,0," ",0]
[null,null,null,null,null,null,null,null,null,null,null,null,0,0," ",0]
[null,null,null,null,null,null,null,null,null,null,null,null,0,0," ",0]
[null,null,null,null,null,null,null,null,null,null,null,null,{"$f":"IF(ISNA(VLOOKUP(C1254&G1254,$V$3:$W$95,2,FALSE)),0,VLOOKUP(C1254&G1254,$V$3:$W$95,2,FALSE))","v":0},{"$f":"IF(D1254=\"d\",SUM(J1254*2,K1254),J1254)","v":0},{"$f":"E1254&\" \"&F1254","v":" "},{"$f":"SUM(M1254,N1254)","v":0}]
[null,null,null,null,null,null,null,null,null,null,null,null,0,0," ",0]
[null,null,null,null,null,null,null,null,null,null,null,null,0,0," ",0]
[null,null,null,null,null,null,null,null,null,null,null,null,0,0," ",0]
[null,null,null,null,null,null,null,null,null,null,null,null,0,0," ",0]
[null,null,null,null,null,null,null,null,null,null,null,null,0,0," ",0]
[null,null,null,null,null,null,null,null,null,null,null,null,0,0," ",0]
[null,null,null,null,null,null,null,null,null,null,null,null,0,0," ",0]
[null,null,null,null,null,null,null,null,null,null,null,null,0,0," ",0]
[null,null,null,null,null,null,null,null,null,null,null,null,0,0," ",0]
[null,null,null,null,null,null,null,null,null,null,null,null,0,0," ",0]
[null,null,null,null,null,null,null,null,null,null,null,null,0,0," ",0]
[null,null,null,null,null,null,null,null,null,null,null,null,0,0," ",0]
[null,null,null,null,null,null,null,null,null,null,null,null,0,0," ",0]
[null,null,null,null,null,null,null,null,null,null,null,null,0,0," ",0]
[null,null,null,null,null,null,null,null,null,null,null,null,0,0," ",0]
[null,null,null,null,null,null,null,null,null,null,null,null,0,0," ",0]
[null,null,null,null,null,null,null,null,null,null,null,null,0,0," ",0]
[null,null,null,null,null,null,null,null,null,null,null,null,0,0," ",0]
[null,null,null,null,null,null,null,null,null,null,null,null,0,0," ",0]
[null,null,null,null,null,null,null,null,null,null,null,null,0,0," ",0]
[null,null,null,null,null,null,null,null,null,null,null,null,0,0," ",0]
[null,null,null,null,null,null,null,null,null,null,null,null,0,0," ",0]
[null,null,null,null,null,null,null,null,null,null,null,null,0,0," ",0]
[null,null,null,null,null,null,null,null,null,null,null,null,0,0," ",0]
[null,null,null,null,null,null,null,null,null,null,null,null,0,0," ",0]
[null,null,null,null,null,null,null,null,null,null,null,null,0,0," ",0]
[null,null,null,null,null,null,null,null,null,null,null,null,0,0," ",0]
[null,null,null,null,null,null,null,null,null,null,null,null,0,0," ",0]
[null,null,null,null,null,null,null,null,null,null,null,null,0,0," ",0]
[null,null,null,null,null,null,null,null,null,null,null,null,0,0," ",0]
[null,null,null,null,null,null,null,null,null,null,null,null,0,0," ",0]
[null,null,null,null,null,null,null,null,null,null,null,null,0,0," ",0]
[null,null,null,null,null,null,null,null,null,null,null,null,0,0," ",0]
[null,null,null,null,null,null,null,null,null,null,null,null,0,0," ",0]
[null,null,null,null,null,null,null,null,null,null,null,null,0,0," ",0]
[null,null,null,null,null,null,null,null,null,null,null,null,0,0," ",0]
[null,null,null,null,null,null,null,null,null,null,null,null,0,0," ",0]
[null,null,null,null,null,null,null,null,null,null,null,null,0,0," ",0]
[null,null,null,null,null,null,null,null,null,null,null,null,0,0," ",0]
[null,null,null,null,null,null,null,null,null,null,null,null,0,0," ",0]
[null,null,null,null,null,null,null,null,null,null,null,null,0,0," ",0]
[null,null,null,null,null,null,null,null,null,null,null,null,0,0," ",0]
[null,null,null,null,null,null,null,null,null,null,null,null,0,0," ",0]
[null,null,null,null,null,null,null,null,null,null,null,null,0,0," ",0]
[null,null,null,null,null,null,null,null,null,null,null,null,0,0," ",0]
[null,null,null,null,null,null,null,null,null,null,null,null,0,0," ",0]
[null,null,null,null,null,null,null,null,null,null,null,null,0,0," ",0]
[null,null,null,null,null,null,null,null,null,null,null,null,0,0," ",0]
[null,null,null,null,null,null,null,null,null,null,null,null,0,0," ",0]
[null,null,null,null,null,null,null,null,null,null,null,null,0,0," ",0]
[null,null,null,null,null,null,null,null,null,null,null,null,0,0," ",0]
[null,null,null,null,null,null,null,null,null,null,null,null,0,0," ",0]
[null,null,null,null,null,null,null,null,null,null,null,null,0,0," ",0]
[null,null,null,null,null,null,null,null,null,null,null,null,0,0," ",0]
[null,null,null,null,null,null,null,null,null,null,null,null,0,0," ",0]
[null,null,null,null,null,null,null,null,null,null,null,null,0,0," ",0]
[null,null,null,null,null,null,null,null,null,null,null,null,0,0," ",0]
[null,null,null,null,null,null,null,null,null,null,null,null,0,0," ",0]
[null,null,null,null,null,null,null,null,null,null,null,null,0,0," ",0]
[null,null,null,null,null,null,null,null,null,null,null,null,0,0," ",0]
[null,null,null,null,null,null,null,null,null,null,null,null,0,0," ",0]
[null,null,null,null,null,null,null,null,null,null,null,null,0,0," ",0]
[null,null,null,null,null,null,null,null,null,null,null,null,0,0," ",0]
[null,null,null,null,null,null,null,null,null,null,null,null,{"$f":"IF(ISNA(VLOOKUP(C1318&G1318,$V$3:$W$95,2,FALSE)),0,VLOOKUP(C1318&G1318,$V$3:$W$95,2,FALSE))","v":0},{"$f":"IF(D1318=\"d\",SUM(J1318*2,K1318),J1318)","v":0},{"$f":"E1318&\" \"&F1318","v":" "},{"$f":"SUM(M1318,N1318)","v":0}]
[null,null,null,null,null,null,null,null,null,null,null,null,0,0," ",0]
[null,null,null,null,null,null,null,null,null,null,null,null,0,0," ",0]
[null,null,null,null,null,null,null,null,null,null,null,null,0,0," ",0]
[null,null,null,null,null,null,null,null,null,null,null,null,0,0," ",0]
[null,null,null,null,null,null,null,null,null,null,null,null,0,0," ",0]
[null,null,null,null,null,null,null,null,null,null,null,null,0,0," ",0]
[null,null,null,null,null,null,null,null,null,null,null,null,0,0," ",0]
[null,null,null,null,null,null,null,null,null,null,null,null,0,0," ",0]
[null,null,null,null,null,null,null,null,null,null,null,null,0,0," ",0]
[null,null,null,null,null,null,null,null,null,null,null,null,0,0," ",0]
[null,null,null,null,null,null,null,null,null,null,null,null,0,0," ",0]
[null,null,null,null,null,null,null,null,null,null,null,null,0,0," ",0]
[null,null,null,null,null,null,null,null,null,null,null,null,0,0," ",0]
[null,null,null,null,null,null,null,null,null,null,null,null,0,0," ",0]
[null,null,null,null,null,null,null,null,null,null,null,null,0,0," ",0]
[null,null,null,null,null,null,null,null,null,null,null,null,0,0," ",0]
[null,null,null,null,null,null,null,null,null,null,null,null,0,0," ",0]
[null,null,null,null,null,null,null,null,null,null,null,null,0,0," ",0]
[null,null,null,null,null,null,null,null,null,null,null,null,0,0," ",0]
[null,null,null,null,null,null,null,null,null,null,null,null,0,0," ",0]
[null,null,null,null,null,null,null,null,null,null,null,null,0,0," ",0]
[null,null,null,null,null,null,null,null,null,null,null,null,0,0," ",0]
[null,null,null,null,null,null,null,null,null,null,null,null,0,0," ",0]
[null,null,null,null,null,null,null,null,null,null,null,null,0,0," ",0]
[null,null,null,null,null,null,null,null,null,null,null,null,0,0," ",0]
[null,null,null,null,null,null,null,null,null,null,null,null,0,0," ",0]
[null,null,null,null,null,null,null,null,null,null,null,null,0,0," ",0]
[null,null,null,null,null,null,null,null,null,null,null,null,0,0," ",0]
[null,null,null,null,null,null,null,null,null,null,null,null,0,0," ",0]
[null,null,null,null,null,null,null,null,null,null,null,null,0,0," ",0]
[null,null,null,null,null,null,null,null,null,null,null,null,0,0," ",0]
[null,null,null,null,null,null,null,null,null,null,null,null,0,0," ",0]
[null,null,null,null,null,null,null,null,null,null,null,null,0,0," ",0]
[null,null,null,null,null,null,null,null,null,null,null,null,0,0," ",0]
[null,null,null,null,null,null,null,null,null,null,null,null,0,0," ",0]
[null,null,null,null,null,null,null,null,null,null,null,null,0,0," ",0]
[null,null,null,null,null,null,null,null,null,null,null,null,0,0," ",0]
[null,null,null,null,null,null,null,null,null,null,null,null,0,0," ",0]
[null,null,null,null,null,null,null,null,null,null,null,null,0,0," ",0]
[null,null,null,null,null,null,null,null,null,null,null,null,0,0," ",0]
[null,null,null,null,null,null,null,null,null,null,null,null,0,0," ",0]
[null,null,null,null,null,null,null,null,null,null,null,null,0,0," ",0]
[null,null,null,null,null,null,null,null,null,null,null,null,0,0," ",0]
[null,null,null,null,null,null,null,null,null,null,null,null,0,0," ",0]
[null,null,null,null,null,null,null,null,null,null,null,null,0,0," ",0]
[null,null,null,null,null,null,null,null,null,null,null,null,0,0," ",0]
[null,null,null,null,null,null,null,null,null,null,null,null,0,0," ",0]
[null,null,null,null,null,null,null,null,null,null,null,null,0,0," ",0]
[null,null,null,null,null,null,null,null,null,null,null,null,0,0," ",0]
[null,null,null,null,null,null,null,null,null,null,null,null,0,0," ",0]
[null,null,null,null,null,null,null,null,null,null,null,null,0,0," ",0]
[null,null,null,null,null,null,null,null,null,null,null,null,0,0," ",0]
[null,null,null,null,null,null,null,null,null,null,null,null,0,0," ",0]
[null,null,null,null,null,null,null,null,null,null,null,null,0,0," ",0]
[null,null,null,null,null,null,null,null,null,null,null,null,0,0," ",0]
[null,null,null,null,null,null,null,null,null,null,null,null,0,0," ",0]
[null,null,null,null,null,null,null,null,null,null,null,null,0,0," ",0]
[null,null,null,null,null,null,null,null,null,null,null,null,0,0," ",0]
[null,null,null,null,null,null,null,null,null,null,null,null,0,0," ",0]
[null,null,null,null,null,null,null,null,null,null,null,null,0,0," ",0]
[null,null,null,null,null,null,null,null,null,null,null,null,0,0," ",0]
[null,null,null,null,null,null,null,null,null,null,null,null,0,0," ",0]
[null,null,null,null,null,null,null,null,null,null,null,null,0,0," ",0]
[null,null,null,null,null,null,null,null,null,null,null,null,{"$f":"IF(ISNA(VLOOKUP(C1382&G1382,$V$3:$W$95,2,FALSE)),0,VLOOKUP(C1382&G1382,$V$3:$W$95,2,FALSE))","v":0},{"$f":"IF(D1382=\"d\",SUM(J1382*2,K1382),J1382)","v":0},{"$f":"E1382&\" \"&F1382","v":" "},{"$f":"SUM(M1382,N1382)","v":0}]
[null,null,null,null,null,null,null,null,null,null,null,null,0,0," ",0]
[null,null,null,null,null,null,null,null,null,null,null,null,0,0," ",0]
[null,null,null,null,null,null,null,null,null,null,null,null,0,0," ",0]
[null,null,null,null,null,null,null,null,null,null,null,null,0,0," ",0]
[null,null,null,null,null,null,null,null,null,null,null,null,0,0," ",0]
[null,null,null,null,null,null,null,null,null,null,null,null,0,0," ",0]
[null,null,null,null,null,null,null,null,null,null,null,null,0,0," ",0]
[null,null,null,null,null,null,null,null,null,null,null,null,0,0," ",0]
[null,null,null,null,null,null,null,null,null,null,null,null,0,0," ",0]
[null,null,null,null,null,null,null,null,null,null,null,null,0,0," ",0]
[null,null,null,null,null,null,null,null,null,null,null,null,0,0," ",0]
[null,null,null,null,null,null,null,null,null,null,null,null,0,0," ",0]
[null,null,null,null,null,null,null,null,null,null,null,null,0,0," ",0]
[null,null,null,null,null,null,null,null,null,null,null,null,0,0," ",0]
[null,null,null,null,null,null,null,null,null,null,null,null,0,0," ",0]
[null,null,null,null,null,null,null,null,null,null,null,null,0,0," ",0]
[null,null,null,null,null,null,null,null,null,null,null,null,0,0," ",0]
[null,null,null,null,null,null,null,null,null,null,null,null,0,0," ",0]
[null,null,null,null,null,null,null,null,null,null,null,null,0,0," ",0]
[null,null,null,null,null,null,null,null,null,null,null,null,0,0," ",0]
[null,null,null,null,null,null,null,null,null,null,null,null,0,0," ",0]
[null,null,null,null,null,null,null,null,null,null,null,null,0,0," ",0]
[null,null,null,null,null,null,null,null,null,null,null,null,0,0," ",0]
[null,null,null,null,null,null,null,null,null,null,null,null,0,0," ",0]
[null,null,null,null,null,null,null,null,null,null,null,null,0,0," ",0]
[null,null,null,null,null,null,null,null,null,null,null,null,0,0," ",0]
[null,null,null,null,null,null,null,null,null,null,null,null,0,0," ",0]
[null,null,null,null,null,null,null,null,null,null,null,null,0,0," ",0]
[null,null,null,null,null,null,null,null,null,null,null,null,0,0," ",0]
[null,null,null,null,null,null,null,null,null,null,null,null,0,0," ",0]
[null,null,null,null,null,null,null,null,null,null,null,null,0,0," ",0]
[null,null,null,null,null,null,null,null,null,null,null,null,0,0," ",0]
[null,null,null,null,null,null,null,null,null,null,null,null,0,0," ",0]
[null,null,null,null,null,null,null,null,null,null,null,null,0,0," ",0]
[null,null,null,null,null,null,null,null,null,null,null,null,0,0," ",0]
[null,null,null,null,null,null,null,null,null,null,null,null,0,0," ",0]
[null,null,null,null,null,null,null,null,null,null,null,null,0,0," ",0]
[null,null,null,null,null,null,null,null,null,null,null,null,0,0," ",0]
[null,null,null,null,null,null,null,null,null,null,null,null,0,0," ",0]
[null,null,null,null,null,null,null,null,null,null,null,null,0,0," ",0]
[null,null,null,null,null,null,null,null,null,null,null,null,0,0," ",0]
[null,null,null,null,null,null,null,null,null,null,null,null,0,0," ",0]
[null,null,null,null,null,null,null,null,null,null,null,null,0,0," ",0]
[null,null,null,null,null,null,null,null,null,null,null,null,0,0," ",0]
[null,null,null,null,null,null,null,null,null,null,null,null,0,0," ",0]
[null,null,null,null,null,null,null,null,null,null,null,null,0,0," ",0]
[null,null,null,null,null,null,null,null,null,null,null,null,0,0," ",0]
[null,null,null,null,null,null,null,null,null,null,null,null,0,0," ",0]
[null,null,null,null,null,null,null,null,null,null,null,null,0,0," ",0]
[null,null,null,null,null,null,null,null,null,null,null,null,0,0," ",0]
[null,null,null,null,null,null,null,null,null,null,null,null,0,0," ",0]
[null,null,null,null,null,null,null,null,null,null,null,null,{"$f":"IF(ISNA(VLOOKUP(C1434&G1434,$V$3:$W$95,2,FALSE)),0,VLOOKUP(C1434&G1434,$V$3:$W$95,2,FALSE))","v":0},{"$f":"IF(D1434=\"d\",SUM(J1434*2,K1434),J1434)","v":0},{"$f":"E1434&\" \"&F1434","v":" "},0]
[null,null,null,null,null,null,null,null,null,null,null,null,0,0," ",0]
[null,null,null,null,null,null,null,null,null,null,null,null,0,0," ",0]
[null,null,null,null,null,null,null,null,null,null,null,null,0,0," ",0]
[null,null,null,null,null,null,null,null,null,null,null,null,0,0," ",0]
[null,null,null,null,null,null,null,null,null,null,null,null,0,0," ",0]
[null,null,null,null,null,null,null,null,null,null,null,null,0,0," ",0]
[null,null,null,null,null,null,null,null,null,null,null,null,0,0," ",0]
[null,null,null,null,null,null,null,null,null,null,null,null,0,0," ",0]
[null,null,null,null,null,null,null,null,null,null,null,null,0,0," ",0]
[null,null,null,null,null,null,null,null,null,null,null,null,0,0," ",0]
[null,null,null,null,null,null,null,null,null,null,null,null,0,0," ",0]
[null,null,null,null,null,null,null,null,null,null,null,null,0,0," ",0]
[null,null,null,null,null,null,null,null,null,null,null,null,0,0," ",0]
[null,null,null,null,null,null,null,null,null,null,null,null,0,0," ",0]
[null,null,null,null,null,null,null,null,null,null,null,null,0,0," ",0]
[null,null,null,null,null,null,null,null,null,null,null,null,0,0," ",0]
[null,null,null,null,null,null,null,null,null,null,null,null,0,0," ",0]
[null,null,null,null,null,null,null,null,null,null,null,null,0,0," ",0]
[null,null,null,null,null,null,null,null,null,null,null,null,0,0," ",0]
[null,null,null,null,null,null,null,null,null,null,null,null,0,0," ",0]
[null,null,null,null,null,null,null,null,null,null,null,null,0,0," ",0]
[null,null,null,null,null,null,null,null,null,null,null,null,0,0," ",0]
[null,null,null,null,null,null,null,null,null,null,null,null,0,0," ",0]
[null,null,null,null,null,null,null,null,null,null,null,null,0,0," ",0]
[null,null,null,null,null,null,null,null,null,null,null,null,0,0," ",0]
[null,null,null,null,null,null,null,null,null,null,null,null,0,0," ",0]
[null,null,null,null,null,null,null,null,null,null,null,null,0,0," ",0]
[null,null,null,null,null,null,null,null,null,null,null,null,0,0," ",0]
[null,null,null,null,null,null,null,null,null,null,null,null,0,0," ",{"$f":"SUM(M1463,N1463)","v":0}]
[null,null,null,null,null,null,null,null,null,null,null,null,0,0," ",0]
[null,null,null,null,null,null,null,null,null,null,null,null,0,0," ",0]
[null,null,null,null,null,null,null,null,null,null,null,null,0,0," ",0]
[null,null,null,null,null,null,null,null,null,null,null,null,0,0," ",0]
[null,null,null,null,null,null,null,null,null,null,null,null,0,0," ",0]
[null,null,null,null,null,null,null,null,null,null,null,null,0,0," ",0]
[null,null,null,null,null,null,null,null,null,null,null,null,0,0," ",0]
[null,null,null,null,null,null,null,null,null,null,null,null,0,0," ",0]
[null,null,null,null,null,null,null,null,null,null,null,null,0,0," ",0]
[null,null,null,null,null,null,null,null,null,null,null,null,0,0," ",0]
[null,null,null,null,null,null,null,null,null,null,null,null,0,0," ",0]
[null,null,null,null,null,null,null,null,null,null,null,null,0,0," ",0]
[null,null,null,null,null,null,null,null,null,null,null,null,0,0," ",0]
[null,null,null,null,null,null,null,null,null,null,null,null,0,0," ",0]
[null,null,null,null,null,null,null,null,null,null,null,null,0,0," ",0]
[null,null,null,null,null,null,null,null,null,null,null,null,0,0," ",0]
[null,null,null,null,null,null,null,null,null,null,null,null,0,0," ",0]
[null,null,null,null,null,null,null,null,null,null,null,null,{"$f":"IF(ISNA(VLOOKUP(C1481&G1481,$V$3:$W$95,2,FALSE)),0,VLOOKUP(C1481&G1481,$V$3:$W$95,2,FALSE))","v":0},{"$f":"IF(D1481=\"d\",SUM(J1481*2,K1481),J1481)","v":0},{"$f":"E1481&\" \"&F1481","v":" "},{"$f":"SUM(M1481,N1481)","v":0}]
[null,null,null,null,null,null,null,null,null,null,null,null,0,0," ",0]
[null,null,null,null,null,null,null,null,null,null,null,null,0,0," ",0]
[null,null,null,null,null,null,null,null,null,null,null,null,{"$f":"IF(ISNA(VLOOKUP(C1484&G1484,$V$3:$W$95,2,FALSE)),0,VLOOKUP(C1484&G1484,$V$3:$W$95,2,FALSE))","v":0},{"$f":"IF(D1484=\"d\",SUM(J1484*2,K1484),J1484)","v":0},{"$f":"E1484&\" \"&F1484","v":" "},0]
[null,null,null,null,null,null,null,null,null,null,null,null,0,0," ",0]
[null,null,null,null,null,null,null,null,null,null,null,null,0,0," ",{"$f":"SUM(M1486,N1486)","v":0}]
[null,null,null,null,null,null,null,null,null,null,null,null,0,0," ",0]
[null,null,null,null,null,null,null,"mláďata",null,null,null,null,0,0," ",0]
[null,null,null,null,null,null,null,"mladší žákyně",null,null,null,null,0,0," ",0]
[null,null,null,null,null,null,null,"mladší žáci",null,null,null,null,0,0," ",0]
[null,null,null,null,null,null,null,"starší žákyně",null,null,null,null,0,0," ",0]
[null,null,null,null,null,null,null,"starší žáci",null,null,null,null,0,0," ",0]
[null,null,null,null,null,null,null,"dorostenky",null,null,null,null,0,0," ",0]
[null,null,null,null,null,null,null,"dorostenci",null,null,null,null,0,0," ",0]
[null,null,null,null,null,null,null,"juniorky",null,null,null,null,0,0," ",0]
[null,null,null,null,null,null,null,"junioři",null,null,null,null,0,0," ",0]
[null,null,null,null,null,null,null,"ženy",null,null,null,null,0,0," ",0]
[null,null,null,null,null,null,null,"muži",null,null,null,null,0,0," ",0]
[null,null,null,null,null,null,null,"veteráni",null,null,null,null,0,0," ",0]
[null,null,null,null,null,null,null,"kata",null,null,null,null,0,0," ",0]

{"sheet":"knt_tab","index":2,"n_rows":170,"n_cols":41,"rows_kept":170,"cut":false,"hidden":true,"merged":[]}
["kategorie","(Vše)",null,"kategorie","mláďata",null,"kategorie","mladší žáci",null,"kategorie","mladší žákyně",null,"kategorie","starší žáci",null,"kategorie","starší žákyně",null,"kategorie","dorostenci",null,"kategorie","dorostenky",null,"kategorie","junioři",null,"kategorie","juniorky",null,"kategorie","muži",null,"kategorie","ženy",null,"kategorie","veteráni",null,"kategorie","kata"]
[]
["Součet z body",null,null,"Součet z body",null,null,"Součet z body",null,null,"Součet z body",null,null,"Součet z body",null,null,"Součet z body",null,null,"Součet z body",null,null,"Součet z body",null,null,"Součet z body",null,null,"Součet z body",null,null,"Součet z body",null,null,"Součet z body",null,null,"Součet z body",null,null,"Součet z body"]
["zavodnik","Celkem",null,"zavodnik","Celkem",null,"zavodnik","Celkem",null,"zavodnik","Celkem",null,"zavodnik","Celkem",null,"zavodnik","Celkem",null,"zavodnik","Celkem",null,"zavodnik","Celkem",null,"zavodnik","Celkem",null,"zavodnik","Celkem",null,"zavodnik","Celkem",null,"zavodnik","Celkem",null,"zavodnik","Celkem",null,"zavodnik","Celkem"]
["Kaszperová Kristýna",168,null,"Podivínský Marek",104,null,"Vlček Martin",67,null,"Zoulová Karolína",68,null,"Zwilling Šimon",93,null,"Kaszperová Kristýna",130,null,"Fulneček Šimon",147,null,"Kuželová Dominika",71,null,"Křížek Šimon",65,null,"Čerchlová Markéta",16,null,"Silvestr Matěj",142,null,"Michálková Karolína",91,null,"Martínek Roman",129,null," ",0]
["Fulneček Šimon",160,null,"Podivínský Patrik",76,null,"Musial Šimon",55,null,"Šelongová Viktorie",56,null,"Přichystal Leon",85,null,"Kocmanová Lucie",50,null,"Čerchla Michal",141,null,"Vavřínová Pavla",69,null,"Kršňák Filip",22,null,"Vavřínová Pavla",12,null,"Rýpar Radek",96,null,"Václavková Tereza",27,null,"Schoffer Radim",74]
["Čerchla Michal",149,null,"Prudil Adam",72,null,"Lechovič Tobiáš",54,null,"Zoulová Tereza",49,null,"Bečka Václav",70,null,"Karasová Eliška",29,null,"Potůček Tomáš",125,null,"Rapčanová Silvie",58,null,"Motyka Dominik",20,null,"Rapčanová Silvie",12,null,"Křížek Šimon",47,null,"Kuželová Dominika",12,null,"Chlebový Arnold",50]
["Silvestr Matěj",142,null,"Kaszper Matyáš",71,null,"Bokiy Konstantin",29,null,"Nováková Victoria",32,null,"Vlk František",69,null,"Homolová Kristýna",26,null,"Pačuta Ladislav",63,null,"Kaszperová Kristýna",38,null,"Lindovský Jiří",17,null,"Kokešová Alexandra",0,null,"Svoboda Jiří",28,null,"Čerchlová Markéta",12,null,"Moravec Vlastimil",27]
["Martínek Roman",135,null,"Marušák Lukáš",61,null,"Bravanský Marek",23,null,"Kuchejdová Veronika",20,null,"To Vojtěch",66,null,"Březná Karolína",6,null,"Vontor Tomáš",56,null,"Bukovjanová Charlotte",33,null,"Chlebovský Daniel",13,null," ",0,null,"Chlebovský Daniel",28,null,"Polášková Kristýna",10,null," ",0]
["Potůček Tomáš",130,null,"Chovanec Martin",53,null,"Stránský David",23,null,"Tumlířová Violeta",4,null,"Ciora Jakub",66,null,"Slováková Tereza",3,null,"Čebík Filip",55,null,"Rapčanová Alice",30,null,"Čebík Filip",10,null,null,null,null,"Motyka Dominik",28,null,"Kokešová Alexandra",9,null,"Morav Dominik",0]
["Křížek Šimon",112,null,"Vašťák Ondřej",52,null,"Soukup Hugo",21,null,"Cséri Klára",3,null,"Stark Vojtěch",63,null," ",0,null,"Vaněk Jakub",55,null,"Mikendová Tereza",29,null,"Meixner Tomáš",9,null,null,null,null,"Lindovský Jiří",19,null," ",0]
["Podivínský Marek",104,null,"Kuchejdová Zuzana",51,null,"Nytra Sebastián",17,null,"Nováčková Tereza",0,null,"Mařec Tomáš",36,null,null,null,null,"Caletka Petr",48,null,"Kocmanová Lucie",21,null,"Fulneček Šimon",9,null,null,null,null,"Pačuta Ladislav",16]
["Rýpar Radek",96,null,"Marušáková Kateřina",51,null,"Kret Matyáš",17,null," ",0,null,"Kuluris Manolis",36,null,null,null,null,"Meixner Michal",47,null,"Močkořová Adéla",0,null,"Vršek Jakub",5,null,null,null,null,"Meixner Tomáš",14]
["Zwilling Šimon",93,null,"Vlček Viktor",50,null,"Bystrianský Jan",15,null,null,null,null,"Škoda Melichar",35,null,null,null,null,"Kristen Nicolas",44,null," ",0,null,"Caletka Michal",5,null,null,null,null,"Babič Jan",9]
["Michálková Karolína",91,null,"Cahlíková Barbora",45,null,"Lamža Radek",15,null,null,null,null,"Klepač Václav",25,null,null,null,null,"Tomek David",34,null,null,null,null,"Čerchla Michal",4,null,null,null,null,"Čebík Filip",8]
["Bečka Václav",89,null,"Szwanová Liliana",34,null,"Kouřil Sebastián",7,null,null,null,null,"Berka Daniel",23,null,null,null,null,"Kolář Vojtěch",32,null,null,null,null,"Meixner Michal",4,null,null,null,null,"Caletka Michal",6]
["Přichystal Leon",85,null,"Salomon Ondřej",32,null,"Maslík Teodor",5,null,null,null,null,"Valošek Jakub",19,null,null,null,null,"Huvar Jakub",30,null,null,null,null,"Potůček Tomáš",1,null,null,null,null,"Kršňák Filip",6]
["Kuželová Dominika",83,null,"Hon Lukáš",27,null,"Jahoda Pavel",5,null,null,null,null,"Huvar Matyáš",19,null,null,null,null,"Lavrukhin Dobrynya",26,null,null,null,null,"Kristen Nicolas",1,null,null,null,null,"Martínek Roman",6]
["Vavřínová Pavla",81,null,"Čechák Martin",26,null,"Hon Sebastián",5,null,null,null,null,"Kanclíř Šimon",12,null,null,null,null,"Kutáč Jan",25,null,null,null,null,"Kolář Vojtěch",0,null,null,null,null,"Fulneček Šimon",4]
["Pačuta Ladislav",79,null,"Řehůřek David",22,null,"Kalaš Daniel",4,null,null,null,null,"Londýn Šimon",6,null,null,null,null,"Caletka Michal",25,null,null,null,null,"Pačuta Ladislav",0,null,null,null,null,"Potůček Tomáš",4]
["Podivínský Patrik",76,null,"Ščevík Ondřej",21,null,"Bauko Viktor",4,null,null,null,null,"Murin Jan",6,null,null,null,null,"Baudiš Michal",23,null,null,null,null,"Caletka Petr",0,null,null,null,null,"Ilenčík Filip",4]
["Schoffer Radim",74,null,"Jaššo Štěpán",20,null,"Kotouček Marek",2,null,null,null,null,"Ožana Maxmilián",5,null,null,null,null,"Pospíšil Jan",22,null,null,null,null," ",0,null,null,null,null,"Čerchla Michal",4]
["Čebík Filip",73,null,"Gajda Maxim",15,null,"Gombík František",2,null,null,null,null,"Krayzel Šimon",5,null,null,null,null,"Bečka Václav",19,null,null,null,null,"Matýsek Jan",0,null,null,null,null,"Šeděnka Richard",4]
["Prudil Adam",72,null,"Hladký Dalimil",12,null,"Voronin Makar",1,null,null,null,null,"Siefert David",3,null,null,null,null,"Dryšl Adam",15,null,null,null,null,null,null,null,null,null,null," ",0]
["Kaszper Matyáš",71,null,"Richter Lukáš",11,null,"Pícha Matěj",1,null,null,null,null,"Gvošč Viktor",2,null,null,null,null,"Valošek Jakub",15,null,null,null,null,null,null,null,null,null,null,"Matýsek Jan",0]
["Kocmanová Lucie",71,null,"Bujoková Kristin",11,null,"Jaskula Oliver",1,null,null,null,null,"Šelong Tadeáš",1,null,null,null,null,"Seibert Marian",1]
["Rapčanová Silvie",70,null,"Weiss Daniel",11,null,"Šindel Jakub",1,null,null,null,null,"Bednář Matěj",0,null,null,null,null,"Vaněk Ondřej",0]
["Vlk František",69,null,"Mazůch Richard",10,null," ",0,null,null,null,null," ",0,null,null,null,null,"Salinger David",0]
["Zoulová Karolína",68,null,"Swiech Viktor",9,null,"Procházka Daniel",0,null,null,null,null,null,null,null,null,null,null," ",0]
["Vlček Martin",67,null,"Kuluri Theofania",8,null,"Boček Petr",0,null,null,null,null,null,null,null,null,null,null,"Pavlík Lukáš",0]
["To Vojtěch",66,null,"Poledník Rostislav",7,null,"Svoboda Jindřich",0]
["Ciora Jakub",66,null,"Lehnert Mikuláš",7,null,"Koch Dominik",0]
["Stark Vojtěch",63,null,"Řehůřková Jana",5,null,"Třos Vojtěch",0]
["Marušák Lukáš",61,null,"Janiurek Petr",5]
["Šelongová Viktorie",56,null,"Gunár Dominik",5]
["Vontor Tomáš",56,null,"Funiok Martin",5]
["Musial Šimon",55,null,"Gajda Martin",4]
["Vaněk Jakub",55,null,"Gajdová Agáta",3]
["Lechovič Tobiáš",54,null,"Coufalík Mikuláš",2]
["Chovanec Martin",53,null,"Hodal Herbert",2]
["Vašťák Ondřej",52,null,"Končítková Linda",1]
["Meixner Michal",51,null,"Bučánek Antonín",1]
["Kuchejdová Zuzana",51,null,"Sklenář Jáchym",1]
["Marušáková Kateřina",51,null,"Gongala Adam",1]
["Chlebový Arnold",50,null,"Galatenko Andrij",0]
["Vlček Viktor",50,null,"Strakoš Filip",0]
["Zoulová Tereza",49,null,"Hošek Tomáš",0]
["Caletka Petr",48,null,"Šumbera Teodor",0]
["Motyka Dominik",48,null,"Sýkora Václav",0]
["Kristen Nicolas",45,null,"Lednický Edgar",0]
["Cahlíková Barbora",45,null," ",0]
["Chlebovský Daniel",41]
["Mařec Tomáš",36]
["Caletka Michal",36]
["Lindovský Jiří",36]
["Kuluris Manolis",36]
["Škoda Melichar",35]
["Tomek David",34]
["Szwanová Liliana",34]
["Valošek Jakub",34]
["Bukovjanová Charlotte",33]
["Nováková Victoria",32]
["Salomon Ondřej",32]
["Kolář Vojtěch",32]
["Huvar Jakub",30]
["Rapčanová Alice",30]
["Mikendová Tereza",29]
["Bokiy Konstantin",29]
["Karasová Eliška",29]
["Kršňák Filip",28]
["Svoboda Jiří",28]
["Čerchlová Markéta",28]
["Václavková Tereza",27]
["Hon Lukáš",27]
["Moravec Vlastimil",27]
["Čechák Martin",26]
["Homolová Kristýna",26]
["Lavrukhin Dobrynya",26]
["Klepač Václav",25]
["Kutáč Jan",25]
["Stránský David",23]
["Bravanský Marek",23]
["Meixner Tomáš",23]
["Baudiš Michal",23]
["Berka Daniel",23]
["Řehůřek David",22]
["Pospíšil Jan",22]
["Soukup Hugo",21]
["Ščevík Ondřej",21]
["Kuchejdová Veronika",20]
["Jaššo Štěpán",20]
["Huvar Matyáš",19]
["Kret Matyáš",17]
["Nytra Sebastián",17]
["Bystrianský Jan",15]
["Gajda Maxim",15]
["Dryšl Adam",15]
["Lamža Radek",15]
["Kanclíř Šimon",12]
["Hladký Dalimil",12]
["Bujoková Kristin",11]
["Weiss Daniel",11]
["Richter Lukáš",11]
["Polášková Kristýna",10]
["Mazůch Richard",10]
["Babič Jan",9]
["Kokešová Alexandra",9]
["Swiech Viktor",9]
["Kuluri Theofania",8]
["Lehnert Mikuláš",7]
["Poledník Rostislav",7]
["Kouřil Sebastián",7]
["Londýn Šimon",6]
["Murin Jan",6]
["Březná Karolína",6]
["Jahoda Pavel",5]
["Řehůřková Jana",5]
["Maslík Teodor",5]
["Ožana Maxmilián",5]
["Krayzel Šimon",5]
["Gunár Dominik",5]
["Vršek Jakub",5]
["Janiurek Petr",5]
["Funiok Martin",5]
["Hon Sebastián",5]
["Bauko Viktor",4]
["Ilenčík Filip",4]
["Tumlířová Violeta",4]
["Kalaš Daniel",4]
["Šeděnka Richard",4]
["Gajda Martin",4]
["Cséri Klára",3]
["Gajdová Agáta",3]
["Siefert David",3]
["Slováková Tereza",3]
["Gvošč Viktor",2]
["Gombík František",2]
["Hodal Herbert",2]
["Coufalík Mikuláš",2]
["Kotouček Marek",2]
["Bučánek Antonín",1]
["Voronin Makar",1]
["Gongala Adam",1]
["Pícha Matěj",1]
["Jaskula Oliver",1]
["Sklenář Jáchym",1]
["Šelong Tadeáš",1]
["Seibert Marian",1]
["Šindel Jakub",1]
["Končítková Linda",1]
["Salinger David",0]
["Boček Petr",0]
["Hošek Tomáš",0]
["Pavlík Lukáš",0]
[" ",0]
["Lednický Edgar",0]
["Procházka Daniel",0]
["Koch Dominik",0]
["Vaněk Ondřej",0]
["Svoboda Jindřich",0]
["Třos Vojtěch",0]
["Bednář Matěj",0]
["Šumbera Teodor",0]
["Sýkora Václav",0]
["Galatenko Andrij",0]
["Močkořová Adéla",0]
["Morav Dominik",0]
["Strakoš Filip",0]
["Matýsek Jan",0]
["Nováčková Tereza",0]

{"sheet":"ranking","index":3,"n_rows":63,"n_cols":23,"rows_kept":63,"cut":false,"hidden":false,"merged":[[0,0,0,22]]}
[{"$f":"\"Pořadí úspěšnosti závodníků v r. \"&YEAR(vysledky!A2)","v":"Pořadí úspěšnosti závodníků v r. 2022"}]
["celkem oddíl",null,null,null,"celkem oddíl - pokračování",null,null,null,"celkem oddíl - pokračování",null,null,null,"kata",null,null,null,"starší žákyně",null,null,null,"mladší žáci - pokračování"]
["Pořadí","Příjmení","body",null,{"$f":"IF(F3=\"\",\"\",IF(G3=C63,A63,61))","v":61},{"$f":"IF(ISERR(GETPIVOTDATA(\"body\",knt_tab!$A$3,\"zavodnik\",knt_tab!A65)),\"\",IF(GETPIVOTDATA(\"body\",knt_tab!$A$3,\"zavodnik\",knt_tab!A65)=0,\"\",knt_tab!A65))","v":"Huvar Jakub"},{"$f":"IF(F3=\"\",\"\",GETPIVOTDATA(\"body\",knt_tab!$A$3,\"zavodnik\",F3))","v":30},null,{"$f":"IF(J3=\"\",\"\",IF(K3=G62,E62,ROW(I3)-ROW($I$3)+122))","v":122},{"$f":"IF(ISERR(GETPIVOTDATA(\"body\",knt_tab!$A$3,\"zavodnik\",knt_tab!A126)),\"\",IF(GETPIVOTDATA(\"body\",knt_tab!$A$3,\"zavodnik\",knt_tab!A126)=0,\"\",knt_tab!A126))","v":"Bauko Viktor"},{"$f":"IF(J3=\"\",\"\",GETPIVOTDATA(\"body\",knt_tab!$A$3,\"zavodnik\",J3))","v":4},null,"Pořadí","Příjmení","body",null,"Pořadí","Příjmení","body",null,{"$f":"IF(V3=\"\",\"\",IF(W3=S63,Q63,ROW(U3)-ROW($U$2)+10))","v":10},{"$f":"IF(ISERR(GETPIVOTDATA(\"body\",knt_tab!$G$3,\"zavodnik\",knt_tab!G15)),\"\",IF(GETPIVOTDATA(\"body\",knt_tab!$G$3,\"zavodnik\",knt_tab!G15)=0,\"\",knt_tab!G15))","v":"Lamža Radek"},{"$f":"IF(V3=\"\",\"\",GETPIVOTDATA(\"body\",knt_tab!$G$3,\"zavodnik\",V3))","v":15}]
[1,{"$f":"IF(ISERR(GETPIVOTDATA(\"body\",knt_tab!$A$3,\"zavodnik\",knt_tab!A5)),\"\",IF(GETPIVOTDATA(\"body\",knt_tab!$A$3,\"zavodnik\",knt_tab!A5)=0,\"\",knt_tab!A5))","v":"Kaszperová Kristýna"},{"$f":"IF(B4=\"\",\"\",GETPIVOTDATA(\"body\",knt_tab!$A$3,\"zavodnik\",B4))","v":168},null,{"$f":"IF(F4=\"\",\"\",IF(G4=G3,E3,ROW(E4)-ROW($E$3)+61))","v":61},{"$f":"IF(ISERR(GETPIVOTDATA(\"body\",knt_tab!$A$3,\"zavodnik\",knt_tab!A66)),\"\",IF(GETPIVOTDATA(\"body\",knt_tab!$A$3,\"zavodnik\",knt_tab!A66)=0,\"\",knt_tab!A66))","v":"Rapčanová Alice"},{"$f":"IF(F4=\"\",\"\",GETPIVOTDATA(\"body\",knt_tab!$A$3,\"zavodnik\",F4))","v":30},null,{"$f":"IF(J4=\"\",\"\",IF(K4=K3,I3,ROW(I4)-ROW($I$3)+122))","v":122},{"$f":"IF(ISERR(GETPIVOTDATA(\"body\",knt_tab!$A$3,\"zavodnik\",knt_tab!A127)),\"\",IF(GETPIVOTDATA(\"body\",knt_tab!$A$3,\"zavodnik\",knt_tab!A127)=0,\"\",knt_tab!A127))","v":"Ilenčík Filip"},{"$f":"IF(J4=\"\",\"\",GETPIVOTDATA(\"body\",knt_tab!$A$3,\"zavodnik\",J4))","v":4},null,1,{"$f":"IF(ISERR(GETPIVOTDATA(\"body\",knt_tab!$AN$3,\"zavodnik\",knt_tab!AN5)),\"\",IF(GETPIVOTDATA(\"body\",knt_tab!$AN$3,\"zavodnik\",knt_tab!AN5)=0,\"\",knt_tab!AN5))","v":""},{"$f":"IF(N4=\"\",\"\",GETPIVOTDATA(\"body\",knt_tab!$AN$3,\"zavodnik\",N4))","v":""},null,1,{"$f":"IF(ISERR(GETPIVOTDATA(\"body\",knt_tab!$P$3,\"zavodnik\",knt_tab!P5)),\"\",IF(GETPIVOTDATA(\"body\",knt_tab!$P$3,\"zavodnik\",knt_tab!P5)=0,\"\",knt_tab!P5))","v":"Kaszperová Kristýna"},{"$f":"IF(R4=\"\",\"\",GETPIVOTDATA(\"body\",knt_tab!$P$3,\"zavodnik\",R4))","v":130},null,{"$f":"IF(V4=\"\",\"\",IF(W4=W3,U3,ROW(U4)-ROW($U$2)+10))","v":12},{"$f":"IF(ISERR(GETPIVOTDATA(\"body\",knt_tab!$G$3,\"zavodnik\",knt_tab!G16)),\"\",IF(GETPIVOTDATA(\"body\",knt_tab!$G$3,\"zavodnik\",knt_tab!G16)=0,\"\",knt_tab!G16))","v":"Kouřil Sebastián"},{"$f":"IF(V4=\"\",\"\",GETPIVOTDATA(\"body\",knt_tab!$G$3,\"zavodnik\",V4))","v":7}]
[{"$f":"IF(B5=\"\",\"\",IF(C5=C4,A4,ROW(A5)-ROW($A$3)))","v":2},{"$f":"IF(ISERR(GETPIVOTDATA(\"body\",knt_tab!$A$3,\"zavodnik\",knt_tab!A6)),\"\",IF(GETPIVOTDATA(\"body\",knt_tab!$A$3,\"zavodnik\",knt_tab!A6)=0,\"\",knt_tab!A6))","v":"Fulneček Šimon"},{"$f":"IF(B5=\"\",\"\",GETPIVOTDATA(\"body\",knt_tab!$A$3,\"zavodnik\",B5))","v":160},null,{"$f":"IF(F5=\"\",\"\",IF(G5=G4,E4,ROW(E5)-ROW($E$3)+61))","v":63},{"$f":"IF(ISERR(GETPIVOTDATA(\"body\",knt_tab!$A$3,\"zavodnik\",knt_tab!A67)),\"\",IF(GETPIVOTDATA(\"body\",knt_tab!$A$3,\"zavodnik\",knt_tab!A67)=0,\"\",knt_tab!A67))","v":"Mikendová Tereza"},{"$f":"IF(F5=\"\",\"\",GETPIVOTDATA(\"body\",knt_tab!$A$3,\"zavodnik\",F5))","v":29},null,{"$f":"IF(J5=\"\",\"\",IF(K5=K4,I4,ROW(I5)-ROW($I$3)+122))","v":122},{"$f":"IF(ISERR(GETPIVOTDATA(\"body\",knt_tab!$A$3,\"zavodnik\",knt_tab!A128)),\"\",IF(GETPIVOTDATA(\"body\",knt_tab!$A$3,\"zavodnik\",knt_tab!A128)=0,\"\",knt_tab!A128))","v":"Tumlířová Violeta"},{"$f":"IF(J5=\"\",\"\",GETPIVOTDATA(\"body\",knt_tab!$A$3,\"zavodnik\",J5))","v":4},null,{"$f":"IF(N5=\"\",\"\",IF(O5=O4,M4,ROW(M5)-ROW($M$3)))","v":""},{"$f":"IF(ISERR(GETPIVOTDATA(\"body\",knt_tab!$AN$3,\"zavodnik\",knt_tab!AN6)),\"\",IF(GETPIVOTDATA(\"body\",knt_tab!$AN$3,\"zavodnik\",knt_tab!AN6)=0,\"\",knt_tab!AN6))","v":""},{"$f":"IF(N5=\"\",\"\",GETPIVOTDATA(\"body\",knt_tab!$AN$3,\"zavodnik\",N5))","v":""},null,{"$f":"IF(R5=\"\",\"\",IF(S5=S4,Q4,ROW(Q5)-ROW($Q$3)))","v":2},{"$f":"IF(ISERR(GETPIVOTDATA(\"body\",knt_tab!$P$3,\"zavodnik\",knt_tab!P6)),\"\",IF(GETPIVOTDATA(\"body\",knt_tab!$P$3,\"zavodnik\",knt_tab!P6)=0,\"\",knt_tab!P6))","v":"Kocmanová Lucie"},{"$f":"IF(R5=\"\",\"\",GETPIVOTDATA(\"body\",knt_tab!$P$3,\"zavodnik\",R5))","v":50},null,{"$f":"IF(V5=\"\",\"\",IF(W5=W4,U4,ROW(U5)-ROW($U$2)+10))","v":13},{"$f":"IF(ISERR(GETPIVOTDATA(\"body\",knt_tab!$G$3,\"zavodnik\",knt_tab!G17)),\"\",IF(GETPIVOTDATA(\"body\",knt_tab!$G$3,\"zavodnik\",knt_tab!G17)=0,\"\",knt_tab!G17))","v":"Maslík Teodor"},{"$f":"IF(V5=\"\",\"\",GETPIVOTDATA(\"body\",knt_tab!$G$3,\"zavodnik\",V5))","v":5}]
[3,{"$f":"IF(ISERR(GETPIVOTDATA(\"body\",knt_tab!$A$3,\"zavodnik\",knt_tab!A7)),\"\",IF(GETPIVOTDATA(\"body\",knt_tab!$A$3,\"zavodnik\",knt_tab!A7)=0,\"\",knt_tab!A7))","v":"Čerchla Michal"},{"$f":"IF(B6=\"\",\"\",GETPIVOTDATA(\"body\",knt_tab!$A$3,\"zavodnik\",B6))","v":149},null,63,{"$f":"IF(ISERR(GETPIVOTDATA(\"body\",knt_tab!$A$3,\"zavodnik\",knt_tab!A68)),\"\",IF(GETPIVOTDATA(\"body\",knt_tab!$A$3,\"zavodnik\",knt_tab!A68)=0,\"\",knt_tab!A68))","v":"Bokiy Konstantin"},{"$f":"IF(F6=\"\",\"\",GETPIVOTDATA(\"body\",knt_tab!$A$3,\"zavodnik\",F6))","v":29},null,122,{"$f":"IF(ISERR(GETPIVOTDATA(\"body\",knt_tab!$A$3,\"zavodnik\",knt_tab!A129)),\"\",IF(GETPIVOTDATA(\"body\",knt_tab!$A$3,\"zavodnik\",knt_tab!A129)=0,\"\",knt_tab!A129))","v":"Kalaš Daniel"},{"$f":"IF(J6=\"\",\"\",GETPIVOTDATA(\"body\",knt_tab!$A$3,\"zavodnik\",J6))","v":4},null,"Juniorky",null,null,null,3,{"$f":"IF(ISERR(GETPIVOTDATA(\"body\",knt_tab!$P$3,\"zavodnik\",knt_tab!P7)),\"\",IF(GETPIVOTDATA(\"body\",knt_tab!$P$3,\"zavodnik\",knt_tab!P7)=0,\"\",knt_tab!P7))","v":"Karasová Eliška"},{"$f":"IF(R6=\"\",\"\",GETPIVOTDATA(\"body\",knt_tab!$P$3,\"zavodnik\",R6))","v":29},null,13,{"$f":"IF(ISERR(GETPIVOTDATA(\"body\",knt_tab!$G$3,\"zavodnik\",knt_tab!G18)),\"\",IF(GETPIVOTDATA(\"body\",knt_tab!$G$3,\"zavodnik\",knt_tab!G18)=0,\"\",knt_tab!G18))","v":"Jahoda Pavel"},{"$f":"IF(V6=\"\",\"\",GETPIVOTDATA(\"body\",knt_tab!$G$3,\"zavodnik\",V6))","v":5}]
[4,{"$f":"IF(ISERR(GETPIVOTDATA(\"body\",knt_tab!$A$3,\"zavodnik\",knt_tab!A8)),\"\",IF(GETPIVOTDATA(\"body\",knt_tab!$A$3,\"zavodnik\",knt_tab!A8)=0,\"\",knt_tab!A8))","v":"Silvestr Matěj"},{"$f":"IF(B7=\"\",\"\",GETPIVOTDATA(\"body\",knt_tab!$A$3,\"zavodnik\",B7))","v":142},null,63,{"$f":"IF(ISERR(GETPIVOTDATA(\"body\",knt_tab!$A$3,\"zavodnik\",knt_tab!A69)),\"\",IF(GETPIVOTDATA(\"body\",knt_tab!$A$3,\"zavodnik\",knt_tab!A69)=0,\"\",knt_tab!A69))","v":"Karasová Eliška"},{"$f":"IF(F7=\"\",\"\",GETPIVOTDATA(\"body\",knt_tab!$A$3,\"zavodnik\",F7))","v":29},null,{"$f":"IF(J7=\"\",\"\",IF(K7=K6,I6,ROW(I7)-ROW($I$3)+122))","v":122},{"$f":"IF(ISERR(GETPIVOTDATA(\"body\",knt_tab!$A$3,\"zavodnik\",knt_tab!A130)),\"\",IF(GETPIVOTDATA(\"body\",knt_tab!$A$3,\"zavodnik\",knt_tab!A130)=0,\"\",knt_tab!A130))","v":"Šeděnka Richard"},{"$f":"IF(J7=\"\",\"\",GETPIVOTDATA(\"body\",knt_tab!$A$3,\"zavodnik\",J7))","v":4},null,"Pořadí","Příjmení","body",null,4,{"$f":"IF(ISERR(GETPIVOTDATA(\"body\",knt_tab!$P$3,\"zavodnik\",knt_tab!P8)),\"\",IF(GETPIVOTDATA(\"body\",knt_tab!$P$3,\"zavodnik\",knt_tab!P8)=0,\"\",knt_tab!P8))","v":"Homolová Kristýna"},{"$f":"IF(R7=\"\",\"\",GETPIVOTDATA(\"body\",knt_tab!$P$3,\"zavodnik\",R7))","v":26},null,13,{"$f":"IF(ISERR(GETPIVOTDATA(\"body\",knt_tab!$G$3,\"zavodnik\",knt_tab!G19)),\"\",IF(GETPIVOTDATA(\"body\",knt_tab!$G$3,\"zavodnik\",knt_tab!G19)=0,\"\",knt_tab!G19))","v":"Hon Sebastián"},{"$f":"IF(V7=\"\",\"\",GETPIVOTDATA(\"body\",knt_tab!$G$3,\"zavodnik\",V7))","v":5}]
[5,{"$f":"IF(ISERR(GETPIVOTDATA(\"body\",knt_tab!$A$3,\"zavodnik\",knt_tab!A9)),\"\",IF(GETPIVOTDATA(\"body\",knt_tab!$A$3,\"zavodnik\",knt_tab!A9)=0,\"\",knt_tab!A9))","v":"Martínek Roman"},{"$f":"IF(B8=\"\",\"\",GETPIVOTDATA(\"body\",knt_tab!$A$3,\"zavodnik\",B8))","v":135},null,66,{"$f":"IF(ISERR(GETPIVOTDATA(\"body\",knt_tab!$A$3,\"zavodnik\",knt_tab!A70)),\"\",IF(GETPIVOTDATA(\"body\",knt_tab!$A$3,\"zavodnik\",knt_tab!A70)=0,\"\",knt_tab!A70))","v":"Kršňák Filip"},{"$f":"IF(F8=\"\",\"\",GETPIVOTDATA(\"body\",knt_tab!$A$3,\"zavodnik\",F8))","v":28},null,{"$f":"IF(J8=\"\",\"\",IF(K8=K7,I7,ROW(I8)-ROW($I$3)+122))","v":122},{"$f":"IF(ISERR(GETPIVOTDATA(\"body\",knt_tab!$A$3,\"zavodnik\",knt_tab!A131)),\"\",IF(GETPIVOTDATA(\"body\",knt_tab!$A$3,\"zavodnik\",knt_tab!A131)=0,\"\",knt_tab!A131))","v":"Gajda Martin"},{"$f":"IF(J8=\"\",\"\",GETPIVOTDATA(\"body\",knt_tab!$A$3,\"zavodnik\",J8))","v":4},null,1,{"$f":"IF(ISERR(GETPIVOTDATA(\"body\",knt_tab!$AB$3,\"zavodnik\",knt_tab!AB5)),\"\",IF(GETPIVOTDATA(\"body\",knt_tab!$AB$3,\"zavodnik\",knt_tab!AB5)=0,\"\",knt_tab!AB5))","v":"Čerchlová Markéta"},{"$f":"IF(N8=\"\",\"\",GETPIVOTDATA(\"body\",knt_tab!$AB$3,\"zavodnik\",N8))","v":16},null,5,{"$f":"IF(ISERR(GETPIVOTDATA(\"body\",knt_tab!$P$3,\"zavodnik\",knt_tab!P9)),\"\",IF(GETPIVOTDATA(\"body\",knt_tab!$P$3,\"zavodnik\",knt_tab!P9)=0,\"\",knt_tab!P9))","v":"Březná Karolína"},{"$f":"IF(R8=\"\",\"\",GETPIVOTDATA(\"body\",knt_tab!$P$3,\"zavodnik\",R8))","v":6},null,16,{"$f":"IF(ISERR(GETPIVOTDATA(\"body\",knt_tab!$G$3,\"zavodnik\",knt_tab!G20)),\"\",IF(GETPIVOTDATA(\"body\",knt_tab!$G$3,\"zavodnik\",knt_tab!G20)=0,\"\",knt_tab!G20))","v":"Kalaš Daniel"},{"$f":"IF(V8=\"\",\"\",GETPIVOTDATA(\"body\",knt_tab!$G$3,\"zavodnik\",V8))","v":4}]
[6,{"$f":"IF(ISERR(GETPIVOTDATA(\"body\",knt_tab!$A$3,\"zavodnik\",knt_tab!A10)),\"\",IF(GETPIVOTDATA(\"body\",knt_tab!$A$3,\"zavodnik\",knt_tab!A10)=0,\"\",knt_tab!A10))","v":"Potůček Tomáš"},{"$f":"IF(B9=\"\",\"\",GETPIVOTDATA(\"body\",knt_tab!$A$3,\"zavodnik\",B9))","v":130},null,66,{"$f":"IF(ISERR(GETPIVOTDATA(\"body\",knt_tab!$A$3,\"zavodnik\",knt_tab!A71)),\"\",IF(GETPIVOTDATA(\"body\",knt_tab!$A$3,\"zavodnik\",knt_tab!A71)=0,\"\",knt_tab!A71))","v":"Svoboda Jiří"},{"$f":"IF(F9=\"\",\"\",GETPIVOTDATA(\"body\",knt_tab!$A$3,\"zavodnik\",F9))","v":28},null,128,{"$f":"IF(ISERR(GETPIVOTDATA(\"body\",knt_tab!$A$3,\"zavodnik\",knt_tab!A132)),\"\",IF(GETPIVOTDATA(\"body\",knt_tab!$A$3,\"zavodnik\",knt_tab!A132)=0,\"\",knt_tab!A132))","v":"Cséri Klára"},{"$f":"IF(J9=\"\",\"\",GETPIVOTDATA(\"body\",knt_tab!$A$3,\"zavodnik\",J9))","v":3},null,{"$f":"IF(N9=\"\",\"\",IF(O9=O8,M8,ROW(M9)-ROW($M$7)))","v":2},{"$f":"IF(ISERR(GETPIVOTDATA(\"body\",knt_tab!$AB$3,\"zavodnik\",knt_tab!AB6)),\"\",IF(GETPIVOTDATA(\"body\",knt_tab!$AB$3,\"zavodnik\",knt_tab!AB6)=0,\"\",knt_tab!AB6))","v":"Vavřínová Pavla"},{"$f":"IF(N9=\"\",\"\",GETPIVOTDATA(\"body\",knt_tab!$AB$3,\"zavodnik\",N9))","v":12},null,6,{"$f":"IF(ISERR(GETPIVOTDATA(\"body\",knt_tab!$P$3,\"zavodnik\",knt_tab!P10)),\"\",IF(GETPIVOTDATA(\"body\",knt_tab!$P$3,\"zavodnik\",knt_tab!P10)=0,\"\",knt_tab!P10))","v":"Slováková Tereza"},{"$f":"IF(R9=\"\",\"\",GETPIVOTDATA(\"body\",knt_tab!$P$3,\"zavodnik\",R9))","v":3},null,16,{"$f":"IF(ISERR(GETPIVOTDATA(\"body\",knt_tab!$G$3,\"zavodnik\",knt_tab!G21)),\"\",IF(GETPIVOTDATA(\"body\",knt_tab!$G$3,\"zavodnik\",knt_tab!G21)=0,\"\",knt_tab!G21))","v":"Bauko Viktor"},{"$f":"IF(V9=\"\",\"\",GETPIVOTDATA(\"body\",knt_tab!$G$3,\"zavodnik\",V9))","v":4}]
[7,{"$f":"IF(ISERR(GETPIVOTDATA(\"body\",knt_tab!$A$3,\"zavodnik\",knt_tab!A11)),\"\",IF(GETPIVOTDATA(\"body\",knt_tab!$A$3,\"zavodnik\",knt_tab!A11)=0,\"\",knt_tab!A11))","v":"Křížek Šimon"},{"$f":"IF(B10=\"\",\"\",GETPIVOTDATA(\"body\",knt_tab!$A$3,\"zavodnik\",B10))","v":112},null,66,{"$f":"IF(ISERR(GETPIVOTDATA(\"body\",knt_tab!$A$3,\"zavodnik\",knt_tab!A72)),\"\",IF(GETPIVOTDATA(\"body\",knt_tab!$A$3,\"zavodnik\",knt_tab!A72)=0,\"\",knt_tab!A72))","v":"Čerchlová Markéta"},{"$f":"IF(F10=\"\",\"\",GETPIVOTDATA(\"body\",knt_tab!$A$3,\"zavodnik\",F10))","v":28},null,128,{"$f":"IF(ISERR(GETPIVOTDATA(\"body\",knt_tab!$A$3,\"zavodnik\",knt_tab!A133)),\"\",IF(GETPIVOTDATA(\"body\",knt_tab!$A$3,\"zavodnik\",knt_tab!A133)=0,\"\",knt_tab!A133))","v":"Gajdová Agáta"},{"$f":"IF(J10=\"\",\"\",GETPIVOTDATA(\"body\",knt_tab!$A$3,\"zavodnik\",J10))","v":3},null,{"$f":"IF(N10=\"\",\"\",IF(O10=O9,M9,ROW(M10)-ROW($M$7)))","v":2},{"$f":"IF(ISERR(GETPIVOTDATA(\"body\",knt_tab!$AB$3,\"zavodnik\",knt_tab!AB7)),\"\",IF(GETPIVOTDATA(\"body\",knt_tab!$AB$3,\"zavodnik\",knt_tab!AB7)=0,\"\",knt_tab!AB7))","v":"Rapčanová Silvie"},{"$f":"IF(N10=\"\",\"\",GETPIVOTDATA(\"body\",knt_tab!$AB$3,\"zavodnik\",N10))","v":12},null,"",{"$f":"IF(ISERR(GETPIVOTDATA(\"body\",knt_tab!$P$3,\"zavodnik\",knt_tab!P11)),\"\",IF(GETPIVOTDATA(\"body\",knt_tab!$P$3,\"zavodnik\",knt_tab!P11)=0,\"\",knt_tab!P11))","v":""},{"$f":"IF(R10=\"\",\"\",GETPIVOTDATA(\"body\",knt_tab!$P$3,\"zavodnik\",R10))","v":""},null,18,{"$f":"IF(ISERR(GETPIVOTDATA(\"body\",knt_tab!$G$3,\"zavodnik\",knt_tab!G22)),\"\",IF(GETPIVOTDATA(\"body\",knt_tab!$G$3,\"zavodnik\",knt_tab!G22)=0,\"\",knt_tab!G22))","v":"Kotouček Marek"},{"$f":"IF(V10=\"\",\"\",GETPIVOTDATA(\"body\",knt_tab!$G$3,\"zavodnik\",V10))","v":2}]
[8,{"$f":"IF(ISERR(GETPIVOTDATA(\"body\",knt_tab!$A$3,\"zavodnik\",knt_tab!A12)),\"\",IF(GETPIVOTDATA(\"body\",knt_tab!$A$3,\"zavodnik\",knt_tab!A12)=0,\"\",knt_tab!A12))","v":"Podivínský Marek"},{"$f":"IF(B11=\"\",\"\",GETPIVOTDATA(\"body\",knt_tab!$A$3,\"zavodnik\",B11))","v":104},null,69,{"$f":"IF(ISERR(GETPIVOTDATA(\"body\",knt_tab!$A$3,\"zavodnik\",knt_tab!A73)),\"\",IF(GETPIVOTDATA(\"body\",knt_tab!$A$3,\"zavodnik\",knt_tab!A73)=0,\"\",knt_tab!A73))","v":"Václavková Tereza"},{"$f":"IF(F11=\"\",\"\",GETPIVOTDATA(\"body\",knt_tab!$A$3,\"zavodnik\",F11))","v":27},null,128,{"$f":"IF(ISERR(GETPIVOTDATA(\"body\",knt_tab!$A$3,\"zavodnik\",knt_tab!A134)),\"\",IF(GETPIVOTDATA(\"body\",knt_tab!$A$3,\"zavodnik\",knt_tab!A134)=0,\"\",knt_tab!A134))","v":"Siefert David"},{"$f":"IF(J11=\"\",\"\",GETPIVOTDATA(\"body\",knt_tab!$A$3,\"zavodnik\",J11))","v":3},null,{"$f":"IF(N11=\"\",\"\",IF(O11=O10,M10,ROW(M11)-ROW($M$7)))","v":""},{"$f":"IF(ISERR(GETPIVOTDATA(\"body\",knt_tab!$AB$3,\"zavodnik\",knt_tab!AB8)),\"\",IF(GETPIVOTDATA(\"body\",knt_tab!$AB$3,\"zavodnik\",knt_tab!AB8)=0,\"\",knt_tab!AB8))","v":""},{"$f":"IF(N11=\"\",\"\",GETPIVOTDATA(\"body\",knt_tab!$AB$3,\"zavodnik\",N11))","v":""},null,"",{"$f":"IF(ISERR(GETPIVOTDATA(\"body\",knt_tab!$P$3,\"zavodnik\",knt_tab!P12)),\"\",IF(GETPIVOTDATA(\"body\",knt_tab!$P$3,\"zavodnik\",knt_tab!P12)=0,\"\",knt_tab!P12))","v":""},{"$f":"IF(R11=\"\",\"\",GETPIVOTDATA(\"body\",knt_tab!$P$3,\"zavodnik\",R11))","v":""},null,18,{"$f":"IF(ISERR(GETPIVOTDATA(\"body\",knt_tab!$G$3,\"zavodnik\",knt_tab!G23)),\"\",IF(GETPIVOTDATA(\"body\",knt_tab!$G$3,\"zavodnik\",knt_tab!G23)=0,\"\",knt_tab!G23))","v":"Gombík František"},{"$f":"IF(V11=\"\",\"\",GETPIVOTDATA(\"body\",knt_tab!$G$3,\"zavodnik\",V11))","v":2}]
[9,{"$f":"IF(ISERR(GETPIVOTDATA(\"body\",knt_tab!$A$3,\"zavodnik\",knt_tab!A13)),\"\",IF(GETPIVOTDATA(\"body\",knt_tab!$A$3,\"zavodnik\",knt_tab!A13)=0,\"\",knt_tab!A13))","v":"Rýpar Radek"},{"$f":"IF(B12=\"\",\"\",GETPIVOTDATA(\"body\",knt_tab!$A$3,\"zavodnik\",B12))","v":96},null,69,{"$f":"IF(ISERR(GETPIVOTDATA(\"body\",knt_tab!$A$3,\"zavodnik\",knt_tab!A74)),\"\",IF(GETPIVOTDATA(\"body\",knt_tab!$A$3,\"zavodnik\",knt_tab!A74)=0,\"\",knt_tab!A74))","v":"Hon Lukáš"},{"$f":"IF(F12=\"\",\"\",GETPIVOTDATA(\"body\",knt_tab!$A$3,\"zavodnik\",F12))","v":27},null,128,{"$f":"IF(ISERR(GETPIVOTDATA(\"body\",knt_tab!$A$3,\"zavodnik\",knt_tab!A135)),\"\",IF(GETPIVOTDATA(\"body\",knt_tab!$A$3,\"zavodnik\",knt_tab!A135)=0,\"\",knt_tab!A135))","v":"Slováková Tereza"},{"$f":"IF(J12=\"\",\"\",GETPIVOTDATA(\"body\",knt_tab!$A$3,\"zavodnik\",J12))","v":3},null,"Junioři",null,null,null,null,null,null,null,20,{"$f":"IF(ISERR(GETPIVOTDATA(\"body\",knt_tab!$G$3,\"zavodnik\",knt_tab!G24)),\"\",IF(GETPIVOTDATA(\"body\",knt_tab!$G$3,\"zavodnik\",knt_tab!G24)=0,\"\",knt_tab!G24))","v":"Voronin Makar"},{"$f":"IF(V12=\"\",\"\",GETPIVOTDATA(\"body\",knt_tab!$G$3,\"zavodnik\",V12))","v":1}]
[10,{"$f":"IF(ISERR(GETPIVOTDATA(\"body\",knt_tab!$A$3,\"zavodnik\",knt_tab!A14)),\"\",IF(GETPIVOTDATA(\"body\",knt_tab!$A$3,\"zavodnik\",knt_tab!A14)=0,\"\",knt_tab!A14))","v":"Zwilling Šimon"},{"$f":"IF(B13=\"\",\"\",GETPIVOTDATA(\"body\",knt_tab!$A$3,\"zavodnik\",B13))","v":93},null,69,{"$f":"IF(ISERR(GETPIVOTDATA(\"body\",knt_tab!$A$3,\"zavodnik\",knt_tab!A75)),\"\",IF(GETPIVOTDATA(\"body\",knt_tab!$A$3,\"zavodnik\",knt_tab!A75)=0,\"\",knt_tab!A75))","v":"Moravec Vlastimil"},{"$f":"IF(F13=\"\",\"\",GETPIVOTDATA(\"body\",knt_tab!$A$3,\"zavodnik\",F13))","v":27},null,{"$f":"IF(J13=\"\",\"\",IF(K13=K12,I12,ROW(I13)-ROW($I$3)+122))","v":132},{"$f":"IF(ISERR(GETPIVOTDATA(\"body\",knt_tab!$A$3,\"zavodnik\",knt_tab!A136)),\"\",IF(GETPIVOTDATA(\"body\",knt_tab!$A$3,\"zavodnik\",knt_tab!A136)=0,\"\",knt_tab!A136))","v":"Gvošč Viktor"},{"$f":"IF(J13=\"\",\"\",GETPIVOTDATA(\"body\",knt_tab!$A$3,\"zavodnik\",J13))","v":2},null,"Pořadí","Příjmení","body",null,"starší žáci",null,null,null,20,{"$f":"IF(ISERR(GETPIVOTDATA(\"body\",knt_tab!$G$3,\"zavodnik\",knt_tab!G25)),\"\",IF(GETPIVOTDATA(\"body\",knt_tab!$G$3,\"zavodnik\",knt_tab!G25)=0,\"\",knt_tab!G25))","v":"Pícha Matěj"},{"$f":"IF(V13=\"\",\"\",GETPIVOTDATA(\"body\",knt_tab!$G$3,\"zavodnik\",V13))","v":1}]
[11,{"$f":"IF(ISERR(GETPIVOTDATA(\"body\",knt_tab!$A$3,\"zavodnik\",knt_tab!A15)),\"\",IF(GETPIVOTDATA(\"body\",knt_tab!$A$3,\"zavodnik\",knt_tab!A15)=0,\"\",knt_tab!A15))","v":"Michálková Karolína"},{"$f":"IF(B14=\"\",\"\",GETPIVOTDATA(\"body\",knt_tab!$A$3,\"zavodnik\",B14))","v":91},null,72,{"$f":"IF(ISERR(GETPIVOTDATA(\"body\",knt_tab!$A$3,\"zavodnik\",knt_tab!A76)),\"\",IF(GETPIVOTDATA(\"body\",knt_tab!$A$3,\"zavodnik\",knt_tab!A76)=0,\"\",knt_tab!A76))","v":"Čechák Martin"},{"$f":"IF(F14=\"\",\"\",GETPIVOTDATA(\"body\",knt_tab!$A$3,\"zavodnik\",F14))","v":26},null,132,{"$f":"IF(ISERR(GETPIVOTDATA(\"body\",knt_tab!$A$3,\"zavodnik\",knt_tab!A137)),\"\",IF(GETPIVOTDATA(\"body\",knt_tab!$A$3,\"zavodnik\",knt_tab!A137)=0,\"\",knt_tab!A137))","v":"Gombík František"},{"$f":"IF(J14=\"\",\"\",GETPIVOTDATA(\"body\",knt_tab!$A$3,\"zavodnik\",J14))","v":2},null,1,{"$f":"IF(ISERR(GETPIVOTDATA(\"body\",knt_tab!$Y$3,\"zavodnik\",knt_tab!Y5)),\"\",IF(GETPIVOTDATA(\"body\",knt_tab!$Y$3,\"zavodnik\",knt_tab!Y5)=0,\"\",knt_tab!Y5))","v":"Křížek Šimon"},{"$f":"IF(N14=\"\",\"\",GETPIVOTDATA(\"body\",knt_tab!$Y$3,\"zavodnik\",N14))","v":65},null,"Pořadí","Příjmení","body",null,20,{"$f":"IF(ISERR(GETPIVOTDATA(\"body\",knt_tab!$G$3,\"zavodnik\",knt_tab!G26)),\"\",IF(GETPIVOTDATA(\"body\",knt_tab!$G$3,\"zavodnik\",knt_tab!G26)=0,\"\",knt_tab!G26))","v":"Jaskula Oliver"},{"$f":"IF(V14=\"\",\"\",GETPIVOTDATA(\"body\",knt_tab!$G$3,\"zavodnik\",V14))","v":1}]
[12,{"$f":"IF(ISERR(GETPIVOTDATA(\"body\",knt_tab!$A$3,\"zavodnik\",knt_tab!A16)),\"\",IF(GETPIVOTDATA(\"body\",knt_tab!$A$3,\"zavodnik\",knt_tab!A16)=0,\"\",knt_tab!A16))","v":"Bečka Václav"},{"$f":"IF(B15=\"\",\"\",GETPIVOTDATA(\"body\",knt_tab!$A$3,\"zavodnik\",B15))","v":89},null,72,{"$f":"IF(ISERR(GETPIVOTDATA(\"body\",knt_tab!$A$3,\"zavodnik\",knt_tab!A77)),\"\",IF(GETPIVOTDATA(\"body\",knt_tab!$A$3,\"zavodnik\",knt_tab!A77)=0,\"\",knt_tab!A77))","v":"Homolová Kristýna"},{"$f":"IF(F15=\"\",\"\",GETPIVOTDATA(\"body\",knt_tab!$A$3,\"zavodnik\",F15))","v":26},null,132,{"$f":"IF(ISERR(GETPIVOTDATA(\"body\",knt_tab!$A$3,\"zavodnik\",knt_tab!A138)),\"\",IF(GETPIVOTDATA(\"body\",knt_tab!$A$3,\"zavodnik\",knt_tab!A138)=0,\"\",knt_tab!A138))","v":"Hodal Herbert"},{"$f":"IF(J15=\"\",\"\",GETPIVOTDATA(\"body\",knt_tab!$A$3,\"zavodnik\",J15))","v":2},null,{"$f":"IF(N15=\"\",\"\",IF(O15=O14,M14,ROW(M15)-ROW($M$13)))","v":2},{"$f":"IF(ISERR(GETPIVOTDATA(\"body\",knt_tab!$Y$3,\"zavodnik\",knt_tab!Y6)),\"\",IF(GETPIVOTDATA(\"body\",knt_tab!$Y$3,\"zavodnik\",knt_tab!Y6)=0,\"\",knt_tab!Y6))","v":"Kršňák Filip"},{"$f":"IF(N15=\"\",\"\",GETPIVOTDATA(\"body\",knt_tab!$Y$3,\"zavodnik\",N15))","v":22},null,1,{"$f":"IF(ISERR(GETPIVOTDATA(\"body\",knt_tab!$M$3,\"zavodnik\",knt_tab!M5)),\"\",IF(GETPIVOTDATA(\"body\",knt_tab!$M$3,\"zavodnik\",knt_tab!M5)=0,\"\",knt_tab!M5))","v":"Zwilling Šimon"},{"$f":"IF(R15=\"\",\"\",GETPIVOTDATA(\"body\",knt_tab!$M$3,\"zavodnik\",R15))","v":93},null,20,{"$f":"IF(ISERR(GETPIVOTDATA(\"body\",knt_tab!$G$3,\"zavodnik\",knt_tab!G27)),\"\",IF(GETPIVOTDATA(\"body\",knt_tab!$G$3,\"zavodnik\",knt_tab!G27)=0,\"\",knt_tab!G27))","v":"Šindel Jakub"},{"$f":"IF(V15=\"\",\"\",GETPIVOTDATA(\"body\",knt_tab!$G$3,\"zavodnik\",V15))","v":1}]
[13,{"$f":"IF(ISERR(GETPIVOTDATA(\"body\",knt_tab!$A$3,\"zavodnik\",knt_tab!A17)),\"\",IF(GETPIVOTDATA(\"body\",knt_tab!$A$3,\"zavodnik\",knt_tab!A17)=0,\"\",knt_tab!A17))","v":"Přichystal Leon"},{"$f":"IF(B16=\"\",\"\",GETPIVOTDATA(\"body\",knt_tab!$A$3,\"zavodnik\",B16))","v":85},null,72,{"$f":"IF(ISERR(GETPIVOTDATA(\"body\",knt_tab!$A$3,\"zavodnik\",knt_tab!A78)),\"\",IF(GETPIVOTDATA(\"body\",knt_tab!$A$3,\"zavodnik\",knt_tab!A78)=0,\"\",knt_tab!A78))","v":"Lavrukhin Dobrynya"},{"$f":"IF(F16=\"\",\"\",GETPIVOTDATA(\"body\",knt_tab!$A$3,\"zavodnik\",F16))","v":26},null,132,{"$f":"IF(ISERR(GETPIVOTDATA(\"body\",knt_tab!$A$3,\"zavodnik\",knt_tab!A139)),\"\",IF(GETPIVOTDATA(\"body\",knt_tab!$A$3,\"zavodnik\",knt_tab!A139)=0,\"\",knt_tab!A139))","v":"Coufalík Mikuláš"},{"$f":"IF(J16=\"\",\"\",GETPIVOTDATA(\"body\",knt_tab!$A$3,\"zavodnik\",J16))","v":2},null,3,{"$f":"IF(ISERR(GETPIVOTDATA(\"body\",knt_tab!$Y$3,\"zavodnik\",knt_tab!Y7)),\"\",IF(GETPIVOTDATA(\"body\",knt_tab!$Y$3,\"zavodnik\",knt_tab!Y7)=0,\"\",knt_tab!Y7))","v":"Motyka Dominik"},{"$f":"IF(N16=\"\",\"\",GETPIVOTDATA(\"body\",knt_tab!$Y$3,\"zavodnik\",N16))","v":20},null,{"$f":"IF(R16=\"\",\"\",IF(S16=S15,Q15,ROW(Q16)-ROW($Q$14)))","v":2},{"$f":"IF(ISERR(GETPIVOTDATA(\"body\",knt_tab!$M$3,\"zavodnik\",knt_tab!M6)),\"\",IF(GETPIVOTDATA(\"body\",knt_tab!$M$3,\"zavodnik\",knt_tab!M6)=0,\"\",knt_tab!M6))","v":"Přichystal Leon"},{"$f":"IF(R16=\"\",\"\",GETPIVOTDATA(\"body\",knt_tab!$M$3,\"zavodnik\",R16))","v":85},null,"",{"$f":"IF(ISERR(GETPIVOTDATA(\"body\",knt_tab!$G$3,\"zavodnik\",knt_tab!G28)),\"\",IF(GETPIVOTDATA(\"body\",knt_tab!$G$3,\"zavodnik\",knt_tab!G28)=0,\"\",knt_tab!G28))","v":""},{"$f":"IF(V16=\"\",\"\",GETPIVOTDATA(\"body\",knt_tab!$G$3,\"zavodnik\",V16))","v":""}]
[14,{"$f":"IF(ISERR(GETPIVOTDATA(\"body\",knt_tab!$A$3,\"zavodnik\",knt_tab!A18)),\"\",IF(GETPIVOTDATA(\"body\",knt_tab!$A$3,\"zavodnik\",knt_tab!A18)=0,\"\",knt_tab!A18))","v":"Kuželová Dominika"},{"$f":"IF(B17=\"\",\"\",GETPIVOTDATA(\"body\",knt_tab!$A$3,\"zavodnik\",B17))","v":83},null,75,{"$f":"IF(ISERR(GETPIVOTDATA(\"body\",knt_tab!$A$3,\"zavodnik\",knt_tab!A79)),\"\",IF(GETPIVOTDATA(\"body\",knt_tab!$A$3,\"zavodnik\",knt_tab!A79)=0,\"\",knt_tab!A79))","v":"Klepač Václav"},{"$f":"IF(F17=\"\",\"\",GETPIVOTDATA(\"body\",knt_tab!$A$3,\"zavodnik\",F17))","v":25},null,{"$f":"IF(J17=\"\",\"\",IF(K17=K16,I16,ROW(I17)-ROW($I$3)+122))","v":132},{"$f":"IF(ISERR(GETPIVOTDATA(\"body\",knt_tab!$A$3,\"zavodnik\",knt_tab!A140)),\"\",IF(GETPIVOTDATA(\"body\",knt_tab!$A$3,\"zavodnik\",knt_tab!A140)=0,\"\",knt_tab!A140))","v":"Kotouček Marek"},{"$f":"IF(J17=\"\",\"\",GETPIVOTDATA(\"body\",knt_tab!$A$3,\"zavodnik\",J17))","v":2},null,4,{"$f":"IF(ISERR(GETPIVOTDATA(\"body\",knt_tab!$Y$3,\"zavodnik\",knt_tab!Y8)),\"\",IF(GETPIVOTDATA(\"body\",knt_tab!$Y$3,\"zavodnik\",knt_tab!Y8)=0,\"\",knt_tab!Y8))","v":"Lindovský Jiří"},{"$f":"IF(N17=\"\",\"\",GETPIVOTDATA(\"body\",knt_tab!$Y$3,\"zavodnik\",N17))","v":17},null,3,{"$f":"IF(ISERR(GETPIVOTDATA(\"body\",knt_tab!$M$3,\"zavodnik\",knt_tab!M7)),\"\",IF(GETPIVOTDATA(\"body\",knt_tab!$M$3,\"zavodnik\",knt_tab!M7)=0,\"\",knt_tab!M7))","v":"Bečka Václav"},{"$f":"IF(R17=\"\",\"\",GETPIVOTDATA(\"body\",knt_tab!$M$3,\"zavodnik\",R17))","v":70},null,"",{"$f":"IF(ISERR(GETPIVOTDATA(\"body\",knt_tab!$G$3,\"zavodnik\",knt_tab!G29)),\"\",IF(GETPIVOTDATA(\"body\",knt_tab!$G$3,\"zavodnik\",knt_tab!G29)=0,\"\",knt_tab!G29))","v":""},{"$f":"IF(V17=\"\",\"\",GETPIVOTDATA(\"body\",knt_tab!$G$3,\"zavodnik\",V17))","v":""}]
[15,{"$f":"IF(ISERR(GETPIVOTDATA(\"body\",knt_tab!$A$3,\"zavodnik\",knt_tab!A19)),\"\",IF(GETPIVOTDATA(\"body\",knt_tab!$A$3,\"zavodnik\",knt_tab!A19)=0,\"\",knt_tab!A19))","v":"Vavřínová Pavla"},{"$f":"IF(B18=\"\",\"\",GETPIVOTDATA(\"body\",knt_tab!$A$3,\"zavodnik\",B18))","v":81},null,75,{"$f":"IF(ISERR(GETPIVOTDATA(\"body\",knt_tab!$A$3,\"zavodnik\",knt_tab!A80)),\"\",IF(GETPIVOTDATA(\"body\",knt_tab!$A$3,\"zavodnik\",knt_tab!A80)=0,\"\",knt_tab!A80))","v":"Kutáč Jan"},{"$f":"IF(F18=\"\",\"\",GETPIVOTDATA(\"body\",knt_tab!$A$3,\"zavodnik\",F18))","v":25},null,{"$f":"IF(J18=\"\",\"\",IF(K18=K17,I17,ROW(I18)-ROW($I$3)+122))","v":137},{"$f":"IF(ISERR(GETPIVOTDATA(\"body\",knt_tab!$A$3,\"zavodnik\",knt_tab!A141)),\"\",IF(GETPIVOTDATA(\"body\",knt_tab!$A$3,\"zavodnik\",knt_tab!A141)=0,\"\",knt_tab!A141))","v":"Bučánek Antonín"},{"$f":"IF(J18=\"\",\"\",GETPIVOTDATA(\"body\",knt_tab!$A$3,\"zavodnik\",J18))","v":1},null,5,{"$f":"IF(ISERR(GETPIVOTDATA(\"body\",knt_tab!$Y$3,\"zavodnik\",knt_tab!Y9)),\"\",IF(GETPIVOTDATA(\"body\",knt_tab!$Y$3,\"zavodnik\",knt_tab!Y9)=0,\"\",knt_tab!Y9))","v":"Chlebovský Daniel"},{"$f":"IF(N18=\"\",\"\",GETPIVOTDATA(\"body\",knt_tab!$Y$3,\"zavodnik\",N18))","v":13},null,4,{"$f":"IF(ISERR(GETPIVOTDATA(\"body\",knt_tab!$M$3,\"zavodnik\",knt_tab!M8)),\"\",IF(GETPIVOTDATA(\"body\",knt_tab!$M$3,\"zavodnik\",knt_tab!M8)=0,\"\",knt_tab!M8))","v":"Vlk František"},{"$f":"IF(R18=\"\",\"\",GETPIVOTDATA(\"body\",knt_tab!$M$3,\"zavodnik\",R18))","v":69},null,"",{"$f":"IF(ISERR(GETPIVOTDATA(\"body\",knt_tab!$G$3,\"zavodnik\",knt_tab!G30)),\"\",IF(GETPIVOTDATA(\"body\",knt_tab!$G$3,\"zavodnik\",knt_tab!G30)=0,\"\",knt_tab!G30))","v":""},{"$f":"IF(V18=\"\",\"\",GETPIVOTDATA(\"body\",knt_tab!$G$3,\"zavodnik\",V18))","v":""}]
[16,{"$f":"IF(ISERR(GETPIVOTDATA(\"body\",knt_tab!$A$3,\"zavodnik\",knt_tab!A20)),\"\",IF(GETPIVOTDATA(\"body\",knt_tab!$A$3,\"zavodnik\",knt_tab!A20)=0,\"\",knt_tab!A20))","v":"Pačuta Ladislav"},{"$f":"IF(B19=\"\",\"\",GETPIVOTDATA(\"body\",knt_tab!$A$3,\"zavodnik\",B19))","v":79},null,77,{"$f":"IF(ISERR(GETPIVOTDATA(\"body\",knt_tab!$A$3,\"zavodnik\",knt_tab!A81)),\"\",IF(GETPIVOTDATA(\"body\",knt_tab!$A$3,\"zavodnik\",knt_tab!A81)=0,\"\",knt_tab!A81))","v":"Stránský David"},{"$f":"IF(F19=\"\",\"\",GETPIVOTDATA(\"body\",knt_tab!$A$3,\"zavodnik\",F19))","v":23},null,137,{"$f":"IF(ISERR(GETPIVOTDATA(\"body\",knt_tab!$A$3,\"zavodnik\",knt_tab!A142)),\"\",IF(GETPIVOTDATA(\"body\",knt_tab!$A$3,\"zavodnik\",knt_tab!A142)=0,\"\",knt_tab!A142))","v":"Voronin Makar"},{"$f":"IF(J19=\"\",\"\",GETPIVOTDATA(\"body\",knt_tab!$A$3,\"zavodnik\",J19))","v":1},null,6,{"$f":"IF(ISERR(GETPIVOTDATA(\"body\",knt_tab!$Y$3,\"zavodnik\",knt_tab!Y10)),\"\",IF(GETPIVOTDATA(\"body\",knt_tab!$Y$3,\"zavodnik\",knt_tab!Y10)=0,\"\",knt_tab!Y10))","v":"Čebík Filip"},{"$f":"IF(N19=\"\",\"\",GETPIVOTDATA(\"body\",knt_tab!$Y$3,\"zavodnik\",N19))","v":10},null,5,{"$f":"IF(ISERR(GETPIVOTDATA(\"body\",knt_tab!$M$3,\"zavodnik\",knt_tab!M9)),\"\",IF(GETPIVOTDATA(\"body\",knt_tab!$M$3,\"zavodnik\",knt_tab!M9)=0,\"\",knt_tab!M9))","v":"To Vojtěch"},{"$f":"IF(R19=\"\",\"\",GETPIVOTDATA(\"body\",knt_tab!$M$3,\"zavodnik\",R19))","v":66},null,"",{"$f":"IF(ISERR(GETPIVOTDATA(\"body\",knt_tab!$G$3,\"zavodnik\",knt_tab!G31)),\"\",IF(GETPIVOTDATA(\"body\",knt_tab!$G$3,\"zavodnik\",knt_tab!G31)=0,\"\",knt_tab!G31))","v":""},{"$f":"IF(V19=\"\",\"\",GETPIVOTDATA(\"body\",knt_tab!$G$3,\"zavodnik\",V19))","v":""}]
[17,{"$f":"IF(ISERR(GETPIVOTDATA(\"body\",knt_tab!$A$3,\"zavodnik\",knt_tab!A21)),\"\",IF(GETPIVOTDATA(\"body\",knt_tab!$A$3,\"zavodnik\",knt_tab!A21)=0,\"\",knt_tab!A21))","v":"Podivínský Patrik"},{"$f":"IF(B20=\"\",\"\",GETPIVOTDATA(\"body\",knt_tab!$A$3,\"zavodnik\",B20))","v":76},null,77,{"$f":"IF(ISERR(GETPIVOTDATA(\"body\",knt_tab!$A$3,\"zavodnik\",knt_tab!A82)),\"\",IF(GETPIVOTDATA(\"body\",knt_tab!$A$3,\"zavodnik\",knt_tab!A82)=0,\"\",knt_tab!A82))","v":"Bravanský Marek"},{"$f":"IF(F20=\"\",\"\",GETPIVOTDATA(\"body\",knt_tab!$A$3,\"zavodnik\",F20))","v":23},null,137,{"$f":"IF(ISERR(GETPIVOTDATA(\"body\",knt_tab!$A$3,\"zavodnik\",knt_tab!A143)),\"\",IF(GETPIVOTDATA(\"body\",knt_tab!$A$3,\"zavodnik\",knt_tab!A143)=0,\"\",knt_tab!A143))","v":"Gongala Adam"},{"$f":"IF(J20=\"\",\"\",GETPIVOTDATA(\"body\",knt_tab!$A$3,\"zavodnik\",J20))","v":1},null,7,{"$f":"IF(ISERR(GETPIVOTDATA(\"body\",knt_tab!$Y$3,\"zavodnik\",knt_tab!Y11)),\"\",IF(GETPIVOTDATA(\"body\",knt_tab!$Y$3,\"zavodnik\",knt_tab!Y11)=0,\"\",knt_tab!Y11))","v":"Meixner Tomáš"},{"$f":"IF(N20=\"\",\"\",GETPIVOTDATA(\"body\",knt_tab!$Y$3,\"zavodnik\",N20))","v":9},null,5,{"$f":"IF(ISERR(GETPIVOTDATA(\"body\",knt_tab!$M$3,\"zavodnik\",knt_tab!M10)),\"\",IF(GETPIVOTDATA(\"body\",knt_tab!$M$3,\"zavodnik\",knt_tab!M10)=0,\"\",knt_tab!M10))","v":"Ciora Jakub"},{"$f":"IF(R20=\"\",\"\",GETPIVOTDATA(\"body\",knt_tab!$M$3,\"zavodnik\",R20))","v":66},null,"",{"$f":"IF(ISERR(GETPIVOTDATA(\"body\",knt_tab!$G$3,\"zavodnik\",knt_tab!G32)),\"\",IF(GETPIVOTDATA(\"body\",knt_tab!$G$3,\"zavodnik\",knt_tab!G32)=0,\"\",knt_tab!G32))","v":""},{"$f":"IF(V20=\"\",\"\",GETPIVOTDATA(\"body\",knt_tab!$G$3,\"zavodnik\",V20))","v":""}]
[18,{"$f":"IF(ISERR(GETPIVOTDATA(\"body\",knt_tab!$A$3,\"zavodnik\",knt_tab!A22)),\"\",IF(GETPIVOTDATA(\"body\",knt_tab!$A$3,\"zavodnik\",knt_tab!A22)=0,\"\",knt_tab!A22))","v":"Schoffer Radim"},{"$f":"IF(B21=\"\",\"\",GETPIVOTDATA(\"body\",knt_tab!$A$3,\"zavodnik\",B21))","v":74},null,77,{"$f":"IF(ISERR(GETPIVOTDATA(\"body\",knt_tab!$A$3,\"zavodnik\",knt_tab!A83)),\"\",IF(GETPIVOTDATA(\"body\",knt_tab!$A$3,\"zavodnik\",knt_tab!A83)=0,\"\",knt_tab!A83))","v":"Meixner Tomáš"},{"$f":"IF(F21=\"\",\"\",GETPIVOTDATA(\"body\",knt_tab!$A$3,\"zavodnik\",F21))","v":23},null,137,{"$f":"IF(ISERR(GETPIVOTDATA(\"body\",knt_tab!$A$3,\"zavodnik\",knt_tab!A144)),\"\",IF(GETPIVOTDATA(\"body\",knt_tab!$A$3,\"zavodnik\",knt_tab!A144)=0,\"\",knt_tab!A144))","v":"Pícha Matěj"},{"$f":"IF(J21=\"\",\"\",GETPIVOTDATA(\"body\",knt_tab!$A$3,\"zavodnik\",J21))","v":1},null,7,{"$f":"IF(ISERR(GETPIVOTDATA(\"body\",knt_tab!$Y$3,\"zavodnik\",knt_tab!Y12)),\"\",IF(GETPIVOTDATA(\"body\",knt_tab!$Y$3,\"zavodnik\",knt_tab!Y12)=0,\"\",knt_tab!Y12))","v":"Fulneček Šimon"},{"$f":"IF(N21=\"\",\"\",GETPIVOTDATA(\"body\",knt_tab!$Y$3,\"zavodnik\",N21))","v":9},null,7,{"$f":"IF(ISERR(GETPIVOTDATA(\"body\",knt_tab!$M$3,\"zavodnik\",knt_tab!M11)),\"\",IF(GETPIVOTDATA(\"body\",knt_tab!$M$3,\"zavodnik\",knt_tab!M11)=0,\"\",knt_tab!M11))","v":"Stark Vojtěch"},{"$f":"IF(R21=\"\",\"\",GETPIVOTDATA(\"body\",knt_tab!$M$3,\"zavodnik\",R21))","v":63},null,"",{"$f":"IF(ISERR(GETPIVOTDATA(\"body\",knt_tab!$G$3,\"zavodnik\",knt_tab!G33)),\"\",IF(GETPIVOTDATA(\"body\",knt_tab!$G$3,\"zavodnik\",knt_tab!G33)=0,\"\",knt_tab!G33))","v":""},{"$f":"IF(V21=\"\",\"\",GETPIVOTDATA(\"body\",knt_tab!$G$3,\"zavodnik\",V21))","v":""}]
[19,{"$f":"IF(ISERR(GETPIVOTDATA(\"body\",knt_tab!$A$3,\"zavodnik\",knt_tab!A23)),\"\",IF(GETPIVOTDATA(\"body\",knt_tab!$A$3,\"zavodnik\",knt_tab!A23)=0,\"\",knt_tab!A23))","v":"Čebík Filip"},{"$f":"IF(B22=\"\",\"\",GETPIVOTDATA(\"body\",knt_tab!$A$3,\"zavodnik\",B22))","v":73},null,77,{"$f":"IF(ISERR(GETPIVOTDATA(\"body\",knt_tab!$A$3,\"zavodnik\",knt_tab!A84)),\"\",IF(GETPIVOTDATA(\"body\",knt_tab!$A$3,\"zavodnik\",knt_tab!A84)=0,\"\",knt_tab!A84))","v":"Baudiš Michal"},{"$f":"IF(F22=\"\",\"\",GETPIVOTDATA(\"body\",knt_tab!$A$3,\"zavodnik\",F22))","v":23},null,137,{"$f":"IF(ISERR(GETPIVOTDATA(\"body\",knt_tab!$A$3,\"zavodnik\",knt_tab!A145)),\"\",IF(GETPIVOTDATA(\"body\",knt_tab!$A$3,\"zavodnik\",knt_tab!A145)=0,\"\",knt_tab!A145))","v":"Jaskula Oliver"},{"$f":"IF(J22=\"\",\"\",GETPIVOTDATA(\"body\",knt_tab!$A$3,\"zavodnik\",J22))","v":1},null,9,{"$f":"IF(ISERR(GETPIVOTDATA(\"body\",knt_tab!$Y$3,\"zavodnik\",knt_tab!Y13)),\"\",IF(GETPIVOTDATA(\"body\",knt_tab!$Y$3,\"zavodnik\",knt_tab!Y13)=0,\"\",knt_tab!Y13))","v":"Vršek Jakub"},{"$f":"IF(N22=\"\",\"\",GETPIVOTDATA(\"body\",knt_tab!$Y$3,\"zavodnik\",N22))","v":5},null,8,{"$f":"IF(ISERR(GETPIVOTDATA(\"body\",knt_tab!$M$3,\"zavodnik\",knt_tab!M12)),\"\",IF(GETPIVOTDATA(\"body\",knt_tab!$M$3,\"zavodnik\",knt_tab!M12)=0,\"\",knt_tab!M12))","v":"Mařec Tomáš"},{"$f":"IF(R22=\"\",\"\",GETPIVOTDATA(\"body\",knt_tab!$M$3,\"zavodnik\",R22))","v":36},null,"",{"$f":"IF(ISERR(GETPIVOTDATA(\"body\",knt_tab!$G$3,\"zavodnik\",knt_tab!G34)),\"\",IF(GETPIVOTDATA(\"body\",knt_tab!$G$3,\"zavodnik\",knt_tab!G34)=0,\"\",knt_tab!G34))","v":""},{"$f":"IF(V22=\"\",\"\",GETPIVOTDATA(\"body\",knt_tab!$G$3,\"zavodnik\",V22))","v":""}]
[20,{"$f":"IF(ISERR(GETPIVOTDATA(\"body\",knt_tab!$A$3,\"zavodnik\",knt_tab!A24)),\"\",IF(GETPIVOTDATA(\"body\",knt_tab!$A$3,\"zavodnik\",knt_tab!A24)=0,\"\",knt_tab!A24))","v":"Prudil Adam"},{"$f":"IF(B23=\"\",\"\",GETPIVOTDATA(\"body\",knt_tab!$A$3,\"zavodnik\",B23))","v":72},null,77,{"$f":"IF(ISERR(GETPIVOTDATA(\"body\",knt_tab!$A$3,\"zavodnik\",knt_tab!A85)),\"\",IF(GETPIVOTDATA(\"body\",knt_tab!$A$3,\"zavodnik\",knt_tab!A85)=0,\"\",knt_tab!A85))","v":"Berka Daniel"},{"$f":"IF(F23=\"\",\"\",GETPIVOTDATA(\"body\",knt_tab!$A$3,\"zavodnik\",F23))","v":23},null,{"$f":"IF(J23=\"\",\"\",IF(K23=K22,I22,ROW(I23)-ROW($I$3)+122))","v":137},{"$f":"IF(ISERR(GETPIVOTDATA(\"body\",knt_tab!$A$3,\"zavodnik\",knt_tab!A146)),\"\",IF(GETPIVOTDATA(\"body\",knt_tab!$A$3,\"zavodnik\",knt_tab!A146)=0,\"\",knt_tab!A146))","v":"Sklenář Jáchym"},{"$f":"IF(J23=\"\",\"\",GETPIVOTDATA(\"body\",knt_tab!$A$3,\"zavodnik\",J23))","v":1},null,9,{"$f":"IF(ISERR(GETPIVOTDATA(\"body\",knt_tab!$Y$3,\"zavodnik\",knt_tab!Y14)),\"\",IF(GETPIVOTDATA(\"body\",knt_tab!$Y$3,\"zavodnik\",knt_tab!Y14)=0,\"\",knt_tab!Y14))","v":"Caletka Michal"},{"$f":"IF(N23=\"\",\"\",GETPIVOTDATA(\"body\",knt_tab!$Y$3,\"zavodnik\",N23))","v":5},null,8,{"$f":"IF(ISERR(GETPIVOTDATA(\"body\",knt_tab!$M$3,\"zavodnik\",knt_tab!M13)),\"\",IF(GETPIVOTDATA(\"body\",knt_tab!$M$3,\"zavodnik\",knt_tab!M13)=0,\"\",knt_tab!M13))","v":"Kuluris Manolis"},{"$f":"IF(R23=\"\",\"\",GETPIVOTDATA(\"body\",knt_tab!$M$3,\"zavodnik\",R23))","v":36},null,"",{"$f":"IF(ISERR(GETPIVOTDATA(\"body\",knt_tab!$G$3,\"zavodnik\",knt_tab!G35)),\"\",IF(GETPIVOTDATA(\"body\",knt_tab!$G$3,\"zavodnik\",knt_tab!G35)=0,\"\",knt_tab!G35))","v":""},{"$f":"IF(V23=\"\",\"\",GETPIVOTDATA(\"body\",knt_tab!$G$3,\"zavodnik\",V23))","v":""}]
[21,{"$f":"IF(ISERR(GETPIVOTDATA(\"body\",knt_tab!$A$3,\"zavodnik\",knt_tab!A25)),\"\",IF(GETPIVOTDATA(\"body\",knt_tab!$A$3,\"zavodnik\",knt_tab!A25)=0,\"\",knt_tab!A25))","v":"Kaszper Matyáš"},{"$f":"IF(B24=\"\",\"\",GETPIVOTDATA(\"body\",knt_tab!$A$3,\"zavodnik\",B24))","v":71},null,82,{"$f":"IF(ISERR(GETPIVOTDATA(\"body\",knt_tab!$A$3,\"zavodnik\",knt_tab!A86)),\"\",IF(GETPIVOTDATA(\"body\",knt_tab!$A$3,\"zavodnik\",knt_tab!A86)=0,\"\",knt_tab!A86))","v":"Řehůřek David"},{"$f":"IF(F24=\"\",\"\",GETPIVOTDATA(\"body\",knt_tab!$A$3,\"zavodnik\",F24))","v":22},null,137,{"$f":"IF(ISERR(GETPIVOTDATA(\"body\",knt_tab!$A$3,\"zavodnik\",knt_tab!A147)),\"\",IF(GETPIVOTDATA(\"body\",knt_tab!$A$3,\"zavodnik\",knt_tab!A147)=0,\"\",knt_tab!A147))","v":"Šelong Tadeáš"},{"$f":"IF(J24=\"\",\"\",GETPIVOTDATA(\"body\",knt_tab!$A$3,\"zavodnik\",J24))","v":1},null,11,{"$f":"IF(ISERR(GETPIVOTDATA(\"body\",knt_tab!$Y$3,\"zavodnik\",knt_tab!Y15)),\"\",IF(GETPIVOTDATA(\"body\",knt_tab!$Y$3,\"zavodnik\",knt_tab!Y15)=0,\"\",knt_tab!Y15))","v":"Čerchla Michal"},{"$f":"IF(N24=\"\",\"\",GETPIVOTDATA(\"body\",knt_tab!$Y$3,\"zavodnik\",N24))","v":4},null,10,{"$f":"IF(ISERR(GETPIVOTDATA(\"body\",knt_tab!$M$3,\"zavodnik\",knt_tab!M14)),\"\",IF(GETPIVOTDATA(\"body\",knt_tab!$M$3,\"zavodnik\",knt_tab!M14)=0,\"\",knt_tab!M14))","v":"Škoda Melichar"},{"$f":"IF(R24=\"\",\"\",GETPIVOTDATA(\"body\",knt_tab!$M$3,\"zavodnik\",R24))","v":35},null,"",{"$f":"IF(ISERR(GETPIVOTDATA(\"body\",knt_tab!$G$3,\"zavodnik\",knt_tab!G36)),\"\",IF(GETPIVOTDATA(\"body\",knt_tab!$G$3,\"zavodnik\",knt_tab!G36)=0,\"\",knt_tab!G36))","v":""},{"$f":"IF(V24=\"\",\"\",GETPIVOTDATA(\"body\",knt_tab!$G$3,\"zavodnik\",V24))","v":""}]
[21,{"$f":"IF(ISERR(GETPIVOTDATA(\"body\",knt_tab!$A$3,\"zavodnik\",knt_tab!A26)),\"\",IF(GETPIVOTDATA(\"body\",knt_tab!$A$3,\"zavodnik\",knt_tab!A26)=0,\"\",knt_tab!A26))","v":"Kocmanová Lucie"},{"$f":"IF(B25=\"\",\"\",GETPIVOTDATA(\"body\",knt_tab!$A$3,\"zavodnik\",B25))","v":71},null,82,{"$f":"IF(ISERR(GETPIVOTDATA(\"body\",knt_tab!$A$3,\"zavodnik\",knt_tab!A87)),\"\",IF(GETPIVOTDATA(\"body\",knt_tab!$A$3,\"zavodnik\",knt_tab!A87)=0,\"\",knt_tab!A87))","v":"Pospíšil Jan"},{"$f":"IF(F25=\"\",\"\",GETPIVOTDATA(\"body\",knt_tab!$A$3,\"zavodnik\",F25))","v":22},null,{"$f":"IF(J25=\"\",\"\",IF(K25=K24,I24,ROW(I25)-ROW($I$3)+122))","v":137},{"$f":"IF(ISERR(GETPIVOTDATA(\"body\",knt_tab!$A$3,\"zavodnik\",knt_tab!A148)),\"\",IF(GETPIVOTDATA(\"body\",knt_tab!$A$3,\"zavodnik\",knt_tab!A148)=0,\"\",knt_tab!A148))","v":"Seibert Marian"},{"$f":"IF(J25=\"\",\"\",GETPIVOTDATA(\"body\",knt_tab!$A$3,\"zavodnik\",J25))","v":1},null,11,{"$f":"IF(ISERR(GETPIVOTDATA(\"body\",knt_tab!$Y$3,\"zavodnik\",knt_tab!Y16)),\"\",IF(GETPIVOTDATA(\"body\",knt_tab!$Y$3,\"zavodnik\",knt_tab!Y16)=0,\"\",knt_tab!Y16))","v":"Meixner Michal"},{"$f":"IF(N25=\"\",\"\",GETPIVOTDATA(\"body\",knt_tab!$Y$3,\"zavodnik\",N25))","v":4},null,11,{"$f":"IF(ISERR(GETPIVOTDATA(\"body\",knt_tab!$M$3,\"zavodnik\",knt_tab!M15)),\"\",IF(GETPIVOTDATA(\"body\",knt_tab!$M$3,\"zavodnik\",knt_tab!M15)=0,\"\",knt_tab!M15))","v":"Klepač Václav"},{"$f":"IF(R25=\"\",\"\",GETPIVOTDATA(\"body\",knt_tab!$M$3,\"zavodnik\",R25))","v":25},null,"",{"$f":"IF(ISERR(GETPIVOTDATA(\"body\",knt_tab!$G$3,\"zavodnik\",knt_tab!G37)),\"\",IF(GETPIVOTDATA(\"body\",knt_tab!$G$3,\"zavodnik\",knt_tab!G37)=0,\"\",knt_tab!G37))","v":""},{"$f":"IF(V25=\"\",\"\",GETPIVOTDATA(\"body\",knt_tab!$G$3,\"zavodnik\",V25))","v":""}]
[23,{"$f":"IF(ISERR(GETPIVOTDATA(\"body\",knt_tab!$A$3,\"zavodnik\",knt_tab!A27)),\"\",IF(GETPIVOTDATA(\"body\",knt_tab!$A$3,\"zavodnik\",knt_tab!A27)=0,\"\",knt_tab!A27))","v":"Rapčanová Silvie"},{"$f":"IF(B26=\"\",\"\",GETPIVOTDATA(\"body\",knt_tab!$A$3,\"zavodnik\",B26))","v":70},null,84,{"$f":"IF(ISERR(GETPIVOTDATA(\"body\",knt_tab!$A$3,\"zavodnik\",knt_tab!A88)),\"\",IF(GETPIVOTDATA(\"body\",knt_tab!$A$3,\"zavodnik\",knt_tab!A88)=0,\"\",knt_tab!A88))","v":"Soukup Hugo"},{"$f":"IF(F26=\"\",\"\",GETPIVOTDATA(\"body\",knt_tab!$A$3,\"zavodnik\",F26))","v":21},null,{"$f":"IF(J26=\"\",\"\",IF(K26=K25,I25,ROW(I26)-ROW($I$3)+122))","v":137},{"$f":"IF(ISERR(GETPIVOTDATA(\"body\",knt_tab!$A$3,\"zavodnik\",knt_tab!A149)),\"\",IF(GETPIVOTDATA(\"body\",knt_tab!$A$3,\"zavodnik\",knt_tab!A149)=0,\"\",knt_tab!A149))","v":"Šindel Jakub"},{"$f":"IF(J26=\"\",\"\",GETPIVOTDATA(\"body\",knt_tab!$A$3,\"zavodnik\",J26))","v":1},null,13,{"$f":"IF(ISERR(GETPIVOTDATA(\"body\",knt_tab!$Y$3,\"zavodnik\",knt_tab!Y17)),\"\",IF(GETPIVOTDATA(\"body\",knt_tab!$Y$3,\"zavodnik\",knt_tab!Y17)=0,\"\",knt_tab!Y17))","v":"Potůček Tomáš"},{"$f":"IF(N26=\"\",\"\",GETPIVOTDATA(\"body\",knt_tab!$Y$3,\"zavodnik\",N26))","v":1},null,12,{"$f":"IF(ISERR(GETPIVOTDATA(\"body\",knt_tab!$M$3,\"zavodnik\",knt_tab!M16)),\"\",IF(GETPIVOTDATA(\"body\",knt_tab!$M$3,\"zavodnik\",knt_tab!M16)=0,\"\",knt_tab!M16))","v":"Berka Daniel"},{"$f":"IF(R26=\"\",\"\",GETPIVOTDATA(\"body\",knt_tab!$M$3,\"zavodnik\",R26))","v":23},null,"",{"$f":"IF(ISERR(GETPIVOTDATA(\"body\",knt_tab!$G$3,\"zavodnik\",knt_tab!G38)),\"\",IF(GETPIVOTDATA(\"body\",knt_tab!$G$3,\"zavodnik\",knt_tab!G38)=0,\"\",knt_tab!G38))","v":""},{"$f":"IF(V26=\"\",\"\",GETPIVOTDATA(\"body\",knt_tab!$G$3,\"zavodnik\",V26))","v":""}]
[24,{"$f":"IF(ISERR(GETPIVOTDATA(\"body\",knt_tab!$A$3,\"zavodnik\",knt_tab!A28)),\"\",IF(GETPIVOTDATA(\"body\",knt_tab!$A$3,\"zavodnik\",knt_tab!A28)=0,\"\",knt_tab!A28))","v":"Vlk František"},{"$f":"IF(B27=\"\",\"\",GETPIVOTDATA(\"body\",knt_tab!$A$3,\"zavodnik\",B27))","v":69},null,84,{"$f":"IF(ISERR(GETPIVOTDATA(\"body\",knt_tab!$A$3,\"zavodnik\",knt_tab!A89)),\"\",IF(GETPIVOTDATA(\"body\",knt_tab!$A$3,\"zavodnik\",knt_tab!A89)=0,\"\",knt_tab!A89))","v":"Ščevík Ondřej"},{"$f":"IF(F27=\"\",\"\",GETPIVOTDATA(\"body\",knt_tab!$A$3,\"zavodnik\",F27))","v":21},null,{"$f":"IF(J27=\"\",\"\",IF(K27=K26,I26,ROW(I27)-ROW($I$3)+122))","v":137},{"$f":"IF(ISERR(GETPIVOTDATA(\"body\",knt_tab!$A$3,\"zavodnik\",knt_tab!A150)),\"\",IF(GETPIVOTDATA(\"body\",knt_tab!$A$3,\"zavodnik\",knt_tab!A150)=0,\"\",knt_tab!A150))","v":"Končítková Linda"},{"$f":"IF(J27=\"\",\"\",GETPIVOTDATA(\"body\",knt_tab!$A$3,\"zavodnik\",J27))","v":1},null,13,{"$f":"IF(ISERR(GETPIVOTDATA(\"body\",knt_tab!$Y$3,\"zavodnik\",knt_tab!Y18)),\"\",IF(GETPIVOTDATA(\"body\",knt_tab!$Y$3,\"zavodnik\",knt_tab!Y18)=0,\"\",knt_tab!Y18))","v":"Kristen Nicolas"},{"$f":"IF(N27=\"\",\"\",GETPIVOTDATA(\"body\",knt_tab!$Y$3,\"zavodnik\",N27))","v":1},null,13,{"$f":"IF(ISERR(GETPIVOTDATA(\"body\",knt_tab!$M$3,\"zavodnik\",knt_tab!M17)),\"\",IF(GETPIVOTDATA(\"body\",knt_tab!$M$3,\"zavodnik\",knt_tab!M17)=0,\"\",knt_tab!M17))","v":"Valošek Jakub"},{"$f":"IF(R27=\"\",\"\",GETPIVOTDATA(\"body\",knt_tab!$M$3,\"zavodnik\",R27))","v":19}]
[25,{"$f":"IF(ISERR(GETPIVOTDATA(\"body\",knt_tab!$A$3,\"zavodnik\",knt_tab!A29)),\"\",IF(GETPIVOTDATA(\"body\",knt_tab!$A$3,\"zavodnik\",knt_tab!A29)=0,\"\",knt_tab!A29))","v":"Zoulová Karolína"},{"$f":"IF(B28=\"\",\"\",GETPIVOTDATA(\"body\",knt_tab!$A$3,\"zavodnik\",B28))","v":68},null,86,{"$f":"IF(ISERR(GETPIVOTDATA(\"body\",knt_tab!$A$3,\"zavodnik\",knt_tab!A90)),\"\",IF(GETPIVOTDATA(\"body\",knt_tab!$A$3,\"zavodnik\",knt_tab!A90)=0,\"\",knt_tab!A90))","v":"Kuchejdová Veronika"},{"$f":"IF(F28=\"\",\"\",GETPIVOTDATA(\"body\",knt_tab!$A$3,\"zavodnik\",F28))","v":20},null,{"$f":"IF(J28=\"\",\"\",IF(K28=K27,I27,ROW(I28)-ROW($I$3)+122))","v":""},{"$f":"IF(ISERR(GETPIVOTDATA(\"body\",knt_tab!$A$3,\"zavodnik\",knt_tab!A151)),\"\",IF(GETPIVOTDATA(\"body\",knt_tab!$A$3,\"zavodnik\",knt_tab!A151)=0,\"\",knt_tab!A151))","v":""},{"$f":"IF(J28=\"\",\"\",GETPIVOTDATA(\"body\",knt_tab!$A$3,\"zavodnik\",J28))","v":""},null,"Dorostenky",null,null,null,13,{"$f":"IF(ISERR(GETPIVOTDATA(\"body\",knt_tab!$M$3,\"zavodnik\",knt_tab!M18)),\"\",IF(GETPIVOTDATA(\"body\",knt_tab!$M$3,\"zavodnik\",knt_tab!M18)=0,\"\",knt_tab!M18))","v":"Huvar Matyáš"},{"$f":"IF(R28=\"\",\"\",GETPIVOTDATA(\"body\",knt_tab!$M$3,\"zavodnik\",R28))","v":19},null,"mláďata"]
[26,{"$f":"IF(ISERR(GETPIVOTDATA(\"body\",knt_tab!$A$3,\"zavodnik\",knt_tab!A30)),\"\",IF(GETPIVOTDATA(\"body\",knt_tab!$A$3,\"zavodnik\",knt_tab!A30)=0,\"\",knt_tab!A30))","v":"Vlček Martin"},{"$f":"IF(B29=\"\",\"\",GETPIVOTDATA(\"body\",knt_tab!$A$3,\"zavodnik\",B29))","v":67},null,86,{"$f":"IF(ISERR(GETPIVOTDATA(\"body\",knt_tab!$A$3,\"zavodnik\",knt_tab!A91)),\"\",IF(GETPIVOTDATA(\"body\",knt_tab!$A$3,\"zavodnik\",knt_tab!A91)=0,\"\",knt_tab!A91))","v":"Jaššo Štěpán"},{"$f":"IF(F29=\"\",\"\",GETPIVOTDATA(\"body\",knt_tab!$A$3,\"zavodnik\",F29))","v":20},null,"veteráni",null,null,null,"Pořadí","Příjmení","body",null,15,{"$f":"IF(ISERR(GETPIVOTDATA(\"body\",knt_tab!$M$3,\"zavodnik\",knt_tab!M19)),\"\",IF(GETPIVOTDATA(\"body\",knt_tab!$M$3,\"zavodnik\",knt_tab!M19)=0,\"\",knt_tab!M19))","v":"Kanclíř Šimon"},{"$f":"IF(R29=\"\",\"\",GETPIVOTDATA(\"body\",knt_tab!$M$3,\"zavodnik\",R29))","v":12},null,"Pořadí","Příjmení","body"]
[27,{"$f":"IF(ISERR(GETPIVOTDATA(\"body\",knt_tab!$A$3,\"zavodnik\",knt_tab!A31)),\"\",IF(GETPIVOTDATA(\"body\",knt_tab!$A$3,\"zavodnik\",knt_tab!A31)=0,\"\",knt_tab!A31))","v":"To Vojtěch"},{"$f":"IF(B30=\"\",\"\",GETPIVOTDATA(\"body\",knt_tab!$A$3,\"zavodnik\",B30))","v":66},null,88,{"$f":"IF(ISERR(GETPIVOTDATA(\"body\",knt_tab!$A$3,\"zavodnik\",knt_tab!A92)),\"\",IF(GETPIVOTDATA(\"body\",knt_tab!$A$3,\"zavodnik\",knt_tab!A92)=0,\"\",knt_tab!A92))","v":"Huvar Matyáš"},{"$f":"IF(F30=\"\",\"\",GETPIVOTDATA(\"body\",knt_tab!$A$3,\"zavodnik\",F30))","v":19},null,"Pořadí","Příjmení","body",null,1,{"$f":"IF(ISERR(GETPIVOTDATA(\"body\",knt_tab!$V$3,\"zavodnik\",knt_tab!V5)),\"\",IF(GETPIVOTDATA(\"body\",knt_tab!$V$3,\"zavodnik\",knt_tab!V5)=0,\"\",knt_tab!V5))","v":"Kuželová Dominika"},{"$f":"IF(N30=\"\",\"\",GETPIVOTDATA(\"body\",knt_tab!$V$3,\"zavodnik\",N30))","v":71},null,16,{"$f":"IF(ISERR(GETPIVOTDATA(\"body\",knt_tab!$M$3,\"zavodnik\",knt_tab!M20)),\"\",IF(GETPIVOTDATA(\"body\",knt_tab!$M$3,\"zavodnik\",knt_tab!M20)=0,\"\",knt_tab!M20))","v":"Londýn Šimon"},{"$f":"IF(R30=\"\",\"\",GETPIVOTDATA(\"body\",knt_tab!$M$3,\"zavodnik\",R30))","v":6},null,1,{"$f":"IF(ISERR(GETPIVOTDATA(\"body\",knt_tab!$D$3,\"zavodnik\",knt_tab!D5)),\"\",IF(GETPIVOTDATA(\"body\",knt_tab!$D$3,\"zavodnik\",knt_tab!D5)=0,\"\",knt_tab!D5))","v":"Podivínský Marek"},{"$f":"IF(V30=\"\",\"\",GETPIVOTDATA(\"body\",knt_tab!$D$3,\"zavodnik\",V30))","v":104}]
[27,{"$f":"IF(ISERR(GETPIVOTDATA(\"body\",knt_tab!$A$3,\"zavodnik\",knt_tab!A32)),\"\",IF(GETPIVOTDATA(\"body\",knt_tab!$A$3,\"zavodnik\",knt_tab!A32)=0,\"\",knt_tab!A32))","v":"Ciora Jakub"},{"$f":"IF(B31=\"\",\"\",GETPIVOTDATA(\"body\",knt_tab!$A$3,\"zavodnik\",B31))","v":66},null,89,{"$f":"IF(ISERR(GETPIVOTDATA(\"body\",knt_tab!$A$3,\"zavodnik\",knt_tab!A93)),\"\",IF(GETPIVOTDATA(\"body\",knt_tab!$A$3,\"zavodnik\",knt_tab!A93)=0,\"\",knt_tab!A93))","v":"Kret Matyáš"},{"$f":"IF(F31=\"\",\"\",GETPIVOTDATA(\"body\",knt_tab!$A$3,\"zavodnik\",F31))","v":17},null,1,{"$f":"IF(ISERR(GETPIVOTDATA(\"body\",knt_tab!$AK$3,\"zavodnik\",knt_tab!AK5)),\"\",IF(GETPIVOTDATA(\"body\",knt_tab!$AK$3,\"zavodnik\",knt_tab!AK5)=0,\"\",knt_tab!AK5))","v":"Martínek Roman"},{"$f":"IF(J31=\"\",\"\",GETPIVOTDATA(\"body\",knt_tab!$AK$3,\"zavodnik\",J31))","v":129},null,{"$f":"IF(N31=\"\",\"\",IF(O31=O30,M30,ROW(M31)-ROW($M$29)))","v":2},{"$f":"IF(ISERR(GETPIVOTDATA(\"body\",knt_tab!$V$3,\"zavodnik\",knt_tab!V6)),\"\",IF(GETPIVOTDATA(\"body\",knt_tab!$V$3,\"zavodnik\",knt_tab!V6)=0,\"\",knt_tab!V6))","v":"Vavřínová Pavla"},{"$f":"IF(N31=\"\",\"\",GETPIVOTDATA(\"body\",knt_tab!$V$3,\"zavodnik\",N31))","v":69},null,16,{"$f":"IF(ISERR(GETPIVOTDATA(\"body\",knt_tab!$M$3,\"zavodnik\",knt_tab!M21)),\"\",IF(GETPIVOTDATA(\"body\",knt_tab!$M$3,\"zavodnik\",knt_tab!M21)=0,\"\",knt_tab!M21))","v":"Murin Jan"},{"$f":"IF(R31=\"\",\"\",GETPIVOTDATA(\"body\",knt_tab!$M$3,\"zavodnik\",R31))","v":6},null,{"$f":"IF(V31=\"\",\"\",IF(W31=W30,U30,ROW(U31)-ROW($U$29)))","v":2},{"$f":"IF(ISERR(GETPIVOTDATA(\"body\",knt_tab!$D$3,\"zavodnik\",knt_tab!D6)),\"\",IF(GETPIVOTDATA(\"body\",knt_tab!$D$3,\"zavodnik\",knt_tab!D6)=0,\"\",knt_tab!D6))","v":"Podivínský Patrik"},{"$f":"IF(V31=\"\",\"\",GETPIVOTDATA(\"body\",knt_tab!$D$3,\"zavodnik\",V31))","v":76}]
[29,{"$f":"IF(ISERR(GETPIVOTDATA(\"body\",knt_tab!$A$3,\"zavodnik\",knt_tab!A33)),\"\",IF(GETPIVOTDATA(\"body\",knt_tab!$A$3,\"zavodnik\",knt_tab!A33)=0,\"\",knt_tab!A33))","v":"Stark Vojtěch"},{"$f":"IF(B32=\"\",\"\",GETPIVOTDATA(\"body\",knt_tab!$A$3,\"zavodnik\",B32))","v":63},null,89,{"$f":"IF(ISERR(GETPIVOTDATA(\"body\",knt_tab!$A$3,\"zavodnik\",knt_tab!A94)),\"\",IF(GETPIVOTDATA(\"body\",knt_tab!$A$3,\"zavodnik\",knt_tab!A94)=0,\"\",knt_tab!A94))","v":"Nytra Sebastián"},{"$f":"IF(F32=\"\",\"\",GETPIVOTDATA(\"body\",knt_tab!$A$3,\"zavodnik\",F32))","v":17},null,{"$f":"IF(J32=\"\",\"\",IF(K32=K31,I31,ROW(I32)-ROW($I$30)))","v":2},{"$f":"IF(ISERR(GETPIVOTDATA(\"body\",knt_tab!$AK$3,\"zavodnik\",knt_tab!AK6)),\"\",IF(GETPIVOTDATA(\"body\",knt_tab!$AK$3,\"zavodnik\",knt_tab!AK6)=0,\"\",knt_tab!AK6))","v":"Schoffer Radim"},{"$f":"IF(J32=\"\",\"\",GETPIVOTDATA(\"body\",knt_tab!$AK$3,\"zavodnik\",J32))","v":74},null,3,{"$f":"IF(ISERR(GETPIVOTDATA(\"body\",knt_tab!$V$3,\"zavodnik\",knt_tab!V7)),\"\",IF(GETPIVOTDATA(\"body\",knt_tab!$V$3,\"zavodnik\",knt_tab!V7)=0,\"\",knt_tab!V7))","v":"Rapčanová Silvie"},{"$f":"IF(N32=\"\",\"\",GETPIVOTDATA(\"body\",knt_tab!$V$3,\"zavodnik\",N32))","v":58},null,18,{"$f":"IF(ISERR(GETPIVOTDATA(\"body\",knt_tab!$M$3,\"zavodnik\",knt_tab!M22)),\"\",IF(GETPIVOTDATA(\"body\",knt_tab!$M$3,\"zavodnik\",knt_tab!M22)=0,\"\",knt_tab!M22))","v":"Ožana Maxmilián"},{"$f":"IF(R32=\"\",\"\",GETPIVOTDATA(\"body\",knt_tab!$M$3,\"zavodnik\",R32))","v":5},null,3,{"$f":"IF(ISERR(GETPIVOTDATA(\"body\",knt_tab!$D$3,\"zavodnik\",knt_tab!D7)),\"\",IF(GETPIVOTDATA(\"body\",knt_tab!$D$3,\"zavodnik\",knt_tab!D7)=0,\"\",knt_tab!D7))","v":"Prudil Adam"},{"$f":"IF(V32=\"\",\"\",GETPIVOTDATA(\"body\",knt_tab!$D$3,\"zavodnik\",V32))","v":72}]
[{"$f":"IF(B33=\"\",\"\",IF(C33=C32,A32,ROW(A33)-ROW($A$3)))","v":30},{"$f":"IF(ISERR(GETPIVOTDATA(\"body\",knt_tab!$A$3,\"zavodnik\",knt_tab!A34)),\"\",IF(GETPIVOTDATA(\"body\",knt_tab!$A$3,\"zavodnik\",knt_tab!A34)=0,\"\",knt_tab!A34))","v":"Marušák Lukáš"},{"$f":"IF(B33=\"\",\"\",GETPIVOTDATA(\"body\",knt_tab!$A$3,\"zavodnik\",B33))","v":61},null,91,{"$f":"IF(ISERR(GETPIVOTDATA(\"body\",knt_tab!$A$3,\"zavodnik\",knt_tab!A95)),\"\",IF(GETPIVOTDATA(\"body\",knt_tab!$A$3,\"zavodnik\",knt_tab!A95)=0,\"\",knt_tab!A95))","v":"Bystrianský Jan"},{"$f":"IF(F33=\"\",\"\",GETPIVOTDATA(\"body\",knt_tab!$A$3,\"zavodnik\",F33))","v":15},null,{"$f":"IF(J33=\"\",\"\",IF(K33=K32,I32,ROW(I33)-ROW($I$30)))","v":3},{"$f":"IF(ISERR(GETPIVOTDATA(\"body\",knt_tab!$AK$3,\"zavodnik\",knt_tab!AK7)),\"\",IF(GETPIVOTDATA(\"body\",knt_tab!$AK$3,\"zavodnik\",knt_tab!AK7)=0,\"\",knt_tab!AK7))","v":"Chlebový Arnold"},{"$f":"IF(J33=\"\",\"\",GETPIVOTDATA(\"body\",knt_tab!$AK$3,\"zavodnik\",J33))","v":50},null,4,{"$f":"IF(ISERR(GETPIVOTDATA(\"body\",knt_tab!$V$3,\"zavodnik\",knt_tab!V8)),\"\",IF(GETPIVOTDATA(\"body\",knt_tab!$V$3,\"zavodnik\",knt_tab!V8)=0,\"\",knt_tab!V8))","v":"Kaszperová Kristýna"},{"$f":"IF(N33=\"\",\"\",GETPIVOTDATA(\"body\",knt_tab!$V$3,\"zavodnik\",N33))","v":38},null,18,{"$f":"IF(ISERR(GETPIVOTDATA(\"body\",knt_tab!$M$3,\"zavodnik\",knt_tab!M23)),\"\",IF(GETPIVOTDATA(\"body\",knt_tab!$M$3,\"zavodnik\",knt_tab!M23)=0,\"\",knt_tab!M23))","v":"Krayzel Šimon"},{"$f":"IF(R33=\"\",\"\",GETPIVOTDATA(\"body\",knt_tab!$M$3,\"zavodnik\",R33))","v":5},null,4,{"$f":"IF(ISERR(GETPIVOTDATA(\"body\",knt_tab!$D$3,\"zavodnik\",knt_tab!D8)),\"\",IF(GETPIVOTDATA(\"body\",knt_tab!$D$3,\"zavodnik\",knt_tab!D8)=0,\"\",knt_tab!D8))","v":"Kaszper Matyáš"},{"$f":"IF(V33=\"\",\"\",GETPIVOTDATA(\"body\",knt_tab!$D$3,\"zavodnik\",V33))","v":71}]
[{"$f":"IF(B34=\"\",\"\",IF(C34=C33,A33,ROW(A34)-ROW($A$3)))","v":31},{"$f":"IF(ISERR(GETPIVOTDATA(\"body\",knt_tab!$A$3,\"zavodnik\",knt_tab!A35)),\"\",IF(GETPIVOTDATA(\"body\",knt_tab!$A$3,\"zavodnik\",knt_tab!A35)=0,\"\",knt_tab!A35))","v":"Šelongová Viktorie"},{"$f":"IF(B34=\"\",\"\",GETPIVOTDATA(\"body\",knt_tab!$A$3,\"zavodnik\",B34))","v":56},null,91,{"$f":"IF(ISERR(GETPIVOTDATA(\"body\",knt_tab!$A$3,\"zavodnik\",knt_tab!A96)),\"\",IF(GETPIVOTDATA(\"body\",knt_tab!$A$3,\"zavodnik\",knt_tab!A96)=0,\"\",knt_tab!A96))","v":"Gajda Maxim"},{"$f":"IF(F34=\"\",\"\",GETPIVOTDATA(\"body\",knt_tab!$A$3,\"zavodnik\",F34))","v":15},null,{"$f":"IF(J34=\"\",\"\",IF(K34=K33,I33,ROW(I34)-ROW($I$30)))","v":4},{"$f":"IF(ISERR(GETPIVOTDATA(\"body\",knt_tab!$AK$3,\"zavodnik\",knt_tab!AK8)),\"\",IF(GETPIVOTDATA(\"body\",knt_tab!$AK$3,\"zavodnik\",knt_tab!AK8)=0,\"\",knt_tab!AK8))","v":"Moravec Vlastimil"},{"$f":"IF(J34=\"\",\"\",GETPIVOTDATA(\"body\",knt_tab!$AK$3,\"zavodnik\",J34))","v":27},null,5,{"$f":"IF(ISERR(GETPIVOTDATA(\"body\",knt_tab!$V$3,\"zavodnik\",knt_tab!V9)),\"\",IF(GETPIVOTDATA(\"body\",knt_tab!$V$3,\"zavodnik\",knt_tab!V9)=0,\"\",knt_tab!V9))","v":"Bukovjanová Charlotte"},{"$f":"IF(N34=\"\",\"\",GETPIVOTDATA(\"body\",knt_tab!$V$3,\"zavodnik\",N34))","v":33},null,20,{"$f":"IF(ISERR(GETPIVOTDATA(\"body\",knt_tab!$M$3,\"zavodnik\",knt_tab!M24)),\"\",IF(GETPIVOTDATA(\"body\",knt_tab!$M$3,\"zavodnik\",knt_tab!M24)=0,\"\",knt_tab!M24))","v":"Siefert David"},{"$f":"IF(R34=\"\",\"\",GETPIVOTDATA(\"body\",knt_tab!$M$3,\"zavodnik\",R34))","v":3},null,5,{"$f":"IF(ISERR(GETPIVOTDATA(\"body\",knt_tab!$D$3,\"zavodnik\",knt_tab!D9)),\"\",IF(GETPIVOTDATA(\"body\",knt_tab!$D$3,\"zavodnik\",knt_tab!D9)=0,\"\",knt_tab!D9))","v":"Marušák Lukáš"},{"$f":"IF(V34=\"\",\"\",GETPIVOTDATA(\"body\",knt_tab!$D$3,\"zavodnik\",V34))","v":61}]
[31,{"$f":"IF(ISERR(GETPIVOTDATA(\"body\",knt_tab!$A$3,\"zavodnik\",knt_tab!A36)),\"\",IF(GETPIVOTDATA(\"body\",knt_tab!$A$3,\"zavodnik\",knt_tab!A36)=0,\"\",knt_tab!A36))","v":"Vontor Tomáš"},{"$f":"IF(B35=\"\",\"\",GETPIVOTDATA(\"body\",knt_tab!$A$3,\"zavodnik\",B35))","v":56},null,91,{"$f":"IF(ISERR(GETPIVOTDATA(\"body\",knt_tab!$A$3,\"zavodnik\",knt_tab!A97)),\"\",IF(GETPIVOTDATA(\"body\",knt_tab!$A$3,\"zavodnik\",knt_tab!A97)=0,\"\",knt_tab!A97))","v":"Dryšl Adam"},{"$f":"IF(F35=\"\",\"\",GETPIVOTDATA(\"body\",knt_tab!$A$3,\"zavodnik\",F35))","v":15},null,"muži",null,null,null,6,{"$f":"IF(ISERR(GETPIVOTDATA(\"body\",knt_tab!$V$3,\"zavodnik\",knt_tab!V10)),\"\",IF(GETPIVOTDATA(\"body\",knt_tab!$V$3,\"zavodnik\",knt_tab!V10)=0,\"\",knt_tab!V10))","v":"Rapčanová Alice"},{"$f":"IF(N35=\"\",\"\",GETPIVOTDATA(\"body\",knt_tab!$V$3,\"zavodnik\",N35))","v":30},null,21,{"$f":"IF(ISERR(GETPIVOTDATA(\"body\",knt_tab!$M$3,\"zavodnik\",knt_tab!M25)),\"\",IF(GETPIVOTDATA(\"body\",knt_tab!$M$3,\"zavodnik\",knt_tab!M25)=0,\"\",knt_tab!M25))","v":"Gvošč Viktor"},{"$f":"IF(R35=\"\",\"\",GETPIVOTDATA(\"body\",knt_tab!$M$3,\"zavodnik\",R35))","v":2},null,6,{"$f":"IF(ISERR(GETPIVOTDATA(\"body\",knt_tab!$D$3,\"zavodnik\",knt_tab!D10)),\"\",IF(GETPIVOTDATA(\"body\",knt_tab!$D$3,\"zavodnik\",knt_tab!D10)=0,\"\",knt_tab!D10))","v":"Chovanec Martin"},{"$f":"IF(V35=\"\",\"\",GETPIVOTDATA(\"body\",knt_tab!$D$3,\"zavodnik\",V35))","v":53}]
[33,{"$f":"IF(ISERR(GETPIVOTDATA(\"body\",knt_tab!$A$3,\"zavodnik\",knt_tab!A37)),\"\",IF(GETPIVOTDATA(\"body\",knt_tab!$A$3,\"zavodnik\",knt_tab!A37)=0,\"\",knt_tab!A37))","v":"Musial Šimon"},{"$f":"IF(B36=\"\",\"\",GETPIVOTDATA(\"body\",knt_tab!$A$3,\"zavodnik\",B36))","v":55},null,91,{"$f":"IF(ISERR(GETPIVOTDATA(\"body\",knt_tab!$A$3,\"zavodnik\",knt_tab!A98)),\"\",IF(GETPIVOTDATA(\"body\",knt_tab!$A$3,\"zavodnik\",knt_tab!A98)=0,\"\",knt_tab!A98))","v":"Lamža Radek"},{"$f":"IF(F36=\"\",\"\",GETPIVOTDATA(\"body\",knt_tab!$A$3,\"zavodnik\",F36))","v":15},null,"Pořadí","Příjmení","body",null,7,{"$f":"IF(ISERR(GETPIVOTDATA(\"body\",knt_tab!$V$3,\"zavodnik\",knt_tab!V11)),\"\",IF(GETPIVOTDATA(\"body\",knt_tab!$V$3,\"zavodnik\",knt_tab!V11)=0,\"\",knt_tab!V11))","v":"Mikendová Tereza"},{"$f":"IF(N36=\"\",\"\",GETPIVOTDATA(\"body\",knt_tab!$V$3,\"zavodnik\",N36))","v":29},null,22,{"$f":"IF(ISERR(GETPIVOTDATA(\"body\",knt_tab!$M$3,\"zavodnik\",knt_tab!M26)),\"\",IF(GETPIVOTDATA(\"body\",knt_tab!$M$3,\"zavodnik\",knt_tab!M26)=0,\"\",knt_tab!M26))","v":"Šelong Tadeáš"},{"$f":"IF(R36=\"\",\"\",GETPIVOTDATA(\"body\",knt_tab!$M$3,\"zavodnik\",R36))","v":1},null,7,{"$f":"IF(ISERR(GETPIVOTDATA(\"body\",knt_tab!$D$3,\"zavodnik\",knt_tab!D11)),\"\",IF(GETPIVOTDATA(\"body\",knt_tab!$D$3,\"zavodnik\",knt_tab!D11)=0,\"\",knt_tab!D11))","v":"Vašťák Ondřej"},{"$f":"IF(V36=\"\",\"\",GETPIVOTDATA(\"body\",knt_tab!$D$3,\"zavodnik\",V36))","v":52}]
[33,{"$f":"IF(ISERR(GETPIVOTDATA(\"body\",knt_tab!$A$3,\"zavodnik\",knt_tab!A38)),\"\",IF(GETPIVOTDATA(\"body\",knt_tab!$A$3,\"zavodnik\",knt_tab!A38)=0,\"\",knt_tab!A38))","v":"Vaněk Jakub"},{"$f":"IF(B37=\"\",\"\",GETPIVOTDATA(\"body\",knt_tab!$A$3,\"zavodnik\",B37))","v":55},null,95,{"$f":"IF(ISERR(GETPIVOTDATA(\"body\",knt_tab!$A$3,\"zavodnik\",knt_tab!A99)),\"\",IF(GETPIVOTDATA(\"body\",knt_tab!$A$3,\"zavodnik\",knt_tab!A99)=0,\"\",knt_tab!A99))","v":"Kanclíř Šimon"},{"$f":"IF(F37=\"\",\"\",GETPIVOTDATA(\"body\",knt_tab!$A$3,\"zavodnik\",F37))","v":12},null,1,{"$f":"IF(ISERR(GETPIVOTDATA(\"body\",knt_tab!$AE$3,\"zavodnik\",knt_tab!AE5)),\"\",IF(GETPIVOTDATA(\"body\",knt_tab!$AE$3,\"zavodnik\",knt_tab!AE5)=0,\"\",knt_tab!AE5))","v":"Silvestr Matěj"},{"$f":"IF(J37=\"\",\"\",GETPIVOTDATA(\"body\",knt_tab!$AE$3,\"zavodnik\",J37))","v":142},null,8,{"$f":"IF(ISERR(GETPIVOTDATA(\"body\",knt_tab!$V$3,\"zavodnik\",knt_tab!V12)),\"\",IF(GETPIVOTDATA(\"body\",knt_tab!$V$3,\"zavodnik\",knt_tab!V12)=0,\"\",knt_tab!V12))","v":"Kocmanová Lucie"},{"$f":"IF(N37=\"\",\"\",GETPIVOTDATA(\"body\",knt_tab!$V$3,\"zavodnik\",N37))","v":21},null,"",{"$f":"IF(ISERR(GETPIVOTDATA(\"body\",knt_tab!$M$3,\"zavodnik\",knt_tab!M27)),\"\",IF(GETPIVOTDATA(\"body\",knt_tab!$M$3,\"zavodnik\",knt_tab!M27)=0,\"\",knt_tab!M27))","v":""},{"$f":"IF(R37=\"\",\"\",GETPIVOTDATA(\"body\",knt_tab!$M$3,\"zavodnik\",R37))","v":""},null,8,{"$f":"IF(ISERR(GETPIVOTDATA(\"body\",knt_tab!$D$3,\"zavodnik\",knt_tab!D12)),\"\",IF(GETPIVOTDATA(\"body\",knt_tab!$D$3,\"zavodnik\",knt_tab!D12)=0,\"\",knt_tab!D12))","v":"Kuchejdová Zuzana"},{"$f":"IF(V37=\"\",\"\",GETPIVOTDATA(\"body\",knt_tab!$D$3,\"zavodnik\",V37))","v":51}]
[35,{"$f":"IF(ISERR(GETPIVOTDATA(\"body\",knt_tab!$A$3,\"zavodnik\",knt_tab!A39)),\"\",IF(GETPIVOTDATA(\"body\",knt_tab!$A$3,\"zavodnik\",knt_tab!A39)=0,\"\",knt_tab!A39))","v":"Lechovič Tobiáš"},{"$f":"IF(B38=\"\",\"\",GETPIVOTDATA(\"body\",knt_tab!$A$3,\"zavodnik\",B38))","v":54},null,95,{"$f":"IF(ISERR(GETPIVOTDATA(\"body\",knt_tab!$A$3,\"zavodnik\",knt_tab!A100)),\"\",IF(GETPIVOTDATA(\"body\",knt_tab!$A$3,\"zavodnik\",knt_tab!A100)=0,\"\",knt_tab!A100))","v":"Hladký Dalimil"},{"$f":"IF(F38=\"\",\"\",GETPIVOTDATA(\"body\",knt_tab!$A$3,\"zavodnik\",F38))","v":12},null,{"$f":"IF(J38=\"\",\"\",IF(K38=K37,I37,ROW(I38)-ROW($I$36)))","v":2},{"$f":"IF(ISERR(GETPIVOTDATA(\"body\",knt_tab!$AE$3,\"zavodnik\",knt_tab!AE6)),\"\",IF(GETPIVOTDATA(\"body\",knt_tab!$AE$3,\"zavodnik\",knt_tab!AE6)=0,\"\",knt_tab!AE6))","v":"Rýpar Radek"},{"$f":"IF(J38=\"\",\"\",GETPIVOTDATA(\"body\",knt_tab!$AE$3,\"zavodnik\",J38))","v":96},null,"",{"$f":"IF(ISERR(GETPIVOTDATA(\"body\",knt_tab!$V$3,\"zavodnik\",knt_tab!V13)),\"\",IF(GETPIVOTDATA(\"body\",knt_tab!$V$3,\"zavodnik\",knt_tab!V13)=0,\"\",knt_tab!V13))","v":""},{"$f":"IF(N38=\"\",\"\",GETPIVOTDATA(\"body\",knt_tab!$V$3,\"zavodnik\",N38))","v":""},null,{"$f":"IF(R38=\"\",\"\",IF(S38=S37,Q37,ROW(Q38)-ROW($Q$14)))","v":""},{"$f":"IF(ISERR(GETPIVOTDATA(\"body\",knt_tab!$M$3,\"zavodnik\",knt_tab!M28)),\"\",IF(GETPIVOTDATA(\"body\",knt_tab!$M$3,\"zavodnik\",knt_tab!M28)=0,\"\",knt_tab!M28))","v":""},{"$f":"IF(R38=\"\",\"\",GETPIVOTDATA(\"body\",knt_tab!$M$3,\"zavodnik\",R38))","v":""},null,8,{"$f":"IF(ISERR(GETPIVOTDATA(\"body\",knt_tab!$D$3,\"zavodnik\",knt_tab!D13)),\"\",IF(GETPIVOTDATA(\"body\",knt_tab!$D$3,\"zavodnik\",knt_tab!D13)=0,\"\",knt_tab!D13))","v":"Marušáková Kateřina"},{"$f":"IF(V38=\"\",\"\",GETPIVOTDATA(\"body\",knt_tab!$D$3,\"zavodnik\",V38))","v":51}]
[36,{"$f":"IF(ISERR(GETPIVOTDATA(\"body\",knt_tab!$A$3,\"zavodnik\",knt_tab!A40)),\"\",IF(GETPIVOTDATA(\"body\",knt_tab!$A$3,\"zavodnik\",knt_tab!A40)=0,\"\",knt_tab!A40))","v":"Chovanec Martin"},{"$f":"IF(B39=\"\",\"\",GETPIVOTDATA(\"body\",knt_tab!$A$3,\"zavodnik\",B39))","v":53},null,97,{"$f":"IF(ISERR(GETPIVOTDATA(\"body\",knt_tab!$A$3,\"zavodnik\",knt_tab!A101)),\"\",IF(GETPIVOTDATA(\"body\",knt_tab!$A$3,\"zavodnik\",knt_tab!A101)=0,\"\",knt_tab!A101))","v":"Bujoková Kristin"},{"$f":"IF(F39=\"\",\"\",GETPIVOTDATA(\"body\",knt_tab!$A$3,\"zavodnik\",F39))","v":11},null,3,{"$f":"IF(ISERR(GETPIVOTDATA(\"body\",knt_tab!$AE$3,\"zavodnik\",knt_tab!AE7)),\"\",IF(GETPIVOTDATA(\"body\",knt_tab!$AE$3,\"zavodnik\",knt_tab!AE7)=0,\"\",knt_tab!AE7))","v":"Křížek Šimon"},{"$f":"IF(J39=\"\",\"\",GETPIVOTDATA(\"body\",knt_tab!$AE$3,\"zavodnik\",J39))","v":47},null,"Dorostenci",null,null,null,"",{"$f":"IF(ISERR(GETPIVOTDATA(\"body\",knt_tab!$M$3,\"zavodnik\",knt_tab!M29)),\"\",IF(GETPIVOTDATA(\"body\",knt_tab!$M$3,\"zavodnik\",knt_tab!M29)=0,\"\",knt_tab!M29))","v":""},{"$f":"IF(R39=\"\",\"\",GETPIVOTDATA(\"body\",knt_tab!$M$3,\"zavodnik\",R39))","v":""},null,10,{"$f":"IF(ISERR(GETPIVOTDATA(\"body\",knt_tab!$D$3,\"zavodnik\",knt_tab!D14)),\"\",IF(GETPIVOTDATA(\"body\",knt_tab!$D$3,\"zavodnik\",knt_tab!D14)=0,\"\",knt_tab!D14))","v":"Vlček Viktor"},{"$f":"IF(V39=\"\",\"\",GETPIVOTDATA(\"body\",knt_tab!$D$3,\"zavodnik\",V39))","v":50}]
[37,{"$f":"IF(ISERR(GETPIVOTDATA(\"body\",knt_tab!$A$3,\"zavodnik\",knt_tab!A41)),\"\",IF(GETPIVOTDATA(\"body\",knt_tab!$A$3,\"zavodnik\",knt_tab!A41)=0,\"\",knt_tab!A41))","v":"Vašťák Ondřej"},{"$f":"IF(B40=\"\",\"\",GETPIVOTDATA(\"body\",knt_tab!$A$3,\"zavodnik\",B40))","v":52},null,97,{"$f":"IF(ISERR(GETPIVOTDATA(\"body\",knt_tab!$A$3,\"zavodnik\",knt_tab!A102)),\"\",IF(GETPIVOTDATA(\"body\",knt_tab!$A$3,\"zavodnik\",knt_tab!A102)=0,\"\",knt_tab!A102))","v":"Weiss Daniel"},{"$f":"IF(F40=\"\",\"\",GETPIVOTDATA(\"body\",knt_tab!$A$3,\"zavodnik\",F40))","v":11},null,4,{"$f":"IF(ISERR(GETPIVOTDATA(\"body\",knt_tab!$AE$3,\"zavodnik\",knt_tab!AE8)),\"\",IF(GETPIVOTDATA(\"body\",knt_tab!$AE$3,\"zavodnik\",knt_tab!AE8)=0,\"\",knt_tab!AE8))","v":"Svoboda Jiří"},{"$f":"IF(J40=\"\",\"\",GETPIVOTDATA(\"body\",knt_tab!$AE$3,\"zavodnik\",J40))","v":28},null,"Pořadí","Příjmení","body",null,null,null,null,null,11,{"$f":"IF(ISERR(GETPIVOTDATA(\"body\",knt_tab!$D$3,\"zavodnik\",knt_tab!D15)),\"\",IF(GETPIVOTDATA(\"body\",knt_tab!$D$3,\"zavodnik\",knt_tab!D15)=0,\"\",knt_tab!D15))","v":"Cahlíková Barbora"},{"$f":"IF(V40=\"\",\"\",GETPIVOTDATA(\"body\",knt_tab!$D$3,\"zavodnik\",V40))","v":45}]
[38,{"$f":"IF(ISERR(GETPIVOTDATA(\"body\",knt_tab!$A$3,\"zavodnik\",knt_tab!A42)),\"\",IF(GETPIVOTDATA(\"body\",knt_tab!$A$3,\"zavodnik\",knt_tab!A42)=0,\"\",knt_tab!A42))","v":"Meixner Michal"},{"$f":"IF(B41=\"\",\"\",GETPIVOTDATA(\"body\",knt_tab!$A$3,\"zavodnik\",B41))","v":51},null,97,{"$f":"IF(ISERR(GETPIVOTDATA(\"body\",knt_tab!$A$3,\"zavodnik\",knt_tab!A103)),\"\",IF(GETPIVOTDATA(\"body\",knt_tab!$A$3,\"zavodnik\",knt_tab!A103)=0,\"\",knt_tab!A103))","v":"Richter Lukáš"},{"$f":"IF(F41=\"\",\"\",GETPIVOTDATA(\"body\",knt_tab!$A$3,\"zavodnik\",F41))","v":11},null,4,{"$f":"IF(ISERR(GETPIVOTDATA(\"body\",knt_tab!$AE$3,\"zavodnik\",knt_tab!AE9)),\"\",IF(GETPIVOTDATA(\"body\",knt_tab!$AE$3,\"zavodnik\",knt_tab!AE9)=0,\"\",knt_tab!AE9))","v":"Chlebovský Daniel"},{"$f":"IF(J41=\"\",\"\",GETPIVOTDATA(\"body\",knt_tab!$AE$3,\"zavodnik\",J41))","v":28},null,1,{"$f":"IF(ISERR(GETPIVOTDATA(\"body\",knt_tab!$S$3,\"zavodnik\",knt_tab!S5)),\"\",IF(GETPIVOTDATA(\"body\",knt_tab!$S$3,\"zavodnik\",knt_tab!S5)=0,\"\",knt_tab!S5))","v":"Fulneček Šimon"},{"$f":"IF(N41=\"\",\"\",GETPIVOTDATA(\"body\",knt_tab!$S$3,\"zavodnik\",N41))","v":147},null,"mladší žákyně",null,null,null,12,{"$f":"IF(ISERR(GETPIVOTDATA(\"body\",knt_tab!$D$3,\"zavodnik\",knt_tab!D16)),\"\",IF(GETPIVOTDATA(\"body\",knt_tab!$D$3,\"zavodnik\",knt_tab!D16)=0,\"\",knt_tab!D16))","v":"Szwanová Liliana"},{"$f":"IF(V41=\"\",\"\",GETPIVOTDATA(\"body\",knt_tab!$D$3,\"zavodnik\",V41))","v":34}]
[38,{"$f":"IF(ISERR(GETPIVOTDATA(\"body\",knt_tab!$A$3,\"zavodnik\",knt_tab!A43)),\"\",IF(GETPIVOTDATA(\"body\",knt_tab!$A$3,\"zavodnik\",knt_tab!A43)=0,\"\",knt_tab!A43))","v":"Kuchejdová Zuzana"},{"$f":"IF(B42=\"\",\"\",GETPIVOTDATA(\"body\",knt_tab!$A$3,\"zavodnik\",B42))","v":51},null,100,{"$f":"IF(ISERR(GETPIVOTDATA(\"body\",knt_tab!$A$3,\"zavodnik\",knt_tab!A104)),\"\",IF(GETPIVOTDATA(\"body\",knt_tab!$A$3,\"zavodnik\",knt_tab!A104)=0,\"\",knt_tab!A104))","v":"Polášková Kristýna"},{"$f":"IF(F42=\"\",\"\",GETPIVOTDATA(\"body\",knt_tab!$A$3,\"zavodnik\",F42))","v":10},null,4,{"$f":"IF(ISERR(GETPIVOTDATA(\"body\",knt_tab!$AE$3,\"zavodnik\",knt_tab!AE10)),\"\",IF(GETPIVOTDATA(\"body\",knt_tab!$AE$3,\"zavodnik\",knt_tab!AE10)=0,\"\",knt_tab!AE10))","v":"Motyka Dominik"},{"$f":"IF(J42=\"\",\"\",GETPIVOTDATA(\"body\",knt_tab!$AE$3,\"zavodnik\",J42))","v":28},null,{"$f":"IF(N42=\"\",\"\",IF(O42=O41,M41,ROW(M42)-ROW($M$40)))","v":2},{"$f":"IF(ISERR(GETPIVOTDATA(\"body\",knt_tab!$S$3,\"zavodnik\",knt_tab!S6)),\"\",IF(GETPIVOTDATA(\"body\",knt_tab!$S$3,\"zavodnik\",knt_tab!S6)=0,\"\",knt_tab!S6))","v":"Čerchla Michal"},{"$f":"IF(N42=\"\",\"\",GETPIVOTDATA(\"body\",knt_tab!$S$3,\"zavodnik\",N42))","v":141},null,"Pořadí","Příjmení","body",null,13,{"$f":"IF(ISERR(GETPIVOTDATA(\"body\",knt_tab!$D$3,\"zavodnik\",knt_tab!D17)),\"\",IF(GETPIVOTDATA(\"body\",knt_tab!$D$3,\"zavodnik\",knt_tab!D17)=0,\"\",knt_tab!D17))","v":"Salomon Ondřej"},{"$f":"IF(V42=\"\",\"\",GETPIVOTDATA(\"body\",knt_tab!$D$3,\"zavodnik\",V42))","v":32}]
[38,{"$f":"IF(ISERR(GETPIVOTDATA(\"body\",knt_tab!$A$3,\"zavodnik\",knt_tab!A44)),\"\",IF(GETPIVOTDATA(\"body\",knt_tab!$A$3,\"zavodnik\",knt_tab!A44)=0,\"\",knt_tab!A44))","v":"Marušáková Kateřina"},{"$f":"IF(B43=\"\",\"\",GETPIVOTDATA(\"body\",knt_tab!$A$3,\"zavodnik\",B43))","v":51},null,100,{"$f":"IF(ISERR(GETPIVOTDATA(\"body\",knt_tab!$A$3,\"zavodnik\",knt_tab!A105)),\"\",IF(GETPIVOTDATA(\"body\",knt_tab!$A$3,\"zavodnik\",knt_tab!A105)=0,\"\",knt_tab!A105))","v":"Mazůch Richard"},{"$f":"IF(F43=\"\",\"\",GETPIVOTDATA(\"body\",knt_tab!$A$3,\"zavodnik\",F43))","v":10},null,7,{"$f":"IF(ISERR(GETPIVOTDATA(\"body\",knt_tab!$AE$3,\"zavodnik\",knt_tab!AE11)),\"\",IF(GETPIVOTDATA(\"body\",knt_tab!$AE$3,\"zavodnik\",knt_tab!AE11)=0,\"\",knt_tab!AE11))","v":"Lindovský Jiří"},{"$f":"IF(J43=\"\",\"\",GETPIVOTDATA(\"body\",knt_tab!$AE$3,\"zavodnik\",J43))","v":19},null,3,{"$f":"IF(ISERR(GETPIVOTDATA(\"body\",knt_tab!$S$3,\"zavodnik\",knt_tab!S7)),\"\",IF(GETPIVOTDATA(\"body\",knt_tab!$S$3,\"zavodnik\",knt_tab!S7)=0,\"\",knt_tab!S7))","v":"Potůček Tomáš"},{"$f":"IF(N43=\"\",\"\",GETPIVOTDATA(\"body\",knt_tab!$S$3,\"zavodnik\",N43))","v":125},null,1,{"$f":"IF(ISERR(GETPIVOTDATA(\"body\",knt_tab!$J$3,\"zavodnik\",knt_tab!J5)),\"\",IF(GETPIVOTDATA(\"body\",knt_tab!$J$3,\"zavodnik\",knt_tab!J5)=0,\"\",knt_tab!J5))","v":"Zoulová Karolína"},{"$f":"IF(R43=\"\",\"\",GETPIVOTDATA(\"body\",knt_tab!$J$3,\"zavodnik\",R43))","v":68},null,14,{"$f":"IF(ISERR(GETPIVOTDATA(\"body\",knt_tab!$D$3,\"zavodnik\",knt_tab!D18)),\"\",IF(GETPIVOTDATA(\"body\",knt_tab!$D$3,\"zavodnik\",knt_tab!D18)=0,\"\",knt_tab!D18))","v":"Hon Lukáš"},{"$f":"IF(V43=\"\",\"\",GETPIVOTDATA(\"body\",knt_tab!$D$3,\"zavodnik\",V43))","v":27}]
[41,{"$f":"IF(ISERR(GETPIVOTDATA(\"body\",knt_tab!$A$3,\"zavodnik\",knt_tab!A45)),\"\",IF(GETPIVOTDATA(\"body\",knt_tab!$A$3,\"zavodnik\",knt_tab!A45)=0,\"\",knt_tab!A45))","v":"Chlebový Arnold"},{"$f":"IF(B44=\"\",\"\",GETPIVOTDATA(\"body\",knt_tab!$A$3,\"zavodnik\",B44))","v":50},null,102,{"$f":"IF(ISERR(GETPIVOTDATA(\"body\",knt_tab!$A$3,\"zavodnik\",knt_tab!A106)),\"\",IF(GETPIVOTDATA(\"body\",knt_tab!$A$3,\"zavodnik\",knt_tab!A106)=0,\"\",knt_tab!A106))","v":"Babič Jan"},{"$f":"IF(F44=\"\",\"\",GETPIVOTDATA(\"body\",knt_tab!$A$3,\"zavodnik\",F44))","v":9},null,8,{"$f":"IF(ISERR(GETPIVOTDATA(\"body\",knt_tab!$AE$3,\"zavodnik\",knt_tab!AE12)),\"\",IF(GETPIVOTDATA(\"body\",knt_tab!$AE$3,\"zavodnik\",knt_tab!AE12)=0,\"\",knt_tab!AE12))","v":"Pačuta Ladislav"},{"$f":"IF(J44=\"\",\"\",GETPIVOTDATA(\"body\",knt_tab!$AE$3,\"zavodnik\",J44))","v":16},null,4,{"$f":"IF(ISERR(GETPIVOTDATA(\"body\",knt_tab!$S$3,\"zavodnik\",knt_tab!S8)),\"\",IF(GETPIVOTDATA(\"body\",knt_tab!$S$3,\"zavodnik\",knt_tab!S8)=0,\"\",knt_tab!S8))","v":"Pačuta Ladislav"},{"$f":"IF(N44=\"\",\"\",GETPIVOTDATA(\"body\",knt_tab!$S$3,\"zavodnik\",N44))","v":63},null,{"$f":"IF(R44=\"\",\"\",IF(S44=S43,Q43,ROW(Q44)-ROW($Q$42)))","v":2},{"$f":"IF(ISERR(GETPIVOTDATA(\"body\",knt_tab!$J$3,\"zavodnik\",knt_tab!J6)),\"\",IF(GETPIVOTDATA(\"body\",knt_tab!$J$3,\"zavodnik\",knt_tab!J6)=0,\"\",knt_tab!J6))","v":"Šelongová Viktorie"},{"$f":"IF(R44=\"\",\"\",GETPIVOTDATA(\"body\",knt_tab!$J$3,\"zavodnik\",R44))","v":56},null,15,{"$f":"IF(ISERR(GETPIVOTDATA(\"body\",knt_tab!$D$3,\"zavodnik\",knt_tab!D19)),\"\",IF(GETPIVOTDATA(\"body\",knt_tab!$D$3,\"zavodnik\",knt_tab!D19)=0,\"\",knt_tab!D19))","v":"Čechák Martin"},{"$f":"IF(V44=\"\",\"\",GETPIVOTDATA(\"body\",knt_tab!$D$3,\"zavodnik\",V44))","v":26}]
[41,{"$f":"IF(ISERR(GETPIVOTDATA(\"body\",knt_tab!$A$3,\"zavodnik\",knt_tab!A46)),\"\",IF(GETPIVOTDATA(\"body\",knt_tab!$A$3,\"zavodnik\",knt_tab!A46)=0,\"\",knt_tab!A46))","v":"Vlček Viktor"},{"$f":"IF(B45=\"\",\"\",GETPIVOTDATA(\"body\",knt_tab!$A$3,\"zavodnik\",B45))","v":50},null,102,{"$f":"IF(ISERR(GETPIVOTDATA(\"body\",knt_tab!$A$3,\"zavodnik\",knt_tab!A107)),\"\",IF(GETPIVOTDATA(\"body\",knt_tab!$A$3,\"zavodnik\",knt_tab!A107)=0,\"\",knt_tab!A107))","v":"Kokešová Alexandra"},{"$f":"IF(F45=\"\",\"\",GETPIVOTDATA(\"body\",knt_tab!$A$3,\"zavodnik\",F45))","v":9},null,9,{"$f":"IF(ISERR(GETPIVOTDATA(\"body\",knt_tab!$AE$3,\"zavodnik\",knt_tab!AE13)),\"\",IF(GETPIVOTDATA(\"body\",knt_tab!$AE$3,\"zavodnik\",knt_tab!AE13)=0,\"\",knt_tab!AE13))","v":"Meixner Tomáš"},{"$f":"IF(J45=\"\",\"\",GETPIVOTDATA(\"body\",knt_tab!$AE$3,\"zavodnik\",J45))","v":14},null,5,{"$f":"IF(ISERR(GETPIVOTDATA(\"body\",knt_tab!$S$3,\"zavodnik\",knt_tab!S9)),\"\",IF(GETPIVOTDATA(\"body\",knt_tab!$S$3,\"zavodnik\",knt_tab!S9)=0,\"\",knt_tab!S9))","v":"Vontor Tomáš"},{"$f":"IF(N45=\"\",\"\",GETPIVOTDATA(\"body\",knt_tab!$S$3,\"zavodnik\",N45))","v":56},null,3,{"$f":"IF(ISERR(GETPIVOTDATA(\"body\",knt_tab!$J$3,\"zavodnik\",knt_tab!J7)),\"\",IF(GETPIVOTDATA(\"body\",knt_tab!$J$3,\"zavodnik\",knt_tab!J7)=0,\"\",knt_tab!J7))","v":"Zoulová Tereza"},{"$f":"IF(R45=\"\",\"\",GETPIVOTDATA(\"body\",knt_tab!$J$3,\"zavodnik\",R45))","v":49},null,16,{"$f":"IF(ISERR(GETPIVOTDATA(\"body\",knt_tab!$D$3,\"zavodnik\",knt_tab!D20)),\"\",IF(GETPIVOTDATA(\"body\",knt_tab!$D$3,\"zavodnik\",knt_tab!D20)=0,\"\",knt_tab!D20))","v":"Řehůřek David"},{"$f":"IF(V45=\"\",\"\",GETPIVOTDATA(\"body\",knt_tab!$D$3,\"zavodnik\",V45))","v":22}]
[43,{"$f":"IF(ISERR(GETPIVOTDATA(\"body\",knt_tab!$A$3,\"zavodnik\",knt_tab!A47)),\"\",IF(GETPIVOTDATA(\"body\",knt_tab!$A$3,\"zavodnik\",knt_tab!A47)=0,\"\",knt_tab!A47))","v":"Zoulová Tereza"},{"$f":"IF(B46=\"\",\"\",GETPIVOTDATA(\"body\",knt_tab!$A$3,\"zavodnik\",B46))","v":49},null,102,{"$f":"IF(ISERR(GETPIVOTDATA(\"body\",knt_tab!$A$3,\"zavodnik\",knt_tab!A108)),\"\",IF(GETPIVOTDATA(\"body\",knt_tab!$A$3,\"zavodnik\",knt_tab!A108)=0,\"\",knt_tab!A108))","v":"Swiech Viktor"},{"$f":"IF(F46=\"\",\"\",GETPIVOTDATA(\"body\",knt_tab!$A$3,\"zavodnik\",F46))","v":9},null,10,{"$f":"IF(ISERR(GETPIVOTDATA(\"body\",knt_tab!$AE$3,\"zavodnik\",knt_tab!AE14)),\"\",IF(GETPIVOTDATA(\"body\",knt_tab!$AE$3,\"zavodnik\",knt_tab!AE14)=0,\"\",knt_tab!AE14))","v":"Babič Jan"},{"$f":"IF(J46=\"\",\"\",GETPIVOTDATA(\"body\",knt_tab!$AE$3,\"zavodnik\",J46))","v":9},null,6,{"$f":"IF(ISERR(GETPIVOTDATA(\"body\",knt_tab!$S$3,\"zavodnik\",knt_tab!S10)),\"\",IF(GETPIVOTDATA(\"body\",knt_tab!$S$3,\"zavodnik\",knt_tab!S10)=0,\"\",knt_tab!S10))","v":"Čebík Filip"},{"$f":"IF(N46=\"\",\"\",GETPIVOTDATA(\"body\",knt_tab!$S$3,\"zavodnik\",N46))","v":55},null,4,{"$f":"IF(ISERR(GETPIVOTDATA(\"body\",knt_tab!$J$3,\"zavodnik\",knt_tab!J8)),\"\",IF(GETPIVOTDATA(\"body\",knt_tab!$J$3,\"zavodnik\",knt_tab!J8)=0,\"\",knt_tab!J8))","v":"Nováková Victoria"},{"$f":"IF(R46=\"\",\"\",GETPIVOTDATA(\"body\",knt_tab!$J$3,\"zavodnik\",R46))","v":32},null,17,{"$f":"IF(ISERR(GETPIVOTDATA(\"body\",knt_tab!$D$3,\"zavodnik\",knt_tab!D21)),\"\",IF(GETPIVOTDATA(\"body\",knt_tab!$D$3,\"zavodnik\",knt_tab!D21)=0,\"\",knt_tab!D21))","v":"Ščevík Ondřej"},{"$f":"IF(V46=\"\",\"\",GETPIVOTDATA(\"body\",knt_tab!$D$3,\"zavodnik\",V46))","v":21}]
[44,{"$f":"IF(ISERR(GETPIVOTDATA(\"body\",knt_tab!$A$3,\"zavodnik\",knt_tab!A48)),\"\",IF(GETPIVOTDATA(\"body\",knt_tab!$A$3,\"zavodnik\",knt_tab!A48)=0,\"\",knt_tab!A48))","v":"Caletka Petr"},{"$f":"IF(B47=\"\",\"\",GETPIVOTDATA(\"body\",knt_tab!$A$3,\"zavodnik\",B47))","v":48},null,105,{"$f":"IF(ISERR(GETPIVOTDATA(\"body\",knt_tab!$A$3,\"zavodnik\",knt_tab!A109)),\"\",IF(GETPIVOTDATA(\"body\",knt_tab!$A$3,\"zavodnik\",knt_tab!A109)=0,\"\",knt_tab!A109))","v":"Kuluri Theofania"},{"$f":"IF(F47=\"\",\"\",GETPIVOTDATA(\"body\",knt_tab!$A$3,\"zavodnik\",F47))","v":8},null,11,{"$f":"IF(ISERR(GETPIVOTDATA(\"body\",knt_tab!$AE$3,\"zavodnik\",knt_tab!AE15)),\"\",IF(GETPIVOTDATA(\"body\",knt_tab!$AE$3,\"zavodnik\",knt_tab!AE15)=0,\"\",knt_tab!AE15))","v":"Čebík Filip"},{"$f":"IF(J47=\"\",\"\",GETPIVOTDATA(\"body\",knt_tab!$AE$3,\"zavodnik\",J47))","v":8},null,6,{"$f":"IF(ISERR(GETPIVOTDATA(\"body\",knt_tab!$S$3,\"zavodnik\",knt_tab!S11)),\"\",IF(GETPIVOTDATA(\"body\",knt_tab!$S$3,\"zavodnik\",knt_tab!S11)=0,\"\",knt_tab!S11))","v":"Vaněk Jakub"},{"$f":"IF(N47=\"\",\"\",GETPIVOTDATA(\"body\",knt_tab!$S$3,\"zavodnik\",N47))","v":55},null,5,{"$f":"IF(ISERR(GETPIVOTDATA(\"body\",knt_tab!$J$3,\"zavodnik\",knt_tab!J9)),\"\",IF(GETPIVOTDATA(\"body\",knt_tab!$J$3,\"zavodnik\",knt_tab!J9)=0,\"\",knt_tab!J9))","v":"Kuchejdová Veronika"},{"$f":"IF(R47=\"\",\"\",GETPIVOTDATA(\"body\",knt_tab!$J$3,\"zavodnik\",R47))","v":20},null,18,{"$f":"IF(ISERR(GETPIVOTDATA(\"body\",knt_tab!$D$3,\"zavodnik\",knt_tab!D22)),\"\",IF(GETPIVOTDATA(\"body\",knt_tab!$D$3,\"zavodnik\",knt_tab!D22)=0,\"\",knt_tab!D22))","v":"Jaššo Štěpán"},{"$f":"IF(V47=\"\",\"\",GETPIVOTDATA(\"body\",knt_tab!$D$3,\"zavodnik\",V47))","v":20}]
[{"$f":"IF(B48=\"\",\"\",IF(C48=C47,A47,ROW(A48)-ROW($A$3)))","v":44},{"$f":"IF(ISERR(GETPIVOTDATA(\"body\",knt_tab!$A$3,\"zavodnik\",knt_tab!A49)),\"\",IF(GETPIVOTDATA(\"body\",knt_tab!$A$3,\"zavodnik\",knt_tab!A49)=0,\"\",knt_tab!A49))","v":"Motyka Dominik"},{"$f":"IF(B48=\"\",\"\",GETPIVOTDATA(\"body\",knt_tab!$A$3,\"zavodnik\",B48))","v":48},null,106,{"$f":"IF(ISERR(GETPIVOTDATA(\"body\",knt_tab!$A$3,\"zavodnik\",knt_tab!A110)),\"\",IF(GETPIVOTDATA(\"body\",knt_tab!$A$3,\"zavodnik\",knt_tab!A110)=0,\"\",knt_tab!A110))","v":"Lehnert Mikuláš"},{"$f":"IF(F48=\"\",\"\",GETPIVOTDATA(\"body\",knt_tab!$A$3,\"zavodnik\",F48))","v":7},null,12,{"$f":"IF(ISERR(GETPIVOTDATA(\"body\",knt_tab!$AE$3,\"zavodnik\",knt_tab!AE16)),\"\",IF(GETPIVOTDATA(\"body\",knt_tab!$AE$3,\"zavodnik\",knt_tab!AE16)=0,\"\",knt_tab!AE16))","v":"Caletka Michal"},{"$f":"IF(J48=\"\",\"\",GETPIVOTDATA(\"body\",knt_tab!$AE$3,\"zavodnik\",J48))","v":6},null,8,{"$f":"IF(ISERR(GETPIVOTDATA(\"body\",knt_tab!$S$3,\"zavodnik\",knt_tab!S12)),\"\",IF(GETPIVOTDATA(\"body\",knt_tab!$S$3,\"zavodnik\",knt_tab!S12)=0,\"\",knt_tab!S12))","v":"Caletka Petr"},{"$f":"IF(N48=\"\",\"\",GETPIVOTDATA(\"body\",knt_tab!$S$3,\"zavodnik\",N48))","v":48},null,6,{"$f":"IF(ISERR(GETPIVOTDATA(\"body\",knt_tab!$J$3,\"zavodnik\",knt_tab!J10)),\"\",IF(GETPIVOTDATA(\"body\",knt_tab!$J$3,\"zavodnik\",knt_tab!J10)=0,\"\",knt_tab!J10))","v":"Tumlířová Violeta"},{"$f":"IF(R48=\"\",\"\",GETPIVOTDATA(\"body\",knt_tab!$J$3,\"zavodnik\",R48))","v":4},null,19,{"$f":"IF(ISERR(GETPIVOTDATA(\"body\",knt_tab!$D$3,\"zavodnik\",knt_tab!D23)),\"\",IF(GETPIVOTDATA(\"body\",knt_tab!$D$3,\"zavodnik\",knt_tab!D23)=0,\"\",knt_tab!D23))","v":"Gajda Maxim"},{"$f":"IF(V48=\"\",\"\",GETPIVOTDATA(\"body\",knt_tab!$D$3,\"zavodnik\",V48))","v":15}]
[46,{"$f":"IF(ISERR(GETPIVOTDATA(\"body\",knt_tab!$A$3,\"zavodnik\",knt_tab!A50)),\"\",IF(GETPIVOTDATA(\"body\",knt_tab!$A$3,\"zavodnik\",knt_tab!A50)=0,\"\",knt_tab!A50))","v":"Kristen Nicolas"},{"$f":"IF(B49=\"\",\"\",GETPIVOTDATA(\"body\",knt_tab!$A$3,\"zavodnik\",B49))","v":45},null,106,{"$f":"IF(ISERR(GETPIVOTDATA(\"body\",knt_tab!$A$3,\"zavodnik\",knt_tab!A111)),\"\",IF(GETPIVOTDATA(\"body\",knt_tab!$A$3,\"zavodnik\",knt_tab!A111)=0,\"\",knt_tab!A111))","v":"Poledník Rostislav"},{"$f":"IF(F49=\"\",\"\",GETPIVOTDATA(\"body\",knt_tab!$A$3,\"zavodnik\",F49))","v":7},null,12,{"$f":"IF(ISERR(GETPIVOTDATA(\"body\",knt_tab!$AE$3,\"zavodnik\",knt_tab!AE17)),\"\",IF(GETPIVOTDATA(\"body\",knt_tab!$AE$3,\"zavodnik\",knt_tab!AE17)=0,\"\",knt_tab!AE17))","v":"Kršňák Filip"},{"$f":"IF(J49=\"\",\"\",GETPIVOTDATA(\"body\",knt_tab!$AE$3,\"zavodnik\",J49))","v":6},null,9,{"$f":"IF(ISERR(GETPIVOTDATA(\"body\",knt_tab!$S$3,\"zavodnik\",knt_tab!S13)),\"\",IF(GETPIVOTDATA(\"body\",knt_tab!$S$3,\"zavodnik\",knt_tab!S13)=0,\"\",knt_tab!S13))","v":"Meixner Michal"},{"$f":"IF(N49=\"\",\"\",GETPIVOTDATA(\"body\",knt_tab!$S$3,\"zavodnik\",N49))","v":47},null,7,{"$f":"IF(ISERR(GETPIVOTDATA(\"body\",knt_tab!$J$3,\"zavodnik\",knt_tab!J11)),\"\",IF(GETPIVOTDATA(\"body\",knt_tab!$J$3,\"zavodnik\",knt_tab!J11)=0,\"\",knt_tab!J11))","v":"Cséri Klára"},{"$f":"IF(R49=\"\",\"\",GETPIVOTDATA(\"body\",knt_tab!$J$3,\"zavodnik\",R49))","v":3},null,20,{"$f":"IF(ISERR(GETPIVOTDATA(\"body\",knt_tab!$D$3,\"zavodnik\",knt_tab!D24)),\"\",IF(GETPIVOTDATA(\"body\",knt_tab!$D$3,\"zavodnik\",knt_tab!D24)=0,\"\",knt_tab!D24))","v":"Hladký Dalimil"},{"$f":"IF(V49=\"\",\"\",GETPIVOTDATA(\"body\",knt_tab!$D$3,\"zavodnik\",V49))","v":12}]
[46,{"$f":"IF(ISERR(GETPIVOTDATA(\"body\",knt_tab!$A$3,\"zavodnik\",knt_tab!A51)),\"\",IF(GETPIVOTDATA(\"body\",knt_tab!$A$3,\"zavodnik\",knt_tab!A51)=0,\"\",knt_tab!A51))","v":"Cahlíková Barbora"},{"$f":"IF(B50=\"\",\"\",GETPIVOTDATA(\"body\",knt_tab!$A$3,\"zavodnik\",B50))","v":45},null,106,{"$f":"IF(ISERR(GETPIVOTDATA(\"body\",knt_tab!$A$3,\"zavodnik\",knt_tab!A112)),\"\",IF(GETPIVOTDATA(\"body\",knt_tab!$A$3,\"zavodnik\",knt_tab!A112)=0,\"\",knt_tab!A112))","v":"Kouřil Sebastián"},{"$f":"IF(F50=\"\",\"\",GETPIVOTDATA(\"body\",knt_tab!$A$3,\"zavodnik\",F50))","v":7},null,12,{"$f":"IF(ISERR(GETPIVOTDATA(\"body\",knt_tab!$AE$3,\"zavodnik\",knt_tab!AE18)),\"\",IF(GETPIVOTDATA(\"body\",knt_tab!$AE$3,\"zavodnik\",knt_tab!AE18)=0,\"\",knt_tab!AE18))","v":"Martínek Roman"},{"$f":"IF(J50=\"\",\"\",GETPIVOTDATA(\"body\",knt_tab!$AE$3,\"zavodnik\",J50))","v":6},null,10,{"$f":"IF(ISERR(GETPIVOTDATA(\"body\",knt_tab!$S$3,\"zavodnik\",knt_tab!S14)),\"\",IF(GETPIVOTDATA(\"body\",knt_tab!$S$3,\"zavodnik\",knt_tab!S14)=0,\"\",knt_tab!S14))","v":"Kristen Nicolas"},{"$f":"IF(N50=\"\",\"\",GETPIVOTDATA(\"body\",knt_tab!$S$3,\"zavodnik\",N50))","v":44},null,"",{"$f":"IF(ISERR(GETPIVOTDATA(\"body\",knt_tab!$J$3,\"zavodnik\",knt_tab!J12)),\"\",IF(GETPIVOTDATA(\"body\",knt_tab!$J$3,\"zavodnik\",knt_tab!J12)=0,\"\",knt_tab!J12))","v":""},{"$f":"IF(R50=\"\",\"\",GETPIVOTDATA(\"body\",knt_tab!$J$3,\"zavodnik\",R50))","v":""},null,21,{"$f":"IF(ISERR(GETPIVOTDATA(\"body\",knt_tab!$D$3,\"zavodnik\",knt_tab!D25)),\"\",IF(GETPIVOTDATA(\"body\",knt_tab!$D$3,\"zavodnik\",knt_tab!D25)=0,\"\",knt_tab!D25))","v":"Richter Lukáš"},{"$f":"IF(V50=\"\",\"\",GETPIVOTDATA(\"body\",knt_tab!$D$3,\"zavodnik\",V50))","v":11}]
[48,{"$f":"IF(ISERR(GETPIVOTDATA(\"body\",knt_tab!$A$3,\"zavodnik\",knt_tab!A52)),\"\",IF(GETPIVOTDATA(\"body\",knt_tab!$A$3,\"zavodnik\",knt_tab!A52)=0,\"\",knt_tab!A52))","v":"Chlebovský Daniel"},{"$f":"IF(B51=\"\",\"\",GETPIVOTDATA(\"body\",knt_tab!$A$3,\"zavodnik\",B51))","v":41},null,109,{"$f":"IF(ISERR(GETPIVOTDATA(\"body\",knt_tab!$A$3,\"zavodnik\",knt_tab!A113)),\"\",IF(GETPIVOTDATA(\"body\",knt_tab!$A$3,\"zavodnik\",knt_tab!A113)=0,\"\",knt_tab!A113))","v":"Londýn Šimon"},{"$f":"IF(F51=\"\",\"\",GETPIVOTDATA(\"body\",knt_tab!$A$3,\"zavodnik\",F51))","v":6},null,15,{"$f":"IF(ISERR(GETPIVOTDATA(\"body\",knt_tab!$AE$3,\"zavodnik\",knt_tab!AE19)),\"\",IF(GETPIVOTDATA(\"body\",knt_tab!$AE$3,\"zavodnik\",knt_tab!AE19)=0,\"\",knt_tab!AE19))","v":"Fulneček Šimon"},{"$f":"IF(J51=\"\",\"\",GETPIVOTDATA(\"body\",knt_tab!$AE$3,\"zavodnik\",J51))","v":4},null,11,{"$f":"IF(ISERR(GETPIVOTDATA(\"body\",knt_tab!$S$3,\"zavodnik\",knt_tab!S15)),\"\",IF(GETPIVOTDATA(\"body\",knt_tab!$S$3,\"zavodnik\",knt_tab!S15)=0,\"\",knt_tab!S15))","v":"Tomek David"},{"$f":"IF(N51=\"\",\"\",GETPIVOTDATA(\"body\",knt_tab!$S$3,\"zavodnik\",N51))","v":34},null,null,null,null,null,21,{"$f":"IF(ISERR(GETPIVOTDATA(\"body\",knt_tab!$D$3,\"zavodnik\",knt_tab!D26)),\"\",IF(GETPIVOTDATA(\"body\",knt_tab!$D$3,\"zavodnik\",knt_tab!D26)=0,\"\",knt_tab!D26))","v":"Bujoková Kristin"},{"$f":"IF(V51=\"\",\"\",GETPIVOTDATA(\"body\",knt_tab!$D$3,\"zavodnik\",V51))","v":11}]
[49,{"$f":"IF(ISERR(GETPIVOTDATA(\"body\",knt_tab!$A$3,\"zavodnik\",knt_tab!A53)),\"\",IF(GETPIVOTDATA(\"body\",knt_tab!$A$3,\"zavodnik\",knt_tab!A53)=0,\"\",knt_tab!A53))","v":"Mařec Tomáš"},{"$f":"IF(B52=\"\",\"\",GETPIVOTDATA(\"body\",knt_tab!$A$3,\"zavodnik\",B52))","v":36},null,109,{"$f":"IF(ISERR(GETPIVOTDATA(\"body\",knt_tab!$A$3,\"zavodnik\",knt_tab!A114)),\"\",IF(GETPIVOTDATA(\"body\",knt_tab!$A$3,\"zavodnik\",knt_tab!A114)=0,\"\",knt_tab!A114))","v":"Murin Jan"},{"$f":"IF(F52=\"\",\"\",GETPIVOTDATA(\"body\",knt_tab!$A$3,\"zavodnik\",F52))","v":6},null,15,{"$f":"IF(ISERR(GETPIVOTDATA(\"body\",knt_tab!$AE$3,\"zavodnik\",knt_tab!AE20)),\"\",IF(GETPIVOTDATA(\"body\",knt_tab!$AE$3,\"zavodnik\",knt_tab!AE20)=0,\"\",knt_tab!AE20))","v":"Potůček Tomáš"},{"$f":"IF(J52=\"\",\"\",GETPIVOTDATA(\"body\",knt_tab!$AE$3,\"zavodnik\",J52))","v":4},null,12,{"$f":"IF(ISERR(GETPIVOTDATA(\"body\",knt_tab!$S$3,\"zavodnik\",knt_tab!S16)),\"\",IF(GETPIVOTDATA(\"body\",knt_tab!$S$3,\"zavodnik\",knt_tab!S16)=0,\"\",knt_tab!S16))","v":"Kolář Vojtěch"},{"$f":"IF(N52=\"\",\"\",GETPIVOTDATA(\"body\",knt_tab!$S$3,\"zavodnik\",N52))","v":32},null,"mladší žáci",null,null,null,21,{"$f":"IF(ISERR(GETPIVOTDATA(\"body\",knt_tab!$D$3,\"zavodnik\",knt_tab!D27)),\"\",IF(GETPIVOTDATA(\"body\",knt_tab!$D$3,\"zavodnik\",knt_tab!D27)=0,\"\",knt_tab!D27))","v":"Weiss Daniel"},{"$f":"IF(V52=\"\",\"\",GETPIVOTDATA(\"body\",knt_tab!$D$3,\"zavodnik\",V52))","v":11}]
[49,{"$f":"IF(ISERR(GETPIVOTDATA(\"body\",knt_tab!$A$3,\"zavodnik\",knt_tab!A54)),\"\",IF(GETPIVOTDATA(\"body\",knt_tab!$A$3,\"zavodnik\",knt_tab!A54)=0,\"\",knt_tab!A54))","v":"Caletka Michal"},{"$f":"IF(B53=\"\",\"\",GETPIVOTDATA(\"body\",knt_tab!$A$3,\"zavodnik\",B53))","v":36},null,109,{"$f":"IF(ISERR(GETPIVOTDATA(\"body\",knt_tab!$A$3,\"zavodnik\",knt_tab!A115)),\"\",IF(GETPIVOTDATA(\"body\",knt_tab!$A$3,\"zavodnik\",knt_tab!A115)=0,\"\",knt_tab!A115))","v":"Březná Karolína"},{"$f":"IF(F53=\"\",\"\",GETPIVOTDATA(\"body\",knt_tab!$A$3,\"zavodnik\",F53))","v":6},null,15,{"$f":"IF(ISERR(GETPIVOTDATA(\"body\",knt_tab!$AE$3,\"zavodnik\",knt_tab!AE21)),\"\",IF(GETPIVOTDATA(\"body\",knt_tab!$AE$3,\"zavodnik\",knt_tab!AE21)=0,\"\",knt_tab!AE21))","v":"Ilenčík Filip"},{"$f":"IF(J53=\"\",\"\",GETPIVOTDATA(\"body\",knt_tab!$AE$3,\"zavodnik\",J53))","v":4},null,13,{"$f":"IF(ISERR(GETPIVOTDATA(\"body\",knt_tab!$S$3,\"zavodnik\",knt_tab!S17)),\"\",IF(GETPIVOTDATA(\"body\",knt_tab!$S$3,\"zavodnik\",knt_tab!S17)=0,\"\",knt_tab!S17))","v":"Huvar Jakub"},{"$f":"IF(N53=\"\",\"\",GETPIVOTDATA(\"body\",knt_tab!$S$3,\"zavodnik\",N53))","v":30},null,"Pořadí","Příjmení","body",null,24,{"$f":"IF(ISERR(GETPIVOTDATA(\"body\",knt_tab!$D$3,\"zavodnik\",knt_tab!D28)),\"\",IF(GETPIVOTDATA(\"body\",knt_tab!$D$3,\"zavodnik\",knt_tab!D28)=0,\"\",knt_tab!D28))","v":"Mazůch Richard"},{"$f":"IF(V53=\"\",\"\",GETPIVOTDATA(\"body\",knt_tab!$D$3,\"zavodnik\",V53))","v":10}]
[49,{"$f":"IF(ISERR(GETPIVOTDATA(\"body\",knt_tab!$A$3,\"zavodnik\",knt_tab!A55)),\"\",IF(GETPIVOTDATA(\"body\",knt_tab!$A$3,\"zavodnik\",knt_tab!A55)=0,\"\",knt_tab!A55))","v":"Lindovský Jiří"},{"$f":"IF(B54=\"\",\"\",GETPIVOTDATA(\"body\",knt_tab!$A$3,\"zavodnik\",B54))","v":36},null,112,{"$f":"IF(ISERR(GETPIVOTDATA(\"body\",knt_tab!$A$3,\"zavodnik\",knt_tab!A116)),\"\",IF(GETPIVOTDATA(\"body\",knt_tab!$A$3,\"zavodnik\",knt_tab!A116)=0,\"\",knt_tab!A116))","v":"Jahoda Pavel"},{"$f":"IF(F54=\"\",\"\",GETPIVOTDATA(\"body\",knt_tab!$A$3,\"zavodnik\",F54))","v":5},null,15,{"$f":"IF(ISERR(GETPIVOTDATA(\"body\",knt_tab!$AE$3,\"zavodnik\",knt_tab!AE22)),\"\",IF(GETPIVOTDATA(\"body\",knt_tab!$AE$3,\"zavodnik\",knt_tab!AE22)=0,\"\",knt_tab!AE22))","v":"Čerchla Michal"},{"$f":"IF(J54=\"\",\"\",GETPIVOTDATA(\"body\",knt_tab!$AE$3,\"zavodnik\",J54))","v":4},null,14,{"$f":"IF(ISERR(GETPIVOTDATA(\"body\",knt_tab!$S$3,\"zavodnik\",knt_tab!S18)),\"\",IF(GETPIVOTDATA(\"body\",knt_tab!$S$3,\"zavodnik\",knt_tab!S18)=0,\"\",knt_tab!S18))","v":"Lavrukhin Dobrynya"},{"$f":"IF(N54=\"\",\"\",GETPIVOTDATA(\"body\",knt_tab!$S$3,\"zavodnik\",N54))","v":26},null,1,{"$f":"IF(ISERR(GETPIVOTDATA(\"body\",knt_tab!$G$3,\"zavodnik\",knt_tab!G5)),\"\",IF(GETPIVOTDATA(\"body\",knt_tab!$G$3,\"zavodnik\",knt_tab!G5)=0,\"\",knt_tab!G5))","v":"Vlček Martin"},{"$f":"IF(R54=\"\",\"\",GETPIVOTDATA(\"body\",knt_tab!$G$3,\"zavodnik\",R54))","v":67},null,25,{"$f":"IF(ISERR(GETPIVOTDATA(\"body\",knt_tab!$D$3,\"zavodnik\",knt_tab!D29)),\"\",IF(GETPIVOTDATA(\"body\",knt_tab!$D$3,\"zavodnik\",knt_tab!D29)=0,\"\",knt_tab!D29))","v":"Swiech Viktor"},{"$f":"IF(V54=\"\",\"\",GETPIVOTDATA(\"body\",knt_tab!$D$3,\"zavodnik\",V54))","v":9}]
[49,{"$f":"IF(ISERR(GETPIVOTDATA(\"body\",knt_tab!$A$3,\"zavodnik\",knt_tab!A56)),\"\",IF(GETPIVOTDATA(\"body\",knt_tab!$A$3,\"zavodnik\",knt_tab!A56)=0,\"\",knt_tab!A56))","v":"Kuluris Manolis"},{"$f":"IF(B55=\"\",\"\",GETPIVOTDATA(\"body\",knt_tab!$A$3,\"zavodnik\",B55))","v":36},null,112,{"$f":"IF(ISERR(GETPIVOTDATA(\"body\",knt_tab!$A$3,\"zavodnik\",knt_tab!A117)),\"\",IF(GETPIVOTDATA(\"body\",knt_tab!$A$3,\"zavodnik\",knt_tab!A117)=0,\"\",knt_tab!A117))","v":"Řehůřková Jana"},{"$f":"IF(F55=\"\",\"\",GETPIVOTDATA(\"body\",knt_tab!$A$3,\"zavodnik\",F55))","v":5},null,15,{"$f":"IF(ISERR(GETPIVOTDATA(\"body\",knt_tab!$AE$3,\"zavodnik\",knt_tab!AE23)),\"\",IF(GETPIVOTDATA(\"body\",knt_tab!$AE$3,\"zavodnik\",knt_tab!AE23)=0,\"\",knt_tab!AE23))","v":"Šeděnka Richard"},{"$f":"IF(J55=\"\",\"\",GETPIVOTDATA(\"body\",knt_tab!$AE$3,\"zavodnik\",J55))","v":4},null,15,{"$f":"IF(ISERR(GETPIVOTDATA(\"body\",knt_tab!$S$3,\"zavodnik\",knt_tab!S19)),\"\",IF(GETPIVOTDATA(\"body\",knt_tab!$S$3,\"zavodnik\",knt_tab!S19)=0,\"\",knt_tab!S19))","v":"Kutáč Jan"},{"$f":"IF(N55=\"\",\"\",GETPIVOTDATA(\"body\",knt_tab!$S$3,\"zavodnik\",N55))","v":25},null,{"$f":"IF(R55=\"\",\"\",IF(S55=S54,Q54,ROW(Q55)-ROW($Q$53)))","v":2},{"$f":"IF(ISERR(GETPIVOTDATA(\"body\",knt_tab!$G$3,\"zavodnik\",knt_tab!G6)),\"\",IF(GETPIVOTDATA(\"body\",knt_tab!$G$3,\"zavodnik\",knt_tab!G6)=0,\"\",knt_tab!G6))","v":"Musial Šimon"},{"$f":"IF(R55=\"\",\"\",GETPIVOTDATA(\"body\",knt_tab!$G$3,\"zavodnik\",R55))","v":55},null,26,{"$f":"IF(ISERR(GETPIVOTDATA(\"body\",knt_tab!$D$3,\"zavodnik\",knt_tab!D30)),\"\",IF(GETPIVOTDATA(\"body\",knt_tab!$D$3,\"zavodnik\",knt_tab!D30)=0,\"\",knt_tab!D30))","v":"Kuluri Theofania"},{"$f":"IF(V55=\"\",\"\",GETPIVOTDATA(\"body\",knt_tab!$D$3,\"zavodnik\",V55))","v":8}]
[53,{"$f":"IF(ISERR(GETPIVOTDATA(\"body\",knt_tab!$A$3,\"zavodnik\",knt_tab!A57)),\"\",IF(GETPIVOTDATA(\"body\",knt_tab!$A$3,\"zavodnik\",knt_tab!A57)=0,\"\",knt_tab!A57))","v":"Škoda Melichar"},{"$f":"IF(B56=\"\",\"\",GETPIVOTDATA(\"body\",knt_tab!$A$3,\"zavodnik\",B56))","v":35},null,112,{"$f":"IF(ISERR(GETPIVOTDATA(\"body\",knt_tab!$A$3,\"zavodnik\",knt_tab!A118)),\"\",IF(GETPIVOTDATA(\"body\",knt_tab!$A$3,\"zavodnik\",knt_tab!A118)=0,\"\",knt_tab!A118))","v":"Maslík Teodor"},{"$f":"IF(F56=\"\",\"\",GETPIVOTDATA(\"body\",knt_tab!$A$3,\"zavodnik\",F56))","v":5},null,"",{"$f":"IF(ISERR(GETPIVOTDATA(\"body\",knt_tab!$AE$3,\"zavodnik\",knt_tab!AE24)),\"\",IF(GETPIVOTDATA(\"body\",knt_tab!$AE$3,\"zavodnik\",knt_tab!AE24)=0,\"\",knt_tab!AE24))","v":""},{"$f":"IF(J56=\"\",\"\",GETPIVOTDATA(\"body\",knt_tab!$AE$3,\"zavodnik\",J56))","v":""},null,15,{"$f":"IF(ISERR(GETPIVOTDATA(\"body\",knt_tab!$S$3,\"zavodnik\",knt_tab!S20)),\"\",IF(GETPIVOTDATA(\"body\",knt_tab!$S$3,\"zavodnik\",knt_tab!S20)=0,\"\",knt_tab!S20))","v":"Caletka Michal"},{"$f":"IF(N56=\"\",\"\",GETPIVOTDATA(\"body\",knt_tab!$S$3,\"zavodnik\",N56))","v":25},null,3,{"$f":"IF(ISERR(GETPIVOTDATA(\"body\",knt_tab!$G$3,\"zavodnik\",knt_tab!G7)),\"\",IF(GETPIVOTDATA(\"body\",knt_tab!$G$3,\"zavodnik\",knt_tab!G7)=0,\"\",knt_tab!G7))","v":"Lechovič Tobiáš"},{"$f":"IF(R56=\"\",\"\",GETPIVOTDATA(\"body\",knt_tab!$G$3,\"zavodnik\",R56))","v":54},null,27,{"$f":"IF(ISERR(GETPIVOTDATA(\"body\",knt_tab!$D$3,\"zavodnik\",knt_tab!D31)),\"\",IF(GETPIVOTDATA(\"body\",knt_tab!$D$3,\"zavodnik\",knt_tab!D31)=0,\"\",knt_tab!D31))","v":"Poledník Rostislav"},{"$f":"IF(V56=\"\",\"\",GETPIVOTDATA(\"body\",knt_tab!$D$3,\"zavodnik\",V56))","v":7}]
[54,{"$f":"IF(ISERR(GETPIVOTDATA(\"body\",knt_tab!$A$3,\"zavodnik\",knt_tab!A58)),\"\",IF(GETPIVOTDATA(\"body\",knt_tab!$A$3,\"zavodnik\",knt_tab!A58)=0,\"\",knt_tab!A58))","v":"Tomek David"},{"$f":"IF(B57=\"\",\"\",GETPIVOTDATA(\"body\",knt_tab!$A$3,\"zavodnik\",B57))","v":34},null,{"$f":"IF(F57=\"\",\"\",IF(G57=G56,E56,ROW(E57)-ROW($E$3)+61))","v":112},{"$f":"IF(ISERR(GETPIVOTDATA(\"body\",knt_tab!$A$3,\"zavodnik\",knt_tab!A119)),\"\",IF(GETPIVOTDATA(\"body\",knt_tab!$A$3,\"zavodnik\",knt_tab!A119)=0,\"\",knt_tab!A119))","v":"Ožana Maxmilián"},{"$f":"IF(F57=\"\",\"\",GETPIVOTDATA(\"body\",knt_tab!$A$3,\"zavodnik\",F57))","v":5},null,"ženy",null,null,null,17,{"$f":"IF(ISERR(GETPIVOTDATA(\"body\",knt_tab!$S$3,\"zavodnik\",knt_tab!S21)),\"\",IF(GETPIVOTDATA(\"body\",knt_tab!$S$3,\"zavodnik\",knt_tab!S21)=0,\"\",knt_tab!S21))","v":"Baudiš Michal"},{"$f":"IF(N57=\"\",\"\",GETPIVOTDATA(\"body\",knt_tab!$S$3,\"zavodnik\",N57))","v":23},null,4,{"$f":"IF(ISERR(GETPIVOTDATA(\"body\",knt_tab!$G$3,\"zavodnik\",knt_tab!G8)),\"\",IF(GETPIVOTDATA(\"body\",knt_tab!$G$3,\"zavodnik\",knt_tab!G8)=0,\"\",knt_tab!G8))","v":"Bokiy Konstantin"},{"$f":"IF(R57=\"\",\"\",GETPIVOTDATA(\"body\",knt_tab!$G$3,\"zavodnik\",R57))","v":29},null,27,{"$f":"IF(ISERR(GETPIVOTDATA(\"body\",knt_tab!$D$3,\"zavodnik\",knt_tab!D32)),\"\",IF(GETPIVOTDATA(\"body\",knt_tab!$D$3,\"zavodnik\",knt_tab!D32)=0,\"\",knt_tab!D32))","v":"Lehnert Mikuláš"},{"$f":"IF(V57=\"\",\"\",GETPIVOTDATA(\"body\",knt_tab!$D$3,\"zavodnik\",V57))","v":7}]
[54,{"$f":"IF(ISERR(GETPIVOTDATA(\"body\",knt_tab!$A$3,\"zavodnik\",knt_tab!A59)),\"\",IF(GETPIVOTDATA(\"body\",knt_tab!$A$3,\"zavodnik\",knt_tab!A59)=0,\"\",knt_tab!A59))","v":"Szwanová Liliana"},{"$f":"IF(B58=\"\",\"\",GETPIVOTDATA(\"body\",knt_tab!$A$3,\"zavodnik\",B58))","v":34},null,112,{"$f":"IF(ISERR(GETPIVOTDATA(\"body\",knt_tab!$A$3,\"zavodnik\",knt_tab!A120)),\"\",IF(GETPIVOTDATA(\"body\",knt_tab!$A$3,\"zavodnik\",knt_tab!A120)=0,\"\",knt_tab!A120))","v":"Krayzel Šimon"},{"$f":"IF(F58=\"\",\"\",GETPIVOTDATA(\"body\",knt_tab!$A$3,\"zavodnik\",F58))","v":5},null,"Pořadí","Příjmení","body",null,18,{"$f":"IF(ISERR(GETPIVOTDATA(\"body\",knt_tab!$S$3,\"zavodnik\",knt_tab!S22)),\"\",IF(GETPIVOTDATA(\"body\",knt_tab!$S$3,\"zavodnik\",knt_tab!S22)=0,\"\",knt_tab!S22))","v":"Pospíšil Jan"},{"$f":"IF(N58=\"\",\"\",GETPIVOTDATA(\"body\",knt_tab!$S$3,\"zavodnik\",N58))","v":22},null,5,{"$f":"IF(ISERR(GETPIVOTDATA(\"body\",knt_tab!$G$3,\"zavodnik\",knt_tab!G9)),\"\",IF(GETPIVOTDATA(\"body\",knt_tab!$G$3,\"zavodnik\",knt_tab!G9)=0,\"\",knt_tab!G9))","v":"Bravanský Marek"},{"$f":"IF(R58=\"\",\"\",GETPIVOTDATA(\"body\",knt_tab!$G$3,\"zavodnik\",R58))","v":23},null,29,{"$f":"IF(ISERR(GETPIVOTDATA(\"body\",knt_tab!$D$3,\"zavodnik\",knt_tab!D33)),\"\",IF(GETPIVOTDATA(\"body\",knt_tab!$D$3,\"zavodnik\",knt_tab!D33)=0,\"\",knt_tab!D33))","v":"Řehůřková Jana"},{"$f":"IF(V58=\"\",\"\",GETPIVOTDATA(\"body\",knt_tab!$D$3,\"zavodnik\",V58))","v":5}]
[54,{"$f":"IF(ISERR(GETPIVOTDATA(\"body\",knt_tab!$A$3,\"zavodnik\",knt_tab!A60)),\"\",IF(GETPIVOTDATA(\"body\",knt_tab!$A$3,\"zavodnik\",knt_tab!A60)=0,\"\",knt_tab!A60))","v":"Valošek Jakub"},{"$f":"IF(B59=\"\",\"\",GETPIVOTDATA(\"body\",knt_tab!$A$3,\"zavodnik\",B59))","v":34},null,112,{"$f":"IF(ISERR(GETPIVOTDATA(\"body\",knt_tab!$A$3,\"zavodnik\",knt_tab!A121)),\"\",IF(GETPIVOTDATA(\"body\",knt_tab!$A$3,\"zavodnik\",knt_tab!A121)=0,\"\",knt_tab!A121))","v":"Gunár Dominik"},{"$f":"IF(F59=\"\",\"\",GETPIVOTDATA(\"body\",knt_tab!$A$3,\"zavodnik\",F59))","v":5},null,1,{"$f":"IF(ISERR(GETPIVOTDATA(\"body\",knt_tab!$AH$3,\"zavodnik\",knt_tab!AH5)),\"\",IF(GETPIVOTDATA(\"body\",knt_tab!$AH$3,\"zavodnik\",knt_tab!AH5)=0,\"\",knt_tab!AH5))","v":"Michálková Karolína"},{"$f":"IF(J59=\"\",\"\",GETPIVOTDATA(\"body\",knt_tab!$AH$3,\"zavodnik\",J59))","v":91},null,19,{"$f":"IF(ISERR(GETPIVOTDATA(\"body\",knt_tab!$S$3,\"zavodnik\",knt_tab!S23)),\"\",IF(GETPIVOTDATA(\"body\",knt_tab!$S$3,\"zavodnik\",knt_tab!S23)=0,\"\",knt_tab!S23))","v":"Bečka Václav"},{"$f":"IF(N59=\"\",\"\",GETPIVOTDATA(\"body\",knt_tab!$S$3,\"zavodnik\",N59))","v":19},null,5,{"$f":"IF(ISERR(GETPIVOTDATA(\"body\",knt_tab!$G$3,\"zavodnik\",knt_tab!G10)),\"\",IF(GETPIVOTDATA(\"body\",knt_tab!$G$3,\"zavodnik\",knt_tab!G10)=0,\"\",knt_tab!G10))","v":"Stránský David"},{"$f":"IF(R59=\"\",\"\",GETPIVOTDATA(\"body\",knt_tab!$G$3,\"zavodnik\",R59))","v":23},null,29,{"$f":"IF(ISERR(GETPIVOTDATA(\"body\",knt_tab!$D$3,\"zavodnik\",knt_tab!D34)),\"\",IF(GETPIVOTDATA(\"body\",knt_tab!$D$3,\"zavodnik\",knt_tab!D34)=0,\"\",knt_tab!D34))","v":"Janiurek Petr"},{"$f":"IF(V59=\"\",\"\",GETPIVOTDATA(\"body\",knt_tab!$D$3,\"zavodnik\",V59))","v":5}]
[57,{"$f":"IF(ISERR(GETPIVOTDATA(\"body\",knt_tab!$A$3,\"zavodnik\",knt_tab!A61)),\"\",IF(GETPIVOTDATA(\"body\",knt_tab!$A$3,\"zavodnik\",knt_tab!A61)=0,\"\",knt_tab!A61))","v":"Bukovjanová Charlotte"},{"$f":"IF(B60=\"\",\"\",GETPIVOTDATA(\"body\",knt_tab!$A$3,\"zavodnik\",B60))","v":33},null,112,{"$f":"IF(ISERR(GETPIVOTDATA(\"body\",knt_tab!$A$3,\"zavodnik\",knt_tab!A122)),\"\",IF(GETPIVOTDATA(\"body\",knt_tab!$A$3,\"zavodnik\",knt_tab!A122)=0,\"\",knt_tab!A122))","v":"Vršek Jakub"},{"$f":"IF(F60=\"\",\"\",GETPIVOTDATA(\"body\",knt_tab!$A$3,\"zavodnik\",F60))","v":5},null,{"$f":"IF(J60=\"\",\"\",IF(K60=K59,I59,ROW(I60)-ROW($I$58)))","v":2},{"$f":"IF(ISERR(GETPIVOTDATA(\"body\",knt_tab!$AH$3,\"zavodnik\",knt_tab!AH6)),\"\",IF(GETPIVOTDATA(\"body\",knt_tab!$AH$3,\"zavodnik\",knt_tab!AH6)=0,\"\",knt_tab!AH6))","v":"Václavková Tereza"},{"$f":"IF(J60=\"\",\"\",GETPIVOTDATA(\"body\",knt_tab!$AH$3,\"zavodnik\",J60))","v":27},null,20,{"$f":"IF(ISERR(GETPIVOTDATA(\"body\",knt_tab!$S$3,\"zavodnik\",knt_tab!S24)),\"\",IF(GETPIVOTDATA(\"body\",knt_tab!$S$3,\"zavodnik\",knt_tab!S24)=0,\"\",knt_tab!S24))","v":"Dryšl Adam"},{"$f":"IF(N60=\"\",\"\",GETPIVOTDATA(\"body\",knt_tab!$S$3,\"zavodnik\",N60))","v":15},null,7,{"$f":"IF(ISERR(GETPIVOTDATA(\"body\",knt_tab!$G$3,\"zavodnik\",knt_tab!G11)),\"\",IF(GETPIVOTDATA(\"body\",knt_tab!$G$3,\"zavodnik\",knt_tab!G11)=0,\"\",knt_tab!G11))","v":"Soukup Hugo"},{"$f":"IF(R60=\"\",\"\",GETPIVOTDATA(\"body\",knt_tab!$G$3,\"zavodnik\",R60))","v":21},null,29,{"$f":"IF(ISERR(GETPIVOTDATA(\"body\",knt_tab!$D$3,\"zavodnik\",knt_tab!D35)),\"\",IF(GETPIVOTDATA(\"body\",knt_tab!$D$3,\"zavodnik\",knt_tab!D35)=0,\"\",knt_tab!D35))","v":"Gunár Dominik"},{"$f":"IF(V60=\"\",\"\",GETPIVOTDATA(\"body\",knt_tab!$D$3,\"zavodnik\",V60))","v":5}]
[58,{"$f":"IF(ISERR(GETPIVOTDATA(\"body\",knt_tab!$A$3,\"zavodnik\",knt_tab!A62)),\"\",IF(GETPIVOTDATA(\"body\",knt_tab!$A$3,\"zavodnik\",knt_tab!A62)=0,\"\",knt_tab!A62))","v":"Nováková Victoria"},{"$f":"IF(B61=\"\",\"\",GETPIVOTDATA(\"body\",knt_tab!$A$3,\"zavodnik\",B61))","v":32},null,112,{"$f":"IF(ISERR(GETPIVOTDATA(\"body\",knt_tab!$A$3,\"zavodnik\",knt_tab!A123)),\"\",IF(GETPIVOTDATA(\"body\",knt_tab!$A$3,\"zavodnik\",knt_tab!A123)=0,\"\",knt_tab!A123))","v":"Janiurek Petr"},{"$f":"IF(F61=\"\",\"\",GETPIVOTDATA(\"body\",knt_tab!$A$3,\"zavodnik\",F61))","v":5},null,{"$f":"IF(J61=\"\",\"\",IF(K61=K60,I60,ROW(I61)-ROW($I$58)))","v":3},{"$f":"IF(ISERR(GETPIVOTDATA(\"body\",knt_tab!$AH$3,\"zavodnik\",knt_tab!AH7)),\"\",IF(GETPIVOTDATA(\"body\",knt_tab!$AH$3,\"zavodnik\",knt_tab!AH7)=0,\"\",knt_tab!AH7))","v":"Kuželová Dominika"},{"$f":"IF(J61=\"\",\"\",GETPIVOTDATA(\"body\",knt_tab!$AH$3,\"zavodnik\",J61))","v":12},null,20,{"$f":"IF(ISERR(GETPIVOTDATA(\"body\",knt_tab!$S$3,\"zavodnik\",knt_tab!S25)),\"\",IF(GETPIVOTDATA(\"body\",knt_tab!$S$3,\"zavodnik\",knt_tab!S25)=0,\"\",knt_tab!S25))","v":"Valošek Jakub"},{"$f":"IF(N61=\"\",\"\",GETPIVOTDATA(\"body\",knt_tab!$S$3,\"zavodnik\",N61))","v":15},null,8,{"$f":"IF(ISERR(GETPIVOTDATA(\"body\",knt_tab!$G$3,\"zavodnik\",knt_tab!G12)),\"\",IF(GETPIVOTDATA(\"body\",knt_tab!$G$3,\"zavodnik\",knt_tab!G12)=0,\"\",knt_tab!G12))","v":"Nytra Sebastián"},{"$f":"IF(R61=\"\",\"\",GETPIVOTDATA(\"body\",knt_tab!$G$3,\"zavodnik\",R61))","v":17},null,29,{"$f":"IF(ISERR(GETPIVOTDATA(\"body\",knt_tab!$D$3,\"zavodnik\",knt_tab!D36)),\"\",IF(GETPIVOTDATA(\"body\",knt_tab!$D$3,\"zavodnik\",knt_tab!D36)=0,\"\",knt_tab!D36))","v":"Funiok Martin"},{"$f":"IF(V61=\"\",\"\",GETPIVOTDATA(\"body\",knt_tab!$D$3,\"zavodnik\",V61))","v":5}]
[58,{"$f":"IF(ISERR(GETPIVOTDATA(\"body\",knt_tab!$A$3,\"zavodnik\",knt_tab!A63)),\"\",IF(GETPIVOTDATA(\"body\",knt_tab!$A$3,\"zavodnik\",knt_tab!A63)=0,\"\",knt_tab!A63))","v":"Salomon Ondřej"},{"$f":"IF(B62=\"\",\"\",GETPIVOTDATA(\"body\",knt_tab!$A$3,\"zavodnik\",B62))","v":32},null,112,{"$f":"IF(ISERR(GETPIVOTDATA(\"body\",knt_tab!$A$3,\"zavodnik\",knt_tab!A124)),\"\",IF(GETPIVOTDATA(\"body\",knt_tab!$A$3,\"zavodnik\",knt_tab!A124)=0,\"\",knt_tab!A124))","v":"Funiok Martin"},{"$f":"IF(F62=\"\",\"\",GETPIVOTDATA(\"body\",knt_tab!$A$3,\"zavodnik\",F62))","v":5},null,{"$f":"IF(J62=\"\",\"\",IF(K62=K61,I61,ROW(I62)-ROW($I$58)))","v":3},{"$f":"IF(ISERR(GETPIVOTDATA(\"body\",knt_tab!$AH$3,\"zavodnik\",knt_tab!AH8)),\"\",IF(GETPIVOTDATA(\"body\",knt_tab!$AH$3,\"zavodnik\",knt_tab!AH8)=0,\"\",knt_tab!AH8))","v":"Čerchlová Markéta"},{"$f":"IF(J62=\"\",\"\",GETPIVOTDATA(\"body\",knt_tab!$AH$3,\"zavodnik\",J62))","v":12},null,22,{"$f":"IF(ISERR(GETPIVOTDATA(\"body\",knt_tab!$S$3,\"zavodnik\",knt_tab!S26)),\"\",IF(GETPIVOTDATA(\"body\",knt_tab!$S$3,\"zavodnik\",knt_tab!S26)=0,\"\",knt_tab!S26))","v":"Seibert Marian"},{"$f":"IF(N62=\"\",\"\",GETPIVOTDATA(\"body\",knt_tab!$S$3,\"zavodnik\",N62))","v":1},null,8,{"$f":"IF(ISERR(GETPIVOTDATA(\"body\",knt_tab!$G$3,\"zavodnik\",knt_tab!G13)),\"\",IF(GETPIVOTDATA(\"body\",knt_tab!$G$3,\"zavodnik\",knt_tab!G13)=0,\"\",knt_tab!G13))","v":"Kret Matyáš"},{"$f":"IF(R62=\"\",\"\",GETPIVOTDATA(\"body\",knt_tab!$G$3,\"zavodnik\",R62))","v":17},null,33,{"$f":"IF(ISERR(GETPIVOTDATA(\"body\",knt_tab!$D$3,\"zavodnik\",knt_tab!D37)),\"\",IF(GETPIVOTDATA(\"body\",knt_tab!$D$3,\"zavodnik\",knt_tab!D37)=0,\"\",knt_tab!D37))","v":"Gajda Martin"},{"$f":"IF(V62=\"\",\"\",GETPIVOTDATA(\"body\",knt_tab!$D$3,\"zavodnik\",V62))","v":4}]
[58,{"$f":"IF(ISERR(GETPIVOTDATA(\"body\",knt_tab!$A$3,\"zavodnik\",knt_tab!A64)),\"\",IF(GETPIVOTDATA(\"body\",knt_tab!$A$3,\"zavodnik\",knt_tab!A64)=0,\"\",knt_tab!A64))","v":"Kolář Vojtěch"},{"$f":"IF(B63=\"\",\"\",GETPIVOTDATA(\"body\",knt_tab!$A$3,\"zavodnik\",B63))","v":32},null,{"$f":"IF(F63=\"\",\"\",IF(G63=G62,E62,ROW(E63)-ROW($E$3)+61))","v":112},{"$f":"IF(ISERR(GETPIVOTDATA(\"body\",knt_tab!$A$3,\"zavodnik\",knt_tab!A125)),\"\",IF(GETPIVOTDATA(\"body\",knt_tab!$A$3,\"zavodnik\",knt_tab!A125)=0,\"\",knt_tab!A125))","v":"Hon Sebastián"},{"$f":"IF(F63=\"\",\"\",GETPIVOTDATA(\"body\",knt_tab!$A$3,\"zavodnik\",F63))","v":5},null,{"$f":"IF(J63=\"\",\"\",IF(K63=K62,I62,ROW(I63)-ROW($I$58)))","v":5},{"$f":"IF(ISERR(GETPIVOTDATA(\"body\",knt_tab!$AH$3,\"zavodnik\",knt_tab!AH9)),\"\",IF(GETPIVOTDATA(\"body\",knt_tab!$AH$3,\"zavodnik\",knt_tab!AH9)=0,\"\",knt_tab!AH9))","v":"Polášková Kristýna"},{"$f":"IF(J63=\"\",\"\",GETPIVOTDATA(\"body\",knt_tab!$AH$3,\"zavodnik\",J63))","v":10},null,"",{"$f":"IF(ISERR(GETPIVOTDATA(\"body\",knt_tab!$S$3,\"zavodnik\",knt_tab!S27)),\"\",IF(GETPIVOTDATA(\"body\",knt_tab!$S$3,\"zavodnik\",knt_tab!S27)=0,\"\",knt_tab!S27))","v":""},{"$f":"IF(N63=\"\",\"\",GETPIVOTDATA(\"body\",knt_tab!$S$3,\"zavodnik\",N63))","v":""},null,10,{"$f":"IF(ISERR(GETPIVOTDATA(\"body\",knt_tab!$G$3,\"zavodnik\",knt_tab!G14)),\"\",IF(GETPIVOTDATA(\"body\",knt_tab!$G$3,\"zavodnik\",knt_tab!G14)=0,\"\",knt_tab!G14))","v":"Bystrianský Jan"},{"$f":"IF(R63=\"\",\"\",GETPIVOTDATA(\"body\",knt_tab!$G$3,\"zavodnik\",R63))","v":15},null,34,{"$f":"IF(ISERR(GETPIVOTDATA(\"body\",knt_tab!$D$3,\"zavodnik\",knt_tab!D38)),\"\",IF(GETPIVOTDATA(\"body\",knt_tab!$D$3,\"zavodnik\",knt_tab!D38)=0,\"\",knt_tab!D38))","v":"Gajdová Agáta"},{"$f":"IF(V63=\"\",\"\",GETPIVOTDATA(\"body\",knt_tab!$D$3,\"zavodnik\",V63))","v":3}]